Workbook

Sheet Calculator
A1: Discount Rate | B1: Amortization Period | C1: Amortization Method | D1: Payroll Growth | F1: State | G1: ARC as a Percentage of Revenue | I1: Projected Annual Required Contribution as a Percentage of Own Source Revenue by State, 2016
A2: 0.075 | B2: 21 | C2: Level Percent | D2: 0.035 | F2: Illinois | G2: =INDEX(Table1[arc_rev],MATCH($A$2&$B$2&$D$2&F2,Table1[discount]&Table1[amort]&Table1[payroll]&Table1[state],0)) -> 0.1807619742
F3: New Jersey | G3: =INDEX(Table1[arc_rev],MATCH($A$2&$B$2&$D$2&F3,Table1[discount]&Table1[amort]&Table1[payroll]&Table1[state],0)) -> 0.1494727524
F4: Louisiana | G4: =INDEX(Table1[arc_rev],MATCH($A$2&$B$2&$D$2&F4,Table1[discount]&Table1[amort]&Table1[payroll]&Table1[state],0)) -> 0.1398167497
F5: Mississippi | G5: =INDEX(Table1[arc_rev],MATCH($A$2&$B$2&$D$2&F5,Table1[discount]&Table1[amort]&Table1[payroll]&Table1[state],0)) -> 0.1269777831
F6: Connecticut | G6: =INDEX(Table1[arc_rev],MATCH($A$2&$B$2&$D$2&F6,Table1[discount]&Table1[amort]&Table1[payroll]&Table1[state],0)) -> 0.120927149
F7: Kentucky | G7: =INDEX(Table1[arc_rev],MATCH($A$2&$B$2&$D$2&F7,Table1[discount]&Table1[amort]&Table1[payroll]&Table1[state],0)) -> 0.1117421494
F8: Massachusetts | G8: =INDEX(Table1[arc_rev],MATCH($A$2&$B$2&$D$2&F8,Table1[discount]&Table1[amort]&Table1[payroll]&Table1[state],0)) -> 0.09517398045
F9: Maryland | G9: =INDEX(Table1[arc_rev],MATCH($A$2&$B$2&$D$2&F9,Table1[discount]&Table1[amort]&Table1[payroll]&Table1[state],0)) -> 0.09496058356
F10: Arkansas | G10: =INDEX(Table1[arc_rev],MATCH($A$2&$B$2&$D$2&F10,Table1[discount]&Table1[amort]&Table1[payroll]&Table1[state],0)) -> 0.07743015062
F11: Hawaii | G11: =INDEX(Table1[arc_rev],MATCH($A$2&$B$2&$D$2&F11,Table1[discount]&Table1[amort]&Table1[payroll]&Table1[state],0)) -> 0.07190158522
F12: West Virginia | G12: =INDEX(Table1[arc_rev],MATCH($A$2&$B$2&$D$2&F12,Table1[discount]&Table1[amort]&Table1[payroll]&Table1[state],0)) -> 0.06106745776
F13: Iowa | G13: =INDEX(Table1[arc_rev],MATCH($A$2&$B$2&$D$2&F13,Table1[discount]&Table1[amort]&Table1[payroll]&Table1[state],0)) -> 0.05976531968
F14: Pennsylvania | G14: =INDEX(Table1[arc_rev],MATCH($A$2&$B$2&$D$2&F14,Table1[discount]&Table1[amort]&Table1[payroll]&Table1[state],0)) -> 0.05456749017
F15: Rhode Island | G15: =INDEX(Table1[arc_rev],MATCH($A$2&$B$2&$D$2&F15,Table1[discount]&Table1[amort]&Table1[payroll]&Table1[state],0)) -> 0.0501736629
F16: Montana | G16: =INDEX(Table1[arc_rev],MATCH($A$2&$B$2&$D$2&F16,Table1[discount]&Table1[amort]&Table1[payroll]&Table1[state],0)) -> 0.04894847636
F17: Texas | G17: =INDEX(Table1[arc_rev],MATCH($A$2&$B$2&$D$2&F17,Table1[discount]&Table1[amort]&Table1[payroll]&Table1[state],0)) -> 0.04826313283
F18: South Carolina | G18: =INDEX(Table1[arc_rev],MATCH($A$2&$B$2&$D$2&F18,Table1[discount]&Table1[amort]&Table1[payroll]&Table1[state],0)) -> 0.04753482781
F19: New Mexico | G19: =INDEX(Table1[arc_rev],MATCH($A$2&$B$2&$D$2&F19,Table1[discount]&Table1[amort]&Table1[payroll]&Table1[state],0)) -> 0.04573310849
F20: Kansas | G20: =INDEX(Table1[arc_rev],MATCH($A$2&$B$2&$D$2&F20,Table1[discount]&Table1[amort]&Table1[payroll]&Table1[state],0)) -> 0.04543478339
F21: Vermont | G21: =INDEX(Table1[arc_rev],MATCH($A$2&$B$2&$D$2&F21,Table1[discount]&Table1[amort]&Table1[payroll]&Table1[state],0)) -> 0.0436361478
F22: California | G22: =INDEX(Table1[arc_rev],MATCH($A$2&$B$2&$D$2&F22,Table1[discount]&Table1[amort]&Table1[payroll]&Table1[state],0)) -> 0.04332739791
F23: Indiana | G23: =INDEX(Table1[arc_rev],MATCH($A$2&$B$2&$D$2&F23,Table1[discount]&Table1[amort]&Table1[payroll]&Table1[state],0)) -> 0.03812761332
F24: Alaska | G24: =INDEX(Table1[arc_rev],MATCH($A$2&$B$2&$D$2&F24,Table1[discount]&Table1[amort]&Table1[payroll]&Table1[state],0)) -> 0.03797317867
F25: Maine | G25: =INDEX(Table1[arc_rev],MATCH($A$2&$B$2&$D$2&F25,Table1[discount]&Table1[amort]&Table1[payroll]&Table1[state],0)) -> 0.03703511563
F26: Missouri | G26: =INDEX(Table1[arc_rev],MATCH($A$2&$B$2&$D$2&F26,Table1[discount]&Table1[amort]&Table1[payroll]&Table1[state],0)) -> 0.03563936257
F27: Colorado | G27: =INDEX(Table1[arc_rev],MATCH($A$2&$B$2&$D$2&F27,Table1[discount]&Table1[amort]&Table1[payroll]&Table1[state],0)) -> 0.03547577057
F28: Delaware | G28: =INDEX(Table1[arc_rev],MATCH($A$2&$B$2&$D$2&F28,Table1[discount]&Table1[amort]&Table1[payroll]&Table1[state],0)) -> 0.03196340794
F29: Oklahoma | G29: =INDEX(Table1[arc_rev],MATCH($A$2&$B$2&$D$2&F29,Table1[discount]&Table1[amort]&Table1[payroll]&Table1[state],0)) -> 0.0277140782
F30: Virginia | G30: =INDEX(Table1[arc_rev],MATCH($A$2&$B$2&$D$2&F30,Table1[discount]&Table1[amort]&Table1[payroll]&Table1[state],0)) -> 0.02517843295
F31: Nevada | G31: =INDEX(Table1[arc_rev],MATCH($A$2&$B$2&$D$2&F31,Table1[discount]&Table1[amort]&Table1[payroll]&Table1[state],0)) -> 0.02515833985
F32: New York | G32: =INDEX(Table1[arc_rev],MATCH($A$2&$B$2&$D$2&F32,Table1[discount]&Table1[amort]&Table1[payroll]&Table1[state],0)) -> 0.02505269697
F33: Georgia | G33: =INDEX(Table1[arc_rev],MATCH($A$2&$B$2&$D$2&F33,Table1[discount]&Table1[amort]&Table1[payroll]&Table1[state],0)) -> 0.02443668444
F34: Wyoming | G34: =INDEX(Table1[arc_rev],MATCH($A$2&$B$2&$D$2&F34,Table1[discount]&Table1[amort]&Table1[payroll]&Table1[state],0)) -> 0.02360072641
F35: New Hampshire | G35: =INDEX(Table1[arc_rev],MATCH($A$2&$B$2&$D$2&F35,Table1[discount]&Table1[amort]&Table1[payroll]&Table1[state],0)) -> 0.02236241031
F36: Washington | G36: =INDEX(Table1[arc_rev],MATCH($A$2&$B$2&$D$2&F36,Table1[discount]&Table1[amort]&Table1[payroll]&Table1[state],0)) -> 0.02039792733
F37: Alabama | G37: =INDEX(Table1[arc_rev],MATCH($A$2&$B$2&$D$2&F37,Table1[discount]&Table1[amort]&Table1[payroll]&Table1[state],0)) -> 0.01862244013
F38: South Dakota | G38: =INDEX(Table1[arc_rev],MATCH($A$2&$B$2&$D$2&F38,Table1[discount]&Table1[amort]&Table1[payroll]&Table1[state],0)) -> 0.0172695684
F39: Utah | G39: =INDEX(Table1[arc_rev],MATCH($A$2&$B$2&$D$2&F39,Table1[discount]&Table1[amort]&Table1[payroll]&Table1[state],0)) -> 0.01686305961
F40: Michigan | G40: =INDEX(Table1[arc_rev],MATCH($A$2&$B$2&$D$2&F40,Table1[discount]&Table1[amort]&Table1[payroll]&Table1[state],0)) -> 0.01628146266
F41: Minnesota | G41: =INDEX(Table1[arc_rev],MATCH($A$2&$B$2&$D$2&F41,Table1[discount]&Table1[amort]&Table1[payroll]&Table1[state],0)) -> 0.01552890385
F42: Oregon | G42: =INDEX(Table1[arc_rev],MATCH($A$2&$B$2&$D$2&F42,Table1[discount]&Table1[amort]&Table1[payroll]&Table1[state],0)) -> 0.01549335428
F43: Idaho | G43: =INDEX(Table1[arc_rev],MATCH($A$2&$B$2&$D$2&F43,Table1[discount]&Table1[amort]&Table1[payroll]&Table1[state],0)) -> 0.01224385543
F44: North Carolina | G44: =INDEX(Table1[arc_rev],MATCH($A$2&$B$2&$D$2&F44,Table1[discount]&Table1[amort]&Table1[payroll]&Table1[state],0)) -> 0.01217923133
F45: Ohio | G45: =INDEX(Table1[arc_rev],MATCH($A$2&$B$2&$D$2&F45,Table1[discount]&Table1[amort]&Table1[payroll]&Table1[state],0)) -> 0.01153457392
F46: Arizona | G46: =INDEX(Table1[arc_rev],MATCH($A$2&$B$2&$D$2&F46,Table1[discount]&Table1[amort]&Table1[payroll]&Table1[state],0)) -> 0.0111670452
F47: Florida | G47: =INDEX(Table1[arc_rev],MATCH($A$2&$B$2&$D$2&F47,Table1[discount]&Table1[amort]&Table1[payroll]&Table1[state],0)) -> 0.0106266899
F48: Tennessee | G48: =INDEX(Table1[arc_rev],MATCH($A$2&$B$2&$D$2&F48,Table1[discount]&Table1[amort]&Table1[payroll]&Table1[state],0)) -> 0.01011453851
F49: North Dakota | G49: =INDEX(Table1[arc_rev],MATCH($A$2&$B$2&$D$2&F49,Table1[discount]&Table1[amort]&Table1[payroll]&Table1[state],0)) -> 0.00983573328
F50: Wisconsin | G50: =INDEX(Table1[arc_rev],MATCH($A$2&$B$2&$D$2&F50,Table1[discount]&Table1[amort]&Table1[payroll]&Table1[state],0)) -> 0.007988023139
F51: Nebraska | G51: =INDEX(Table1[arc_rev],MATCH($A$2&$B$2&$D$2&F51,Table1[discount]&Table1[amort]&Table1[payroll]&Table1[state],0)) -> 0.006722976932

Sheet PullingFrom (hidden)
A1: amort | B1: payroll | C1: stateid | D1: discount | E1: arc | F1: revenue | G1: arc_rev | H1: state
A2: 15 | B2: 0 | C2: 1 | D2: 0.03 | E2: 913686.38 | F2: =VLOOKUP(Table1[[#This Row],[stateid]],Revenue!$A$2:$B$51,2) -> 14813338 | G2: =MAX(Table1[[#This Row],[arc]]/Table1[[#This Row],[revenue]],0) -> 0.06167997922 | H2: =VLOOKUP(Table1[[#This Row],[stateid]],Revenue!$A$2:$C$51,3) -> Alabama
A3: 15 | B3: 0 | C3: 1 | D3: 0.0325 | E3: 884930 | F3: =VLOOKUP(Table1[[#This Row],[stateid]],Revenue!$A$2:$B$51,2) -> 14813338 | G3: =MAX(Table1[[#This Row],[arc]]/Table1[[#This Row],[revenue]],0) -> 0.05973873006 | H3: =VLOOKUP(Table1[[#This Row],[stateid]],Revenue!$A$2:$C$51,3) -> Alabama
A4: 15 | B4: 0 | C4: 1 | D4: 0.035 | E4: 856336.13 | F4: =VLOOKUP(Table1[[#This Row],[stateid]],Revenue!$A$2:$B$51,2) -> 14813338 | G4: =MAX(Table1[[#This Row],[arc]]/Table1[[#This Row],[revenue]],0) -> 0.05780845141 | H4: =VLOOKUP(Table1[[#This Row],[stateid]],Revenue!$A$2:$C$51,3) -> Alabama
A5: 15 | B5: 0 | C5: 1 | D5: 0.0375 | E5: 827898.38 | F5: =VLOOKUP(Table1[[#This Row],[stateid]],Revenue!$A$2:$B$51,2) -> 14813338 | G5: =MAX(Table1[[#This Row],[arc]]/Table1[[#This Row],[revenue]],0) -> 0.05588871192 | H5: =VLOOKUP(Table1[[#This Row],[stateid]],Revenue!$A$2:$C$51,3) -> Alabama
A6: 15 | B6: 0 | C6: 1 | D6: 0.04 | E6: 799610.38 | F6: =VLOOKUP(Table1[[#This Row],[stateid]],Revenue!$A$2:$B$51,2) -> 14813338 | G6: =MAX(Table1[[#This Row],[arc]]/Table1[[#This Row],[revenue]],0) -> 0.05397908155 | H6: =VLOOKUP(Table1[[#This Row],[stateid]],Revenue!$A$2:$C$51,3) -> Alabama
A7: 15 | B7: 0 | C7: 1 | D7: 0.0425 | E7: 771466.88 | F7: =VLOOKUP(Table1[[#This Row],[stateid]],Revenue!$A$2:$B$51,2) -> 14813338 | G7: =MAX(Table1[[#This Row],[arc]]/Table1[[#This Row],[revenue]],0) -> 0.05207920592 | H7: =VLOOKUP(Table1[[#This Row],[stateid]],Revenue!$A$2:$C$51,3) -> Alabama
A8: 15 | B8: 0 | C8: 1 | D8: 0.045 | E8: 743462.81 | F8: =VLOOKUP(Table1[[#This Row],[stateid]],Revenue!$A$2:$B$51,2) -> 14813338 | G8: =MAX(Table1[[#This Row],[arc]]/Table1[[#This Row],[revenue]],0) -> 0.05018874274 | H8: =VLOOKUP(Table1[[#This Row],[stateid]],Revenue!$A$2:$C$51,3) -> Alabama
A9: 15 | B9: 0 | C9: 1 | D9: 0.0475 | E9: 715593.69 | F9: =VLOOKUP(Table1[[#This Row],[stateid]],Revenue!$A$2:$B$51,2) -> 14813338 | G9: =MAX(Table1[[#This Row],[arc]]/Table1[[#This Row],[revenue]],0) -> 0.0483073896 | H9: =VLOOKUP(Table1[[#This Row],[stateid]],Revenue!$A$2:$C$51,3) -> Alabama
A10: 15 | B10: 0 | C10: 1 | D10: 0.05 | E10: 687855.44 | F10: =VLOOKUP(Table1[[#This Row],[stateid]],Revenue!$A$2:$B$51,2) -> 14813338 | G10: =MAX(Table1[[#This Row],[arc]]/Table1[[#This Row],[revenue]],0) -> 0.04643487106 | H10: =VLOOKUP(Table1[[#This Row],[stateid]],Revenue!$A$2:$C$51,3) -> Alabama
A11: 15 | B11: 0 | C11: 1 | D11: 0.0525 | E11: 660244.06 | F11: =VLOOKUP(Table1[[#This Row],[stateid]],Revenue!$A$2:$B$51,2) -> 14813338 | G11: =MAX(Table1[[#This Row],[arc]]/Table1[[#This Row],[revenue]],0) -> 0.0445709171 | H11: =VLOOKUP(Table1[[#This Row],[stateid]],Revenue!$A$2:$C$51,3) -> Alabama
A12: 15 | B12: 0 | C12: 1 | D12: 0.055 | E12: 632756.44 | F12: =VLOOKUP(Table1[[#This Row],[stateid]],Revenue!$A$2:$B$51,2) -> 14813338 | G12: =MAX(Table1[[#This Row],[arc]]/Table1[[#This Row],[revenue]],0) -> 0.04271531778 | H12: =VLOOKUP(Table1[[#This Row],[stateid]],Revenue!$A$2:$C$51,3) -> Alabama
A13: 15 | B13: 0 | C13: 1 | D13: 0.0575 | E13: 605389.63 | F13: =VLOOKUP(Table1[[#This Row],[stateid]],Revenue!$A$2:$B$51,2) -> 14813338 | G13: =MAX(Table1[[#This Row],[arc]]/Table1[[#This Row],[revenue]],0) -> 0.04086787394 | H13: =VLOOKUP(Table1[[#This Row],[stateid]],Revenue!$A$2:$C$51,3) -> Alabama
A14: 15 | B14: 0 | C14: 1 | D14: 0.06 | E14: 578140.88 | F14: =VLOOKUP(Table1[[#This Row],[stateid]],Revenue!$A$2:$B$51,2) -> 14813338 | G14: =MAX(Table1[[#This Row],[arc]]/Table1[[#This Row],[revenue]],0) -> 0.03902839995 | H14: =VLOOKUP(Table1[[#This Row],[stateid]],Revenue!$A$2:$C$51,3) -> Alabama
A15: 15 | B15: 0 | C15: 1 | D15: 0.0625 | E15: 551007.63 | F15: =VLOOKUP(Table1[[#This Row],[stateid]],Revenue!$A$2:$B$51,2) -> 14813338 | G15: =MAX(Table1[[#This Row],[arc]]/Table1[[#This Row],[revenue]],0) -> 0.03719672298 | H15: =VLOOKUP(Table1[[#This Row],[stateid]],Revenue!$A$2:$C$51,3) -> Alabama
A16: 15 | B16: 0 | C16: 1 | D16: 0.065 | E16: 523988 | F16: =VLOOKUP(Table1[[#This Row],[stateid]],Revenue!$A$2:$B$51,2) -> 14813338 | G16: =MAX(Table1[[#This Row],[arc]]/Table1[[#This Row],[revenue]],0) -> 0.03537271613 | H16: =VLOOKUP(Table1[[#This Row],[stateid]],Revenue!$A$2:$C$51,3) -> Alabama
A17: 15 | B17: 0 | C17: 1 | D17: 0.0675 | E17: 497079.97 | F17: =VLOOKUP(Table1[[#This Row],[stateid]],Revenue!$A$2:$B$51,2) -> 14813338 | G17: =MAX(Table1[[#This Row],[arc]]/Table1[[#This Row],[revenue]],0) -> 0.03355624303 | H17: =VLOOKUP(Table1[[#This Row],[stateid]],Revenue!$A$2:$C$51,3) -> Alabama
A18: 15 | B18: 0 | C18: 1 | D18: 0.07 | E18: 470282.06 | F18: =VLOOKUP(Table1[[#This Row],[stateid]],Revenue!$A$2:$B$51,2) -> 14813338 | G18: =MAX(Table1[[#This Row],[arc]]/Table1[[#This Row],[revenue]],0) -> 0.03174720377 | H18: =VLOOKUP(Table1[[#This Row],[stateid]],Revenue!$A$2:$C$51,3) -> Alabama
A19: 15 | B19: 0 | C19: 1 | D19: 0.0725 | E19: 443592.94 | F19: =VLOOKUP(Table1[[#This Row],[stateid]],Revenue!$A$2:$B$51,2) -> 14813338 | G19: =MAX(Table1[[#This Row],[arc]]/Table1[[#This Row],[revenue]],0) -> 0.02994550857 | H19: =VLOOKUP(Table1[[#This Row],[stateid]],Revenue!$A$2:$C$51,3) -> Alabama
A20: 15 | B20: 0 | C20: 1 | D20: 0.075 | E20: 417011.06 | F20: =VLOOKUP(Table1[[#This Row],[stateid]],Revenue!$A$2:$B$51,2) -> 14813338 | G20: =MAX(Table1[[#This Row],[arc]]/Table1[[#This Row],[revenue]],0) -> 0.02815105279 | H20: =VLOOKUP(Table1[[#This Row],[stateid]],Revenue!$A$2:$C$51,3) -> Alabama
A21: 15 | B21: 0 | C21: 1 | D21: 0.0775 | E21: 390535.75 | F21: =VLOOKUP(Table1[[#This Row],[stateid]],Revenue!$A$2:$B$51,2) -> 14813338 | G21: =MAX(Table1[[#This Row],[arc]]/Table1[[#This Row],[revenue]],0) -> 0.0263637912 | H21: =VLOOKUP(Table1[[#This Row],[stateid]],Revenue!$A$2:$C$51,3) -> Alabama
A22: 15 | B22: 0 | C22: 1 | D22: 0.08 | E22: 364165.94 | F22: =VLOOKUP(Table1[[#This Row],[stateid]],Revenue!$A$2:$B$51,2) -> 14813338 | G22: =MAX(Table1[[#This Row],[arc]]/Table1[[#This Row],[revenue]],0) -> 0.02458365157 | H22: =VLOOKUP(Table1[[#This Row],[stateid]],Revenue!$A$2:$C$51,3) -> Alabama
A23: 15 | B23: 0 | C23: 1 | D23: 0.0825 | E23: 337900.94 | F23: =VLOOKUP(Table1[[#This Row],[stateid]],Revenue!$A$2:$B$51,2) -> 14813338 | G23: =MAX(Table1[[#This Row],[arc]]/Table1[[#This Row],[revenue]],0) -> 0.02281058732 | H23: =VLOOKUP(Table1[[#This Row],[stateid]],Revenue!$A$2:$C$51,3) -> Alabama
A24: 15 | B24: 0 | C24: 1 | D24: 0.085 | E24: 311740.19 | F24: =VLOOKUP(Table1[[#This Row],[stateid]],Revenue!$A$2:$B$51,2) -> 14813338 | G24: =MAX(Table1[[#This Row],[arc]]/Table1[[#This Row],[revenue]],0) -> 0.02104456065 | H24: =VLOOKUP(Table1[[#This Row],[stateid]],Revenue!$A$2:$C$51,3) -> Alabama
A25: 15 | B25: 0 | C25: 2 | D25: 0.03 | E25: 875716.63 | F25: =VLOOKUP(Table1[[#This Row],[stateid]],Revenue!$A$2:$B$51,2) -> 7626168 | G25: =MAX(Table1[[#This Row],[arc]]/Table1[[#This Row],[revenue]],0) -> 0.1148304929 | H25: =VLOOKUP(Table1[[#This Row],[stateid]],Revenue!$A$2:$C$51,3) -> Alaska
A26: 15 | B26: 0 | C26: 2 | D26: 0.0325 | E26: 851110.31 | F26: =VLOOKUP(Table1[[#This Row],[stateid]],Revenue!$A$2:$B$51,2) -> 7626168 | G26: =MAX(Table1[[#This Row],[arc]]/Table1[[#This Row],[revenue]],0) -> 0.1116039287 | H26: =VLOOKUP(Table1[[#This Row],[stateid]],Revenue!$A$2:$C$51,3) -> Alaska
A27: 15 | B27: 0 | C27: 2 | D27: 0.035 | E27: 826606.44 | F27: =VLOOKUP(Table1[[#This Row],[stateid]],Revenue!$A$2:$B$51,2) -> 7626168 | G27: =MAX(Table1[[#This Row],[arc]]/Table1[[#This Row],[revenue]],0) -> 0.1083907986 | H27: =VLOOKUP(Table1[[#This Row],[stateid]],Revenue!$A$2:$C$51,3) -> Alaska
A28: 15 | B28: 0 | C28: 2 | D28: 0.0375 | E28: 802202.25 | F28: =VLOOKUP(Table1[[#This Row],[stateid]],Revenue!$A$2:$B$51,2) -> 7626168 | G28: =MAX(Table1[[#This Row],[arc]]/Table1[[#This Row],[revenue]],0) -> 0.1051907393 | H28: =VLOOKUP(Table1[[#This Row],[stateid]],Revenue!$A$2:$C$51,3) -> Alaska
A29: 15 | B29: 0 | C29: 2 | D29: 0.04 | E29: 777894.25 | F29: =VLOOKUP(Table1[[#This Row],[stateid]],Revenue!$A$2:$B$51,2) -> 7626168 | G29: =MAX(Table1[[#This Row],[arc]]/Table1[[#This Row],[revenue]],0) -> 0.1020032931 | H29: =VLOOKUP(Table1[[#This Row],[stateid]],Revenue!$A$2:$C$51,3) -> Alaska
A30: 15 | B30: 0 | C30: 2 | D30: 0.0425 | E30: 753680 | F30: =VLOOKUP(Table1[[#This Row],[stateid]],Revenue!$A$2:$B$51,2) -> 7626168 | G30: =MAX(Table1[[#This Row],[arc]]/Table1[[#This Row],[revenue]],0) -> 0.09882814016 | H30: =VLOOKUP(Table1[[#This Row],[stateid]],Revenue!$A$2:$C$51,3) -> Alaska
A31: 15 | B31: 0 | C31: 2 | D31: 0.045 | E31: 729557.19 | F31: =VLOOKUP(Table1[[#This Row],[stateid]],Revenue!$A$2:$B$51,2) -> 7626168 | G31: =MAX(Table1[[#This Row],[arc]]/Table1[[#This Row],[revenue]],0) -> 0.09566497748 | H31: =VLOOKUP(Table1[[#This Row],[stateid]],Revenue!$A$2:$C$51,3) -> Alaska
A32: 15 | B32: 0 | C32: 2 | D32: 0.0475 | E32: 705523.88 | F32: =VLOOKUP(Table1[[#This Row],[stateid]],Revenue!$A$2:$B$51,2) -> 7626168 | G32: =MAX(Table1[[#This Row],[arc]]/Table1[[#This Row],[revenue]],0) -> 0.09251355071 | H32: =VLOOKUP(Table1[[#This Row],[stateid]],Revenue!$A$2:$C$51,3) -> Alaska
A33: 15 | B33: 0 | C33: 2 | D33: 0.05 | E33: 681578.44 | F33: =VLOOKUP(Table1[[#This Row],[stateid]],Revenue!$A$2:$B$51,2) -> 7626168 | G33: =MAX(Table1[[#This Row],[arc]]/Table1[[#This Row],[revenue]],0) -> 0.08937364611 | H33: =VLOOKUP(Table1[[#This Row],[stateid]],Revenue!$A$2:$C$51,3) -> Alaska
A34: 15 | B34: 0 | C34: 2 | D34: 0.0525 | E34: 657719.19 | F34: =VLOOKUP(Table1[[#This Row],[stateid]],Revenue!$A$2:$B$51,2) -> 7626168 | G34: =MAX(Table1[[#This Row],[arc]]/Table1[[#This Row],[revenue]],0) -> 0.08624504338 | H34: =VLOOKUP(Table1[[#This Row],[stateid]],Revenue!$A$2:$C$51,3) -> Alaska
A35: 15 | B35: 0 | C35: 2 | D35: 0.055 | E35: 633945 | F35: =VLOOKUP(Table1[[#This Row],[stateid]],Revenue!$A$2:$B$51,2) -> 7626168 | G35: =MAX(Table1[[#This Row],[arc]]/Table1[[#This Row],[revenue]],0) -> 0.08312759436 | H35: =VLOOKUP(Table1[[#This Row],[stateid]],Revenue!$A$2:$C$51,3) -> Alaska
A36: 15 | B36: 0 | C36: 2 | D36: 0.0575 | E36: 610255 | F36: =VLOOKUP(Table1[[#This Row],[stateid]],Revenue!$A$2:$B$51,2) -> 7626168 | G36: =MAX(Table1[[#This Row],[arc]]/Table1[[#This Row],[revenue]],0) -> 0.08002118495 | H36: =VLOOKUP(Table1[[#This Row],[stateid]],Revenue!$A$2:$C$51,3) -> Alaska
A37: 15 | B37: 0 | C37: 2 | D37: 0.06 | E37: 586648.5 | F37: =VLOOKUP(Table1[[#This Row],[stateid]],Revenue!$A$2:$B$51,2) -> 7626168 | G37: =MAX(Table1[[#This Row],[arc]]/Table1[[#This Row],[revenue]],0) -> 0.07692572469 | H37: =VLOOKUP(Table1[[#This Row],[stateid]],Revenue!$A$2:$C$51,3) -> Alaska
A38: 15 | B38: 0 | C38: 2 | D38: 0.0625 | E38: 563124.56 | F38: =VLOOKUP(Table1[[#This Row],[stateid]],Revenue!$A$2:$B$51,2) -> 7626168 | G38: =MAX(Table1[[#This Row],[arc]]/Table1[[#This Row],[revenue]],0) -> 0.07384109031 | H38: =VLOOKUP(Table1[[#This Row],[stateid]],Revenue!$A$2:$C$51,3) -> Alaska
A39: 15 | B39: 0 | C39: 2 | D39: 0.065 | E39: 539683.25 | F39: =VLOOKUP(Table1[[#This Row],[stateid]],Revenue!$A$2:$B$51,2) -> 7626168 | G39: =MAX(Table1[[#This Row],[arc]]/Table1[[#This Row],[revenue]],0) -> 0.07076729099 | H39: =VLOOKUP(Table1[[#This Row],[stateid]],Revenue!$A$2:$C$51,3) -> Alaska
A40: 15 | B40: 0 | C40: 2 | D40: 0.0675 | E40: 516323.72 | F40: =VLOOKUP(Table1[[#This Row],[stateid]],Revenue!$A$2:$B$51,2) -> 7626168 | G40: =MAX(Table1[[#This Row],[arc]]/Table1[[#This Row],[revenue]],0) -> 0.06770421528 | H40: =VLOOKUP(Table1[[#This Row],[stateid]],Revenue!$A$2:$C$51,3) -> Alaska
A41: 15 | B41: 0 | C41: 2 | D41: 0.07 | E41: 493046.25 | F41: =VLOOKUP(Table1[[#This Row],[stateid]],Revenue!$A$2:$B$51,2) -> 7626168 | G41: =MAX(Table1[[#This Row],[arc]]/Table1[[#This Row],[revenue]],0) -> 0.06465189988 | H41: =VLOOKUP(Table1[[#This Row],[stateid]],Revenue!$A$2:$C$51,3) -> Alaska
A42: 15 | B42: 0 | C42: 2 | D42: 0.0725 | E42: 469850.94 | F42: =VLOOKUP(Table1[[#This Row],[stateid]],Revenue!$A$2:$B$51,2) -> 7626168 | G42: =MAX(Table1[[#This Row],[arc]]/Table1[[#This Row],[revenue]],0) -> 0.06161035792 | H42: =VLOOKUP(Table1[[#This Row],[stateid]],Revenue!$A$2:$C$51,3) -> Alaska
A43: 15 | B43: 0 | C43: 2 | D43: 0.075 | E43: 446737.38 | F43: =VLOOKUP(Table1[[#This Row],[stateid]],Revenue!$A$2:$B$51,2) -> 7626168 | G43: =MAX(Table1[[#This Row],[arc]]/Table1[[#This Row],[revenue]],0) -> 0.05857953562 | H43: =VLOOKUP(Table1[[#This Row],[stateid]],Revenue!$A$2:$C$51,3) -> Alaska
A44: 15 | B44: 0 | C44: 2 | D44: 0.0775 | E44: 423706.22 | F44: =VLOOKUP(Table1[[#This Row],[stateid]],Revenue!$A$2:$B$51,2) -> 7626168 | G44: =MAX(Table1[[#This Row],[arc]]/Table1[[#This Row],[revenue]],0) -> 0.05555951823 | H44: =VLOOKUP(Table1[[#This Row],[stateid]],Revenue!$A$2:$C$51,3) -> Alaska
A45: 15 | B45: 0 | C45: 2 | D45: 0.08 | E45: 400757.69 | F45: =VLOOKUP(Table1[[#This Row],[stateid]],Revenue!$A$2:$B$51,2) -> 7626168 | G45: =MAX(Table1[[#This Row],[arc]]/Table1[[#This Row],[revenue]],0) -> 0.0525503359 | H45: =VLOOKUP(Table1[[#This Row],[stateid]],Revenue!$A$2:$C$51,3) -> Alaska
A46: 15 | B46: 0 | C46: 2 | D46: 0.0825 | E46: 377892.03 | F46: =VLOOKUP(Table1[[#This Row],[stateid]],Revenue!$A$2:$B$51,2) -> 7626168 | G46: =MAX(Table1[[#This Row],[arc]]/Table1[[#This Row],[revenue]],0) -> 0.0495520201 | H46: =VLOOKUP(Table1[[#This Row],[stateid]],Revenue!$A$2:$C$51,3) -> Alaska
A47: 15 | B47: 0 | C47: 2 | D47: 0.085 | E47: 355109.88 | F47: =VLOOKUP(Table1[[#This Row],[stateid]],Revenue!$A$2:$B$51,2) -> 7626168 | G47: =MAX(Table1[[#This Row],[arc]]/Table1[[#This Row],[revenue]],0) -> 0.04656465475 | H47: =VLOOKUP(Table1[[#This Row],[stateid]],Revenue!$A$2:$C$51,3) -> Alaska
A48: 15 | B48: 0 | C48: 3 | D48: 0.03 | E48: 780668.5 | F48: =VLOOKUP(Table1[[#This Row],[stateid]],Revenue!$A$2:$B$51,2) -> 18398739 | G48: =MAX(Table1[[#This Row],[arc]]/Table1[[#This Row],[revenue]],0) -> 0.04243054375 | H48: =VLOOKUP(Table1[[#This Row],[stateid]],Revenue!$A$2:$C$51,3) -> Arizona
A49: 15 | B49: 0 | C49: 3 | D49: 0.0325 | E49: 753064.75 | F49: =VLOOKUP(Table1[[#This Row],[stateid]],Revenue!$A$2:$B$51,2) -> 18398739 | G49: =MAX(Table1[[#This Row],[arc]]/Table1[[#This Row],[revenue]],0) -> 0.04093023712 | H49: =VLOOKUP(Table1[[#This Row],[stateid]],Revenue!$A$2:$C$51,3) -> Arizona
A50: 15 | B50: 0 | C50: 3 | D50: 0.035 | E50: 725620.56 | F50: =VLOOKUP(Table1[[#This Row],[stateid]],Revenue!$A$2:$B$51,2) -> 18398739 | G50: =MAX(Table1[[#This Row],[arc]]/Table1[[#This Row],[revenue]],0) -> 0.03943860283 | H50: =VLOOKUP(Table1[[#This Row],[stateid]],Revenue!$A$2:$C$51,3) -> Arizona
A51: 15 | B51: 0 | C51: 3 | D51: 0.0375 | E51: 698329.31 | F51: =VLOOKUP(Table1[[#This Row],[stateid]],Revenue!$A$2:$B$51,2) -> 18398739 | G51: =MAX(Table1[[#This Row],[arc]]/Table1[[#This Row],[revenue]],0) -> 0.03795528107 | H51: =VLOOKUP(Table1[[#This Row],[stateid]],Revenue!$A$2:$C$51,3) -> Arizona
A52: 15 | B52: 0 | C52: 3 | D52: 0.04 | E52: 671184.25 | F52: =VLOOKUP(Table1[[#This Row],[stateid]],Revenue!$A$2:$B$51,2) -> 18398739 | G52: =MAX(Table1[[#This Row],[arc]]/Table1[[#This Row],[revenue]],0) -> 0.03647990495 | H52: =VLOOKUP(Table1[[#This Row],[stateid]],Revenue!$A$2:$C$51,3) -> Arizona
A53: 15 | B53: 0 | C53: 3 | D53: 0.0425 | E53: 644179.56 | F53: =VLOOKUP(Table1[[#This Row],[stateid]],Revenue!$A$2:$B$51,2) -> 18398739 | G53: =MAX(Table1[[#This Row],[arc]]/Table1[[#This Row],[revenue]],0) -> 0.03501215817 | H53: =VLOOKUP(Table1[[#This Row],[stateid]],Revenue!$A$2:$C$51,3) -> Arizona
A54: 15 | B54: 0 | C54: 3 | D54: 0.045 | E54: 617309.75 | F54: =VLOOKUP(Table1[[#This Row],[stateid]],Revenue!$A$2:$B$51,2) -> 18398739 | G54: =MAX(Table1[[#This Row],[arc]]/Table1[[#This Row],[revenue]],0) -> 0.03355174232 | H54: =VLOOKUP(Table1[[#This Row],[stateid]],Revenue!$A$2:$C$51,3) -> Arizona
A55: 15 | B55: 0 | C55: 3 | D55: 0.0475 | E55: 590570.06 | F55: =VLOOKUP(Table1[[#This Row],[stateid]],Revenue!$A$2:$B$51,2) -> 18398739 | G55: =MAX(Table1[[#This Row],[arc]]/Table1[[#This Row],[revenue]],0) -> 0.0320983987 | H55: =VLOOKUP(Table1[[#This Row],[stateid]],Revenue!$A$2:$C$51,3) -> Arizona
A56: 15 | B56: 0 | C56: 3 | D56: 0.05 | E56: 563955.94 | F56: =VLOOKUP(Table1[[#This Row],[stateid]],Revenue!$A$2:$B$51,2) -> 18398739 | G56: =MAX(Table1[[#This Row],[arc]]/Table1[[#This Row],[revenue]],0) -> 0.03065188 | H56: =VLOOKUP(Table1[[#This Row],[stateid]],Revenue!$A$2:$C$51,3) -> Arizona
A57: 15 | B57: 0 | C57: 3 | D57: 0.0525 | E57: 537463.13 | F57: =VLOOKUP(Table1[[#This Row],[stateid]],Revenue!$A$2:$B$51,2) -> 18398739 | G57: =MAX(Table1[[#This Row],[arc]]/Table1[[#This Row],[revenue]],0) -> 0.02921195469 | H57: =VLOOKUP(Table1[[#This Row],[stateid]],Revenue!$A$2:$C$51,3) -> Arizona
A58: 15 | B58: 0 | C58: 3 | D58: 0.055 | E58: 511088.09 | F58: =VLOOKUP(Table1[[#This Row],[stateid]],Revenue!$A$2:$B$51,2) -> 18398739 | G58: =MAX(Table1[[#This Row],[arc]]/Table1[[#This Row],[revenue]],0) -> 0.02777843036 | H58: =VLOOKUP(Table1[[#This Row],[stateid]],Revenue!$A$2:$C$51,3) -> Arizona
A59: 15 | B59: 0 | C59: 3 | D59: 0.0575 | E59: 484827.34 | F59: =VLOOKUP(Table1[[#This Row],[stateid]],Revenue!$A$2:$B$51,2) -> 18398739 | G59: =MAX(Table1[[#This Row],[arc]]/Table1[[#This Row],[revenue]],0) -> 0.02635111787 | H59: =VLOOKUP(Table1[[#This Row],[stateid]],Revenue!$A$2:$C$51,3) -> Arizona
A60: 15 | B60: 0 | C60: 3 | D60: 0.06 | E60: 458677.97 | F60: =VLOOKUP(Table1[[#This Row],[stateid]],Revenue!$A$2:$B$51,2) -> 18398739 | G60: =MAX(Table1[[#This Row],[arc]]/Table1[[#This Row],[revenue]],0) -> 0.02492985905 | H60: =VLOOKUP(Table1[[#This Row],[stateid]],Revenue!$A$2:$C$51,3) -> Arizona
A61: 15 | B61: 0 | C61: 3 | D61: 0.0625 | E61: 432637 | F61: =VLOOKUP(Table1[[#This Row],[stateid]],Revenue!$A$2:$B$51,2) -> 18398739 | G61: =MAX(Table1[[#This Row],[arc]]/Table1[[#This Row],[revenue]],0) -> 0.02351449194 | H61: =VLOOKUP(Table1[[#This Row],[stateid]],Revenue!$A$2:$C$51,3) -> Arizona
A62: 15 | B62: 0 | C62: 3 | D62: 0.065 | E62: 406702.22 | F62: =VLOOKUP(Table1[[#This Row],[stateid]],Revenue!$A$2:$B$51,2) -> 18398739 | G62: =MAX(Table1[[#This Row],[arc]]/Table1[[#This Row],[revenue]],0) -> 0.02210489643 | H62: =VLOOKUP(Table1[[#This Row],[stateid]],Revenue!$A$2:$C$51,3) -> Arizona
A63: 15 | B63: 0 | C63: 3 | D63: 0.0675 | E63: 380871.16 | F63: =VLOOKUP(Table1[[#This Row],[stateid]],Revenue!$A$2:$B$51,2) -> 18398739 | G63: =MAX(Table1[[#This Row],[arc]]/Table1[[#This Row],[revenue]],0) -> 0.02070093825 | H63: =VLOOKUP(Table1[[#This Row],[stateid]],Revenue!$A$2:$C$51,3) -> Arizona
A64: 15 | B64: 0 | C64: 3 | D64: 0.07 | E64: 355142.28 | F64: =VLOOKUP(Table1[[#This Row],[stateid]],Revenue!$A$2:$B$51,2) -> 18398739 | G64: =MAX(Table1[[#This Row],[arc]]/Table1[[#This Row],[revenue]],0) -> 0.01930253372 | H64: =VLOOKUP(Table1[[#This Row],[stateid]],Revenue!$A$2:$C$51,3) -> Arizona
A65: 15 | B65: 0 | C65: 3 | D65: 0.0725 | E65: 329513.66 | F65: =VLOOKUP(Table1[[#This Row],[stateid]],Revenue!$A$2:$B$51,2) -> 18398739 | G65: =MAX(Table1[[#This Row],[arc]]/Table1[[#This Row],[revenue]],0) -> 0.01790957848 | H65: =VLOOKUP(Table1[[#This Row],[stateid]],Revenue!$A$2:$C$51,3) -> Arizona
A66: 15 | B66: 0 | C66: 3 | D66: 0.075 | E66: 303983.47 | F66: =VLOOKUP(Table1[[#This Row],[stateid]],Revenue!$A$2:$B$51,2) -> 18398739 | G66: =MAX(Table1[[#This Row],[arc]]/Table1[[#This Row],[revenue]],0) -> 0.01652197305 | H66: =VLOOKUP(Table1[[#This Row],[stateid]],Revenue!$A$2:$C$51,3) -> Arizona
A67: 15 | B67: 0 | C67: 3 | D67: 0.0775 | E67: 278550.94 | F67: =VLOOKUP(Table1[[#This Row],[stateid]],Revenue!$A$2:$B$51,2) -> 18398739 | G67: =MAX(Table1[[#This Row],[arc]]/Table1[[#This Row],[revenue]],0) -> 0.0151396756 | H67: =VLOOKUP(Table1[[#This Row],[stateid]],Revenue!$A$2:$C$51,3) -> Arizona
A68: 15 | B68: 0 | C68: 3 | D68: 0.08 | E68: 253214.56 | F68: =VLOOKUP(Table1[[#This Row],[stateid]],Revenue!$A$2:$B$51,2) -> 18398739 | G68: =MAX(Table1[[#This Row],[arc]]/Table1[[#This Row],[revenue]],0) -> 0.01376260406 | H68: =VLOOKUP(Table1[[#This Row],[stateid]],Revenue!$A$2:$C$51,3) -> Arizona
A69: 15 | B69: 0 | C69: 3 | D69: 0.0825 | E69: 227973.33 | F69: =VLOOKUP(Table1[[#This Row],[stateid]],Revenue!$A$2:$B$51,2) -> 18398739 | G69: =MAX(Table1[[#This Row],[arc]]/Table1[[#This Row],[revenue]],0) -> 0.01239070406 | H69: =VLOOKUP(Table1[[#This Row],[stateid]],Revenue!$A$2:$C$51,3) -> Arizona
A70: 15 | B70: 0 | C70: 3 | D70: 0.085 | E70: 202826.56 | F70: =VLOOKUP(Table1[[#This Row],[stateid]],Revenue!$A$2:$B$51,2) -> 18398739 | G70: =MAX(Table1[[#This Row],[arc]]/Table1[[#This Row],[revenue]],0) -> 0.01102393811 | H70: =VLOOKUP(Table1[[#This Row],[stateid]],Revenue!$A$2:$C$51,3) -> Arizona
A71: 15 | B71: 0 | C71: 4 | D71: 0.03 | E71: 3248935.5 | F71: =VLOOKUP(Table1[[#This Row],[stateid]],Revenue!$A$2:$B$51,2) -> 11961308 | G71: =MAX(Table1[[#This Row],[arc]]/Table1[[#This Row],[revenue]],0) -> 0.2716204198 | H71: =VLOOKUP(Table1[[#This Row],[stateid]],Revenue!$A$2:$C$51,3) -> Arkansas
A72: 15 | B72: 0 | C72: 4 | D72: 0.0325 | E72: 3120723.8 | F72: =VLOOKUP(Table1[[#This Row],[stateid]],Revenue!$A$2:$B$51,2) -> 11961308 | G72: =MAX(Table1[[#This Row],[arc]]/Table1[[#This Row],[revenue]],0) -> 0.2609015502 | H72: =VLOOKUP(Table1[[#This Row],[stateid]],Revenue!$A$2:$C$51,3) -> Arkansas
A73: 15 | B73: 0 | C73: 4 | D73: 0.035 | E73: 2994838.5 | F73: =VLOOKUP(Table1[[#This Row],[stateid]],Revenue!$A$2:$B$51,2) -> 11961308 | G73: =MAX(Table1[[#This Row],[arc]]/Table1[[#This Row],[revenue]],0) -> 0.2503771745 | H73: =VLOOKUP(Table1[[#This Row],[stateid]],Revenue!$A$2:$C$51,3) -> Arkansas
A74: 15 | B74: 0 | C74: 4 | D74: 0.0375 | E74: 2871168 | F74: =VLOOKUP(Table1[[#This Row],[stateid]],Revenue!$A$2:$B$51,2) -> 11961308 | G74: =MAX(Table1[[#This Row],[arc]]/Table1[[#This Row],[revenue]],0) -> 0.2400379624 | H74: =VLOOKUP(Table1[[#This Row],[stateid]],Revenue!$A$2:$C$51,3) -> Arkansas
A75: 15 | B75: 0 | C75: 4 | D75: 0.04 | E75: 2749605 | F75: =VLOOKUP(Table1[[#This Row],[stateid]],Revenue!$A$2:$B$51,2) -> 11961308 | G75: =MAX(Table1[[#This Row],[arc]]/Table1[[#This Row],[revenue]],0) -> 0.2298749434 | H75: =VLOOKUP(Table1[[#This Row],[stateid]],Revenue!$A$2:$C$51,3) -> Arkansas
A76: 15 | B76: 0 | C76: 4 | D76: 0.0425 | E76: 2630050.3 | F76: =VLOOKUP(Table1[[#This Row],[stateid]],Revenue!$A$2:$B$51,2) -> 11961308 | G76: =MAX(Table1[[#This Row],[arc]]/Table1[[#This Row],[revenue]],0) -> 0.2198798242 | H76: =VLOOKUP(Table1[[#This Row],[stateid]],Revenue!$A$2:$C$51,3) -> Arkansas
A77: 15 | B77: 0 | C77: 4 | D77: 0.045 | E77: 2512408.3 | F77: =VLOOKUP(Table1[[#This Row],[stateid]],Revenue!$A$2:$B$51,2) -> 11961308 | G77: =MAX(Table1[[#This Row],[arc]]/Table1[[#This Row],[revenue]],0) -> 0.2100446122 | H77: =VLOOKUP(Table1[[#This Row],[stateid]],Revenue!$A$2:$C$51,3) -> Arkansas
A78: 15 | B78: 0 | C78: 4 | D78: 0.0475 | E78: 2396590.3 | F78: =VLOOKUP(Table1[[#This Row],[stateid]],Revenue!$A$2:$B$51,2) -> 11961308 | G78: =MAX(Table1[[#This Row],[arc]]/Table1[[#This Row],[revenue]],0) -> 0.2003618919 | H78: =VLOOKUP(Table1[[#This Row],[stateid]],Revenue!$A$2:$C$51,3) -> Arkansas
A79: 15 | B79: 0 | C79: 4 | D79: 0.05 | E79: 2282512 | F79: =VLOOKUP(Table1[[#This Row],[stateid]],Revenue!$A$2:$B$51,2) -> 11961308 | G79: =MAX(Table1[[#This Row],[arc]]/Table1[[#This Row],[revenue]],0) -> 0.1908246155 | H79: =VLOOKUP(Table1[[#This Row],[stateid]],Revenue!$A$2:$C$51,3) -> Arkansas
A80: 15 | B80: 0 | C80: 4 | D80: 0.0525 | E80: 2170093.3 | F80: =VLOOKUP(Table1[[#This Row],[stateid]],Revenue!$A$2:$B$51,2) -> 11961308 | G80: =MAX(Table1[[#This Row],[arc]]/Table1[[#This Row],[revenue]],0) -> 0.1814260865 | H80: =VLOOKUP(Table1[[#This Row],[stateid]],Revenue!$A$2:$C$51,3) -> Arkansas
A81: 15 | B81: 0 | C81: 4 | D81: 0.055 | E81: 2059259.8 | F81: =VLOOKUP(Table1[[#This Row],[stateid]],Revenue!$A$2:$B$51,2) -> 11961308 | G81: =MAX(Table1[[#This Row],[arc]]/Table1[[#This Row],[revenue]],0) -> 0.1721600848 | H81: =VLOOKUP(Table1[[#This Row],[stateid]],Revenue!$A$2:$C$51,3) -> Arkansas
A82: 15 | B82: 0 | C82: 4 | D82: 0.0575 | E82: 1949940.8 | F82: =VLOOKUP(Table1[[#This Row],[stateid]],Revenue!$A$2:$B$51,2) -> 11961308 | G82: =MAX(Table1[[#This Row],[arc]]/Table1[[#This Row],[revenue]],0) -> 0.1630206997 | H82: =VLOOKUP(Table1[[#This Row],[stateid]],Revenue!$A$2:$C$51,3) -> Arkansas
A83: 15 | B83: 0 | C83: 4 | D83: 0.06 | E83: 1842069.4 | F83: =VLOOKUP(Table1[[#This Row],[stateid]],Revenue!$A$2:$B$51,2) -> 11961308 | G83: =MAX(Table1[[#This Row],[arc]]/Table1[[#This Row],[revenue]],0) -> 0.1540023382 | H83: =VLOOKUP(Table1[[#This Row],[stateid]],Revenue!$A$2:$C$51,3) -> Arkansas
A84: 15 | B84: 0 | C84: 4 | D84: 0.0625 | E84: 1735582.5 | F84: =VLOOKUP(Table1[[#This Row],[stateid]],Revenue!$A$2:$B$51,2) -> 11961308 | G84: =MAX(Table1[[#This Row],[arc]]/Table1[[#This Row],[revenue]],0) -> 0.1450997249 | H84: =VLOOKUP(Table1[[#This Row],[stateid]],Revenue!$A$2:$C$51,3) -> Arkansas
A85: 15 | B85: 0 | C85: 4 | D85: 0.065 | E85: 1630421.3 | F85: =VLOOKUP(Table1[[#This Row],[stateid]],Revenue!$A$2:$B$51,2) -> 11961308 | G85: =MAX(Table1[[#This Row],[arc]]/Table1[[#This Row],[revenue]],0) -> 0.1363079439 | H85: =VLOOKUP(Table1[[#This Row],[stateid]],Revenue!$A$2:$C$51,3) -> Arkansas
A86: 15 | B86: 0 | C86: 4 | D86: 0.0675 | E86: 1526529.4 | F86: =VLOOKUP(Table1[[#This Row],[stateid]],Revenue!$A$2:$B$51,2) -> 11961308 | G86: =MAX(Table1[[#This Row],[arc]]/Table1[[#This Row],[revenue]],0) -> 0.1276222801 | H86: =VLOOKUP(Table1[[#This Row],[stateid]],Revenue!$A$2:$C$51,3) -> Arkansas
A87: 15 | B87: 0 | C87: 4 | D87: 0.07 | E87: 1423855 | F87: =VLOOKUP(Table1[[#This Row],[stateid]],Revenue!$A$2:$B$51,2) -> 11961308 | G87: =MAX(Table1[[#This Row],[arc]]/Table1[[#This Row],[revenue]],0) -> 0.1190384028 | H87: =VLOOKUP(Table1[[#This Row],[stateid]],Revenue!$A$2:$C$51,3) -> Arkansas
A88: 15 | B88: 0 | C88: 4 | D88: 0.0725 | E88: 1322347.9 | F88: =VLOOKUP(Table1[[#This Row],[stateid]],Revenue!$A$2:$B$51,2) -> 11961308 | G88: =MAX(Table1[[#This Row],[arc]]/Table1[[#This Row],[revenue]],0) -> 0.1105521152 | H88: =VLOOKUP(Table1[[#This Row],[stateid]],Revenue!$A$2:$C$51,3) -> Arkansas
A89: 15 | B89: 0 | C89: 4 | D89: 0.075 | E89: 1221960.8 | F89: =VLOOKUP(Table1[[#This Row],[stateid]],Revenue!$A$2:$B$51,2) -> 11961308 | G89: =MAX(Table1[[#This Row],[arc]]/Table1[[#This Row],[revenue]],0) -> 0.1021594628 | H89: =VLOOKUP(Table1[[#This Row],[stateid]],Revenue!$A$2:$C$51,3) -> Arkansas
A90: 15 | B90: 0 | C90: 4 | D90: 0.0775 | E90: 1122650.6 | F90: =VLOOKUP(Table1[[#This Row],[stateid]],Revenue!$A$2:$B$51,2) -> 11961308 | G90: =MAX(Table1[[#This Row],[arc]]/Table1[[#This Row],[revenue]],0) -> 0.09385684241 | H90: =VLOOKUP(Table1[[#This Row],[stateid]],Revenue!$A$2:$C$51,3) -> Arkansas
A91: 15 | B91: 0 | C91: 4 | D91: 0.08 | E91: 1024375.3 | F91: =VLOOKUP(Table1[[#This Row],[stateid]],Revenue!$A$2:$B$51,2) -> 11961308 | G91: =MAX(Table1[[#This Row],[arc]]/Table1[[#This Row],[revenue]],0) -> 0.08564074263 | H91: =VLOOKUP(Table1[[#This Row],[stateid]],Revenue!$A$2:$C$51,3) -> Arkansas
A92: 15 | B92: 0 | C92: 4 | D92: 0.0825 | E92: 927095.63 | F92: =VLOOKUP(Table1[[#This Row],[stateid]],Revenue!$A$2:$B$51,2) -> 11961308 | G92: =MAX(Table1[[#This Row],[arc]]/Table1[[#This Row],[revenue]],0) -> 0.07750788041 | H92: =VLOOKUP(Table1[[#This Row],[stateid]],Revenue!$A$2:$C$51,3) -> Arkansas
A93: 15 | B93: 0 | C93: 4 | D93: 0.085 | E93: 830775.13 | F93: =VLOOKUP(Table1[[#This Row],[stateid]],Revenue!$A$2:$B$51,2) -> 11961308 | G93: =MAX(Table1[[#This Row],[arc]]/Table1[[#This Row],[revenue]],0) -> 0.06945520757 | H93: =VLOOKUP(Table1[[#This Row],[stateid]],Revenue!$A$2:$C$51,3) -> Arkansas
A94: 15 | B94: 0 | C94: 5 | D94: 0.03 | E94: 25713344 | F94: =VLOOKUP(Table1[[#This Row],[stateid]],Revenue!$A$2:$B$51,2) -> 167224905 | G94: =MAX(Table1[[#This Row],[arc]]/Table1[[#This Row],[revenue]],0) -> 0.1537650388 | H94: =VLOOKUP(Table1[[#This Row],[stateid]],Revenue!$A$2:$C$51,3) -> California
A95: 15 | B95: 0 | C95: 5 | D95: 0.0325 | E95: 24740868 | F95: =VLOOKUP(Table1[[#This Row],[stateid]],Revenue!$A$2:$B$51,2) -> 167224905 | G95: =MAX(Table1[[#This Row],[arc]]/Table1[[#This Row],[revenue]],0) -> 0.147949661 | H95: =VLOOKUP(Table1[[#This Row],[stateid]],Revenue!$A$2:$C$51,3) -> California
A96: 15 | B96: 0 | C96: 5 | D96: 0.035 | E96: 23782626 | F96: =VLOOKUP(Table1[[#This Row],[stateid]],Revenue!$A$2:$B$51,2) -> 167224905 | G96: =MAX(Table1[[#This Row],[arc]]/Table1[[#This Row],[revenue]],0) -> 0.1422194021 | H96: =VLOOKUP(Table1[[#This Row],[stateid]],Revenue!$A$2:$C$51,3) -> California
A97: 15 | B97: 0 | C97: 5 | D97: 0.0375 | E97: 22837940 | F97: =VLOOKUP(Table1[[#This Row],[stateid]],Revenue!$A$2:$B$51,2) -> 167224905 | G97: =MAX(Table1[[#This Row],[arc]]/Table1[[#This Row],[revenue]],0) -> 0.1365702076 | H97: =VLOOKUP(Table1[[#This Row],[stateid]],Revenue!$A$2:$C$51,3) -> California
A98: 15 | B98: 0 | C98: 5 | D98: 0.04 | E98: 21906160 | F98: =VLOOKUP(Table1[[#This Row],[stateid]],Revenue!$A$2:$B$51,2) -> 167224905 | G98: =MAX(Table1[[#This Row],[arc]]/Table1[[#This Row],[revenue]],0) -> 0.1309981907 | H98: =VLOOKUP(Table1[[#This Row],[stateid]],Revenue!$A$2:$C$51,3) -> California
A99: 15 | B99: 0 | C99: 5 | D99: 0.0425 | E99: 20986692 | F99: =VLOOKUP(Table1[[#This Row],[stateid]],Revenue!$A$2:$B$51,2) -> 167224905 | G99: =MAX(Table1[[#This Row],[arc]]/Table1[[#This Row],[revenue]],0) -> 0.1254997992 | H99: =VLOOKUP(Table1[[#This Row],[stateid]],Revenue!$A$2:$C$51,3) -> California
A100: 15 | B100: 0 | C100: 5 | D100: 0.045 | E100: 20078966 | F100: =VLOOKUP(Table1[[#This Row],[stateid]],Revenue!$A$2:$B$51,2) -> 167224905 | G100: =MAX(Table1[[#This Row],[arc]]/Table1[[#This Row],[revenue]],0) -> 0.1200716245 | H100: =VLOOKUP(Table1[[#This Row],[stateid]],Revenue!$A$2:$C$51,3) -> California
A101: 15 | B101: 0 | C101: 5 | D101: 0.0475 | E101: 19182452 | F101: =VLOOKUP(Table1[[#This Row],[stateid]],Revenue!$A$2:$B$51,2) -> 167224905 | G101: =MAX(Table1[[#This Row],[arc]]/Table1[[#This Row],[revenue]],0) -> 0.1147104972 | H101: =VLOOKUP(Table1[[#This Row],[stateid]],Revenue!$A$2:$C$51,3) -> California
A102: 15 | B102: 0 | C102: 5 | D102: 0.05 | E102: 18296646 | F102: =VLOOKUP(Table1[[#This Row],[stateid]],Revenue!$A$2:$B$51,2) -> 167224905 | G102: =MAX(Table1[[#This Row],[arc]]/Table1[[#This Row],[revenue]],0) -> 0.1094134035 | H102: =VLOOKUP(Table1[[#This Row],[stateid]],Revenue!$A$2:$C$51,3) -> California
A103: 15 | B103: 0 | C103: 5 | D103: 0.0525 | E103: 17421076 | F103: =VLOOKUP(Table1[[#This Row],[stateid]],Revenue!$A$2:$B$51,2) -> 167224905 | G103: =MAX(Table1[[#This Row],[arc]]/Table1[[#This Row],[revenue]],0) -> 0.1041775207 | H103: =VLOOKUP(Table1[[#This Row],[stateid]],Revenue!$A$2:$C$51,3) -> California
A104: 15 | B104: 0 | C104: 5 | D104: 0.055 | E104: 16555298 | F104: =VLOOKUP(Table1[[#This Row],[stateid]],Revenue!$A$2:$B$51,2) -> 167224905 | G104: =MAX(Table1[[#This Row],[arc]]/Table1[[#This Row],[revenue]],0) -> 0.09900019378 | H104: =VLOOKUP(Table1[[#This Row],[stateid]],Revenue!$A$2:$C$51,3) -> California
A105: 15 | B105: 0 | C105: 5 | D105: 0.0575 | E105: 15698896 | F105: =VLOOKUP(Table1[[#This Row],[stateid]],Revenue!$A$2:$B$51,2) -> 167224905 | G105: =MAX(Table1[[#This Row],[arc]]/Table1[[#This Row],[revenue]],0) -> 0.09387893508 | H105: =VLOOKUP(Table1[[#This Row],[stateid]],Revenue!$A$2:$C$51,3) -> California
A106: 15 | B106: 0 | C106: 5 | D106: 0.06 | E106: 14851480 | F106: =VLOOKUP(Table1[[#This Row],[stateid]],Revenue!$A$2:$B$51,2) -> 167224905 | G106: =MAX(Table1[[#This Row],[arc]]/Table1[[#This Row],[revenue]],0) -> 0.08881141239 | H106: =VLOOKUP(Table1[[#This Row],[stateid]],Revenue!$A$2:$C$51,3) -> California
A107: 15 | B107: 0 | C107: 5 | D107: 0.0625 | E107: 14012680 | F107: =VLOOKUP(Table1[[#This Row],[stateid]],Revenue!$A$2:$B$51,2) -> 167224905 | G107: =MAX(Table1[[#This Row],[arc]]/Table1[[#This Row],[revenue]],0) -> 0.08379541313 | H107: =VLOOKUP(Table1[[#This Row],[stateid]],Revenue!$A$2:$C$51,3) -> California
A108: 15 | B108: 0 | C108: 5 | D108: 0.065 | E108: 13182154 | F108: =VLOOKUP(Table1[[#This Row],[stateid]],Revenue!$A$2:$B$51,2) -> 167224905 | G108: =MAX(Table1[[#This Row],[arc]]/Table1[[#This Row],[revenue]],0) -> 0.07882889214 | H108: =VLOOKUP(Table1[[#This Row],[stateid]],Revenue!$A$2:$C$51,3) -> California
A109: 15 | B109: 0 | C109: 5 | D109: 0.0675 | E109: 12359570 | F109: =VLOOKUP(Table1[[#This Row],[stateid]],Revenue!$A$2:$B$51,2) -> 167224905 | G109: =MAX(Table1[[#This Row],[arc]]/Table1[[#This Row],[revenue]],0) -> 0.07390986408 | H109: =VLOOKUP(Table1[[#This Row],[stateid]],Revenue!$A$2:$C$51,3) -> California
A110: 15 | B110: 0 | C110: 5 | D110: 0.07 | E110: 11544634 | F110: =VLOOKUP(Table1[[#This Row],[stateid]],Revenue!$A$2:$B$51,2) -> 167224905 | G110: =MAX(Table1[[#This Row],[arc]]/Table1[[#This Row],[revenue]],0) -> 0.06903657084 | H110: =VLOOKUP(Table1[[#This Row],[stateid]],Revenue!$A$2:$C$51,3) -> California
A111: 15 | B111: 0 | C111: 5 | D111: 0.0725 | E111: 10737054 | F111: =VLOOKUP(Table1[[#This Row],[stateid]],Revenue!$A$2:$B$51,2) -> 167224905 | G111: =MAX(Table1[[#This Row],[arc]]/Table1[[#This Row],[revenue]],0) -> 0.06420726626 | H111: =VLOOKUP(Table1[[#This Row],[stateid]],Revenue!$A$2:$C$51,3) -> California
A112: 15 | B112: 0 | C112: 5 | D112: 0.075 | E112: 9936558 | F112: =VLOOKUP(Table1[[#This Row],[stateid]],Revenue!$A$2:$B$51,2) -> 167224905 | G112: =MAX(Table1[[#This Row],[arc]]/Table1[[#This Row],[revenue]],0) -> 0.05942032378 | H112: =VLOOKUP(Table1[[#This Row],[stateid]],Revenue!$A$2:$C$51,3) -> California
A113: 15 | B113: 0 | C113: 5 | D113: 0.0775 | E113: 9142903 | F113: =VLOOKUP(Table1[[#This Row],[stateid]],Revenue!$A$2:$B$51,2) -> 167224905 | G113: =MAX(Table1[[#This Row],[arc]]/Table1[[#This Row],[revenue]],0) -> 0.05467429029 | H113: =VLOOKUP(Table1[[#This Row],[stateid]],Revenue!$A$2:$C$51,3) -> California
A114: 15 | B114: 0 | C114: 5 | D114: 0.08 | E114: 8355844 | F114: =VLOOKUP(Table1[[#This Row],[stateid]],Revenue!$A$2:$B$51,2) -> 167224905 | G114: =MAX(Table1[[#This Row],[arc]]/Table1[[#This Row],[revenue]],0) -> 0.04996770068 | H114: =VLOOKUP(Table1[[#This Row],[stateid]],Revenue!$A$2:$C$51,3) -> California
A115: 15 | B115: 0 | C115: 5 | D115: 0.0825 | E115: 7575164 | F115: =VLOOKUP(Table1[[#This Row],[stateid]],Revenue!$A$2:$B$51,2) -> 167224905 | G115: =MAX(Table1[[#This Row],[arc]]/Table1[[#This Row],[revenue]],0) -> 0.04529925731 | H115: =VLOOKUP(Table1[[#This Row],[stateid]],Revenue!$A$2:$C$51,3) -> California
A116: 15 | B116: 0 | C116: 5 | D116: 0.085 | E116: 6800654.5 | F116: =VLOOKUP(Table1[[#This Row],[stateid]],Revenue!$A$2:$B$51,2) -> 167224905 | G116: =MAX(Table1[[#This Row],[arc]]/Table1[[#This Row],[revenue]],0) -> 0.04066771334 | H116: =VLOOKUP(Table1[[#This Row],[stateid]],Revenue!$A$2:$C$51,3) -> California
A117: 15 | B117: 0 | C117: 6 | D117: 0.03 | E117: 1922035.5 | F117: =VLOOKUP(Table1[[#This Row],[stateid]],Revenue!$A$2:$B$51,2) -> 17461557 | G117: =MAX(Table1[[#This Row],[arc]]/Table1[[#This Row],[revenue]],0) -> 0.1100724008 | H117: =VLOOKUP(Table1[[#This Row],[stateid]],Revenue!$A$2:$C$51,3) -> Colorado
A118: 15 | B118: 0 | C118: 6 | D118: 0.0325 | E118: 1867907.1 | F118: =VLOOKUP(Table1[[#This Row],[stateid]],Revenue!$A$2:$B$51,2) -> 17461557 | G118: =MAX(Table1[[#This Row],[arc]]/Table1[[#This Row],[revenue]],0) -> 0.1069725397 | H118: =VLOOKUP(Table1[[#This Row],[stateid]],Revenue!$A$2:$C$51,3) -> Colorado
A119: 15 | B119: 0 | C119: 6 | D119: 0.035 | E119: 1813889.8 | F119: =VLOOKUP(Table1[[#This Row],[stateid]],Revenue!$A$2:$B$51,2) -> 17461557 | G119: =MAX(Table1[[#This Row],[arc]]/Table1[[#This Row],[revenue]],0) -> 0.1038790413 | H119: =VLOOKUP(Table1[[#This Row],[stateid]],Revenue!$A$2:$C$51,3) -> Colorado
A120: 15 | B120: 0 | C120: 6 | D120: 0.0375 | E120: 1759982.5 | F120: =VLOOKUP(Table1[[#This Row],[stateid]],Revenue!$A$2:$B$51,2) -> 17461557 | G120: =MAX(Table1[[#This Row],[arc]]/Table1[[#This Row],[revenue]],0) -> 0.1007918423 | H120: =VLOOKUP(Table1[[#This Row],[stateid]],Revenue!$A$2:$C$51,3) -> Colorado
A121: 15 | B121: 0 | C121: 6 | D121: 0.04 | E121: 1706183.4 | F121: =VLOOKUP(Table1[[#This Row],[stateid]],Revenue!$A$2:$B$51,2) -> 17461557 | G121: =MAX(Table1[[#This Row],[arc]]/Table1[[#This Row],[revenue]],0) -> 0.09771083988 | H121: =VLOOKUP(Table1[[#This Row],[stateid]],Revenue!$A$2:$C$51,3) -> Colorado
A122: 15 | B122: 0 | C122: 6 | D122: 0.0425 | E122: 1652492 | F122: =VLOOKUP(Table1[[#This Row],[stateid]],Revenue!$A$2:$B$51,2) -> 17461557 | G122: =MAX(Table1[[#This Row],[arc]]/Table1[[#This Row],[revenue]],0) -> 0.09463600525 | H122: =VLOOKUP(Table1[[#This Row],[stateid]],Revenue!$A$2:$C$51,3) -> Colorado
A123: 15 | B123: 0 | C123: 6 | D123: 0.045 | E123: 1598908.3 | F123: =VLOOKUP(Table1[[#This Row],[stateid]],Revenue!$A$2:$B$51,2) -> 17461557 | G123: =MAX(Table1[[#This Row],[arc]]/Table1[[#This Row],[revenue]],0) -> 0.09156733847 | H123: =VLOOKUP(Table1[[#This Row],[stateid]],Revenue!$A$2:$C$51,3) -> Colorado
A124: 15 | B124: 0 | C124: 6 | D124: 0.0475 | E124: 1545432.6 | F124: =VLOOKUP(Table1[[#This Row],[stateid]],Revenue!$A$2:$B$51,2) -> 17461557 | G124: =MAX(Table1[[#This Row],[arc]]/Table1[[#This Row],[revenue]],0) -> 0.0885048567 | H124: =VLOOKUP(Table1[[#This Row],[stateid]],Revenue!$A$2:$C$51,3) -> Colorado
A125: 15 | B125: 0 | C125: 6 | D125: 0.05 | E125: 1492065.8 | F125: =VLOOKUP(Table1[[#This Row],[stateid]],Revenue!$A$2:$B$51,2) -> 17461557 | G125: =MAX(Table1[[#This Row],[arc]]/Table1[[#This Row],[revenue]],0) -> 0.08544861148 | H125: =VLOOKUP(Table1[[#This Row],[stateid]],Revenue!$A$2:$C$51,3) -> Colorado
A126: 15 | B126: 0 | C126: 6 | D126: 0.0525 | E126: 1438808 | F126: =VLOOKUP(Table1[[#This Row],[stateid]],Revenue!$A$2:$B$51,2) -> 17461557 | G126: =MAX(Table1[[#This Row],[arc]]/Table1[[#This Row],[revenue]],0) -> 0.08239860855 | H126: =VLOOKUP(Table1[[#This Row],[stateid]],Revenue!$A$2:$C$51,3) -> Colorado
A127: 15 | B127: 0 | C127: 6 | D127: 0.055 | E127: 1385661.6 | F127: =VLOOKUP(Table1[[#This Row],[stateid]],Revenue!$A$2:$B$51,2) -> 17461557 | G127: =MAX(Table1[[#This Row],[arc]]/Table1[[#This Row],[revenue]],0) -> 0.07935498535 | H127: =VLOOKUP(Table1[[#This Row],[stateid]],Revenue!$A$2:$C$51,3) -> Colorado
A128: 15 | B128: 0 | C128: 6 | D128: 0.0575 | E128: 1332628 | F128: =VLOOKUP(Table1[[#This Row],[stateid]],Revenue!$A$2:$B$51,2) -> 17461557 | G128: =MAX(Table1[[#This Row],[arc]]/Table1[[#This Row],[revenue]],0) -> 0.07631782206 | H128: =VLOOKUP(Table1[[#This Row],[stateid]],Revenue!$A$2:$C$51,3) -> Colorado
A129: 15 | B129: 0 | C129: 6 | D129: 0.06 | E129: 1279709 | F129: =VLOOKUP(Table1[[#This Row],[stateid]],Revenue!$A$2:$B$51,2) -> 17461557 | G129: =MAX(Table1[[#This Row],[arc]]/Table1[[#This Row],[revenue]],0) -> 0.07328722175 | H129: =VLOOKUP(Table1[[#This Row],[stateid]],Revenue!$A$2:$C$51,3) -> Colorado
A130: 15 | B130: 0 | C130: 6 | D130: 0.0625 | E130: 1226907.1 | F130: =VLOOKUP(Table1[[#This Row],[stateid]],Revenue!$A$2:$B$51,2) -> 17461557 | G130: =MAX(Table1[[#This Row],[arc]]/Table1[[#This Row],[revenue]],0) -> 0.07026332761 | H130: =VLOOKUP(Table1[[#This Row],[stateid]],Revenue!$A$2:$C$51,3) -> Colorado
A131: 15 | B131: 0 | C131: 6 | D131: 0.065 | E131: 1174224.8 | F131: =VLOOKUP(Table1[[#This Row],[stateid]],Revenue!$A$2:$B$51,2) -> 17461557 | G131: =MAX(Table1[[#This Row],[arc]]/Table1[[#This Row],[revenue]],0) -> 0.06724628279 | H131: =VLOOKUP(Table1[[#This Row],[stateid]],Revenue!$A$2:$C$51,3) -> Colorado
A132: 15 | B132: 0 | C132: 6 | D132: 0.0675 | E132: 1121663.8 | F132: =VLOOKUP(Table1[[#This Row],[stateid]],Revenue!$A$2:$B$51,2) -> 17461557 | G132: =MAX(Table1[[#This Row],[arc]]/Table1[[#This Row],[revenue]],0) -> 0.06423618467 | H132: =VLOOKUP(Table1[[#This Row],[stateid]],Revenue!$A$2:$C$51,3) -> Colorado
A133: 15 | B133: 0 | C133: 6 | D133: 0.07 | E133: 1069228.1 | F133: =VLOOKUP(Table1[[#This Row],[stateid]],Revenue!$A$2:$B$51,2) -> 17461557 | G133: =MAX(Table1[[#This Row],[arc]]/Table1[[#This Row],[revenue]],0) -> 0.0612332623 | H133: =VLOOKUP(Table1[[#This Row],[stateid]],Revenue!$A$2:$C$51,3) -> Colorado
A134: 15 | B134: 0 | C134: 6 | D134: 0.0725 | E134: 1016920.3 | F134: =VLOOKUP(Table1[[#This Row],[stateid]],Revenue!$A$2:$B$51,2) -> 17461557 | G134: =MAX(Table1[[#This Row],[arc]]/Table1[[#This Row],[revenue]],0) -> 0.0582376646 | H134: =VLOOKUP(Table1[[#This Row],[stateid]],Revenue!$A$2:$C$51,3) -> Colorado
A135: 15 | B135: 0 | C135: 6 | D135: 0.075 | E135: 964742.5 | F135: =VLOOKUP(Table1[[#This Row],[stateid]],Revenue!$A$2:$B$51,2) -> 17461557 | G135: =MAX(Table1[[#This Row],[arc]]/Table1[[#This Row],[revenue]],0) -> 0.05524951183 | H135: =VLOOKUP(Table1[[#This Row],[stateid]],Revenue!$A$2:$C$51,3) -> Colorado
A136: 15 | B136: 0 | C136: 6 | D136: 0.0775 | E136: 912699.06 | F136: =VLOOKUP(Table1[[#This Row],[stateid]],Revenue!$A$2:$B$51,2) -> 17461557 | G136: =MAX(Table1[[#This Row],[arc]]/Table1[[#This Row],[revenue]],0) -> 0.05226905367 | H136: =VLOOKUP(Table1[[#This Row],[stateid]],Revenue!$A$2:$C$51,3) -> Colorado
A137: 15 | B137: 0 | C137: 6 | D137: 0.08 | E137: 860792.5 | F137: =VLOOKUP(Table1[[#This Row],[stateid]],Revenue!$A$2:$B$51,2) -> 17461557 | G137: =MAX(Table1[[#This Row],[arc]]/Table1[[#This Row],[revenue]],0) -> 0.04929643445 | H137: =VLOOKUP(Table1[[#This Row],[stateid]],Revenue!$A$2:$C$51,3) -> Colorado
A138: 15 | B138: 0 | C138: 6 | D138: 0.0825 | E138: 809026.25 | F138: =VLOOKUP(Table1[[#This Row],[stateid]],Revenue!$A$2:$B$51,2) -> 17461557 | G138: =MAX(Table1[[#This Row],[arc]]/Table1[[#This Row],[revenue]],0) -> 0.04633185059 | H138: =VLOOKUP(Table1[[#This Row],[stateid]],Revenue!$A$2:$C$51,3) -> Colorado
A139: 15 | B139: 0 | C139: 6 | D139: 0.085 | E139: 757403.75 | F139: =VLOOKUP(Table1[[#This Row],[stateid]],Revenue!$A$2:$B$51,2) -> 17461557 | G139: =MAX(Table1[[#This Row],[arc]]/Table1[[#This Row],[revenue]],0) -> 0.0433754991 | H139: =VLOOKUP(Table1[[#This Row],[stateid]],Revenue!$A$2:$C$51,3) -> Colorado
A140: 15 | B140: 0 | C140: 7 | D140: 0.03 | E140: 6361845 | F140: =VLOOKUP(Table1[[#This Row],[stateid]],Revenue!$A$2:$B$51,2) -> 19480580 | G140: =MAX(Table1[[#This Row],[arc]]/Table1[[#This Row],[revenue]],0) -> 0.3265736954 | H140: =VLOOKUP(Table1[[#This Row],[stateid]],Revenue!$A$2:$C$51,3) -> Connecticut
A141: 15 | B141: 0 | C141: 7 | D141: 0.0325 | E141: 6191899 | F141: =VLOOKUP(Table1[[#This Row],[stateid]],Revenue!$A$2:$B$51,2) -> 19480580 | G141: =MAX(Table1[[#This Row],[arc]]/Table1[[#This Row],[revenue]],0) -> 0.3178498279 | H141: =VLOOKUP(Table1[[#This Row],[stateid]],Revenue!$A$2:$C$51,3) -> Connecticut
A142: 15 | B142: 0 | C142: 7 | D142: 0.035 | E142: 6023901 | F142: =VLOOKUP(Table1[[#This Row],[stateid]],Revenue!$A$2:$B$51,2) -> 19480580 | G142: =MAX(Table1[[#This Row],[arc]]/Table1[[#This Row],[revenue]],0) -> 0.3092259573 | H142: =VLOOKUP(Table1[[#This Row],[stateid]],Revenue!$A$2:$C$51,3) -> Connecticut
A143: 15 | B143: 0 | C143: 7 | D143: 0.0375 | E143: 5857770 | F143: =VLOOKUP(Table1[[#This Row],[stateid]],Revenue!$A$2:$B$51,2) -> 19480580 | G143: =MAX(Table1[[#This Row],[arc]]/Table1[[#This Row],[revenue]],0) -> 0.3006979258 | H143: =VLOOKUP(Table1[[#This Row],[stateid]],Revenue!$A$2:$C$51,3) -> Connecticut
A144: 15 | B144: 0 | C144: 7 | D144: 0.04 | E144: 5693427 | F144: =VLOOKUP(Table1[[#This Row],[stateid]],Revenue!$A$2:$B$51,2) -> 19480580 | G144: =MAX(Table1[[#This Row],[arc]]/Table1[[#This Row],[revenue]],0) -> 0.292261678 | H144: =VLOOKUP(Table1[[#This Row],[stateid]],Revenue!$A$2:$C$51,3) -> Connecticut
A145: 15 | B145: 0 | C145: 7 | D145: 0.0425 | E145: 5530802 | F145: =VLOOKUP(Table1[[#This Row],[stateid]],Revenue!$A$2:$B$51,2) -> 19480580 | G145: =MAX(Table1[[#This Row],[arc]]/Table1[[#This Row],[revenue]],0) -> 0.2839136206 | H145: =VLOOKUP(Table1[[#This Row],[stateid]],Revenue!$A$2:$C$51,3) -> Connecticut
A146: 15 | B146: 0 | C146: 7 | D146: 0.045 | E146: 5369827 | F146: =VLOOKUP(Table1[[#This Row],[stateid]],Revenue!$A$2:$B$51,2) -> 19480580 | G146: =MAX(Table1[[#This Row],[arc]]/Table1[[#This Row],[revenue]],0) -> 0.275650263 | H146: =VLOOKUP(Table1[[#This Row],[stateid]],Revenue!$A$2:$C$51,3) -> Connecticut
A147: 15 | B147: 0 | C147: 7 | D147: 0.0475 | E147: 5210438 | F147: =VLOOKUP(Table1[[#This Row],[stateid]],Revenue!$A$2:$B$51,2) -> 19480580 | G147: =MAX(Table1[[#This Row],[arc]]/Table1[[#This Row],[revenue]],0) -> 0.2674683197 | H147: =VLOOKUP(Table1[[#This Row],[stateid]],Revenue!$A$2:$C$51,3) -> Connecticut
A148: 15 | B148: 0 | C148: 7 | D148: 0.05 | E148: 5052578 | F148: =VLOOKUP(Table1[[#This Row],[stateid]],Revenue!$A$2:$B$51,2) -> 19480580 | G148: =MAX(Table1[[#This Row],[arc]]/Table1[[#This Row],[revenue]],0) -> 0.2593648649 | H148: =VLOOKUP(Table1[[#This Row],[stateid]],Revenue!$A$2:$C$51,3) -> Connecticut
A149: 15 | B149: 0 | C149: 7 | D149: 0.0525 | E149: 4896190.5 | F149: =VLOOKUP(Table1[[#This Row],[stateid]],Revenue!$A$2:$B$51,2) -> 19480580 | G149: =MAX(Table1[[#This Row],[arc]]/Table1[[#This Row],[revenue]],0) -> 0.2513369982 | H149: =VLOOKUP(Table1[[#This Row],[stateid]],Revenue!$A$2:$C$51,3) -> Connecticut
A150: 15 | B150: 0 | C150: 7 | D150: 0.055 | E150: 4741225 | F150: =VLOOKUP(Table1[[#This Row],[stateid]],Revenue!$A$2:$B$51,2) -> 19480580 | G150: =MAX(Table1[[#This Row],[arc]]/Table1[[#This Row],[revenue]],0) -> 0.2433821272 | H150: =VLOOKUP(Table1[[#This Row],[stateid]],Revenue!$A$2:$C$51,3) -> Connecticut
A151: 15 | B151: 0 | C151: 7 | D151: 0.0575 | E151: 4587634.5 | F151: =VLOOKUP(Table1[[#This Row],[stateid]],Revenue!$A$2:$B$51,2) -> 19480580 | G151: =MAX(Table1[[#This Row],[arc]]/Table1[[#This Row],[revenue]],0) -> 0.2354978394 | H151: =VLOOKUP(Table1[[#This Row],[stateid]],Revenue!$A$2:$C$51,3) -> Connecticut
A152: 15 | B152: 0 | C152: 7 | D152: 0.06 | E152: 4435375 | F152: =VLOOKUP(Table1[[#This Row],[stateid]],Revenue!$A$2:$B$51,2) -> 19480580 | G152: =MAX(Table1[[#This Row],[arc]]/Table1[[#This Row],[revenue]],0) -> 0.227681876 | H152: =VLOOKUP(Table1[[#This Row],[stateid]],Revenue!$A$2:$C$51,3) -> Connecticut
A153: 15 | B153: 0 | C153: 7 | D153: 0.0625 | E153: 4284404 | F153: =VLOOKUP(Table1[[#This Row],[stateid]],Revenue!$A$2:$B$51,2) -> 19480580 | G153: =MAX(Table1[[#This Row],[arc]]/Table1[[#This Row],[revenue]],0) -> 0.2199320554 | H153: =VLOOKUP(Table1[[#This Row],[stateid]],Revenue!$A$2:$C$51,3) -> Connecticut
A154: 15 | B154: 0 | C154: 7 | D154: 0.065 | E154: 4134684.5 | F154: =VLOOKUP(Table1[[#This Row],[stateid]],Revenue!$A$2:$B$51,2) -> 19480580 | G154: =MAX(Table1[[#This Row],[arc]]/Table1[[#This Row],[revenue]],0) -> 0.2122464783 | H154: =VLOOKUP(Table1[[#This Row],[stateid]],Revenue!$A$2:$C$51,3) -> Connecticut
A155: 15 | B155: 0 | C155: 7 | D155: 0.0675 | E155: 3986179 | F155: =VLOOKUP(Table1[[#This Row],[stateid]],Revenue!$A$2:$B$51,2) -> 19480580 | G155: =MAX(Table1[[#This Row],[arc]]/Table1[[#This Row],[revenue]],0) -> 0.2046232196 | H155: =VLOOKUP(Table1[[#This Row],[stateid]],Revenue!$A$2:$C$51,3) -> Connecticut
A156: 15 | B156: 0 | C156: 7 | D156: 0.07 | E156: 3838856.3 | F156: =VLOOKUP(Table1[[#This Row],[stateid]],Revenue!$A$2:$B$51,2) -> 19480580 | G156: =MAX(Table1[[#This Row],[arc]]/Table1[[#This Row],[revenue]],0) -> 0.1970606779 | H156: =VLOOKUP(Table1[[#This Row],[stateid]],Revenue!$A$2:$C$51,3) -> Connecticut
A157: 15 | B157: 0 | C157: 7 | D157: 0.0725 | E157: 3692686 | F157: =VLOOKUP(Table1[[#This Row],[stateid]],Revenue!$A$2:$B$51,2) -> 19480580 | G157: =MAX(Table1[[#This Row],[arc]]/Table1[[#This Row],[revenue]],0) -> 0.1895572924 | H157: =VLOOKUP(Table1[[#This Row],[stateid]],Revenue!$A$2:$C$51,3) -> Connecticut
A158: 15 | B158: 0 | C158: 7 | D158: 0.075 | E158: 3547636.8 | F158: =VLOOKUP(Table1[[#This Row],[stateid]],Revenue!$A$2:$B$51,2) -> 19480580 | G158: =MAX(Table1[[#This Row],[arc]]/Table1[[#This Row],[revenue]],0) -> 0.1821114566 | H158: =VLOOKUP(Table1[[#This Row],[stateid]],Revenue!$A$2:$C$51,3) -> Connecticut
A159: 15 | B159: 0 | C159: 7 | D159: 0.0775 | E159: 3403684.5 | F159: =VLOOKUP(Table1[[#This Row],[stateid]],Revenue!$A$2:$B$51,2) -> 19480580 | G159: =MAX(Table1[[#This Row],[arc]]/Table1[[#This Row],[revenue]],0) -> 0.1747219282 | H159: =VLOOKUP(Table1[[#This Row],[stateid]],Revenue!$A$2:$C$51,3) -> Connecticut
A160: 15 | B160: 0 | C160: 7 | D160: 0.08 | E160: 3260803.5 | F160: =VLOOKUP(Table1[[#This Row],[stateid]],Revenue!$A$2:$B$51,2) -> 19480580 | G160: =MAX(Table1[[#This Row],[arc]]/Table1[[#This Row],[revenue]],0) -> 0.167387393 | H160: =VLOOKUP(Table1[[#This Row],[stateid]],Revenue!$A$2:$C$51,3) -> Connecticut
A161: 15 | B161: 0 | C161: 7 | D161: 0.0825 | E161: 3118971 | F161: =VLOOKUP(Table1[[#This Row],[stateid]],Revenue!$A$2:$B$51,2) -> 19480580 | G161: =MAX(Table1[[#This Row],[arc]]/Table1[[#This Row],[revenue]],0) -> 0.1601066806 | H161: =VLOOKUP(Table1[[#This Row],[stateid]],Revenue!$A$2:$C$51,3) -> Connecticut
A162: 15 | B162: 0 | C162: 7 | D162: 0.085 | E162: 2978165.5 | F162: =VLOOKUP(Table1[[#This Row],[stateid]],Revenue!$A$2:$B$51,2) -> 19480580 | G162: =MAX(Table1[[#This Row],[arc]]/Table1[[#This Row],[revenue]],0) -> 0.1528786874 | H162: =VLOOKUP(Table1[[#This Row],[stateid]],Revenue!$A$2:$C$51,3) -> Connecticut
A163: 15 | B163: 0 | C163: 8 | D163: 0.03 | E163: 914219.25 | F163: =VLOOKUP(Table1[[#This Row],[stateid]],Revenue!$A$2:$B$51,2) -> 5503599 | G163: =MAX(Table1[[#This Row],[arc]]/Table1[[#This Row],[revenue]],0) -> 0.1661129835 | H163: =VLOOKUP(Table1[[#This Row],[stateid]],Revenue!$A$2:$C$51,3) -> Delaware
A164: 15 | B164: 0 | C164: 8 | D164: 0.0325 | E164: 870423.63 | F164: =VLOOKUP(Table1[[#This Row],[stateid]],Revenue!$A$2:$B$51,2) -> 5503599 | G164: =MAX(Table1[[#This Row],[arc]]/Table1[[#This Row],[revenue]],0) -> 0.1581553507 | H164: =VLOOKUP(Table1[[#This Row],[stateid]],Revenue!$A$2:$C$51,3) -> Delaware
A165: 15 | B165: 0 | C165: 8 | D165: 0.035 | E165: 827275.88 | F165: =VLOOKUP(Table1[[#This Row],[stateid]],Revenue!$A$2:$B$51,2) -> 5503599 | G165: =MAX(Table1[[#This Row],[arc]]/Table1[[#This Row],[revenue]],0) -> 0.1503154354 | H165: =VLOOKUP(Table1[[#This Row],[stateid]],Revenue!$A$2:$C$51,3) -> Delaware
A166: 15 | B166: 0 | C166: 8 | D166: 0.0375 | E166: 784743.94 | F166: =VLOOKUP(Table1[[#This Row],[stateid]],Revenue!$A$2:$B$51,2) -> 5503599 | G166: =MAX(Table1[[#This Row],[arc]]/Table1[[#This Row],[revenue]],0) -> 0.1425874123 | H166: =VLOOKUP(Table1[[#This Row],[stateid]],Revenue!$A$2:$C$51,3) -> Delaware
A167: 15 | B167: 0 | C167: 8 | D167: 0.04 | E167: 742797.25 | F167: =VLOOKUP(Table1[[#This Row],[stateid]],Revenue!$A$2:$B$51,2) -> 5503599 | G167: =MAX(Table1[[#This Row],[arc]]/Table1[[#This Row],[revenue]],0) -> 0.1349657288 | H167: =VLOOKUP(Table1[[#This Row],[stateid]],Revenue!$A$2:$C$51,3) -> Delaware
A168: 15 | B168: 0 | C168: 8 | D168: 0.0425 | E168: 701407.31 | F168: =VLOOKUP(Table1[[#This Row],[stateid]],Revenue!$A$2:$B$51,2) -> 5503599 | G168: =MAX(Table1[[#This Row],[arc]]/Table1[[#This Row],[revenue]],0) -> 0.1274452063 | H168: =VLOOKUP(Table1[[#This Row],[stateid]],Revenue!$A$2:$C$51,3) -> Delaware
A169: 15 | B169: 0 | C169: 8 | D169: 0.045 | E169: 660547.19 | F169: =VLOOKUP(Table1[[#This Row],[stateid]],Revenue!$A$2:$B$51,2) -> 5503599 | G169: =MAX(Table1[[#This Row],[arc]]/Table1[[#This Row],[revenue]],0) -> 0.1200209517 | H169: =VLOOKUP(Table1[[#This Row],[stateid]],Revenue!$A$2:$C$51,3) -> Delaware
A170: 15 | B170: 0 | C170: 8 | D170: 0.0475 | E170: 620191.38 | F170: =VLOOKUP(Table1[[#This Row],[stateid]],Revenue!$A$2:$B$51,2) -> 5503599 | G170: =MAX(Table1[[#This Row],[arc]]/Table1[[#This Row],[revenue]],0) -> 0.1126883299 | H170: =VLOOKUP(Table1[[#This Row],[stateid]],Revenue!$A$2:$C$51,3) -> Delaware
A171: 15 | B171: 0 | C171: 8 | D171: 0.05 | E171: 580316.19 | F171: =VLOOKUP(Table1[[#This Row],[stateid]],Revenue!$A$2:$B$51,2) -> 5503599 | G171: =MAX(Table1[[#This Row],[arc]]/Table1[[#This Row],[revenue]],0) -> 0.1054430365 | H171: =VLOOKUP(Table1[[#This Row],[stateid]],Revenue!$A$2:$C$51,3) -> Delaware
A172: 15 | B172: 0 | C172: 8 | D172: 0.0525 | E172: 540898.88 | F172: =VLOOKUP(Table1[[#This Row],[stateid]],Revenue!$A$2:$B$51,2) -> 5503599 | G172: =MAX(Table1[[#This Row],[arc]]/Table1[[#This Row],[revenue]],0) -> 0.09828093944 | H172: =VLOOKUP(Table1[[#This Row],[stateid]],Revenue!$A$2:$C$51,3) -> Delaware
A173: 15 | B173: 0 | C173: 8 | D173: 0.055 | E173: 501918.28 | F173: =VLOOKUP(Table1[[#This Row],[stateid]],Revenue!$A$2:$B$51,2) -> 5503599 | G173: =MAX(Table1[[#This Row],[arc]]/Table1[[#This Row],[revenue]],0) -> 0.09119819231 | H173: =VLOOKUP(Table1[[#This Row],[stateid]],Revenue!$A$2:$C$51,3) -> Delaware
A174: 15 | B174: 0 | C174: 8 | D174: 0.0575 | E174: 463354.78 | F174: =VLOOKUP(Table1[[#This Row],[stateid]],Revenue!$A$2:$B$51,2) -> 5503599 | G174: =MAX(Table1[[#This Row],[arc]]/Table1[[#This Row],[revenue]],0) -> 0.08419123196 | H174: =VLOOKUP(Table1[[#This Row],[stateid]],Revenue!$A$2:$C$51,3) -> Delaware
A175: 15 | B175: 0 | C175: 8 | D175: 0.06 | E175: 425189.31 | F175: =VLOOKUP(Table1[[#This Row],[stateid]],Revenue!$A$2:$B$51,2) -> 5503599 | G175: =MAX(Table1[[#This Row],[arc]]/Table1[[#This Row],[revenue]],0) -> 0.07725659337 | H175: =VLOOKUP(Table1[[#This Row],[stateid]],Revenue!$A$2:$C$51,3) -> Delaware
A176: 15 | B176: 0 | C176: 8 | D176: 0.0625 | E176: 387404.28 | F176: =VLOOKUP(Table1[[#This Row],[stateid]],Revenue!$A$2:$B$51,2) -> 5503599 | G176: =MAX(Table1[[#This Row],[arc]]/Table1[[#This Row],[revenue]],0) -> 0.07039108045 | H176: =VLOOKUP(Table1[[#This Row],[stateid]],Revenue!$A$2:$C$51,3) -> Delaware
A177: 15 | B177: 0 | C177: 8 | D177: 0.065 | E177: 349983.28 | F177: =VLOOKUP(Table1[[#This Row],[stateid]],Revenue!$A$2:$B$51,2) -> 5503599 | G177: =MAX(Table1[[#This Row],[arc]]/Table1[[#This Row],[revenue]],0) -> 0.06359171153 | H177: =VLOOKUP(Table1[[#This Row],[stateid]],Revenue!$A$2:$C$51,3) -> Delaware
A178: 15 | B178: 0 | C178: 8 | D178: 0.0675 | E178: 312910.44 | F178: =VLOOKUP(Table1[[#This Row],[stateid]],Revenue!$A$2:$B$51,2) -> 5503599 | G178: =MAX(Table1[[#This Row],[arc]]/Table1[[#This Row],[revenue]],0) -> 0.05685560303 | H178: =VLOOKUP(Table1[[#This Row],[stateid]],Revenue!$A$2:$C$51,3) -> Delaware
A179: 15 | B179: 0 | C179: 8 | D179: 0.07 | E179: 276171.47 | F179: =VLOOKUP(Table1[[#This Row],[stateid]],Revenue!$A$2:$B$51,2) -> 5503599 | G179: =MAX(Table1[[#This Row],[arc]]/Table1[[#This Row],[revenue]],0) -> 0.05018015847 | H179: =VLOOKUP(Table1[[#This Row],[stateid]],Revenue!$A$2:$C$51,3) -> Delaware
A180: 15 | B180: 0 | C180: 8 | D180: 0.0725 | E180: 239752.55 | F180: =VLOOKUP(Table1[[#This Row],[stateid]],Revenue!$A$2:$B$51,2) -> 5503599 | G180: =MAX(Table1[[#This Row],[arc]]/Table1[[#This Row],[revenue]],0) -> 0.04356286677 | H180: =VLOOKUP(Table1[[#This Row],[stateid]],Revenue!$A$2:$C$51,3) -> Delaware
A181: 15 | B181: 0 | C181: 8 | D181: 0.075 | E181: 203640.31 | F181: =VLOOKUP(Table1[[#This Row],[stateid]],Revenue!$A$2:$B$51,2) -> 5503599 | G181: =MAX(Table1[[#This Row],[arc]]/Table1[[#This Row],[revenue]],0) -> 0.0370012986 | H181: =VLOOKUP(Table1[[#This Row],[stateid]],Revenue!$A$2:$C$51,3) -> Delaware
A182: 15 | B182: 0 | C182: 8 | D182: 0.0775 | E182: 167823.19 | F182: =VLOOKUP(Table1[[#This Row],[stateid]],Revenue!$A$2:$B$51,2) -> 5503599 | G182: =MAX(Table1[[#This Row],[arc]]/Table1[[#This Row],[revenue]],0) -> 0.03049335353 | H182: =VLOOKUP(Table1[[#This Row],[stateid]],Revenue!$A$2:$C$51,3) -> Delaware
A183: 15 | B183: 0 | C183: 8 | D183: 0.08 | E183: 146278.61 | F183: =VLOOKUP(Table1[[#This Row],[stateid]],Revenue!$A$2:$B$51,2) -> 5503599 | G183: =MAX(Table1[[#This Row],[arc]]/Table1[[#This Row],[revenue]],0) -> 0.02657871876 | H183: =VLOOKUP(Table1[[#This Row],[stateid]],Revenue!$A$2:$C$51,3) -> Delaware
A184: 15 | B184: 0 | C184: 8 | D184: 0.0825 | E184: 138318.16 | F184: =VLOOKUP(Table1[[#This Row],[stateid]],Revenue!$A$2:$B$51,2) -> 5503599 | G184: =MAX(Table1[[#This Row],[arc]]/Table1[[#This Row],[revenue]],0) -> 0.02513231069 | H184: =VLOOKUP(Table1[[#This Row],[stateid]],Revenue!$A$2:$C$51,3) -> Delaware
A185: 15 | B185: 0 | C185: 8 | D185: 0.085 | E185: 131393.13 | F185: =VLOOKUP(Table1[[#This Row],[stateid]],Revenue!$A$2:$B$51,2) -> 5503599 | G185: =MAX(Table1[[#This Row],[arc]]/Table1[[#This Row],[revenue]],0) -> 0.0238740377 | H185: =VLOOKUP(Table1[[#This Row],[stateid]],Revenue!$A$2:$C$51,3) -> Delaware
A186: 15 | B186: 0 | C186: 9 | D186: 0.03 | E186: 2786985 | F186: =VLOOKUP(Table1[[#This Row],[stateid]],Revenue!$A$2:$B$51,2) -> 51025555 | G186: =MAX(Table1[[#This Row],[arc]]/Table1[[#This Row],[revenue]],0) -> 0.0546193961 | H186: =VLOOKUP(Table1[[#This Row],[stateid]],Revenue!$A$2:$C$51,3) -> Florida
A187: 15 | B187: 0 | C187: 9 | D187: 0.0325 | E187: 2668406.8 | F187: =VLOOKUP(Table1[[#This Row],[stateid]],Revenue!$A$2:$B$51,2) -> 51025555 | G187: =MAX(Table1[[#This Row],[arc]]/Table1[[#This Row],[revenue]],0) -> 0.05229549781 | H187: =VLOOKUP(Table1[[#This Row],[stateid]],Revenue!$A$2:$C$51,3) -> Florida
A188: 15 | B188: 0 | C188: 9 | D188: 0.035 | E188: 2550601 | F188: =VLOOKUP(Table1[[#This Row],[stateid]],Revenue!$A$2:$B$51,2) -> 51025555 | G188: =MAX(Table1[[#This Row],[arc]]/Table1[[#This Row],[revenue]],0) -> 0.04998673704 | H188: =VLOOKUP(Table1[[#This Row],[stateid]],Revenue!$A$2:$C$51,3) -> Florida
A189: 15 | B189: 0 | C189: 9 | D189: 0.0375 | E189: 2433531 | F189: =VLOOKUP(Table1[[#This Row],[stateid]],Revenue!$A$2:$B$51,2) -> 51025555 | G189: =MAX(Table1[[#This Row],[arc]]/Table1[[#This Row],[revenue]],0) -> 0.04769239649 | H189: =VLOOKUP(Table1[[#This Row],[stateid]],Revenue!$A$2:$C$51,3) -> Florida
A190: 15 | B190: 0 | C190: 9 | D190: 0.04 | E190: 2317161.3 | F190: =VLOOKUP(Table1[[#This Row],[stateid]],Revenue!$A$2:$B$51,2) -> 51025555 | G190: =MAX(Table1[[#This Row],[arc]]/Table1[[#This Row],[revenue]],0) -> 0.04541178043 | H190: =VLOOKUP(Table1[[#This Row],[stateid]],Revenue!$A$2:$C$51,3) -> Florida
A191: 15 | B191: 0 | C191: 9 | D191: 0.0425 | E191: 2201461 | F191: =VLOOKUP(Table1[[#This Row],[stateid]],Revenue!$A$2:$B$51,2) -> 51025555 | G191: =MAX(Table1[[#This Row],[arc]]/Table1[[#This Row],[revenue]],0) -> 0.04314428329 | H191: =VLOOKUP(Table1[[#This Row],[stateid]],Revenue!$A$2:$C$51,3) -> Florida
A192: 15 | B192: 0 | C192: 9 | D192: 0.045 | E192: 2086399.3 | F192: =VLOOKUP(Table1[[#This Row],[stateid]],Revenue!$A$2:$B$51,2) -> 51025555 | G192: =MAX(Table1[[#This Row],[arc]]/Table1[[#This Row],[revenue]],0) -> 0.04088930145 | H192: =VLOOKUP(Table1[[#This Row],[stateid]],Revenue!$A$2:$C$51,3) -> Florida
A193: 15 | B193: 0 | C193: 9 | D193: 0.0475 | E193: 1971950.1 | F193: =VLOOKUP(Table1[[#This Row],[stateid]],Revenue!$A$2:$B$51,2) -> 51025555 | G193: =MAX(Table1[[#This Row],[arc]]/Table1[[#This Row],[revenue]],0) -> 0.0386463234 | H193: =VLOOKUP(Table1[[#This Row],[stateid]],Revenue!$A$2:$C$51,3) -> Florida
A194: 15 | B194: 0 | C194: 9 | D194: 0.05 | E194: 1858087.6 | F194: =VLOOKUP(Table1[[#This Row],[stateid]],Revenue!$A$2:$B$51,2) -> 51025555 | G194: =MAX(Table1[[#This Row],[arc]]/Table1[[#This Row],[revenue]],0) -> 0.0364148435 | H194: =VLOOKUP(Table1[[#This Row],[stateid]],Revenue!$A$2:$C$51,3) -> Florida
A195: 15 | B195: 0 | C195: 9 | D195: 0.0525 | E195: 1744788.5 | F195: =VLOOKUP(Table1[[#This Row],[stateid]],Revenue!$A$2:$B$51,2) -> 51025555 | G195: =MAX(Table1[[#This Row],[arc]]/Table1[[#This Row],[revenue]],0) -> 0.03419440514 | H195: =VLOOKUP(Table1[[#This Row],[stateid]],Revenue!$A$2:$C$51,3) -> Florida
A196: 15 | B196: 0 | C196: 9 | D196: 0.055 | E196: 1632032 | F196: =VLOOKUP(Table1[[#This Row],[stateid]],Revenue!$A$2:$B$51,2) -> 51025555 | G196: =MAX(Table1[[#This Row],[arc]]/Table1[[#This Row],[revenue]],0) -> 0.03198460066 | H196: =VLOOKUP(Table1[[#This Row],[stateid]],Revenue!$A$2:$C$51,3) -> Florida
A197: 15 | B197: 0 | C197: 9 | D197: 0.0575 | E197: 1519798.3 | F197: =VLOOKUP(Table1[[#This Row],[stateid]],Revenue!$A$2:$B$51,2) -> 51025555 | G197: =MAX(Table1[[#This Row],[arc]]/Table1[[#This Row],[revenue]],0) -> 0.02978504202 | H197: =VLOOKUP(Table1[[#This Row],[stateid]],Revenue!$A$2:$C$51,3) -> Florida
A198: 15 | B198: 0 | C198: 9 | D198: 0.06 | E198: 1408069.8 | F198: =VLOOKUP(Table1[[#This Row],[stateid]],Revenue!$A$2:$B$51,2) -> 51025555 | G198: =MAX(Table1[[#This Row],[arc]]/Table1[[#This Row],[revenue]],0) -> 0.02759538431 | H198: =VLOOKUP(Table1[[#This Row],[stateid]],Revenue!$A$2:$C$51,3) -> Florida
A199: 15 | B199: 0 | C199: 9 | D199: 0.0625 | E199: 1296829.5 | F199: =VLOOKUP(Table1[[#This Row],[stateid]],Revenue!$A$2:$B$51,2) -> 51025555 | G199: =MAX(Table1[[#This Row],[arc]]/Table1[[#This Row],[revenue]],0) -> 0.02541529436 | H199: =VLOOKUP(Table1[[#This Row],[stateid]],Revenue!$A$2:$C$51,3) -> Florida
A200: 15 | B200: 0 | C200: 9 | D200: 0.065 | E200: 1186062.8 | F200: =VLOOKUP(Table1[[#This Row],[stateid]],Revenue!$A$2:$B$51,2) -> 51025555 | G200: =MAX(Table1[[#This Row],[arc]]/Table1[[#This Row],[revenue]],0) -> 0.02324448602 | H200: =VLOOKUP(Table1[[#This Row],[stateid]],Revenue!$A$2:$C$51,3) -> Florida
... 4300 more rows

Sheet Helper (hidden)
C1: id | D1: 1 | E1: 1 | F1: 1 | G1: 1 | H1: 1 | I1: 1 | J1: 1 | K1: 1 | L1: 1 | M1: 1 | N1: 1 | O1: 1 | P1: 1 | Q1: 1 | R1: 1 | S1: 1 | T1: 1 | U1: 1 | V1: 1 | W1: 1 | X1: 1 | Y1: 1 | Z1: 1 | AA1: =D1+1 -> 2 | AB1: =E1+1 -> 2 | AC1: 2 | AD1: 2 | AE1: 2 | AF1: 2 | AG1: 2 | AH1: 2 | AI1: 2 | AJ1: 2 | AK1: 2 | AL1: 2 | AM1: 2 | AN1: 2 | AO1: 2 | AP1: 2 | AQ1: 2 | AR1: 2 | AS1: 2 | AT1: 2 | AU1: 2 | AV1: 2 | AW1: 2 | AX1: =AA1+1 -> 3 | AY1: =AB1+1 -> 3 | AZ1: 3 | BA1: 3 | BB1: 3 | BC1: 3 | BD1: 3 | BE1: 3 | BF1: 3 | BG1: 3 | BH1: 3 | BI1: 3 | BJ1: 3 | BK1: 3 | BL1: 3 | BM1: 3 | BN1: 3 | BO1: 3 | BP1: 3 | BQ1: 3 | BR1: 3 | BS1: 3 | BT1: 3 | BU1: =AX1+1 -> 4 | BV1: =AY1+1 -> 4 | BW1: 4 | BX1: 4 | BY1: 4 | BZ1: 4 | CA1: 4 | CB1: 4 | CC1: 4 | CD1: 4 | CE1: 4 | CF1: 4 | CG1: 4 | CH1: 4 | CI1: 4 | CJ1: 4 | CK1: 4 | CL1: 4 | CM1: 4 | CN1: 4 | CO1: 4 | CP1: 4 | CQ1: 4 | CR1: =BU1+1 -> 5 | CS1: =BV1+1 -> 5 | CT1: 5 | CU1: 5 | CV1: 5 | CW1: 5 | CX1: 5 | CY1: 5 | CZ1: 5 | DA1: 5 | DB1: 5 | DC1: 5 | DD1: 5 | DE1: 5 | DF1: 5 | DG1: 5 | DH1: 5 | DI1: 5 | DJ1: 5 | DK1: 5 | DL1: 5 | DM1: 5 | DN1: 5 | DO1: =CR1+1 -> 6 | DP1: =CS1+1 -> 6 | DQ1: 6 | DR1: 6 | DS1: 6 | DT1: 6 | DU1: 6 | DV1: 6 | DW1: 6 | DX1: 6 | DY1: 6 | DZ1: 6 | EA1: 6 | EB1: 6 | EC1: 6 | ED1: 6 | EE1: 6 | EF1: 6 | EG1: 6 | EH1: 6 | EI1: 6 | EJ1: 6 | EK1: 6 | EL1: =DO1+1 -> 7 | EM1: =DP1+1 -> 7 | EN1: 7 | EO1: 7 | EP1: 7 | EQ1: 7 | ER1: 7 | ES1: 7 | ET1: 7 | EU1: 7 | EV1: 7 | EW1: 7 | EX1: 7 | EY1: 7 | EZ1: 7 | FA1: 7 | FB1: 7 | FC1: 7 | FD1: 7 | FE1: 7 | FF1: 7 | FG1: 7 | FH1: 7 | FI1: =EL1+1 -> 8 | FJ1: =EM1+1 -> 8 | FK1: 8 | FL1: 8 | FM1: 8 | FN1: 8 | FO1: 8 | FP1: 8 | FQ1: 8 | FR1: 8 | FS1: 8 | FT1: 8 | FU1: 8 | FV1: 8 | FW1: 8 | FX1: 8 | FY1: 8 | FZ1: 8 | GA1: 8 | GB1: 8 | GC1: 8 | GD1: 8 | GE1: 8 | GF1: =FI1+1 -> 9 | GG1: =FJ1+1 -> 9 | GH1: 9 | GI1: 9 | GJ1: 9 | GK1: 9 | GL1: 9 | GM1: 9 | GN1: 9 | GO1: 9 | GP1: 9 | GQ1: 9 | GR1: 9 | GS1: 9 | GT1: 9 | GU1: 9 | GV1: 9 | GW1: 9 | GX1: 9 | GY1: 9 | GZ1: 9 | HA1: 9 | HB1: 9 | HC1: =GF1+1 -> 10 | HD1: =GG1+1 -> 10 | HE1: 10 | HF1: 10 | HG1: 10 | HH1: 10 | HI1: 10 | HJ1: 10 | HK1: 10 | HL1: 10 | HM1: 10 | HN1: 10 | HO1: 10 | HP1: 10 | HQ1: 10 | HR1: 10 | HS1: 10 | HT1: 10 | HU1: 10 | HV1: 10 | HW1: 10 | HX1: 10 | HY1: 10 | HZ1: =HC1+1 -> 11 | IA1: =HD1+1 -> 11 | IB1: 11 | IC1: 11 | ID1: 11 | IE1: 11 | IF1: 11 | IG1: 11 | IH1: 11 | II1: 11 | IJ1: 11 | IK1: 11 | IL1: 11 | IM1: 11 | IN1: 11 | IO1: 11 | IP1: 11 | IQ1: 11 | IR1: 11 | IS1: 11 | IT1: 11 | IU1: 11 | IV1: 11 | IW1: =HZ1+1 -> 12 | IX1: =IA1+1 -> 12 | IY1: 12 | IZ1: 12 | JA1: 12 | JB1: 12 | JC1: 12 | JD1: 12 | JE1: 12 | JF1: 12 | JG1: 12 | JH1: 12 | JI1: 12 | JJ1: 12 | JK1: 12 | JL1: 12 | JM1: 12 | JN1: 12 | JO1: 12 | JP1: 12 | JQ1: 12 | JR1: 12 | JS1: 12 | JT1: =IW1+1 -> 13 | JU1: =IX1+1 -> 13 | JV1: 13 | JW1: 13 | JX1: 13 | JY1: 13 | JZ1: 13 | KA1: 13 | KB1: 13 | KC1: 13 | KD1: 13 | KE1: 13 | KF1: 13 | KG1: 13 | KH1: 13 | KI1: 13 | KJ1: 13 | KK1: 13 | KL1: 13 | KM1: 13 | KN1: 13 | KO1: 13 | KP1: 13 | KQ1: =JT1+1 -> 14 | KR1: =JU1+1 -> 14 | KS1: 14 | KT1: 14 | KU1: 14 | KV1: 14 | KW1: 14 | KX1: 14 | KY1: 14 | KZ1: 14 | LA1: 14 | LB1: 14 | LC1: 14 | LD1: 14 | LE1: 14 | LF1: 14 | LG1: 14 | LH1: 14 | LI1: 14 | LJ1: 14 | LK1: 14 | LL1: 14 | LM1: 14 | LN1: =KQ1+1 -> 15 | LO1: =KR1+1 -> 15 | LP1: 15 | LQ1: 15 | LR1: 15 | LS1: 15 | LT1: 15 | LU1: 15 | LV1: 15 | LW1: 15 | LX1: 15 | LY1: 15 | LZ1: 15 | MA1: 15 | MB1: 15 | MC1: 15 | MD1: 15 | ME1: 15 | MF1: 15 | MG1: 15 | MH1: 15 | MI1: 15 | MJ1: 15 | MK1: =LN1+1 -> 16 | ML1: =LO1+1 -> 16 | MM1: 16 | MN1: 16 | MO1: 16 | MP1: 16 | MQ1: 16 | MR1: 16 | MS1: 16 | MT1: 16 | MU1: 16 | MV1: 16 | MW1: 16 | MX1: 16 | MY1: 16 | MZ1: 16 | NA1: 16 | NB1: 16 | NC1: 16 | ND1: 16 | NE1: 16 | NF1: 16 | NG1: 16 | NH1: =MK1+1 -> 17 | NI1: =ML1+1 -> 17 | NJ1: 17 | NK1: 17 | NL1: 17 | NM1: 17 | NN1: 17 | NO1: 17 | NP1: 17 | NQ1: 17 | NR1: 17 | NS1: 17 | NT1: 17 | NU1: 17 | NV1: 17 | NW1: 17 | NX1: 17 | NY1: 17 | NZ1: 17 | OA1: 17 | OB1: 17 | OC1: 17 | OD1: 17 | OE1: =NH1+1 -> 18 | OF1: =NI1+1 -> 18 | OG1: 18 | OH1: 18 | OI1: 18 | OJ1: 18 | OK1: 18 | OL1: 18 | OM1: 18 | ON1: 18 | OO1: 18 | OP1: 18 | OQ1: 18 | OR1: 18 | OS1: 18 | OT1: 18 | OU1: 18 | OV1: 18 | OW1: 18 | OX1: 18 | OY1: 18 | OZ1: 18 | PA1: 18 | PB1: =OE1+1 -> 19 | PC1: =OF1+1 -> 19 | PD1: 19 | PE1: 19 | PF1: 19 | PG1: 19 | PH1: 19 | PI1: 19 | PJ1: 19 | PK1: 19 | PL1: 19 | PM1: 19 | PN1: 19 | PO1: 19 | PP1: 19 | PQ1: 19 | PR1: 19 | PS1: 19 | PT1: 19 | PU1: 19 | PV1: 19 | PW1: 19 | PX1: 19 | PY1: =PB1+1 -> 20 | PZ1: =PC1+1 -> 20 | QA1: 20 | QB1: 20 | QC1: 20 | QD1: 20 | QE1: 20 | QF1: 20 | QG1: 20 | QH1: 20 | QI1: 20 | QJ1: 20 | QK1: 20 | QL1: 20 | QM1: 20 | QN1: 20 | QO1: 20 | QP1: 20 | QQ1: 20 | QR1: 20 | QS1: 20 | QT1: 20 | QU1: 20 | QV1: =PY1+1 -> 21 | QW1: =PZ1+1 -> 21 | QX1: 21 | QY1: 21 | QZ1: 21 | RA1: 21 | RB1: 21 | RC1: 21 | RD1: 21 | RE1: 21 | RF1: 21 | RG1: 21 | RH1: 21 | RI1: 21 | RJ1: 21 | RK1: 21 | RL1: 21 | RM1: 21 | RN1: 21 | RO1: 21 | RP1: 21 | RQ1: 21 | RR1: 21 | RS1: =QV1+1 -> 22 | RT1: =QW1+1 -> 22 | RU1: 22 | RV1: 22 | RW1: 22 | RX1: 22 | RY1: 22 | RZ1: 22 | SA1: 22 | SB1: 22 | SC1: 22 | SD1: 22 | SE1: 22 | SF1: 22 | SG1: 22 | SH1: 22 | SI1: 22 | SJ1: 22 | SK1: 22 | SL1: 22 | SM1: 22 | SN1: 22 | SO1: 22 | SP1: =RS1+1 -> 23 | SQ1: =RT1+1 -> 23 | SR1: 23 | SS1: 23 | ST1: 23 | SU1: 23 | SV1: 23 | SW1: 23 | SX1: 23 | SY1: 23 | SZ1: 23 | TA1: 23 | TB1: 23 | TC1: 23 | TD1: 23 | TE1: 23 | TF1: 23 | TG1: 23 | TH1: 23 | TI1: 23 | TJ1: 23 | TK1: 23 | TL1: 23 | TM1: =SP1+1 -> 24 | TN1: =SQ1+1 -> 24 | TO1: 24 | TP1: 24 | TQ1: 24 | TR1: 24 | TS1: 24 | TT1: 24 | TU1: 24 | TV1: 24 | TW1: 24 | TX1: 24 | TY1: 24 | TZ1: 24 | UA1: 24 | UB1: 24 | UC1: 24 | UD1: 24 | UE1: 24 | UF1: 24 | UG1: 24 | UH1: 24 | UI1: 24 | UJ1: =TM1+1 -> 25 | UK1: =TN1+1 -> 25 | UL1: 25 | UM1: 25 | UN1: 25 | UO1: 25 | UP1: 25 | UQ1: 25 | UR1: 25 | US1: 25 | UT1: 25 | UU1: 25 | UV1: 25 | UW1: 25 | UX1: 25 | UY1: 25 | UZ1: 25 | VA1: 25 | VB1: 25 | VC1: 25 | VD1: 25 | VE1: 25 | VF1: 25 | VG1: =UJ1+1 -> 26 | VH1: =UK1+1 -> 26 | VI1: 26 | VJ1: 26 | VK1: 26 | VL1: 26 | VM1: 26 | VN1: 26 | VO1: 26 | VP1: 26 | VQ1: 26 | VR1: 26 | VS1: 26 | VT1: 26 | VU1: 26 | VV1: 26 | VW1: 26 | VX1: 26 | VY1: 26 | VZ1: 26 | WA1: 26 | WB1: 26 | WC1: 26 | WD1: =VG1+1 -> 27 | WE1: =VH1+1 -> 27 | WF1: 27 | WG1: 27 | WH1: 27 | WI1: 27 | WJ1: 27 | WK1: 27 | WL1: 27 | WM1: 27 | WN1: 27 | WO1: 27 | WP1: 27 | WQ1: 27 | WR1: 27 | WS1: 27 | WT1: 27 | WU1: 27 | WV1: 27 | WW1: 27 | WX1: 27 | WY1: 27 | WZ1: 27 | XA1: =WD1+1 -> 28 | XB1: =WE1+1 -> 28 | XC1: 28 | XD1: 28 | XE1: 28 | XF1: 28 | XG1: 28 | XH1: 28 | XI1: 28 | XJ1: 28 | XK1: 28 | XL1: 28 | XM1: 28 | XN1: 28 | XO1: 28 | XP1: 28 | XQ1: 28 | XR1: 28 | XS1: 28 | XT1: 28 | XU1: 28 | XV1: 28 | XW1: 28 | XX1: =XA1+1 -> 29 | XY1: =XB1+1 -> 29 | XZ1: 29 | YA1: 29 | YB1: 29 | YC1: 29 | YD1: 29 | YE1: 29 | YF1: 29 | YG1: 29 | YH1: 29 | YI1: 29 | YJ1: 29 | YK1: 29 | YL1: 29 | YM1: 29 | YN1: 29 | YO1: 29 | YP1: 29 | YQ1: 29 | YR1: 29 | YS1: 29 | YT1: 29 | YU1: =XX1+1 -> 30 | YV1: =XY1+1 -> 30 | YW1: 30 | YX1: 30 | YY1: 30 | YZ1: 30 | ZA1: 30 | ZB1: 30 | ZC1: 30 | ZD1: 30 | ZE1: 30 | ZF1: 30 | ZG1: 30 | ZH1: 30 | ZI1: 30 | ZJ1: 30 | ZK1: 30 | ZL1: 30 | ZM1: 30 | ZN1: 30 | ZO1: 30 | ZP1: 30 | ZQ1: 30 | ZR1: =YU1+1 -> 31 | ZS1: =YV1+1 -> 31 | ZT1: 31 | ZU1: 31 | ZV1: 31 | ZW1: 31 | ZX1: 31 | ZY1: 31 | ZZ1: 31 | AAA1: 31 | AAB1: 31 | AAC1: 31 | AAD1: 31 | AAE1: 31 | AAF1: 31 | AAG1: 31 | AAH1: 31 | AAI1: 31 | AAJ1: 31 | AAK1: 31 | AAL1: 31 | AAM1: 31 | AAN1: 31 | AAO1: =ZR1+1 -> 32 | AAP1: =ZS1+1 -> 32 | AAQ1: 32 | AAR1: 32 | AAS1: 32 | AAT1: 32 | AAU1: 32 | AAV1: 32 | AAW1: 32 | AAX1: 32 | AAY1: 32 | AAZ1: 32 | ABA1: 32 | ABB1: 32 | ABC1: 32 | ABD1: 32 | ABE1: 32 | ABF1: 32 | ABG1: 32 | ABH1: 32 | ABI1: 32 | ABJ1: 32 | ABK1: 32 | ABL1: =AAO1+1 -> 33 | ABM1: =AAP1+1 -> 33 | ABN1: 33 | ABO1: 33 | ABP1: 33 | ABQ1: 33 | ABR1: 33 | ABS1: 33 | ABT1: 33 | ABU1: 33 | ABV1: 33 | ABW1: 33 | ABX1: 33 | ABY1: 33 | ABZ1: 33 | ACA1: 33 | ACB1: 33 | ACC1: 33 | ACD1: 33 | ACE1: 33 | ACF1: 33 | ACG1: 33 | ACH1: 33 | ACI1: =ABL1+1 -> 34 | ACJ1: =ABM1+1 -> 34 | ACK1: 34 | ACL1: 34 | ACM1: 34 | ACN1: 34 | ACO1: 34 | ACP1: 34 | ACQ1: 34 | ACR1: 34 | ACS1: 34 | ACT1: 34 | ACU1: 34 | ACV1: 34 | ACW1: 34 | ACX1: 34 | ACY1: 34 | ACZ1: 34 | ADA1: 34 | ADB1: 34 | ADC1: 34 | ADD1: 34 | ADE1: 34 | ADF1: =ACI1+1 -> 35 | ADG1: =ACJ1+1 -> 35 | ADH1: 35 | ADI1: 35 | ADJ1: 35 | ADK1: 35 | ADL1: 35 | ADM1: 35 | ADN1: 35 | ADO1: 35 | ADP1: 35 | ADQ1: 35 | ADR1: 35 | ADS1: 35 | ADT1: 35 | ADU1: 35 | ADV1: 35 | ADW1: 35 | ADX1: 35 | ADY1: 35 | ADZ1: 35 | AEA1: 35 | AEB1: 35 | AEC1: =ADF1+1 -> 36 | AED1: =ADG1+1 -> 36 | AEE1: 36 | AEF1: 36 | AEG1: 36 | AEH1: 36 | AEI1: 36 | AEJ1: 36 | AEK1: 36 | AEL1: 36 | AEM1: 36 | AEN1: 36 | AEO1: 36 | AEP1: 36 | AEQ1: 36 | AER1: 36 | AES1: 36 | AET1: 36 | AEU1: 36 | AEV1: 36 | AEW1: 36 | AEX1: 36 | AEY1: 36 | AEZ1: =AEC1+1 -> 37 | AFA1: =AED1+1 -> 37 | AFB1: 37 | AFC1: 37 | AFD1: 37 | AFE1: 37 | AFF1: 37 | AFG1: 37 | AFH1: 37 | AFI1: 37 | AFJ1: 37 | AFK1: 37 | AFL1: 37 | AFM1: 37 | AFN1: 37 | AFO1: 37 | AFP1: 37 | AFQ1: 37 | AFR1: 37 | AFS1: 37 | AFT1: 37 | AFU1: 37 | AFV1: 37 | AFW1: =AEZ1+1 -> 38 | AFX1: =AFA1+1 -> 38 | AFY1: 38 | AFZ1: 38 | AGA1: 38 | AGB1: 38 | AGC1: 38 | AGD1: 38 | AGE1: 38 | AGF1: 38 | AGG1: 38 | AGH1: 38 | AGI1: 38 | AGJ1: 38 | AGK1: 38 | AGL1: 38 | AGM1: 38 | AGN1: 38 | AGO1: 38 | AGP1: 38 | AGQ1: 38 | AGR1: 38 | AGS1: 38 | AGT1: =AFW1+1 -> 39 | AGU1: =AFX1+1 -> 39 | AGV1: 39 | AGW1: 39 | AGX1: 39 | AGY1: 39 | AGZ1: 39 | AHA1: 39 | AHB1: 39 | AHC1: 39 | AHD1: 39 | AHE1: 39 | AHF1: 39 | AHG1: 39 | AHH1: 39 | AHI1: 39 | AHJ1: 39 | AHK1: 39 | AHL1: 39 | AHM1: 39 | AHN1: 39 | AHO1: 39 | AHP1: 39 | AHQ1: =AGT1+1 -> 40 | AHR1: =AGU1+1 -> 40 | AHS1: 40 | AHT1: 40 | AHU1: 40 | AHV1: 40 | AHW1: 40 | AHX1: 40 | AHY1: 40 | AHZ1: 40 | AIA1: 40 | AIB1: 40 | AIC1: 40 | AID1: 40 | AIE1: 40 | AIF1: 40 | AIG1: 40 | AIH1: 40 | AII1: 40 | AIJ1: 40 | AIK1: 40 | AIL1: 40 | AIM1: 40 | AIN1: =AHQ1+1 -> 41 | AIO1: =AHR1+1 -> 41 | AIP1: 41 | AIQ1: 41 | AIR1: 41 | AIS1: 41 | AIT1: 41 | AIU1: 41 | AIV1: 41 | AIW1: 41 | AIX1: 41 | AIY1: 41 | AIZ1: 41 | AJA1: 41 | AJB1: 41 | AJC1: 41 | AJD1: 41 | AJE1: 41 | AJF1: 41 | AJG1: 41 | AJH1: 41 | AJI1: 41 | AJJ1: 41 | AJK1: =AIN1+1 -> 42 | AJL1: =AIO1+1 -> 42 | AJM1: 42 | AJN1: 42 | AJO1: 42 | AJP1: 42 | AJQ1: 42 | AJR1: 42 | AJS1: 42 | AJT1: 42 | AJU1: 42 | AJV1: 42 | AJW1: 42 | AJX1: 42 | AJY1: 42 | AJZ1: 42 | AKA1: 42 | AKB1: 42 | AKC1: 42 | AKD1: 42 | AKE1: 42 | AKF1: 42 | AKG1: 42 | AKH1: =AJK1+1 -> 43 | AKI1: =AJL1+1 -> 43 | AKJ1: 43 | AKK1: 43 | AKL1: 43 | AKM1: 43 | AKN1: 43 | AKO1: 43 | AKP1: 43 | AKQ1: 43 | AKR1: 43 | AKS1: 43 | AKT1: 43 | AKU1: 43 | AKV1: 43 | AKW1: 43 | AKX1: 43 | AKY1: 43 | AKZ1: 43 | ALA1: 43 | ALB1: 43 | ALC1: 43 | ALD1: 43 | ALE1: =AKH1+1 -> 44 | ALF1: =AKI1+1 -> 44 | ALG1: 44 | ALH1: 44 | ALI1: 44 | ALJ1: 44 | ALK1: 44 | ALL1: 44 | ALM1: 44 | ALN1: 44 | ALO1: 44 | ALP1: 44 | ALQ1: 44 | ALR1: 44 | ALS1: 44 | ALT1: 44 | ALU1: 44 | ALV1: 44 | ALW1: 44 | ALX1: 44 | ALY1: 44 | ALZ1: 44 | AMA1: 44 | AMB1: =ALE1+1 -> 45 | AMC1: =ALF1+1 -> 45 | AMD1: 45 | AME1: 45 | AMF1: 45 | AMG1: 45 | AMH1: 45 | AMI1: 45 | AMJ1: 45 | AMK1: 45 | AML1: 45 | AMM1: 45 | AMN1: 45 | AMO1: 45 | AMP1: 45 | AMQ1: 45 | AMR1: 45 | AMS1: 45 | AMT1: 45 | AMU1: 45 | AMV1: 45 | AMW1: 45 | AMX1: 45 | AMY1: =AMB1+1 -> 46 | AMZ1: =AMC1+1 -> 46 | ANA1: 46 | ANB1: 46 | ANC1: 46 | AND1: 46 | ANE1: 46 | ANF1: 46 | ANG1: 46 | ANH1: 46 | ANI1: 46 | ANJ1: 46 | ANK1: 46 | ANL1: 46 | ANM1: 46 | ANN1: 46 | ANO1: 46 | ANP1: 46 | ANQ1: 46 | ANR1: 46 | ANS1: 46 | ANT1: 46 | ANU1: 46 | ANV1: =AMY1+1 -> 47 | ANW1: =AMZ1+1 -> 47 | ANX1: 47 | ANY1: 47 | ANZ1: 47 | AOA1: 47 | AOB1: 47 | AOC1: 47 | AOD1: 47 | AOE1: 47 | AOF1: 47 | AOG1: 47 | AOH1: 47 | AOI1: 47 | AOJ1: 47 | AOK1: 47 | AOL1: 47 | AOM1: 47 | AON1: 47 | AOO1: 47 | AOP1: 47 | AOQ1: 47 | AOR1: 47 | AOS1: =ANV1+1 -> 48 | AOT1: =ANW1+1 -> 48 | AOU1: 48 | AOV1: 48 | AOW1: 48 | AOX1: 48 | AOY1: 48 | AOZ1: 48 | APA1: 48 | APB1: 48 | APC1: 48 | APD1: 48 | APE1: 48 | APF1: 48 | APG1: 48 | APH1: 48 | API1: 48 | APJ1: 48 | APK1: 48 | APL1: 48 | APM1: 48 | APN1: 48 | APO1: 48 | APP1: =AOS1+1 -> 49 | APQ1: =AOT1+1 -> 49 | APR1: 49 | APS1: 49 | APT1: 49 | APU1: 49 | APV1: 49 | APW1: 49 | APX1: 49 | APY1: 49 | APZ1: 49 | AQA1: 49 | AQB1: 49 | AQC1: 49 | AQD1: 49 | AQE1: 49 | AQF1: 49 | AQG1: 49 | AQH1: 49 | AQI1: 49 | AQJ1: 49 | AQK1: 49 | AQL1: 49 | AQM1: =APP1+1 -> 50 | AQN1: =APQ1+1 -> 50 | AQO1: 50 | AQP1: 50 | AQQ1: 50 | AQR1: 50 | AQS1: 50 | AQT1: 50 | AQU1: 50 | AQV1: 50 | AQW1: 50 | AQX1: 50 | AQY1: 50 | AQZ1: 50 | ARA1: 50 | ARB1: 50 | ARC1: 50 | ARD1: 50 | ARE1: 50 | ARF1: 50 | ARG1: 50 | ARH1: 50 | ARI1: 50
C2: discountrate | D2: 0.03 | E2: 0.0325 | F2: 0.035 | G2: 0.0375 | H2: 0.04 | I2: 0.0425 | J2: 0.045 | K2: 0.0475 | L2: 0.05 | M2: 0.0525 | N2: 0.055 | O2: 0.0575 | P2: 0.06 | Q2: 0.0625 | R2: 0.065 | S2: 0.0675 | T2: 0.07 | U2: 0.0725 | V2: 0.075 | W2: 0.0775 | X2: 0.08 | Y2: 0.0825 | Z2: 0.085 | AA2: 0.03 | AB2: 0.0325 | AC2: 0.035 | AD2: 0.0375 | AE2: 0.04 | AF2: 0.0425 | AG2: 0.045 | AH2: 0.0475 | AI2: 0.05 | AJ2: 0.0525 | AK2: 0.055 | AL2: 0.0575 | AM2: 0.06 | AN2: 0.0625 | AO2: 0.065 | AP2: 0.0675 | AQ2: 0.07 | AR2: 0.0725 | AS2: 0.075 | AT2: 0.0775 | AU2: 0.08 | AV2: 0.0825 | AW2: 0.085 | AX2: 0.03 | AY2: 0.0325 | AZ2: 0.035 | BA2: 0.0375 | BB2: 0.04 | BC2: 0.0425 | BD2: 0.045 | BE2: 0.0475 | BF2: 0.05 | BG2: 0.0525 | BH2: 0.055 | BI2: 0.0575 | BJ2: 0.06 | BK2: 0.0625 | BL2: 0.065 | BM2: 0.0675 | BN2: 0.07 | BO2: 0.0725 | BP2: 0.075 | BQ2: 0.0775 | BR2: 0.08 | BS2: 0.0825 | BT2: 0.085 | BU2: 0.03 | BV2: 0.0325 | BW2: 0.035 | BX2: 0.0375 | BY2: 0.04 | BZ2: 0.0425 | CA2: 0.045 | CB2: 0.0475 | CC2: 0.05 | CD2: 0.0525 | CE2: 0.055 | CF2: 0.0575 | CG2: 0.06 | CH2: 0.0625 | CI2: 0.065 | CJ2: 0.0675 | CK2: 0.07 | CL2: 0.0725 | CM2: 0.075 | CN2: 0.0775 | CO2: 0.08 | CP2: 0.0825 | CQ2: 0.085 | CR2: 0.03 | CS2: 0.0325 | CT2: 0.035 | CU2: 0.0375 | CV2: 0.04 | CW2: 0.0425 | CX2: 0.045 | CY2: 0.0475 | CZ2: 0.05 | DA2: 0.0525 | DB2: 0.055 | DC2: 0.0575 | DD2: 0.06 | DE2: 0.0625 | DF2: 0.065 | DG2: 0.0675 | DH2: 0.07 | DI2: 0.0725 | DJ2: 0.075 | DK2: 0.0775 | DL2: 0.08 | DM2: 0.0825 | DN2: 0.085 | DO2: 0.03 | DP2: 0.0325 | DQ2: 0.035 | DR2: 0.0375 | DS2: 0.04 | DT2: 0.0425 | DU2: 0.045 | DV2: 0.0475 | DW2: 0.05 | DX2: 0.0525 | DY2: 0.055 | DZ2: 0.0575 | EA2: 0.06 | EB2: 0.0625 | EC2: 0.065 | ED2: 0.0675 | EE2: 0.07 | EF2: 0.0725 | EG2: 0.075 | EH2: 0.0775 | EI2: 0.08 | EJ2: 0.0825 | EK2: 0.085 | EL2: 0.03 | EM2: 0.0325 | EN2: 0.035 | EO2: 0.0375 | EP2: 0.04 | EQ2: 0.0425 | ER2: 0.045 | ES2: 0.0475 | ET2: 0.05 | EU2: 0.0525 | EV2: 0.055 | EW2: 0.0575 | EX2: 0.06 | EY2: 0.0625 | EZ2: 0.065 | FA2: 0.0675 | FB2: 0.07 | FC2: 0.0725 | FD2: 0.075 | FE2: 0.0775 | FF2: 0.08 | FG2: 0.0825 | FH2: 0.085 | FI2: 0.03 | FJ2: 0.0325 | FK2: 0.035 | FL2: 0.0375 | FM2: 0.04 | FN2: 0.0425 | FO2: 0.045 | FP2: 0.0475 | FQ2: 0.05 | FR2: 0.0525 | FS2: 0.055 | FT2: 0.0575 | FU2: 0.06 | FV2: 0.0625 | FW2: 0.065 | FX2: 0.0675 | FY2: 0.07 | FZ2: 0.0725 | GA2: 0.075 | GB2: 0.0775 | GC2: 0.08 | GD2: 0.0825 | GE2: 0.085 | GF2: 0.03 | GG2: 0.0325 | GH2: 0.035 | GI2: 0.0375 | GJ2: 0.04 | GK2: 0.0425 | GL2: 0.045 | GM2: 0.0475 | GN2: 0.05 | GO2: 0.0525 | GP2: 0.055 | GQ2: 0.0575 | GR2: 0.06 | GS2: 0.0625 | GT2: 0.065 | GU2: 0.0675 | GV2: 0.07 | GW2: 0.0725 | GX2: 0.075 | GY2: 0.0775 | GZ2: 0.08 | HA2: 0.0825 | HB2: 0.085 | HC2: 0.03 | HD2: 0.0325 | HE2: 0.035 | HF2: 0.0375 | HG2: 0.04 | HH2: 0.0425 | HI2: 0.045 | HJ2: 0.0475 | HK2: 0.05 | HL2: 0.0525 | HM2: 0.055 | HN2: 0.0575 | HO2: 0.06 | HP2: 0.0625 | HQ2: 0.065 | HR2: 0.0675 | HS2: 0.07 | HT2: 0.0725 | HU2: 0.075 | HV2: 0.0775 | HW2: 0.08 | HX2: 0.0825 | HY2: 0.085 | HZ2: 0.03 | IA2: 0.0325 | IB2: 0.035 | IC2: 0.0375 | ID2: 0.04 | IE2: 0.0425 | IF2: 0.045 | IG2: 0.0475 | IH2: 0.05 | II2: 0.0525 | IJ2: 0.055 | IK2: 0.0575 | IL2: 0.06 | IM2: 0.0625 | IN2: 0.065 | IO2: 0.0675 | IP2: 0.07 | IQ2: 0.0725 | IR2: 0.075 | IS2: 0.0775 | IT2: 0.08 | IU2: 0.0825 | IV2: 0.085 | IW2: 0.03 | IX2: 0.0325 | IY2: 0.035 | IZ2: 0.0375 | JA2: 0.04 | JB2: 0.0425 | JC2: 0.045 | JD2: 0.0475 | JE2: 0.05 | JF2: 0.0525 | JG2: 0.055 | JH2: 0.0575 | JI2: 0.06 | JJ2: 0.0625 | JK2: 0.065 | JL2: 0.0675 | JM2: 0.07 | JN2: 0.0725 | JO2: 0.075 | JP2: 0.0775 | JQ2: 0.08 | JR2: 0.0825 | JS2: 0.085 | JT2: 0.03 | JU2: 0.0325 | JV2: 0.035 | JW2: 0.0375 | JX2: 0.04 | JY2: 0.0425 | JZ2: 0.045 | KA2: 0.0475 | KB2: 0.05 | KC2: 0.0525 | KD2: 0.055 | KE2: 0.0575 | KF2: 0.06 | KG2: 0.0625 | KH2: 0.065 | KI2: 0.0675 | KJ2: 0.07 | KK2: 0.0725 | KL2: 0.075 | KM2: 0.0775 | KN2: 0.08 | KO2: 0.0825 | KP2: 0.085 | KQ2: 0.03 | KR2: 0.0325 | KS2: 0.035 | KT2: 0.0375 | KU2: 0.04 | KV2: 0.0425 | KW2: 0.045 | KX2: 0.0475 | KY2: 0.05 | KZ2: 0.0525 | LA2: 0.055 | LB2: 0.0575 | LC2: 0.06 | LD2: 0.0625 | LE2: 0.065 | LF2: 0.0675 | LG2: 0.07 | LH2: 0.0725 | LI2: 0.075 | LJ2: 0.0775 | LK2: 0.08 | LL2: 0.0825 | LM2: 0.085 | LN2: 0.03 | LO2: 0.0325 | LP2: 0.035 | LQ2: 0.0375 | LR2: 0.04 | LS2: 0.0425 | LT2: 0.045 | LU2: 0.0475 | LV2: 0.05 | LW2: 0.0525 | LX2: 0.055 | LY2: 0.0575 | LZ2: 0.06 | MA2: 0.0625 | MB2: 0.065 | MC2: 0.0675 | MD2: 0.07 | ME2: 0.0725 | MF2: 0.075 | MG2: 0.0775 | MH2: 0.08 | MI2: 0.0825 | MJ2: 0.085 | MK2: 0.03 | ML2: 0.0325 | MM2: 0.035 | MN2: 0.0375 | MO2: 0.04 | MP2: 0.0425 | MQ2: 0.045 | MR2: 0.0475 | MS2: 0.05 | MT2: 0.0525 | MU2: 0.055 | MV2: 0.0575 | MW2: 0.06 | MX2: 0.0625 | MY2: 0.065 | MZ2: 0.0675 | NA2: 0.07 | NB2: 0.0725 | NC2: 0.075 | ND2: 0.0775 | NE2: 0.08 | NF2: 0.0825 | NG2: 0.085 | NH2: 0.03 | NI2: 0.0325 | NJ2: 0.035 | NK2: 0.0375 | NL2: 0.04 | NM2: 0.0425 | NN2: 0.045 | NO2: 0.0475 | NP2: 0.05 | NQ2: 0.0525 | NR2: 0.055 | NS2: 0.0575 | NT2: 0.06 | NU2: 0.0625 | NV2: 0.065 | NW2: 0.0675 | NX2: 0.07 | NY2: 0.0725 | NZ2: 0.075 | OA2: 0.0775 | OB2: 0.08 | OC2: 0.0825 | OD2: 0.085 | OE2: 0.03 | OF2: 0.0325 | OG2: 0.035 | OH2: 0.0375 | OI2: 0.04 | OJ2: 0.0425 | OK2: 0.045 | OL2: 0.0475 | OM2: 0.05 | ON2: 0.0525 | OO2: 0.055 | OP2: 0.0575 | OQ2: 0.06 | OR2: 0.0625 | OS2: 0.065 | OT2: 0.0675 | OU2: 0.07 | OV2: 0.0725 | OW2: 0.075 | OX2: 0.0775 | OY2: 0.08 | OZ2: 0.0825 | PA2: 0.085 | PB2: 0.03 | PC2: 0.0325 | PD2: 0.035 | PE2: 0.0375 | PF2: 0.04 | PG2: 0.0425 | PH2: 0.045 | PI2: 0.0475 | PJ2: 0.05 | PK2: 0.0525 | PL2: 0.055 | PM2: 0.0575 | PN2: 0.06 | PO2: 0.0625 | PP2: 0.065 | PQ2: 0.0675 | PR2: 0.07 | PS2: 0.0725 | PT2: 0.075 | PU2: 0.0775 | PV2: 0.08 | PW2: 0.0825 | PX2: 0.085 | PY2: 0.03 | PZ2: 0.0325 | QA2: 0.035 | QB2: 0.0375 | QC2: 0.04 | QD2: 0.0425 | QE2: 0.045 | QF2: 0.0475 | QG2: 0.05 | QH2: 0.0525 | QI2: 0.055 | QJ2: 0.0575 | QK2: 0.06 | QL2: 0.0625 | QM2: 0.065 | QN2: 0.0675 | QO2: 0.07 | QP2: 0.0725 | QQ2: 0.075 | QR2: 0.0775 | QS2: 0.08 | QT2: 0.0825 | QU2: 0.085 | QV2: 0.03 | QW2: 0.0325 | QX2: 0.035 | QY2: 0.0375 | QZ2: 0.04 | RA2: 0.0425 | RB2: 0.045 | RC2: 0.0475 | RD2: 0.05 | RE2: 0.0525 | RF2: 0.055 | RG2: 0.0575 | RH2: 0.06 | RI2: 0.0625 | RJ2: 0.065 | RK2: 0.0675 | RL2: 0.07 | RM2: 0.0725 | RN2: 0.075 | RO2: 0.0775 | RP2: 0.08 | RQ2: 0.0825 | RR2: 0.085 | RS2: 0.03 | RT2: 0.0325 | RU2: 0.035 | RV2: 0.0375 | RW2: 0.04 | RX2: 0.0425 | RY2: 0.045 | RZ2: 0.0475 | SA2: 0.05 | SB2: 0.0525 | SC2: 0.055 | SD2: 0.0575 | SE2: 0.06 | SF2: 0.0625 | SG2: 0.065 | SH2: 0.0675 | SI2: 0.07 | SJ2: 0.0725 | SK2: 0.075 | SL2: 0.0775 | SM2: 0.08 | SN2: 0.0825 | SO2: 0.085 | SP2: 0.03 | SQ2: 0.0325 | SR2: 0.035 | SS2: 0.0375 | ST2: 0.04 | SU2: 0.0425 | SV2: 0.045 | SW2: 0.0475 | SX2: 0.05 | SY2: 0.0525 | SZ2: 0.055 | TA2: 0.0575 | TB2: 0.06 | TC2: 0.0625 | TD2: 0.065 | TE2: 0.0675 | TF2: 0.07 | TG2: 0.0725 | TH2: 0.075 | TI2: 0.0775 | TJ2: 0.08 | TK2: 0.0825 | TL2: 0.085 | TM2: 0.03 | TN2: 0.0325 | TO2: 0.035 | TP2: 0.0375 | TQ2: 0.04 | TR2: 0.0425 | TS2: 0.045 | TT2: 0.0475 | TU2: 0.05 | TV2: 0.0525 | TW2: 0.055 | TX2: 0.0575 | TY2: 0.06 | TZ2: 0.0625 | UA2: 0.065 | UB2: 0.0675 | UC2: 0.07 | UD2: 0.0725 | UE2: 0.075 | UF2: 0.0775 | UG2: 0.08 | UH2: 0.0825 | UI2: 0.085 | UJ2: 0.03 | UK2: 0.0325 | UL2: 0.035 | UM2: 0.0375 | UN2: 0.04 | UO2: 0.0425 | UP2: 0.045 | UQ2: 0.0475 | UR2: 0.05 | US2: 0.0525 | UT2: 0.055 | UU2: 0.0575 | UV2: 0.06 | UW2: 0.0625 | UX2: 0.065 | UY2: 0.0675 | UZ2: 0.07 | VA2: 0.0725 | VB2: 0.075 | VC2: 0.0775 | VD2: 0.08 | VE2: 0.0825 | VF2: 0.085 | VG2: 0.03 | VH2: 0.0325 | VI2: 0.035 | VJ2: 0.0375 | VK2: 0.04 | VL2: 0.0425 | VM2: 0.045 | VN2: 0.0475 | VO2: 0.05 | VP2: 0.0525 | VQ2: 0.055 | VR2: 0.0575 | VS2: 0.06 | VT2: 0.0625 | VU2: 0.065 | VV2: 0.0675 | VW2: 0.07 | VX2: 0.0725 | VY2: 0.075 | VZ2: 0.0775 | WA2: 0.08 | WB2: 0.0825 | WC2: 0.085 | WD2: 0.03 | WE2: 0.0325 | WF2: 0.035 | WG2: 0.0375 | WH2: 0.04 | WI2: 0.0425 | WJ2: 0.045 | WK2: 0.0475 | WL2: 0.05 | WM2: 0.0525 | WN2: 0.055 | WO2: 0.0575 | WP2: 0.06 | WQ2: 0.0625 | WR2: 0.065 | WS2: 0.0675 | WT2: 0.07 | WU2: 0.0725 | WV2: 0.075 | WW2: 0.0775 | WX2: 0.08 | WY2: 0.0825 | WZ2: 0.085 | XA2: 0.03 | XB2: 0.0325 | XC2: 0.035 | XD2: 0.0375 | XE2: 0.04 | XF2: 0.0425 | XG2: 0.045 | XH2: 0.0475 | XI2: 0.05 | XJ2: 0.0525 | XK2: 0.055 | XL2: 0.0575 | XM2: 0.06 | XN2: 0.0625 | XO2: 0.065 | XP2: 0.0675 | XQ2: 0.07 | XR2: 0.0725 | XS2: 0.075 | XT2: 0.0775 | XU2: 0.08 | XV2: 0.0825 | XW2: 0.085 | XX2: 0.03 | XY2: 0.0325 | XZ2: 0.035 | YA2: 0.0375 | YB2: 0.04 | YC2: 0.0425 | YD2: 0.045 | YE2: 0.0475 | YF2: 0.05 | YG2: 0.0525 | YH2: 0.055 | YI2: 0.0575 | YJ2: 0.06 | YK2: 0.0625 | YL2: 0.065 | YM2: 0.0675 | YN2: 0.07 | YO2: 0.0725 | YP2: 0.075 | YQ2: 0.0775 | YR2: 0.08 | YS2: 0.0825 | YT2: 0.085 | YU2: 0.03 | YV2: 0.0325 | YW2: 0.035 | YX2: 0.0375 | YY2: 0.04 | YZ2: 0.0425 | ZA2: 0.045 | ZB2: 0.0475 | ZC2: 0.05 | ZD2: 0.0525 | ZE2: 0.055 | ZF2: 0.0575 | ZG2: 0.06 | ZH2: 0.0625 | ZI2: 0.065 | ZJ2: 0.0675 | ZK2: 0.07 | ZL2: 0.0725 | ZM2: 0.075 | ZN2: 0.0775 | ZO2: 0.08 | ZP2: 0.0825 | ZQ2: 0.085 | ZR2: 0.03 | ZS2: 0.0325 | ZT2: 0.035 | ZU2: 0.0375 | ZV2: 0.04 | ZW2: 0.0425 | ZX2: 0.045 | ZY2: 0.0475 | ZZ2: 0.05 | AAA2: 0.0525 | AAB2: 0.055 | AAC2: 0.0575 | AAD2: 0.06 | AAE2: 0.0625 | AAF2: 0.065 | AAG2: 0.0675 | AAH2: 0.07 | AAI2: 0.0725 | AAJ2: 0.075 | AAK2: 0.0775 | AAL2: 0.08 | AAM2: 0.0825 | AAN2: 0.085 | AAO2: 0.03 | AAP2: 0.0325 | AAQ2: 0.035 | AAR2: 0.0375 | AAS2: 0.04 | AAT2: 0.0425 | AAU2: 0.045 | AAV2: 0.0475 | AAW2: 0.05 | AAX2: 0.0525 | AAY2: 0.055 | AAZ2: 0.0575 | ABA2: 0.06 | ABB2: 0.0625 | ABC2: 0.065 | ABD2: 0.0675 | ABE2: 0.07 | ABF2: 0.0725 | ABG2: 0.075 | ABH2: 0.0775 | ABI2: 0.08 | ABJ2: 0.0825 | ABK2: 0.085 | ABL2: 0.03 | ABM2: 0.0325 | ABN2: 0.035 | ABO2: 0.0375 | ABP2: 0.04 | ABQ2: 0.0425 | ABR2: 0.045 | ABS2: 0.0475 | ABT2: 0.05 | ABU2: 0.0525 | ABV2: 0.055 | ABW2: 0.0575 | ABX2: 0.06 | ABY2: 0.0625 | ABZ2: 0.065 | ACA2: 0.0675 | ACB2: 0.07 | ACC2: 0.0725 | ACD2: 0.075 | ACE2: 0.0775 | ACF2: 0.08 | ACG2: 0.0825 | ACH2: 0.085 | ACI2: 0.03 | ACJ2: 0.0325 | ACK2: 0.035 | ACL2: 0.0375 | ACM2: 0.04 | ACN2: 0.0425 | ACO2: 0.045 | ACP2: 0.0475 | ACQ2: 0.05 | ACR2: 0.0525 | ACS2: 0.055 | ACT2: 0.0575 | ACU2: 0.06 | ACV2: 0.0625 | ACW2: 0.065 | ACX2: 0.0675 | ACY2: 0.07 | ACZ2: 0.0725 | ADA2: 0.075 | ADB2: 0.0775 | ADC2: 0.08 | ADD2: 0.0825 | ADE2: 0.085 | ADF2: 0.03 | ADG2: 0.0325 | ADH2: 0.035 | ADI2: 0.0375 | ADJ2: 0.04 | ADK2: 0.0425 | ADL2: 0.045 | ADM2: 0.0475 | ADN2: 0.05 | ADO2: 0.0525 | ADP2: 0.055 | ADQ2: 0.0575 | ADR2: 0.06 | ADS2: 0.0625 | ADT2: 0.065 | ADU2: 0.0675 | ADV2: 0.07 | ADW2: 0.0725 | ADX2: 0.075 | ADY2: 0.0775 | ADZ2: 0.08 | AEA2: 0.0825 | AEB2: 0.085 | AEC2: 0.03 | AED2: 0.0325 | AEE2: 0.035 | AEF2: 0.0375 | AEG2: 0.04 | AEH2: 0.0425 | AEI2: 0.045 | AEJ2: 0.0475 | AEK2: 0.05 | AEL2: 0.0525 | AEM2: 0.055 | AEN2: 0.0575 | AEO2: 0.06 | AEP2: 0.0625 | AEQ2: 0.065 | AER2: 0.0675 | AES2: 0.07 | AET2: 0.0725 | AEU2: 0.075 | AEV2: 0.0775 | AEW2: 0.08 | AEX2: 0.0825 | AEY2: 0.085 | AEZ2: 0.03 | AFA2: 0.0325 | AFB2: 0.035 | AFC2: 0.0375 | AFD2: 0.04 | AFE2: 0.0425 | AFF2: 0.045 | AFG2: 0.0475 | AFH2: 0.05 | AFI2: 0.0525 | AFJ2: 0.055 | AFK2: 0.0575 | AFL2: 0.06 | AFM2: 0.0625 | AFN2: 0.065 | AFO2: 0.0675 | AFP2: 0.07 | AFQ2: 0.0725 | AFR2: 0.075 | AFS2: 0.0775 | AFT2: 0.08 | AFU2: 0.0825 | AFV2: 0.085 | AFW2: 0.03 | AFX2: 0.0325 | AFY2: 0.035 | AFZ2: 0.0375 | AGA2: 0.04 | AGB2: 0.0425 | AGC2: 0.045 | AGD2: 0.0475 | AGE2: 0.05 | AGF2: 0.0525 | AGG2: 0.055 | AGH2: 0.0575 | AGI2: 0.06 | AGJ2: 0.0625 | AGK2: 0.065 | AGL2: 0.0675 | AGM2: 0.07 | AGN2: 0.0725 | AGO2: 0.075 | AGP2: 0.0775 | AGQ2: 0.08 | AGR2: 0.0825 | AGS2: 0.085 | AGT2: 0.03 | AGU2: 0.0325 | AGV2: 0.035 | AGW2: 0.0375 | AGX2: 0.04 | AGY2: 0.0425 | AGZ2: 0.045 | AHA2: 0.0475 | AHB2: 0.05 | AHC2: 0.0525 | AHD2: 0.055 | AHE2: 0.0575 | AHF2: 0.06 | AHG2: 0.0625 | AHH2: 0.065 | AHI2: 0.0675 | AHJ2: 0.07 | AHK2: 0.0725 | AHL2: 0.075 | AHM2: 0.0775 | AHN2: 0.08 | AHO2: 0.0825 | AHP2: 0.085 | AHQ2: 0.03 | AHR2: 0.0325 | AHS2: 0.035 | AHT2: 0.0375 | AHU2: 0.04 | AHV2: 0.0425 | AHW2: 0.045 | AHX2: 0.0475 | AHY2: 0.05 | AHZ2: 0.0525 | AIA2: 0.055 | AIB2: 0.0575 | AIC2: 0.06 | AID2: 0.0625 | AIE2: 0.065 | AIF2: 0.0675 | AIG2: 0.07 | AIH2: 0.0725 | AII2: 0.075 | AIJ2: 0.0775 | AIK2: 0.08 | AIL2: 0.0825 | AIM2: 0.085 | AIN2: 0.03 | AIO2: 0.0325 | AIP2: 0.035 | AIQ2: 0.0375 | AIR2: 0.04 | AIS2: 0.0425 | AIT2: 0.045 | AIU2: 0.0475 | AIV2: 0.05 | AIW2: 0.0525 | AIX2: 0.055 | AIY2: 0.0575 | AIZ2: 0.06 | AJA2: 0.0625 | AJB2: 0.065 | AJC2: 0.0675 | AJD2: 0.07 | AJE2: 0.0725 | AJF2: 0.075 | AJG2: 0.0775 | AJH2: 0.08 | AJI2: 0.0825 | AJJ2: 0.085 | AJK2: 0.03 | AJL2: 0.0325 | AJM2: 0.035 | AJN2: 0.0375 | AJO2: 0.04 | AJP2: 0.0425 | AJQ2: 0.045 | AJR2: 0.0475 | AJS2: 0.05 | AJT2: 0.0525 | AJU2: 0.055 | AJV2: 0.0575 | AJW2: 0.06 | AJX2: 0.0625 | AJY2: 0.065 | AJZ2: 0.0675 | AKA2: 0.07 | AKB2: 0.0725 | AKC2: 0.075 | AKD2: 0.0775 | AKE2: 0.08 | AKF2: 0.0825 | AKG2: 0.085 | AKH2: 0.03 | AKI2: 0.0325 | AKJ2: 0.035 | AKK2: 0.0375 | AKL2: 0.04 | AKM2: 0.0425 | AKN2: 0.045 | AKO2: 0.0475 | AKP2: 0.05 | AKQ2: 0.0525 | AKR2: 0.055 | AKS2: 0.0575 | AKT2: 0.06 | AKU2: 0.0625 | AKV2: 0.065 | AKW2: 0.0675 | AKX2: 0.07 | AKY2: 0.0725 | AKZ2: 0.075 | ALA2: 0.0775 | ALB2: 0.08 | ALC2: 0.0825 | ALD2: 0.085 | ALE2: 0.03 | ALF2: 0.0325 | ALG2: 0.035 | ALH2: 0.0375 | ALI2: 0.04 | ALJ2: 0.0425 | ALK2: 0.045 | ALL2: 0.0475 | ALM2: 0.05 | ALN2: 0.0525 | ALO2: 0.055 | ALP2: 0.0575 | ALQ2: 0.06 | ALR2: 0.0625 | ALS2: 0.065 | ALT2: 0.0675 | ALU2: 0.07 | ALV2: 0.0725 | ALW2: 0.075 | ALX2: 0.0775 | ALY2: 0.08 | ALZ2: 0.0825 | AMA2: 0.085 | AMB2: 0.03 | AMC2: 0.0325 | AMD2: 0.035 | AME2: 0.0375 | AMF2: 0.04 | AMG2: 0.0425 | AMH2: 0.045 | AMI2: 0.0475 | AMJ2: 0.05 | AMK2: 0.0525 | AML2: 0.055 | AMM2: 0.0575 | AMN2: 0.06 | AMO2: 0.0625 | AMP2: 0.065 | AMQ2: 0.0675 | AMR2: 0.07 | AMS2: 0.0725 | AMT2: 0.075 | AMU2: 0.0775 | AMV2: 0.08 | AMW2: 0.0825 | AMX2: 0.085 | AMY2: 0.03 | AMZ2: 0.0325 | ANA2: 0.035 | ANB2: 0.0375 | ANC2: 0.04 | AND2: 0.0425 | ANE2: 0.045 | ANF2: 0.0475 | ANG2: 0.05 | ANH2: 0.0525 | ANI2: 0.055 | ANJ2: 0.0575 | ANK2: 0.06 | ANL2: 0.0625 | ANM2: 0.065 | ANN2: 0.0675 | ANO2: 0.07 | ANP2: 0.0725 | ANQ2: 0.075 | ANR2: 0.0775 | ANS2: 0.08 | ANT2: 0.0825 | ANU2: 0.085 | ANV2: 0.03 | ANW2: 0.0325 | ANX2: 0.035 | ANY2: 0.0375 | ANZ2: 0.04 | AOA2: 0.0425 | AOB2: 0.045 | AOC2: 0.0475 | AOD2: 0.05 | AOE2: 0.0525 | AOF2: 0.055 | AOG2: 0.0575 | AOH2: 0.06 | AOI2: 0.0625 | AOJ2: 0.065 | AOK2: 0.0675 | AOL2: 0.07 | AOM2: 0.0725 | AON2: 0.075 | AOO2: 0.0775 | AOP2: 0.08 | AOQ2: 0.0825 | AOR2: 0.085 | AOS2: 0.03 | AOT2: 0.0325 | AOU2: 0.035 | AOV2: 0.0375 | AOW2: 0.04 | AOX2: 0.0425 | AOY2: 0.045 | AOZ2: 0.0475 | APA2: 0.05 | APB2: 0.0525 | APC2: 0.055 | APD2: 0.0575 | APE2: 0.06 | APF2: 0.0625 | APG2: 0.065 | APH2: 0.0675 | API2: 0.07 | APJ2: 0.0725 | APK2: 0.075 | APL2: 0.0775 | APM2: 0.08 | APN2: 0.0825 | APO2: 0.085 | APP2: 0.03 | APQ2: 0.0325 | APR2: 0.035 | APS2: 0.0375 | APT2: 0.04 | APU2: 0.0425 | APV2: 0.045 | APW2: 0.0475 | APX2: 0.05 | APY2: 0.0525 | APZ2: 0.055 | AQA2: 0.0575 | AQB2: 0.06 | AQC2: 0.0625 | AQD2: 0.065 | AQE2: 0.0675 | AQF2: 0.07 | AQG2: 0.0725 | AQH2: 0.075 | AQI2: 0.0775 | AQJ2: 0.08 | AQK2: 0.0825 | AQL2: 0.085 | AQM2: 0.03 | AQN2: 0.0325 | AQO2: 0.035 | AQP2: 0.0375 | AQQ2: 0.04 | AQR2: 0.0425 | AQS2: 0.045 | AQT2: 0.0475 | AQU2: 0.05 | AQV2: 0.0525 | AQW2: 0.055 | AQX2: 0.0575 | AQY2: 0.06 | AQZ2: 0.0625 | ARA2: 0.065 | ARB2: 0.0675 | ARC2: 0.07 | ARD2: 0.0725 | ARE2: 0.075 | ARF2: 0.0775 | ARG2: 0.08 | ARH2: 0.0825 | ARI2: 0.085
A3: amortizationperiod | B3: payrollgrowth | C3: helper | D3: =D1&"|"&D2 -> 1|0.03 | E3: =E1&"|"&E2 -> 1|0.0325 | F3: 1|0.035 | G3: 1|0.0375 | H3: 1|0.04 | I3: 1|0.0425 | J3: 1|0.045 | K3: 1|0.0475 | L3: 1|0.05 | M3: 1|0.0525 | N3: 1|0.055 | O3: 1|0.0575 | P3: 1|0.06 | Q3: 1|0.0625 | R3: 1|0.065 | S3: 1|0.0675 | T3: 1|0.07 | U3: 1|0.0725 | V3: 1|0.075 | W3: 1|0.0775 | X3: 1|0.08 | Y3: 1|0.0825 | Z3: 1|0.085 | AA3: 2|0.03 | AB3: 2|0.0325 | AC3: 2|0.035 | AD3: 2|0.0375 | AE3: 2|0.04 | AF3: 2|0.0425 | AG3: 2|0.045 | AH3: 2|0.0475 | AI3: 2|0.05 | AJ3: 2|0.0525 | AK3: 2|0.055 | AL3: 2|0.0575 | AM3: 2|0.06 | AN3: 2|0.0625 | AO3: 2|0.065 | AP3: 2|0.0675 | AQ3: 2|0.07 | AR3: 2|0.0725 | AS3: 2|0.075 | AT3: 2|0.0775 | AU3: 2|0.08 | AV3: 2|0.0825 | AW3: 2|0.085 | AX3: 3|0.03 | AY3: 3|0.0325 | AZ3: 3|0.035 | BA3: 3|0.0375 | BB3: 3|0.04 | BC3: 3|0.0425 | BD3: 3|0.045 | BE3: 3|0.0475 | BF3: 3|0.05 | BG3: 3|0.0525 | BH3: 3|0.055 | BI3: 3|0.0575 | BJ3: 3|0.06 | BK3: 3|0.0625 | BL3: 3|0.065 | BM3: 3|0.0675 | BN3: 3|0.07 | BO3: 3|0.0725 | BP3: 3|0.075 | BQ3: =BQ1&"|"&BQ2 -> 3|0.0775 | BR3: 3|0.08 | BS3: 3|0.0825 | BT3: 3|0.085 | BU3: 4|0.03 | BV3: 4|0.0325 | BW3: 4|0.035 | BX3: 4|0.0375 | BY3: 4|0.04 | BZ3: 4|0.0425 | CA3: 4|0.045 | CB3: 4|0.0475 | CC3: 4|0.05 | CD3: 4|0.0525 | CE3: 4|0.055 | CF3: 4|0.0575 | CG3: 4|0.06 | CH3: 4|0.0625 | CI3: 4|0.065 | CJ3: 4|0.0675 | CK3: 4|0.07 | CL3: 4|0.0725 | CM3: 4|0.075 | CN3: 4|0.0775 | CO3: 4|0.08 | CP3: 4|0.0825 | CQ3: 4|0.085 | CR3: 5|0.03 | CS3: 5|0.0325 | CT3: 5|0.035 | CU3: 5|0.0375 | CV3: 5|0.04 | CW3: 5|0.0425 | CX3: 5|0.045 | CY3: 5|0.0475 | CZ3: 5|0.05 | DA3: 5|0.0525 | DB3: 5|0.055 | DC3: 5|0.0575 | DD3: 5|0.06 | DE3: 5|0.0625 | DF3: 5|0.065 | DG3: 5|0.0675 | DH3: 5|0.07 | DI3: 5|0.0725 | DJ3: 5|0.075 | DK3: 5|0.0775 | DL3: 5|0.08 | DM3: 5|0.0825 | DN3: 5|0.085 | DO3: 6|0.03 | DP3: 6|0.0325 | DQ3: 6|0.035 | DR3: 6|0.0375 | DS3: 6|0.04 | DT3: 6|0.0425 | DU3: 6|0.045 | DV3: 6|0.0475 | DW3: 6|0.05 | DX3: 6|0.0525 | DY3: 6|0.055 | DZ3: 6|0.0575 | EA3: 6|0.06 | EB3: 6|0.0625 | EC3: =EC1&"|"&EC2 -> 6|0.065 | ED3: 6|0.0675 | EE3: 6|0.07 | EF3: 6|0.0725 | EG3: 6|0.075 | EH3: 6|0.0775 | EI3: 6|0.08 | EJ3: 6|0.0825 | EK3: 6|0.085 | EL3: 7|0.03 | EM3: 7|0.0325 | EN3: 7|0.035 | EO3: 7|0.0375 | EP3: 7|0.04 | EQ3: 7|0.0425 | ER3: 7|0.045 | ES3: 7|0.0475 | ET3: 7|0.05 | EU3: 7|0.0525 | EV3: 7|0.055 | EW3: 7|0.0575 | EX3: 7|0.06 | EY3: 7|0.0625 | EZ3: 7|0.065 | FA3: 7|0.0675 | FB3: 7|0.07 | FC3: 7|0.0725 | FD3: 7|0.075 | FE3: 7|0.0775 | FF3: 7|0.08 | FG3: 7|0.0825 | FH3: 7|0.085 | FI3: 8|0.03 | FJ3: 8|0.0325 | FK3: 8|0.035 | FL3: 8|0.0375 | FM3: 8|0.04 | FN3: 8|0.0425 | FO3: 8|0.045 | FP3: 8|0.0475 | FQ3: 8|0.05 | FR3: 8|0.0525 | FS3: 8|0.055 | FT3: 8|0.0575 | FU3: 8|0.06 | FV3: 8|0.0625 | FW3: 8|0.065 | FX3: 8|0.0675 | FY3: 8|0.07 | FZ3: 8|0.0725 | GA3: 8|0.075 | GB3: 8|0.0775 | GC3: 8|0.08 | GD3: 8|0.0825 | GE3: 8|0.085 | GF3: 9|0.03 | GG3: 9|0.0325 | GH3: 9|0.035 | GI3: 9|0.0375 | GJ3: 9|0.04 | GK3: 9|0.0425 | GL3: 9|0.045 | GM3: 9|0.0475 | GN3: 9|0.05 | GO3: =GO1&"|"&GO2 -> 9|0.0525 | GP3: 9|0.055 | GQ3: 9|0.0575 | GR3: 9|0.06 | GS3: 9|0.0625 | GT3: 9|0.065 | GU3: 9|0.0675 | GV3: 9|0.07 | GW3: 9|0.0725 | GX3: 9|0.075 | GY3: 9|0.0775 | GZ3: 9|0.08 | HA3: 9|0.0825 | HB3: 9|0.085 | HC3: 10|0.03 | HD3: 10|0.0325 | HE3: 10|0.035 | HF3: 10|0.0375 | HG3: 10|0.04 | HH3: 10|0.0425 | HI3: 10|0.045 | HJ3: 10|0.0475 | HK3: 10|0.05 | HL3: 10|0.0525 | HM3: 10|0.055 | HN3: 10|0.0575 | HO3: 10|0.06 | HP3: 10|0.0625 | HQ3: 10|0.065 | HR3: 10|0.0675 | HS3: 10|0.07 | HT3: 10|0.0725 | HU3: 10|0.075 | HV3: 10|0.0775 | HW3: 10|0.08 | HX3: 10|0.0825 | HY3: 10|0.085 | HZ3: 11|0.03 | IA3: 11|0.0325 | IB3: 11|0.035 | IC3: 11|0.0375 | ID3: 11|0.04 | IE3: 11|0.0425 | IF3: 11|0.045 | IG3: 11|0.0475 | IH3: 11|0.05 | II3: 11|0.0525 | IJ3: 11|0.055 | IK3: 11|0.0575 | IL3: 11|0.06 | IM3: 11|0.0625 | IN3: 11|0.065 | IO3: 11|0.0675 | IP3: 11|0.07 | IQ3: 11|0.0725 | IR3: 11|0.075 | IS3: 11|0.0775 | IT3: 11|0.08 | IU3: 11|0.0825 | IV3: 11|0.085 | IW3: 12|0.03 | IX3: 12|0.0325 | IY3: 12|0.035 | IZ3: 12|0.0375 | JA3: =JA1&"|"&JA2 -> 12|0.04 | JB3: 12|0.0425 | JC3: 12|0.045 | JD3: 12|0.0475 | JE3: 12|0.05 | JF3: 12|0.0525 | JG3: 12|0.055 | JH3: 12|0.0575 | JI3: 12|0.06 | JJ3: 12|0.0625 | JK3: 12|0.065 | JL3: 12|0.0675 | JM3: 12|0.07 | JN3: 12|0.0725 | JO3: 12|0.075 | JP3: 12|0.0775 | JQ3: 12|0.08 | JR3: 12|0.0825 | JS3: 12|0.085 | JT3: 13|0.03 | JU3: 13|0.0325 | JV3: 13|0.035 | JW3: 13|0.0375 | JX3: 13|0.04 | JY3: 13|0.0425 | JZ3: 13|0.045 | KA3: 13|0.0475 | KB3: 13|0.05 | KC3: 13|0.0525 | KD3: 13|0.055 | KE3: 13|0.0575 | KF3: 13|0.06 | KG3: 13|0.0625 | KH3: 13|0.065 | KI3: 13|0.0675 | KJ3: 13|0.07 | KK3: 13|0.0725 | KL3: 13|0.075 | KM3: 13|0.0775 | KN3: 13|0.08 | KO3: 13|0.0825 | KP3: 13|0.085 | KQ3: 14|0.03 | KR3: 14|0.0325 | KS3: 14|0.035 | KT3: 14|0.0375 | KU3: 14|0.04 | KV3: 14|0.0425 | KW3: 14|0.045 | KX3: 14|0.0475 | KY3: 14|0.05 | KZ3: 14|0.0525 | LA3: 14|0.055 | LB3: 14|0.0575 | LC3: 14|0.06 | LD3: 14|0.0625 | LE3: 14|0.065 | LF3: 14|0.0675 | LG3: 14|0.07 | LH3: 14|0.0725 | LI3: 14|0.075 | LJ3: 14|0.0775 | LK3: 14|0.08 | LL3: 14|0.0825 | LM3: =LM1&"|"&LM2 -> 14|0.085 | LN3: 15|0.03 | LO3: 15|0.0325 | LP3: 15|0.035 | LQ3: 15|0.0375 | LR3: 15|0.04 | LS3: 15|0.0425 | LT3: 15|0.045 | LU3: 15|0.0475 | LV3: 15|0.05 | LW3: 15|0.0525 | LX3: 15|0.055 | LY3: 15|0.0575 | LZ3: 15|0.06 | MA3: 15|0.0625 | MB3: 15|0.065 | MC3: 15|0.0675 | MD3: 15|0.07 | ME3: 15|0.0725 | MF3: 15|0.075 | MG3: 15|0.0775 | MH3: 15|0.08 | MI3: 15|0.0825 | MJ3: 15|0.085 | MK3: 16|0.03 | ML3: 16|0.0325 | MM3: 16|0.035 | MN3: 16|0.0375 | MO3: 16|0.04 | MP3: 16|0.0425 | MQ3: 16|0.045 | MR3: 16|0.0475 | MS3: 16|0.05 | MT3: 16|0.0525 | MU3: 16|0.055 | MV3: 16|0.0575 | MW3: 16|0.06 | MX3: 16|0.0625 | MY3: 16|0.065 | MZ3: 16|0.0675 | NA3: 16|0.07 | NB3: 16|0.0725 | NC3: 16|0.075 | ND3: 16|0.0775 | NE3: 16|0.08 | NF3: 16|0.0825 | NG3: 16|0.085 | NH3: 17|0.03 | NI3: 17|0.0325 | NJ3: 17|0.035 | NK3: 17|0.0375 | NL3: 17|0.04 | NM3: 17|0.0425 | NN3: 17|0.045 | NO3: 17|0.0475 | NP3: 17|0.05 | NQ3: 17|0.0525 | NR3: 17|0.055 | NS3: 17|0.0575 | NT3: 17|0.06 | NU3: 17|0.0625 | NV3: 17|0.065 | NW3: 17|0.0675 | NX3: 17|0.07 | NY3: =NY1&"|"&NY2 -> 17|0.0725 | NZ3: 17|0.075 | OA3: 17|0.0775 | OB3: 17|0.08 | OC3: 17|0.0825 | OD3: 17|0.085 | OE3: 18|0.03 | OF3: 18|0.0325 | OG3: 18|0.035 | OH3: 18|0.0375 | OI3: 18|0.04 | OJ3: 18|0.0425 | OK3: 18|0.045 | OL3: 18|0.0475 | OM3: 18|0.05 | ON3: 18|0.0525 | OO3: 18|0.055 | OP3: 18|0.0575 | OQ3: 18|0.06 | OR3: 18|0.0625 | OS3: 18|0.065 | OT3: 18|0.0675 | OU3: 18|0.07 | OV3: 18|0.0725 | OW3: 18|0.075 | OX3: 18|0.0775 | OY3: 18|0.08 | OZ3: 18|0.0825 | PA3: 18|0.085 | PB3: 19|0.03 | PC3: 19|0.0325 | PD3: 19|0.035 | PE3: 19|0.0375 | PF3: 19|0.04 | PG3: 19|0.0425 | PH3: 19|0.045 | PI3: 19|0.0475 | PJ3: 19|0.05 | PK3: 19|0.0525 | PL3: 19|0.055 | PM3: 19|0.0575 | PN3: 19|0.06 | PO3: 19|0.0625 | PP3: 19|0.065 | PQ3: 19|0.0675 | PR3: 19|0.07 | PS3: 19|0.0725 | PT3: 19|0.075 | PU3: 19|0.0775 | PV3: 19|0.08 | PW3: 19|0.0825 | PX3: 19|0.085 | PY3: 20|0.03 | PZ3: 20|0.0325 | QA3: 20|0.035 | QB3: 20|0.0375 | QC3: 20|0.04 | QD3: 20|0.0425 | QE3: 20|0.045 | QF3: 20|0.0475 | QG3: 20|0.05 | QH3: 20|0.0525 | QI3: 20|0.055 | QJ3: 20|0.0575 | QK3: =QK1&"|"&QK2 -> 20|0.06 | QL3: 20|0.0625 | QM3: 20|0.065 | QN3: 20|0.0675 | QO3: 20|0.07 | QP3: 20|0.0725 | QQ3: 20|0.075 | QR3: 20|0.0775 | QS3: 20|0.08 | QT3: 20|0.0825 | QU3: 20|0.085 | QV3: 21|0.03 | QW3: 21|0.0325 | QX3: 21|0.035 | QY3: 21|0.0375 | QZ3: 21|0.04 | RA3: 21|0.0425 | RB3: 21|0.045 | RC3: 21|0.0475 | RD3: 21|0.05 | RE3: 21|0.0525 | RF3: 21|0.055 | RG3: 21|0.0575 | RH3: 21|0.06 | RI3: 21|0.0625 | RJ3: 21|0.065 | RK3: 21|0.0675 | RL3: 21|0.07 | RM3: 21|0.0725 | RN3: 21|0.075 | RO3: 21|0.0775 | RP3: 21|0.08 | RQ3: 21|0.0825 | RR3: 21|0.085 | RS3: 22|0.03 | RT3: 22|0.0325 | RU3: 22|0.035 | RV3: 22|0.0375 | RW3: 22|0.04 | RX3: 22|0.0425 | RY3: 22|0.045 | RZ3: 22|0.0475 | SA3: 22|0.05 | SB3: 22|0.0525 | SC3: 22|0.055 | SD3: 22|0.0575 | SE3: 22|0.06 | SF3: 22|0.0625 | SG3: 22|0.065 | SH3: 22|0.0675 | SI3: 22|0.07 | SJ3: 22|0.0725 | SK3: 22|0.075 | SL3: 22|0.0775 | SM3: 22|0.08 | SN3: 22|0.0825 | SO3: 22|0.085 | SP3: 23|0.03 | SQ3: 23|0.0325 | SR3: 23|0.035 | SS3: 23|0.0375 | ST3: 23|0.04 | SU3: 23|0.0425 | SV3: 23|0.045 | SW3: =SW1&"|"&SW2 -> 23|0.0475 | SX3: 23|0.05 | SY3: 23|0.0525 | SZ3: 23|0.055 | TA3: 23|0.0575 | TB3: 23|0.06 | TC3: 23|0.0625 | TD3: 23|0.065 | TE3: 23|0.0675 | TF3: 23|0.07 | TG3: 23|0.0725 | TH3: 23|0.075 | TI3: 23|0.0775 | TJ3: 23|0.08 | TK3: 23|0.0825 | TL3: 23|0.085 | TM3: 24|0.03 | TN3: 24|0.0325 | TO3: 24|0.035 | TP3: 24|0.0375 | TQ3: 24|0.04 | TR3: 24|0.0425 | TS3: 24|0.045 | TT3: 24|0.0475 | TU3: 24|0.05 | TV3: 24|0.0525 | TW3: 24|0.055 | TX3: 24|0.0575 | TY3: 24|0.06 | TZ3: 24|0.0625 | UA3: 24|0.065 | UB3: 24|0.0675 | UC3: 24|0.07 | UD3: 24|0.0725 | UE3: 24|0.075 | UF3: 24|0.0775 | UG3: 24|0.08 | UH3: 24|0.0825 | UI3: 24|0.085 | UJ3: 25|0.03 | UK3: 25|0.0325 | UL3: 25|0.035 | UM3: 25|0.0375 | UN3: 25|0.04 | UO3: 25|0.0425 | UP3: 25|0.045 | UQ3: 25|0.0475 | UR3: 25|0.05 | US3: 25|0.0525 | UT3: 25|0.055 | UU3: 25|0.0575 | UV3: 25|0.06 | UW3: 25|0.0625 | UX3: 25|0.065 | UY3: 25|0.0675 | UZ3: 25|0.07 | VA3: 25|0.0725 | VB3: 25|0.075 | VC3: 25|0.0775 | VD3: 25|0.08 | VE3: 25|0.0825 | VF3: 25|0.085 | VG3: 26|0.03 | VH3: 26|0.0325 | VI3: =VI1&"|"&VI2 -> 26|0.035 | VJ3: 26|0.0375 | VK3: 26|0.04 | VL3: 26|0.0425 | VM3: 26|0.045 | VN3: 26|0.0475 | VO3: 26|0.05 | VP3: 26|0.0525 | VQ3: 26|0.055 | VR3: 26|0.0575 | VS3: 26|0.06 | VT3: 26|0.0625 | VU3: 26|0.065 | VV3: 26|0.0675 | VW3: 26|0.07 | VX3: 26|0.0725 | VY3: 26|0.075 | VZ3: 26|0.0775 | WA3: 26|0.08 | WB3: 26|0.0825 | WC3: 26|0.085 | WD3: 27|0.03 | WE3: 27|0.0325 | WF3: 27|0.035 | WG3: 27|0.0375 | WH3: 27|0.04 | WI3: 27|0.0425 | WJ3: 27|0.045 | WK3: 27|0.0475 | WL3: 27|0.05 | WM3: 27|0.0525 | WN3: 27|0.055 | WO3: 27|0.0575 | WP3: 27|0.06 | WQ3: 27|0.0625 | WR3: 27|0.065 | WS3: 27|0.0675 | WT3: 27|0.07 | WU3: 27|0.0725 | WV3: 27|0.075 | WW3: 27|0.0775 | WX3: 27|0.08 | WY3: 27|0.0825 | WZ3: 27|0.085 | XA3: 28|0.03 | XB3: 28|0.0325 | XC3: 28|0.035 | XD3: 28|0.0375 | XE3: 28|0.04 | XF3: 28|0.0425 | XG3: 28|0.045 | XH3: 28|0.0475 | XI3: 28|0.05 | XJ3: 28|0.0525 | XK3: 28|0.055 | XL3: 28|0.0575 | XM3: 28|0.06 | XN3: 28|0.0625 | XO3: 28|0.065 | XP3: 28|0.0675 | XQ3: 28|0.07 | XR3: 28|0.0725 | XS3: 28|0.075 | XT3: 28|0.0775 | XU3: =XU1&"|"&XU2 -> 28|0.08 | XV3: 28|0.0825 | XW3: 28|0.085 | XX3: 29|0.03 | XY3: 29|0.0325 | XZ3: 29|0.035 | YA3: 29|0.0375 | YB3: 29|0.04 | YC3: 29|0.0425 | YD3: 29|0.045 | YE3: 29|0.0475 | YF3: 29|0.05 | YG3: 29|0.0525 | YH3: 29|0.055 | YI3: 29|0.0575 | YJ3: 29|0.06 | YK3: 29|0.0625 | YL3: 29|0.065 | YM3: 29|0.0675 | YN3: 29|0.07 | YO3: 29|0.0725 | YP3: 29|0.075 | YQ3: 29|0.0775 | YR3: 29|0.08 | YS3: 29|0.0825 | YT3: 29|0.085 | YU3: 30|0.03 | YV3: 30|0.0325 | YW3: 30|0.035 | YX3: 30|0.0375 | YY3: 30|0.04 | YZ3: 30|0.0425 | ZA3: 30|0.045 | ZB3: 30|0.0475 | ZC3: 30|0.05 | ZD3: 30|0.0525 | ZE3: 30|0.055 | ZF3: 30|0.0575 | ZG3: 30|0.06 | ZH3: 30|0.0625 | ZI3: 30|0.065 | ZJ3: 30|0.0675 | ZK3: 30|0.07 | ZL3: 30|0.0725 | ZM3: 30|0.075 | ZN3: 30|0.0775 | ZO3: 30|0.08 | ZP3: 30|0.0825 | ZQ3: 30|0.085 | ZR3: 31|0.03 | ZS3: 31|0.0325 | ZT3: 31|0.035 | ZU3: 31|0.0375 | ZV3: 31|0.04 | ZW3: 31|0.0425 | ZX3: 31|0.045 | ZY3: 31|0.0475 | ZZ3: 31|0.05 | AAA3: 31|0.0525 | AAB3: 31|0.055 | AAC3: 31|0.0575 | AAD3: 31|0.06 | AAE3: 31|0.0625 | AAF3: 31|0.065 | AAG3: =AAG1&"|"&AAG2 -> 31|0.0675 | AAH3: 31|0.07 | AAI3: 31|0.0725 | AAJ3: 31|0.075 | AAK3: 31|0.0775 | AAL3: 31|0.08 | AAM3: 31|0.0825 | AAN3: 31|0.085 | AAO3: 32|0.03 | AAP3: 32|0.0325 | AAQ3: 32|0.035 | AAR3: 32|0.0375 | AAS3: 32|0.04 | AAT3: 32|0.0425 | AAU3: 32|0.045 | AAV3: 32|0.0475 | AAW3: 32|0.05 | AAX3: 32|0.0525 | AAY3: 32|0.055 | AAZ3: 32|0.0575 | ABA3: 32|0.06 | ABB3: 32|0.0625 | ABC3: 32|0.065 | ABD3: 32|0.0675 | ABE3: 32|0.07 | ABF3: 32|0.0725 | ABG3: 32|0.075 | ABH3: 32|0.0775 | ABI3: 32|0.08 | ABJ3: 32|0.0825 | ABK3: 32|0.085 | ABL3: 33|0.03 | ABM3: 33|0.0325 | ABN3: 33|0.035 | ABO3: 33|0.0375 | ABP3: 33|0.04 | ABQ3: 33|0.0425 | ABR3: 33|0.045 | ABS3: 33|0.0475 | ABT3: 33|0.05 | ABU3: 33|0.0525 | ABV3: 33|0.055 | ABW3: 33|0.0575 | ABX3: 33|0.06 | ABY3: 33|0.0625 | ABZ3: 33|0.065 | ACA3: 33|0.0675 | ACB3: 33|0.07 | ACC3: 33|0.0725 | ACD3: 33|0.075 | ACE3: 33|0.0775 | ACF3: 33|0.08 | ACG3: 33|0.0825 | ACH3: 33|0.085 | ACI3: 34|0.03 | ACJ3: 34|0.0325 | ACK3: 34|0.035 | ACL3: 34|0.0375 | ACM3: 34|0.04 | ACN3: 34|0.0425 | ACO3: 34|0.045 | ACP3: 34|0.0475 | ACQ3: 34|0.05 | ACR3: 34|0.0525 | ACS3: =ACS1&"|"&ACS2 -> 34|0.055 | ACT3: 34|0.0575 | ACU3: 34|0.06 | ACV3: 34|0.0625 | ACW3: 34|0.065 | ACX3: 34|0.0675 | ACY3: 34|0.07 | ACZ3: 34|0.0725 | ADA3: 34|0.075 | ADB3: 34|0.0775 | ADC3: 34|0.08 | ADD3: 34|0.0825 | ADE3: 34|0.085 | ADF3: 35|0.03 | ADG3: 35|0.0325 | ADH3: 35|0.035 | ADI3: 35|0.0375 | ADJ3: 35|0.04 | ADK3: 35|0.0425 | ADL3: 35|0.045 | ADM3: 35|0.0475 | ADN3: 35|0.05 | ADO3: 35|0.0525 | ADP3: 35|0.055 | ADQ3: 35|0.0575 | ADR3: 35|0.06 | ADS3: 35|0.0625 | ADT3: 35|0.065 | ADU3: 35|0.0675 | ADV3: 35|0.07 | ADW3: 35|0.0725 | ADX3: 35|0.075 | ADY3: 35|0.0775 | ADZ3: 35|0.08 | AEA3: 35|0.0825 | AEB3: 35|0.085 | AEC3: 36|0.03 | AED3: 36|0.0325 | AEE3: 36|0.035 | AEF3: 36|0.0375 | AEG3: 36|0.04 | AEH3: 36|0.0425 | AEI3: 36|0.045 | AEJ3: 36|0.0475 | AEK3: 36|0.05 | AEL3: 36|0.0525 | AEM3: 36|0.055 | AEN3: 36|0.0575 | AEO3: 36|0.06 | AEP3: 36|0.0625 | AEQ3: 36|0.065 | AER3: 36|0.0675 | AES3: 36|0.07 | AET3: 36|0.0725 | AEU3: 36|0.075 | AEV3: 36|0.0775 | AEW3: 36|0.08 | AEX3: 36|0.0825 | AEY3: 36|0.085 | AEZ3: 37|0.03 | AFA3: 37|0.0325 | AFB3: 37|0.035 | AFC3: 37|0.0375 | AFD3: 37|0.04 | AFE3: =AFE1&"|"&AFE2 -> 37|0.0425 | AFF3: 37|0.045 | AFG3: 37|0.0475 | AFH3: 37|0.05 | AFI3: 37|0.0525 | AFJ3: 37|0.055 | AFK3: 37|0.0575 | AFL3: 37|0.06 | AFM3: 37|0.0625 | AFN3: 37|0.065 | AFO3: 37|0.0675 | AFP3: 37|0.07 | AFQ3: 37|0.0725 | AFR3: 37|0.075 | AFS3: 37|0.0775 | AFT3: 37|0.08 | AFU3: 37|0.0825 | AFV3: 37|0.085 | AFW3: 38|0.03 | AFX3: 38|0.0325 | AFY3: 38|0.035 | AFZ3: 38|0.0375 | AGA3: 38|0.04 | AGB3: 38|0.0425 | AGC3: 38|0.045 | AGD3: 38|0.0475 | AGE3: 38|0.05 | AGF3: 38|0.0525 | AGG3: 38|0.055 | AGH3: 38|0.0575 | AGI3: 38|0.06 | AGJ3: 38|0.0625 | AGK3: 38|0.065 | AGL3: 38|0.0675 | AGM3: 38|0.07 | AGN3: 38|0.0725 | AGO3: 38|0.075 | AGP3: 38|0.0775 | AGQ3: 38|0.08 | AGR3: 38|0.0825 | AGS3: 38|0.085 | AGT3: 39|0.03 | AGU3: 39|0.0325 | AGV3: 39|0.035 | AGW3: 39|0.0375 | AGX3: 39|0.04 | AGY3: 39|0.0425 | AGZ3: 39|0.045 | AHA3: 39|0.0475 | AHB3: 39|0.05 | AHC3: 39|0.0525 | AHD3: 39|0.055 | AHE3: 39|0.0575 | AHF3: 39|0.06 | AHG3: 39|0.0625 | AHH3: 39|0.065 | AHI3: 39|0.0675 | AHJ3: 39|0.07 | AHK3: 39|0.0725 | AHL3: 39|0.075 | AHM3: 39|0.0775 | AHN3: 39|0.08 | AHO3: 39|0.0825 | AHP3: 39|0.085 | AHQ3: =AHQ1&"|"&AHQ2 -> 40|0.03 | AHR3: 40|0.0325 | AHS3: 40|0.035 | AHT3: 40|0.0375 | AHU3: 40|0.04 | AHV3: 40|0.0425 | AHW3: 40|0.045 | AHX3: 40|0.0475 | AHY3: 40|0.05 | AHZ3: 40|0.0525 | AIA3: 40|0.055 | AIB3: 40|0.0575 | AIC3: 40|0.06 | AID3: 40|0.0625 | AIE3: 40|0.065 | AIF3: 40|0.0675 | AIG3: 40|0.07 | AIH3: 40|0.0725 | AII3: 40|0.075 | AIJ3: 40|0.0775 | AIK3: 40|0.08 | AIL3: 40|0.0825 | AIM3: 40|0.085 | AIN3: 41|0.03 | AIO3: 41|0.0325 | AIP3: 41|0.035 | AIQ3: 41|0.0375 | AIR3: 41|0.04 | AIS3: 41|0.0425 | AIT3: 41|0.045 | AIU3: 41|0.0475 | AIV3: 41|0.05 | AIW3: 41|0.0525 | AIX3: 41|0.055 | AIY3: 41|0.0575 | AIZ3: 41|0.06 | AJA3: 41|0.0625 | AJB3: 41|0.065 | AJC3: 41|0.0675 | AJD3: 41|0.07 | AJE3: 41|0.0725 | AJF3: 41|0.075 | AJG3: 41|0.0775 | AJH3: 41|0.08 | AJI3: 41|0.0825 | AJJ3: 41|0.085 | AJK3: 42|0.03 | AJL3: 42|0.0325 | AJM3: 42|0.035 | AJN3: 42|0.0375 | AJO3: 42|0.04 | AJP3: 42|0.0425 | AJQ3: 42|0.045 | AJR3: 42|0.0475 | AJS3: 42|0.05 | AJT3: 42|0.0525 | AJU3: 42|0.055 | AJV3: 42|0.0575 | AJW3: 42|0.06 | AJX3: 42|0.0625 | AJY3: 42|0.065 | AJZ3: 42|0.0675 | AKA3: 42|0.07 | AKB3: 42|0.0725 | AKC3: =AKC1&"|"&AKC2 -> 42|0.075 | AKD3: 42|0.0775 | AKE3: 42|0.08 | AKF3: 42|0.0825 | AKG3: 42|0.085 | AKH3: 43|0.03 | AKI3: 43|0.0325 | AKJ3: 43|0.035 | AKK3: 43|0.0375 | AKL3: 43|0.04 | AKM3: 43|0.0425 | AKN3: 43|0.045 | AKO3: 43|0.0475 | AKP3: 43|0.05 | AKQ3: 43|0.0525 | AKR3: 43|0.055 | AKS3: 43|0.0575 | AKT3: 43|0.06 | AKU3: 43|0.0625 | AKV3: 43|0.065 | AKW3: 43|0.0675 | AKX3: 43|0.07 | AKY3: 43|0.0725 | AKZ3: 43|0.075 | ALA3: 43|0.0775 | ALB3: 43|0.08 | ALC3: 43|0.0825 | ALD3: 43|0.085 | ALE3: 44|0.03 | ALF3: 44|0.0325 | ALG3: 44|0.035 | ALH3: 44|0.0375 | ALI3: 44|0.04 | ALJ3: 44|0.0425 | ALK3: 44|0.045 | ALL3: 44|0.0475 | ALM3: 44|0.05 | ALN3: 44|0.0525 | ALO3: 44|0.055 | ALP3: 44|0.0575 | ALQ3: 44|0.06 | ALR3: 44|0.0625 | ALS3: 44|0.065 | ALT3: 44|0.0675 | ALU3: 44|0.07 | ALV3: 44|0.0725 | ALW3: 44|0.075 | ALX3: 44|0.0775 | ALY3: 44|0.08 | ALZ3: 44|0.0825 | AMA3: 44|0.085 | AMB3: 45|0.03 | AMC3: 45|0.0325 | AMD3: 45|0.035 | AME3: 45|0.0375 | AMF3: 45|0.04 | AMG3: 45|0.0425 | AMH3: 45|0.045 | AMI3: 45|0.0475 | AMJ3: 45|0.05 | AMK3: 45|0.0525 | AML3: 45|0.055 | AMM3: 45|0.0575 | AMN3: 45|0.06 | AMO3: =AMO1&"|"&AMO2 -> 45|0.0625 | AMP3: 45|0.065 | AMQ3: 45|0.0675 | AMR3: 45|0.07 | AMS3: 45|0.0725 | AMT3: 45|0.075 | AMU3: 45|0.0775 | AMV3: 45|0.08 | AMW3: 45|0.0825 | AMX3: 45|0.085 | AMY3: 46|0.03 | AMZ3: 46|0.0325 | ANA3: 46|0.035 | ANB3: 46|0.0375 | ANC3: 46|0.04 | AND3: 46|0.0425 | ANE3: 46|0.045 | ANF3: 46|0.0475 | ANG3: 46|0.05 | ANH3: 46|0.0525 | ANI3: 46|0.055 | ANJ3: 46|0.0575 | ANK3: 46|0.06 | ANL3: 46|0.0625 | ANM3: 46|0.065 | ANN3: 46|0.0675 | ANO3: 46|0.07 | ANP3: 46|0.0725 | ANQ3: 46|0.075 | ANR3: 46|0.0775 | ANS3: 46|0.08 | ANT3: 46|0.0825 | ANU3: 46|0.085 | ANV3: 47|0.03 | ANW3: 47|0.0325 | ANX3: 47|0.035 | ANY3: 47|0.0375 | ANZ3: 47|0.04 | AOA3: 47|0.0425 | AOB3: 47|0.045 | AOC3: 47|0.0475 | AOD3: 47|0.05 | AOE3: 47|0.0525 | AOF3: 47|0.055 | AOG3: 47|0.0575 | AOH3: 47|0.06 | AOI3: 47|0.0625 | AOJ3: 47|0.065 | AOK3: 47|0.0675 | AOL3: 47|0.07 | AOM3: 47|0.0725 | AON3: 47|0.075 | AOO3: 47|0.0775 | AOP3: 47|0.08 | AOQ3: 47|0.0825 | AOR3: 47|0.085 | AOS3: 48|0.03 | AOT3: 48|0.0325 | AOU3: 48|0.035 | AOV3: 48|0.0375 | AOW3: 48|0.04 | AOX3: 48|0.0425 | AOY3: 48|0.045 | AOZ3: 48|0.0475 | APA3: =APA1&"|"&APA2 -> 48|0.05 | APB3: 48|0.0525 | APC3: 48|0.055 | APD3: 48|0.0575 | APE3: 48|0.06 | APF3: 48|0.0625 | APG3: 48|0.065 | APH3: 48|0.0675 | API3: 48|0.07 | APJ3: 48|0.0725 | APK3: 48|0.075 | APL3: 48|0.0775 | APM3: 48|0.08 | APN3: 48|0.0825 | APO3: 48|0.085 | APP3: 49|0.03 | APQ3: 49|0.0325 | APR3: 49|0.035 | APS3: 49|0.0375 | APT3: 49|0.04 | APU3: 49|0.0425 | APV3: 49|0.045 | APW3: 49|0.0475 | APX3: 49|0.05 | APY3: 49|0.0525 | APZ3: 49|0.055 | AQA3: 49|0.0575 | AQB3: 49|0.06 | AQC3: 49|0.0625 | AQD3: 49|0.065 | AQE3: 49|0.0675 | AQF3: 49|0.07 | AQG3: 49|0.0725 | AQH3: 49|0.075 | AQI3: 49|0.0775 | AQJ3: 49|0.08 | AQK3: 49|0.0825 | AQL3: 49|0.085 | AQM3: 50|0.03 | AQN3: 50|0.0325 | AQO3: 50|0.035 | AQP3: 50|0.0375 | AQQ3: 50|0.04 | AQR3: 50|0.0425 | AQS3: 50|0.045 | AQT3: 50|0.0475 | AQU3: 50|0.05 | AQV3: 50|0.0525 | AQW3: 50|0.055 | AQX3: 50|0.0575 | AQY3: 50|0.06 | AQZ3: 50|0.0625 | ARA3: 50|0.065 | ARB3: 50|0.0675 | ARC3: 50|0.07 | ARD3: 50|0.0725 | ARE3: 50|0.075 | ARF3: 50|0.0775 | ARG3: 50|0.08 | ARH3: 50|0.0825 | ARI3: 50|0.085
A4: 15 | B4: 0 | C4: =A4&"|"&B4 -> 15|0 | D4: =RawData!C3 -> 913686.38 | E4: =RawData!D3 -> 884930 | F4: =RawData!E3 -> 856336.13 | G4: =RawData!F3 -> 827898.38 | H4: =RawData!G3 -> 799610.38 | I4: =RawData!H3 -> 771466.88 | J4: =RawData!I3 -> 743462.81 | K4: =RawData!J3 -> 715593.69 | L4: =RawData!K3 -> 687855.44 | M4: =RawData!L3 -> 660244.06 | N4: =RawData!M3 -> 632756.44 | O4: =RawData!N3 -> 605389.63 | P4: =RawData!O3 -> 578140.88 | Q4: =RawData!P3 -> 551007.63 | R4: =RawData!Q3 -> 523988 | S4: =RawData!R3 -> 497079.97 | T4: =RawData!S3 -> 470282.06 | U4: =RawData!T3 -> 443592.94 | V4: =RawData!U3 -> 417011.06 | W4: =RawData!V3 -> 390535.75 | X4: =RawData!W3 -> 364165.94 | Y4: =RawData!X3 -> 337900.94 | Z4: =RawData!Y3 -> 311740.19 | AA4: =RawData!Z3 -> 875716.63 | AB4: =RawData!AA3 -> 851110.31 | AC4: =RawData!AB3 -> 826606.44 | AD4: =RawData!AC3 -> 802202.25 | AE4: =RawData!AD3 -> 777894.25 | AF4: =RawData!AE3 -> 753680 | AG4: =RawData!AF3 -> 729557.19 | AH4: =RawData!AG3 -> 705523.88 | AI4: =RawData!AH3 -> 681578.44 | AJ4: =RawData!AI3 -> 657719.19 | AK4: =RawData!AJ3 -> 633945 | AL4: =RawData!AK3 -> 610255 | AM4: =RawData!AL3 -> 586648.5 | AN4: =RawData!AM3 -> 563124.56 | AO4: =RawData!AN3 -> 539683.25 | AP4: =RawData!AO3 -> 516323.72 | AQ4: =RawData!AP3 -> 493046.25 | AR4: =RawData!AQ3 -> 469850.94 | AS4: =RawData!AR3 -> 446737.38 | AT4: =RawData!AS3 -> 423706.22 | AU4: =RawData!AT3 -> 400757.69 | AV4: =RawData!AU3 -> 377892.03 | AW4: =RawData!AV3 -> 355109.88 | AX4: =RawData!AW3 -> 780668.5 | AY4: =RawData!AX3 -> 753064.75 | AZ4: =RawData!AY3 -> 725620.56 | BA4: =RawData!AZ3 -> 698329.31 | BB4: =RawData!BA3 -> 671184.25 | BC4: =RawData!BB3 -> 644179.56 | BD4: =RawData!BC3 -> 617309.75 | BE4: =RawData!BD3 -> 590570.06 | BF4: =RawData!BE3 -> 563955.94 | BG4: =RawData!BF3 -> 537463.13 | BH4: =RawData!BG3 -> 511088.09 | BI4: =RawData!BH3 -> 484827.34 | BJ4: =RawData!BI3 -> 458677.97 | BK4: =RawData!BJ3 -> 432637 | BL4: =RawData!BK3 -> 406702.22 | BM4: =RawData!BL3 -> 380871.16 | BN4: =RawData!BM3 -> 355142.28 | BO4: =RawData!BN3 -> 329513.66 | BP4: =RawData!BO3 -> 303983.47 | BQ4: =RawData!BP3 -> 278550.94 | BR4: =RawData!BQ3 -> 253214.56 | BS4: =RawData!BR3 -> 227973.33 | BT4: =RawData!BS3 -> 202826.56 | BU4: =RawData!BT3 -> 3248935.5 | BV4: =RawData!BU3 -> 3120723.8 | BW4: =RawData!BV3 -> 2994838.5 | BX4: =RawData!BW3 -> 2871168 | BY4: =RawData!BX3 -> 2749605 | BZ4: =RawData!BY3 -> 2630050.3 | CA4: =RawData!BZ3 -> 2512408.3 | CB4: =RawData!CA3 -> 2396590.3 | CC4: =RawData!CB3 -> 2282512 | CD4: =RawData!CC3 -> 2170093.3 | CE4: =RawData!CD3 -> 2059259.8 | CF4: =RawData!CE3 -> 1949940.8 | CG4: =RawData!CF3 -> 1842069.4 | CH4: =RawData!CG3 -> 1735582.5 | CI4: =RawData!CH3 -> 1630421.3 | CJ4: =RawData!CI3 -> 1526529.4 | CK4: =RawData!CJ3 -> 1423855 | CL4: =RawData!CK3 -> 1322347.9 | CM4: =RawData!CL3 -> 1221960.8 | CN4: =RawData!CM3 -> 1122650.6 | CO4: =RawData!CN3 -> 1024375.3 | CP4: =RawData!CO3 -> 927095.63 | CQ4: =RawData!CP3 -> 830775.13 | CR4: =RawData!CQ3 -> 25713344 | CS4: =RawData!CR3 -> 24740868 | CT4: =RawData!CS3 -> 23782626 | CU4: =RawData!CT3 -> 22837940 | CV4: =RawData!CU3 -> 21906160 | CW4: =RawData!CV3 -> 20986692 | CX4: =RawData!CW3 -> 20078966 | CY4: =RawData!CX3 -> 19182452 | CZ4: =RawData!CY3 -> 18296646 | DA4: =RawData!CZ3 -> 17421076 | DB4: =RawData!DA3 -> 16555298 | DC4: =RawData!DB3 -> 15698896 | DD4: =RawData!DC3 -> 14851480 | DE4: =RawData!DD3 -> 14012680 | DF4: =RawData!DE3 -> 13182154 | DG4: =RawData!DF3 -> 12359570 | DH4: =RawData!DG3 -> 11544634 | DI4: =RawData!DH3 -> 10737054 | DJ4: =RawData!DI3 -> 9936558 | DK4: =RawData!DJ3 -> 9142903 | DL4: =RawData!DK3 -> 8355844 | DM4: =RawData!DL3 -> 7575164 | DN4: =RawData!DM3 -> 6800654.5 | DO4: =RawData!DN3 -> 1922035.5 | DP4: =RawData!DO3 -> 1867907.1 | DQ4: =RawData!DP3 -> 1813889.8 | DR4: =RawData!DQ3 -> 1759982.5 | DS4: =RawData!DR3 -> 1706183.4 | DT4: =RawData!DS3 -> 1652492 | DU4: =RawData!DT3 -> 1598908.3 | DV4: =RawData!DU3 -> 1545432.6 | DW4: =RawData!DV3 -> 1492065.8 | DX4: =RawData!DW3 -> 1438808 | DY4: =RawData!DX3 -> 1385661.6 | DZ4: =RawData!DY3 -> 1332628 | EA4: =RawData!DZ3 -> 1279709 | EB4: =RawData!EA3 -> 1226907.1 | EC4: =RawData!EB3 -> 1174224.8 | ED4: =RawData!EC3 -> 1121663.8 | EE4: =RawData!ED3 -> 1069228.1 | EF4: =RawData!EE3 -> 1016920.3 | EG4: =RawData!EF3 -> 964742.5 | EH4: =RawData!EG3 -> 912699.06 | EI4: =RawData!EH3 -> 860792.5 | EJ4: =RawData!EI3 -> 809026.25 | EK4: =RawData!EJ3 -> 757403.75 | EL4: =RawData!EK3 -> 6361845 | EM4: =RawData!EL3 -> 6191899 | EN4: =RawData!EM3 -> 6023901 | EO4: =RawData!EN3 -> 5857770 | EP4: =RawData!EO3 -> 5693427 | EQ4: =RawData!EP3 -> 5530802 | ER4: =RawData!EQ3 -> 5369827 | ES4: =RawData!ER3 -> 5210438 | ET4: =RawData!ES3 -> 5052578 | EU4: =RawData!ET3 -> 4896190.5 | EV4: =RawData!EU3 -> 4741225 | EW4: =RawData!EV3 -> 4587634.5 | EX4: =RawData!EW3 -> 4435375 | EY4: =RawData!EX3 -> 4284404 | EZ4: =RawData!EY3 -> 4134684.5 | FA4: =RawData!EZ3 -> 3986179 | FB4: =RawData!FA3 -> 3838856.3 | FC4: =RawData!FB3 -> 3692686 | FD4: =RawData!FC3 -> 3547636.8 | FE4: =RawData!FD3 -> 3403684.5 | FF4: =RawData!FE3 -> 3260803.5 | FG4: =RawData!FF3 -> 3118971 | FH4: =RawData!FG3 -> 2978165.5 | FI4: =RawData!FH3 -> 914219.25 | FJ4: =RawData!FI3 -> 870423.63 | FK4: =RawData!FJ3 -> 827275.88 | FL4: =RawData!FK3 -> 784743.94 | FM4: =RawData!FL3 -> 742797.25 | FN4: =RawData!FM3 -> 701407.31 | FO4: =RawData!FN3 -> 660547.19 | FP4: =RawData!FO3 -> 620191.38 | FQ4: =RawData!FP3 -> 580316.19 | FR4: =RawData!FQ3 -> 540898.88 | FS4: =RawData!FR3 -> 501918.28 | FT4: =RawData!FS3 -> 463354.78 | FU4: =RawData!FT3 -> 425189.31 | FV4: =RawData!FU3 -> 387404.28 | FW4: =RawData!FV3 -> 349983.28 | FX4: =RawData!FW3 -> 312910.44 | FY4: =RawData!FX3 -> 276171.47 | FZ4: =RawData!FY3 -> 239752.55 | GA4: =RawData!FZ3 -> 203640.31 | GB4: =RawData!GA3 -> 167823.19 | GC4: =RawData!GB3 -> 146278.61 | GD4: =RawData!GC3 -> 138318.16 | GE4: =RawData!GD3 -> 131393.13 | GF4: =RawData!GE3 -> 2786985 | GG4: =RawData!GF3 -> 2668406.8 | GH4: =RawData!GG3 -> 2550601 | GI4: =RawData!GH3 -> 2433531 | GJ4: =RawData!GI3 -> 2317161.3 | GK4: =RawData!GJ3 -> 2201461 | GL4: =RawData!GK3 -> 2086399.3 | GM4: =RawData!GL3 -> 1971950.1 | GN4: =RawData!GM3 -> 1858087.6 | GO4: =RawData!GN3 -> 1744788.5 | GP4: =RawData!GO3 -> 1632032 | GQ4: =RawData!GP3 -> 1519798.3 | GR4: =RawData!GQ3 -> 1408069.8 | GS4: =RawData!GR3 -> 1296829.5 | GT4: =RawData!GS3 -> 1186062.8 | GU4: =RawData!GT3 -> 1075755.9 | GV4: =RawData!GU3 -> 965896.94 | GW4: =RawData!GV3 -> 856474.19 | GX4: =RawData!GW3 -> 747476.56 | GY4: =RawData!GX3 -> 638896.69 | GZ4: =RawData!GY3 -> 530725.19 | HA4: =RawData!GZ3 -> 422954.5 | HB4: =RawData!HA3 -> 315578.56 | HC4: =RawData!HB3 -> 2473318.8 | HD4: =RawData!HC3 -> 2377298.8 | HE4: =RawData!HD3 -> 2282078.8 | HF4: =RawData!HE3 -> 2187622 | HG4: =RawData!HF3 -> 2093892.1 | HH4: =RawData!HG3 -> 2000857.5 | HI4: =RawData!HH3 -> 1908487.3 | HJ4: =RawData!HI3 -> 1816753 | HK4: =RawData!HJ3 -> 1725629.1 | HL4: =RawData!HK3 -> 1635090.5 | HM4: =RawData!HL3 -> 1545115 | HN4: =RawData!HM3 -> 1455681.8 | HO4: =RawData!HN3 -> 1366771.3 | HP4: =RawData!HO3 -> 1278365.4 | HQ4: =RawData!HP3 -> 1190448.1 | HR4: =RawData!HQ3 -> 1103003.5 | HS4: =RawData!HR3 -> 1016018 | HT4: =RawData!HS3 -> 929478.94 | HU4: =RawData!HT3 -> 843373.25 | HV4: =RawData!HU3 -> 757691.19 | HW4: =RawData!HV3 -> 672422.06 | HX4: =RawData!HW3 -> 587556.5 | HY4: =RawData!HX3 -> 503828.63 | HZ4: =RawData!HY3 -> 1860691.6 | IA4: =RawData!HZ3 -> 1800797.4 | IB4: =RawData!IA3 -> 1741722.1 | IC4: =RawData!IB3 -> 1683428.9 | ID4: =RawData!IC3 -> 1625881.9 | IE4: =RawData!ID3 -> 1569047.9 | IF4: =RawData!IE3 -> 1512895.9 | IG4: =RawData!IF3 -> 1457396.6 | IH4: =RawData!IG3 -> 1402522.9 | II4: =RawData!IH3 -> 1348248.4 | IJ4: =RawData!II3 -> 1294548.9 | IK4: =RawData!IJ3 -> 1241402.3 | IL4: =RawData!IK3 -> 1188786.9 | IM4: =RawData!IL3 -> 1136682.8 | IN4: =RawData!IM3 -> 1085071.5 | IO4: =RawData!IN3 -> 1033935.2 | IP4: =RawData!IO3 -> 983257.81 | IQ4: =RawData!IP3 -> 933024.31 | IR4: =RawData!IQ3 -> 883219.38 | IS4: =RawData!IR3 -> 833830.38 | IT4: =RawData!IS3 -> 784844.38 | IU4: =RawData!IT3 -> 736249.63 | IV4: =RawData!IU3 -> 688035.19 | IW4: =RawData!IV3 -> 400738.78 | IX4: =RawData!IW3 -> 379966.47 | IY4: =RawData!IX3 -> 359478.41 | IZ4: =RawData!IY3 -> 339260.38 | JA4: =RawData!IZ3 -> 319298.91 | JB4: =RawData!JA3 -> 299581.22 | JC4: =RawData!JB3 -> 280095.38 | JD4: =RawData!JC3 -> 260830.17 | JE4: =RawData!JD3 -> 241775 | JF4: =RawData!JE3 -> 222919.89 | JG4: =RawData!JF3 -> 204255.47 | JH4: =RawData!JG3 -> 185773.02 | JI4: =RawData!JH3 -> 167464.23 | JJ4: =RawData!JI3 -> 149321.28 | JK4: =RawData!JJ3 -> 131336.98 | JL4: =RawData!JK3 -> 113504.35 | JM4: =RawData!JL3 -> 95817.117 | JN4: =RawData!JM3 -> 78269.148 | JO4: =RawData!JN3 -> 60854.723 | JP4: =RawData!JO3 -> 44959.023 | JQ4: =RawData!JP3 -> 42734.914 | JR4: =RawData!JQ3 -> 40620.828 | JS4: =RawData!JR3 -> 38611.332 | JT4: =RawData!JS3 -> 22407726 | JU4: =RawData!JT3 -> 21807466 | JV4: =RawData!JU3 -> 21217698 | JW4: =RawData!JV3 -> 20637960 | JX4: =RawData!JW3 -> 20067798 | JY4: =RawData!JX3 -> 19506802 | JZ4: =RawData!JY3 -> 18954578 | KA4: =RawData!JZ3 -> 18410760 | KB4: =RawData!KA3 -> 17874992 | KC4: =RawData!KB3 -> 17346950 | KD4: =RawData!KC3 -> 16826326 | KE4: =RawData!KD3 -> 16312828 | KF4: =RawData!KE3 -> 15806186 | KG4: =RawData!KF3 -> 15306138 | KH4: =RawData!KG3 -> 14812448 | KI4: =RawData!KH3 -> 14324882 | KJ4: =RawData!KI3 -> 13843233 | KK4: =RawData!KJ3 -> 13367299 | KL4: =RawData!KK3 -> 12896880 | KM4: =RawData!KL3 -> 12431813 | KN4: =RawData!KM3 -> 11971921 | KO4: =RawData!KN3 -> 11517049 | KP4: =RawData!KO3 -> 11067048 | KQ4: =RawData!KP3 -> 2535762 | KR4: =RawData!KQ3 -> 2436785.5 | KS4: =RawData!KR3 -> 2340486 | KT4: =RawData!KS3 -> 2246734.3 | KU4: =RawData!KT3 -> 2155406.3 | KV4: =RawData!KU3 -> 2066385.8 | KW4: =RawData!KV3 -> 1979561.8 | KX4: =RawData!KW3 -> 1894829.9 | KY4: =RawData!KX3 -> 1812090.4 | KZ4: =RawData!KY3 -> 1731249.3 | LA4: =RawData!KZ3 -> 1652217.9 | LB4: =RawData!LA3 -> 1574911.8 | LC4: =RawData!LB3 -> 1499251.3 | LD4: =RawData!LC3 -> 1425160.4 | LE4: =RawData!LD3 -> 1352567.5 | LF4: =RawData!LE3 -> 1281405.3 | LG4: =RawData!LF3 -> 1211609.4 | LH4: =RawData!LG3 -> 1143119.1 | LI4: =RawData!LH3 -> 1075876.4 | LJ4: =RawData!LI3 -> 1009827.5 | LK4: =RawData!LJ3 -> 944920.56 | LL4: =RawData!LK3 -> 881850.31 | LM4: =RawData!LL3 -> 820695.56 | LN4: =RawData!LM3 -> 3282418.3 | LO4: =RawData!LN3 -> 3144830.8 | LP4: =RawData!LO3 -> 3008893.3 | LQ4: =RawData!LP3 -> 2874526.3 | LR4: =RawData!LQ3 -> 2741654.3 | LS4: =RawData!LR3 -> 2610206.5 | LT4: =RawData!LS3 -> 2480115.8 | LU4: =RawData!LT3 -> 2351321.8 | LV4: =RawData!LU3 -> 2223764.8 | LW4: =RawData!LV3 -> 2097390.8 | LX4: =RawData!LW3 -> 1972147.6 | LY4: =RawData!LX3 -> 1847988.5 | LZ4: =RawData!LY3 -> 1724867.6 | MA4: =RawData!LZ3 -> 1602743.3 | MB4: =RawData!MA3 -> 1481576.1 | MC4: =RawData!MB3 -> 1361328.6 | MD4: =RawData!MC3 -> 1241967.1 | ME4: =RawData!MD3 -> 1123459.6 | MF4: =RawData!ME3 -> 1005774.9 | MG4: =RawData!MF3 -> 888886.13 | MH4: =RawData!MG3 -> 772766.25 | MI4: =RawData!MH3 -> 657390.38 | MJ4: =RawData!MI3 -> 542736.75 | MK4: =RawData!MJ3 -> 1695160 | ML4: =RawData!MK3 -> 1628811.6 | MM4: =RawData!ML3 -> 1563904 | MN4: =RawData!MM3 -> 1500368.1 | MO4: =RawData!MN3 -> 1438137.1 | MP4: =RawData!MO3 -> 1377149 | MQ4: =RawData!MP3 -> 1317344.6 | MR4: =RawData!MQ3 -> 1258668 | MS4: =RawData!MR3 -> 1201066.8 | MT4: =RawData!MS3 -> 1144490.5 | MU4: =RawData!MT3 -> 1088892.4 | MV4: =RawData!MU3 -> 1034227.7 | MW4: =RawData!MV3 -> 980454.56 | MX4: =RawData!MW3 -> 927533 | MY4: =RawData!MX3 -> 875425.38 | MZ4: =RawData!MY3 -> 824096.06 | NA4: =RawData!MZ3 -> 773511.75 | NB4: =RawData!NA3 -> 723641 | NC4: =RawData!NB3 -> 674453 | ND4: =RawData!NC3 -> 625920.25 | NE4: =RawData!ND3 -> 578015.81 | NF4: =RawData!NE3 -> 530714.19 | NG4: =RawData!NF3 -> 483991.84 | NH4: =RawData!NG3 -> 4549429.5 | NI4: =RawData!NH3 -> 4423009.5 | NJ4: =RawData!NI3 -> 4298756 | NK4: =RawData!NJ3 -> 4176572.8 | NL4: =RawData!NK3 -> 4056365.5 | NM4: =RawData!NL3 -> 3938049.5 | NN4: =RawData!NM3 -> 3821541.3 | NO4: =RawData!NN3 -> 3706766.3 | NP4: =RawData!NO3 -> 3593650.5 | NQ4: =RawData!NP3 -> 3482125.5 | NR4: =RawData!NQ3 -> 3372127.8 | NS4: =RawData!NR3 -> 3263597.5 | NT4: =RawData!NS3 -> 3156477.3 | NU4: =RawData!NT3 -> 3050713.5 | NV4: =RawData!NU3 -> 2946257 | NW4: =RawData!NV3 -> 2843059 | NX4: =RawData!NW3 -> 2741076.5 | NY4: =RawData!NX3 -> 2640267.8 | NZ4: =RawData!NY3 -> 2540592 | OA4: =RawData!NZ3 -> 2442013.5 | OB4: =RawData!OA3 -> 2344497.3 | OC4: =RawData!OB3 -> 2248010.3 | OD4: =RawData!OC3 -> 2152522.3 | OE4: =RawData!OD3 -> 6386488 | OF4: =RawData!OE3 -> 6195267.5 | OG4: =RawData!OF3 -> 6005813.5 | OH4: =RawData!OG3 -> 5818053 | OI4: =RawData!OH3 -> 5631912 | OJ4: =RawData!OI3 -> 5447326 | OK4: =RawData!OJ3 -> 5264233 | OL4: =RawData!OK3 -> 5082577 | OM4: =RawData!OL3 -> 4902306 | ON4: =RawData!OM3 -> 4723369 | OO4: =RawData!ON3 -> 4545722 | OP4: =RawData!OO3 -> 4369322 | OQ4: =RawData!OP3 -> 4194131.8 | OR4: =RawData!OQ3 -> 4020113.3 | OS4: =RawData!OR3 -> 3847235 | OT4: =RawData!OS3 -> 3675465.5 | OU4: =RawData!OT3 -> 3504777 | OV4: =RawData!OU3 -> 3335144.3 | OW4: =RawData!OV3 -> 3166540.3 | OX4: =RawData!OW3 -> 2998946.8 | OY4: =RawData!OX3 -> 2832341.5 | OZ4: =RawData!OY3 -> 2666706 | PA4: =RawData!OZ3 -> 2502023.8 | PB4: =RawData!PA3 -> 960350 | PC4: =RawData!PB3 -> 920242.31 | PD4: =RawData!PC3 -> 880372.06 | PE4: =RawData!PD3 -> 840727.88 | PF4: =RawData!PE3 -> 801299 | PG4: =RawData!PF3 -> 762075.94 | PH4: =RawData!PG3 -> 723049.94 | PI4: =RawData!PH3 -> 684212.63 | PJ4: =RawData!PI3 -> 645556.75 | PK4: =RawData!PJ3 -> 607075.13 | PL4: =RawData!PK3 -> 568761.69 | PM4: =RawData!PL3 -> 530610.69 | PN4: =RawData!PM3 -> 492616.91 | PO4: =RawData!PN3 -> 454775.56 | PP4: =RawData!PO3 -> 417082.38 | PQ4: =RawData!PP3 -> 379533.25 | PR4: =RawData!PQ3 -> 342125.09 | PS4: =RawData!PR3 -> 304854.56 | PT4: =RawData!PS3 -> 267718.72 | PU4: =RawData!PT3 -> 230715.31 | PV4: =RawData!PU3 -> 193841.86 | PW4: =RawData!PV3 -> 157096.5 | PX4: =RawData!PW3 -> 120477.58 | PY4: =RawData!PX3 -> 7860464.5 | PZ4: =RawData!PY3 -> 7582769 | QA4: =RawData!PZ3 -> 7309187.5 | QB4: =RawData!QA3 -> 7039530 | QC4: =RawData!QB3 -> 6773609 | QD4: =RawData!QC3 -> 6511256 | QE4: =RawData!QD3 -> 6252308 | QF4: =RawData!QE3 -> 5996613.5 | QG4: =RawData!QF3 -> 5744030 | QH4: =RawData!QG3 -> 5494421.5 | QI4: =RawData!QH3 -> 5247662.5 | QJ4: =RawData!QI3 -> 5003634.5 | QK4: =RawData!QJ3 -> 4762226 | QL4: =RawData!QK3 -> 4523330.5 | QM4: =RawData!QL3 -> 4286851.5 | QN4: =RawData!QM3 -> 4052695.3 | QO4: =RawData!QN3 -> 3820776.5 | QP4: =RawData!QO3 -> 3591013.5 | QQ4: =RawData!QP3 -> 3363327 | QR4: =RawData!QQ3 -> 3137649.3 | QS4: =RawData!QR3 -> 2913910.3 | QT4: =RawData!QS3 -> 2692047.5 | QU4: =RawData!QT3 -> 2472002.3 | QV4: =RawData!QU3 -> 10164321 | QW4: =RawData!QV3 -> 9864623 | QX4: =RawData!QW3 -> 9566973 | QY4: =RawData!QX3 -> 9271295 | QZ4: =RawData!QY3 -> 8977507 | RA4: =RawData!QZ3 -> 8685540 | RB4: =RawData!RA3 -> 8395329 | RC4: =RawData!RB3 -> 8106819.5 | RD4: =RawData!RC3 -> 7819954 | RE4: =RawData!RD3 -> 7534681 | RF4: =RawData!RE3 -> 7250958.5 | RG4: =RawData!RF3 -> 6968744.5 | RH4: =RawData!RG3 -> 6688003 | RI4: =RawData!RH3 -> 6408698.5 | RJ4: =RawData!RI3 -> 6130802 | RK4: =RawData!RJ3 -> 5854285.5 | RL4: =RawData!RK3 -> 5579125.5 | RM4: =RawData!RL3 -> 5305300 | RN4: =RawData!RM3 -> 5032787 | RO4: =RawData!RN3 -> 4761573 | RP4: =RawData!RO3 -> 4491639 | RQ4: =RawData!RP3 -> 4222974 | RR4: =RawData!RQ3 -> 3955566 | RS4: =RawData!RR3 -> 1866368 | RT4: =RawData!RS3 -> 1813027 | RU4: =RawData!RT3 -> 1759853.9 | RV4: =RawData!RU3 -> 1706845.1 | RW4: =RawData!RV3 -> 1653995.5 | RX4: =RawData!RW3 -> 1601301.9 | RY4: =RawData!RX3 -> 1548761.5 | RZ4: =RawData!RY3 -> 1496372.6 | SA4: =RawData!RZ3 -> 1444133.3 | SB4: =RawData!SA3 -> 1392041.4 | SC4: =RawData!SB3 -> 1340096.9 | SD4: =RawData!SC3 -> 1288299.5 | SE4: =RawData!SD3 -> 1236649 | SF4: =RawData!SE3 -> 1185145.5 | SG4: =RawData!SF3 -> 1133789.9 | SH4: =RawData!SG3 -> 1082582.5 | SI4: =RawData!SH3 -> 1031525.1 | SJ4: =RawData!SI3 -> 980618.81 | SK4: =RawData!SJ3 -> 929864.31 | SL4: =RawData!SK3 -> 879264.38 | SM4: =RawData!SL3 -> 828820.13 | SN4: =RawData!SM3 -> 778533.63 | SO4: =RawData!SN3 -> 728406.94 | SP4: =RawData!SO3 -> 1661758 | SQ4: =RawData!SP3 -> 1602889.9 | SR4: =RawData!SQ3 -> 1544328.1 | SS4: =RawData!SR3 -> 1486059.9 | ST4: =RawData!SS3 -> 1428072.9 | SU4: =RawData!ST3 -> 1370355.9 | SV4: =RawData!SU3 -> 1312898.8 | SW4: =RawData!SV3 -> 1255692.8 | SX4: =RawData!SW3 -> 1198729.4 | SY4: =RawData!SX3 -> 1142000.9 | SZ4: =RawData!SY3 -> 1085500.8 | TA4: =RawData!SZ3 -> 1029222.9 | TB4: =RawData!TA3 -> 973162 | TC4: =RawData!TB3 -> 917313 | TD4: =RawData!TC3 -> 861671.81 | TE4: =RawData!TD3 -> 806234.69 | TF4: =RawData!TE3 -> 750998.63 | TG4: =RawData!TF3 -> 695960.63 | TH4: =RawData!TG3 -> 641117.88 | TI4: =RawData!TH3 -> 586469.06 | TJ4: =RawData!TI3 -> 532011.94 | TK4: =RawData!TJ3 -> 477745.16 | TL4: =RawData!TK3 -> 423667.84 | TM4: =RawData!TL3 -> 3986998.5 | TN4: =RawData!TM3 -> 3873739.8 | TO4: =RawData!TN3 -> 3760870.3 | TP4: =RawData!TO3 -> 3648379.8 | TQ4: =RawData!TP3 -> 3536256.8 | TR4: =RawData!TQ3 -> 3424493.3 | TS4: =RawData!TR3 -> 3313082 | TT4: =RawData!TS3 -> 3202018 | TU4: =RawData!TT3 -> 3091295.5 | TV4: =RawData!TU3 -> 2980910 | TW4: =RawData!TV3 -> 2870860.3 | TX4: =RawData!TW3 -> 2761143 | TY4: =RawData!TX3 -> 2651759 | TZ4: =RawData!TY3 -> 2542706.3 | UA4: =RawData!TZ3 -> 2433985.8 | UB4: =RawData!UA3 -> 2325598 | UC4: =RawData!UB3 -> 2217545.5 | UD4: =RawData!UC3 -> 2109830.3 | UE4: =RawData!UD3 -> 2002452.5 | UF4: =RawData!UE3 -> 1895417.9 | UG4: =RawData!UF3 -> 1788728 | UH4: =RawData!UG3 -> 1682386.1 | UI4: =RawData!UH3 -> 1576396.8 | UJ4: =RawData!UI3 -> 1875987.6 | UK4: =RawData!UJ3 -> 1810215.9 | UL4: =RawData!UK3 -> 1745447.6 | UM4: =RawData!UL3 -> 1681635.6 | UN4: =RawData!UM3 -> 1618734.6 | UO4: =RawData!UN3 -> 1556703.6 | UP4: =RawData!UO3 -> 1495502.4 | UQ4: =RawData!UP3 -> 1435094.6 | UR4: =RawData!UQ3 -> 1375444.8 | US4: =RawData!UR3 -> 1316520.1 | UT4: =RawData!US3 -> 1258289.9 | UU4: =RawData!UT3 -> 1200724.9 | UV4: =RawData!UU3 -> 1143798.1 | UW4: =RawData!UV3 -> 1087483.5 | UX4: =RawData!UW3 -> 1031757.3 | UY4: =RawData!UX3 -> 976596.5 | UZ4: =RawData!UY3 -> 921980.13 | VA4: =RawData!UZ3 -> 867888.38 | VB4: =RawData!VA3 -> 814301.81 | VC4: =RawData!VB3 -> 761203.44 | VD4: =RawData!VC3 -> 708576.31 | VE4: =RawData!VD3 -> 656405.06 | VF4: =RawData!VE3 -> 604675.13 | VG4: =RawData!VF3 -> 616507.5 | VH4: =RawData!VG3 -> 595500.69 | VI4: =RawData!VH3 -> 574674.56 | VJ4: =RawData!VI3 -> 554021.25 | VK4: =RawData!VJ3 -> 533532.75 | VL4: =RawData!VK3 -> 513202.34 | VM4: =RawData!VL3 -> 493023.31 | VN4: =RawData!VM3 -> 472989.75 | VO4: =RawData!VN3 -> 453095.91 | VP4: =RawData!VO3 -> 433336.56 | VQ4: =RawData!VP3 -> 413706.88 | VR4: =RawData!VQ3 -> 394202.38 | VS4: =RawData!VR3 -> 374818.97 | VT4: =RawData!VS3 -> 355552.69 | VU4: =RawData!VT3 -> 336400.16 | VV4: =RawData!VU3 -> 317357.94 | VW4: =RawData!VV3 -> 298423.19 | VX4: =RawData!VW3 -> 279593.25 | VY4: =RawData!VX3 -> 260865.23 | VZ4: =RawData!VY3 -> 242237.11 | WA4: =RawData!VZ3 -> 223706.63 | WB4: =RawData!WA3 -> 205271.83 | WC4: =RawData!WB3 -> 186930.91 | WD4: =RawData!WC3 -> 189322.84 | WE4: =RawData!WD3 -> 182131.7 | WF4: =RawData!WE3 -> 174983.19 | WG4: =RawData!WF3 -> 167875.39 | WH4: =RawData!WG3 -> 160806.41 | WI4: =RawData!WH3 -> 153774.7 | WJ4: =RawData!WI3 -> 146778.67 | WK4: =RawData!WJ3 -> 139817 | WL4: =RawData!WK3 -> 132888.36 | WM4: =RawData!WL3 -> 125991.59 | WN4: =RawData!WM3 -> 119125.61 | WO4: =RawData!WN3 -> 112289.52 | WP4: =RawData!WO3 -> 105482.42 | WQ4: =RawData!WP3 -> 98703.492 | WR4: =RawData!WQ3 -> 91952.031 | WS4: =RawData!WR3 -> 85227.406 | WT4: =RawData!WS3 -> 78529.016 | WU4: =RawData!WT3 -> 71856.398 | WV4: =RawData!WU3 -> 65209.008 | WW4: =RawData!WV3 -> 58586.516 | WX4: =RawData!WW3 -> 51988.516 | WY4: =RawData!WX3 -> 45414.699 | WZ4: =RawData!WY3 -> 38864.824 | XA4: =RawData!WZ3 -> 694988.69 | XB4: =RawData!XA3 -> 667972.88 | XC4: =RawData!XB3 -> 641533.38 | XD4: =RawData!XC3 -> 615642.63 | XE4: =RawData!XD3 -> 590274.13 | XF4: =RawData!XE3 -> 565402.75 | XG4: =RawData!XF3 -> 541005.13 | XH4: =RawData!XG3 -> 517058.97 | XI4: =RawData!XH3 -> 493543.06 | XJ4: =RawData!XI3 -> 470437.53 | XK4: =RawData!XJ3 -> 447723.56 | XL4: =RawData!XK3 -> 425383.41 | XM4: =RawData!XL3 -> 403400.34 | XN4: =RawData!XM3 -> 381758.38 | XO4: =RawData!XN3 -> 360442.59 | XP4: =RawData!XO3 -> 339438.72 | XQ4: =RawData!XP3 -> 318733.56 | XR4: =RawData!XQ3 -> 298314.41 | XS4: =RawData!XR3 -> 278169.22 | XT4: =RawData!XS3 -> 258286.89 | XU4: =RawData!XT3 -> 238656.7 | XV4: =RawData!XU3 -> 219268.55 | XW4: =RawData!XV3 -> 200113.05 | XX4: =RawData!XW3 -> 279424.88 | XY4: =RawData!XX3 -> 270910 | XZ4: =RawData!XY3 -> 262470.84 | YA4: =RawData!XZ3 -> 254104.28 | YB4: =RawData!YA3 -> 245807.13 | YC4: =RawData!YB3 -> 237576.58 | YD4: =RawData!YC3 -> 229410.09 | YE4: =RawData!YD3 -> 221305.17 | YF4: =RawData!YE3 -> 213259.64 | YG4: =RawData!YF3 -> 205271.25 | YH4: =RawData!YG3 -> 197338.19 | YI4: =RawData!YH3 -> 189458.66 | YJ4: =RawData!YI3 -> 181630.98 | YK4: =RawData!YJ3 -> 173853.61 | YL4: =RawData!YK3 -> 166125.16 | YM4: =RawData!YL3 -> 158444.33 | YN4: =RawData!YM3 -> 150809.95 | YO4: =RawData!YN3 -> 143220.94 | YP4: =RawData!YO3 -> 135676.16 | YQ4: =RawData!YP3 -> 128174.82 | YR4: =RawData!YQ3 -> 120716.04 | YS4: =RawData!YR3 -> 113299.01 | YT4: =RawData!YS3 -> 105923.06 | YU4: =RawData!YT3 -> 16159806 | YV4: =RawData!YU3 -> 15652792 | YW4: =RawData!YV3 -> 15157574 | YX4: =RawData!YW3 -> 14673602 | YY4: =RawData!YX3 -> 14200343 | YZ4: =RawData!YY3 -> 13737306 | ZA4: =RawData!YZ3 -> 13284017 | ZB4: =RawData!ZA3 -> 12840036 | ZC4: =RawData!ZB3 -> 12404939 | ZD4: =RawData!ZC3 -> 11978329 | ZE4: =RawData!ZD3 -> 11559832 | ZF4: =RawData!ZE3 -> 11149091 | ZG4: =RawData!ZF3 -> 10745774 | ZH4: =RawData!ZG3 -> 10349559 | ZI4: =RawData!ZH3 -> 9960159 | ZJ4: =RawData!ZI3 -> 9577282 | ZK4: =RawData!ZJ3 -> 9200660 | ZL4: =RawData!ZK3 -> 8830041 | ZM4: =RawData!ZL3 -> 8465180 | ZN4: =RawData!ZM3 -> 8105855 | ZO4: =RawData!ZN3 -> 7751852 | ZP4: =RawData!ZO3 -> 7402969 | ZQ4: =RawData!ZP3 -> 7059014 | ZR4: =RawData!ZQ3 -> 1652762.6 | ZS4: =RawData!ZR3 -> 1596554.1 | ZT4: =RawData!ZS3 -> 1540680.5 | ZU4: =RawData!ZT3 -> 1485127.8 | ZV4: =RawData!ZU3 -> 1429882.3 | ZW4: =RawData!ZV3 -> 1374931.8 | ZX4: =RawData!ZW3 -> 1320265.5 | ZY4: =RawData!ZX3 -> 1265873 | ZZ4: =RawData!ZY3 -> 1211745.3 | AAA4: =RawData!ZZ3 -> 1157873.4 | AAB4: =RawData!AAA3 -> 1104250 | AAC4: =RawData!AAB3 -> 1050868.3 | AAD4: =RawData!AAC3 -> 997721.56 | AAE4: =RawData!AAD3 -> 944804.38 | AAF4: =RawData!AAE3 -> 892111.88 | AAG4: =RawData!AAF3 -> 839638.88 | AAH4: =RawData!AAG3 -> 787382.13 | AAI4: =RawData!AAH3 -> 735337.81 | AAJ4: =RawData!AAI3 -> 683502.38 | AAK4: =RawData!AAJ3 -> 631873.63 | AAL4: =RawData!AAK3 -> 580448.75 | AAM4: =RawData!AAL3 -> 529225.63 | AAN4: =RawData!AAM3 -> 478202.81 | AAO4: =RawData!AAN3 -> 11478012 | AAP4: =RawData!AAO3 -> 10931465 | AAQ4: =RawData!AAP3 -> 10394623 | AAR4: =RawData!AAQ3 -> 9867008 | AAS4: =RawData!AAR3 -> 9348162 | AAT4: =RawData!AAS3 -> 8837656 | AAU4: =RawData!AAT3 -> 8335086.5 | AAV4: =RawData!AAU3 -> 7840070 | AAW4: =RawData!AAV3 -> 7352244.5 | AAX4: =RawData!AAW3 -> 6871269 | AAY4: =RawData!AAX3 -> 6396822 | AAZ4: =RawData!AAY3 -> 5928602 | ABA4: =RawData!AAZ3 -> 5466322.5 | ABB4: =RawData!ABA3 -> 5009713.5 | ABC4: =RawData!ABB3 -> 4558520 | ABD4: =RawData!ABC3 -> 4112502 | ABE4: =RawData!ABD3 -> 3671435.5 | ABF4: =RawData!ABE3 -> 3235107.5 | ABG4: =RawData!ABF3 -> 2803313.3 | ABH4: =RawData!ABG3 -> 2375868.5 | ABI4: =RawData!ABH3 -> 1952592.8 | ABJ4: =RawData!ABI3 -> 1533857.9 | ABK4: =RawData!ABJ3 -> 1121279.6 | ABL4: =RawData!ABK3 -> 2689668.5 | ABM4: =RawData!ABL3 -> 2553538.8 | ABN4: =RawData!ABM3 -> 2418870.3 | ABO4: =RawData!ABN3 -> 2285591.3 | ABP4: =RawData!ABO3 -> 2153630.8 | ABQ4: =RawData!ABP3 -> 2022924.9 | ABR4: =RawData!ABQ3 -> 1893412.3 | ABS4: =RawData!ABR3 -> 1765035.8 | ABT4: =RawData!ABS3 -> 1637742.3 | ABU4: =RawData!ABT3 -> 1511481.8 | ABV4: =RawData!ABU3 -> 1386206.5 | ABW4: =RawData!ABV3 -> 1261873.9 | ABX4: =RawData!ABW3 -> 1138442.3 | ABY4: =RawData!ABX3 -> 1015873.3 | ABZ4: =RawData!ABY3 -> 894131.31 | ACA4: =RawData!ABZ3 -> 773182.56 | ACB4: =RawData!ACA3 -> 652996.75 | ACC4: =RawData!ACB3 -> 533544.06 | ACD4: =RawData!ACC3 -> 414797.13 | ACE4: =RawData!ACD3 -> 306600.53 | ACF4: =RawData!ACE3 -> 290074 | ACG4: =RawData!ACF3 -> 274282.97 | ACH4: =RawData!ACG3 -> 259991.39 | ACI4: =RawData!ACH3 -> 215259.64 | ACJ4: =RawData!ACI3 -> 207677.89 | ACK4: =RawData!ACJ3 -> 200255.53 | ACL4: =RawData!ACK3 -> 192984.98 | ACM4: =RawData!ACL3 -> 185859 | ACN4: =RawData!ACM3 -> 178870.84 | ACO4: =RawData!ACN3 -> 172014.02 | ACP4: =RawData!ACO3 -> 165282.52 | ACQ4: =RawData!ACP3 -> 158670.61 | ACR4: =RawData!ACQ3 -> 152172.83 | ACS4: =RawData!ACR3 -> 145784.06 | ACT4: =RawData!ACS3 -> 139499.55 | ACU4: =RawData!ACT3 -> 133314.66 | ACV4: =RawData!ACU3 -> 127225.11 | ACW4: =RawData!ACV3 -> 121226.84 | ACX4: =RawData!ACW3 -> 115315.95 | ACY4: =RawData!ACX3 -> 109488.88 | ACZ4: =RawData!ACY3 -> 103742.21 | ADA4: =RawData!ACZ3 -> 98072.633 | ADB4: =RawData!ADA3 -> 92477.164 | ADC4: =RawData!ADB3 -> 86952.883 | ADD4: =RawData!ADC3 -> 81497.086 | ADE4: =RawData!ADD3 -> 76107.195 | ADF4: =RawData!ADE3 -> 1867438.3 | ADG4: =RawData!ADF3 -> 1797975.9 | ADH4: =RawData!ADG3 -> 1728928.1 | ADI4: =RawData!ADH3 -> 1660277.4 | ADJ4: =RawData!ADI3 -> 1592005 | ADK4: =RawData!ADJ3 -> 1524096.1 | ADL4: =RawData!ADK3 -> 1456535.8 | ADM4: =RawData!ADL3 -> 1389310.5 | ADN4: =RawData!ADM3 -> 1322408.3 | ADO4: =RawData!ADN3 -> 1255817.5 | ADP4: =RawData!ADO3 -> 1189528.3 | ADQ4: =RawData!ADP3 -> 1123531 | ADR4: =RawData!ADQ3 -> 1057817.5 | ADS4: =RawData!ADR3 -> 992380 | ADT4: =RawData!ADS3 -> 927211.81 | ADU4: =RawData!ADT3 -> 862306.31 | ADV4: =RawData!ADU3 -> 797658.5 | ADW4: =RawData!ADV3 -> 733263.25 | ADX4: =RawData!ADW3 -> 669115.75 | ADY4: =RawData!ADX3 -> 605212.69 | ADZ4: =RawData!ADY3 -> 541550.19 | AEA4: =RawData!ADZ3 -> 478125.31 | AEB4: =RawData!AEA3 -> 414935.63 | AEC4: =RawData!AEB3 -> 1541502 | AED4: =RawData!AEC3 -> 1473897.4 | AEE4: =RawData!AED3 -> 1407542.5 | AEF4: =RawData!AEE3 -> 1342376.4 | AEG4: =RawData!AEF3 -> 1278340.9 | AEH4: =RawData!AEG3 -> 1215381.4 | AEI4: =RawData!AEH3 -> 1153445.9 | AEJ4: =RawData!AEI3 -> 1092486 | AEK4: =RawData!AEJ3 -> 1032455.4 | AEL4: =RawData!AEK3 -> 973310.5 | AEM4: =RawData!AEL3 -> 915010.44 | AEN4: =RawData!AEM3 -> 857516.63 | AEO4: =RawData!AEN3 -> 800792.31 | AEP4: =RawData!AEO3 -> 744803.13 | AEQ4: =RawData!AEP3 -> 689516.56 | AER4: =RawData!AEQ3 -> 634901.88 | AES4: =RawData!AER3 -> 580930.38 | AET4: =RawData!AES3 -> 527574.75 | AEU4: =RawData!AET3 -> 476910.03 | AEV4: =RawData!AEU3 -> 427074.34 | AEW4: =RawData!AEV3 -> 377802.81 | AEX4: =RawData!AEW3 -> 329072.34 | AEY4: =RawData!AEX3 -> 280861.69 | AEZ4: =RawData!AEY3 -> 1616992 | AFA4: =RawData!AEZ3 -> 1536800.3 | AFB4: =RawData!AFA3 -> 1457443.8 | AFC4: =RawData!AFB3 -> 1378881 | AFD4: =RawData!AFC3 -> 1301071.9 | AFE4: =RawData!AFD3 -> 1223979.9 | AFF4: =RawData!AFE3 -> 1147570.3 | AFG4: =RawData!AFF3 -> 1071810.5 | AFH4: =RawData!AFG3 -> 996670.75 | AFI4: =RawData!AFH3 -> 922122.13 | AFJ4: =RawData!AFI3 -> 848137.94 | AFK4: =RawData!AFJ3 -> 774693.94 | AFL4: =RawData!AFK3 -> 701766.88 | AFM4: =RawData!AFL3 -> 629334.5 | AFN4: =RawData!AFM3 -> 557377.25 | AFO4: =RawData!AFN3 -> 485875.59 | AFP4: =RawData!AFO3 -> 414812.56 | AFQ4: =RawData!AFP3 -> 344171.72 | AFR4: =RawData!AFQ3 -> 273937.16 | AFS4: =RawData!AFR3 -> 204095.39 | AFT4: =RawData!AFS3 -> 151260.38 | AFU4: =RawData!AFT3 -> 143777.56 | AFV4: =RawData!AFU3 -> 136664.94 | AFW4: =RawData!AFV3 -> 8261086 | AFX4: =RawData!AFW3 -> 7998404 | AFY4: =RawData!AFX3 -> 7738583 | AFZ4: =RawData!AFY3 -> 7481495 | AGA4: =RawData!AFZ3 -> 7227018 | AGB4: =RawData!AGA3 -> 6975043 | AGC4: =RawData!AGB3 -> 6725461 | AGD4: =RawData!AGC3 -> 6478178 | AGE4: =RawData!AGD3 -> 6233100 | AGF4: =RawData!AGE3 -> 5990141 | AGG4: =RawData!AGF3 -> 5749223 | AGH4: =RawData!AGG3 -> 5510271 | AGI4: =RawData!AGH3 -> 5273217 | AGJ4: =RawData!AGI3 -> 5037994 | AGK4: =RawData!AGJ3 -> 4804543.5 | AGL4: =RawData!AGK3 -> 4572809 | AGM4: =RawData!AGL3 -> 4342740 | AGN4: =RawData!AGM3 -> 4114288 | AGO4: =RawData!AGN3 -> 3887405.5 | AGP4: =RawData!AGO3 -> 3662054 | AGQ4: =RawData!AGP3 -> 3438193.3 | AGR4: =RawData!AGQ3 -> 3215787.3 | AGS4: =RawData!AGR3 -> 2994803.5 | AGT4: =RawData!AGS3 -> 700478.38 | AGU4: =RawData!AGT3 -> 679538.88 | AGV4: =RawData!AGU3 -> 658782.81 | AGW4: =RawData!AGV3 -> 638202.63 | AGX4: =RawData!AGW3 -> 617790.69 | AGY4: =RawData!AGX3 -> 597540.38 | AGZ4: =RawData!AGY3 -> 577445.5 | AHA4: =RawData!AGZ3 -> 557500.13 | AHB4: =RawData!AHA3 -> 537699.06 | AHC4: =RawData!AHB3 -> 518037.03 | AHD4: =RawData!AHC3 -> 498509.69 | AHE4: =RawData!AHD3 -> 479112.66 | AHF4: =RawData!AHE3 -> 459842.03 | AHG4: =RawData!AHF3 -> 440694.16 | AHH4: =RawData!AHG3 -> 421665.78 | AHI4: =RawData!AHH3 -> 402753.75 | AHJ4: =RawData!AHI3 -> 383955.25 | AHK4: =RawData!AHJ3 -> 365267.94 | AHL4: =RawData!AHK3 -> 346688.94 | AHM4: =RawData!AHL3 -> 328216.59 | AHN4: =RawData!AHM3 -> 310078.72 | AHO4: =RawData!AHN3 -> 292159.75 | AHP4: =RawData!AHO3 -> 274342.28 | AHQ4: =RawData!AHP3 -> 2438299.5 | AHR4: =RawData!AHQ3 -> 2362932.5 | AHS4: =RawData!AHR3 -> 2287865.3 | AHT4: =RawData!AHS3 -> 2213088 | AHU4: =RawData!AHT3 -> 2138590 | AHV4: =RawData!AHU3 -> 2064364.1 | AHW4: =RawData!AHV3 -> 1990401.9 | AHX4: =RawData!AHW3 -> 1916696.8 | AHY4: =RawData!AHX3 -> 1843243.6 | AHZ4: =RawData!AHY3 -> 1770036.5 | AIA4: =RawData!AHZ3 -> 1697072.3 | AIB4: =RawData!AIA3 -> 1624346.8 | AIC4: =RawData!AIB3 -> 1551857.6 | AID4: =RawData!AIC3 -> 1479602.6 | AIE4: =RawData!AID3 -> 1407579.8 | AIF4: =RawData!AIE3 -> 1335787.9 | AIG4: =RawData!AIF3 -> 1264226.6 | AIH4: =RawData!AIG3 -> 1192895.5 | AII4: =RawData!AIH3 -> 1121794 | AIJ4: =RawData!AII3 -> 1050923.3 | AIK4: =RawData!AIJ3 -> 980283.06 | AIL4: =RawData!AIK3 -> 909874.94 | AIM4: =RawData!AIL3 -> 839699.94 | AIN4: =RawData!AIM3 -> 258509.66 | AIO4: =RawData!AIN3 -> 244635.78 | AIP4: =RawData!AIO3 -> 230988.31 | AIQ4: =RawData!AIP3 -> 217555.94 | AIR4: =RawData!AIQ3 -> 204327.78 | AIS4: =RawData!AIR3 -> 191293.72 | AIT4: =RawData!AIS3 -> 178444.19 | AIU4: =RawData!AIT3 -> 165770.13 | AIV4: =RawData!AIU3 -> 153263 | AIW4: =RawData!AIV3 -> 140914.73 | AIX4: =RawData!AIW3 -> 128717.76 | AIY4: =RawData!AIX3 -> 116664.98 | AIZ4: =RawData!AIY3 -> 104749.63 | AJA4: =RawData!AIZ3 -> 92965.328 | AJB4: =RawData!AJA3 -> 81306.156 | AJC4: =RawData!AJB3 -> 69766.422 | AJD4: =RawData!AJC3 -> 58340.891 | AJE4: =RawData!AJD3 -> 47024.547 | AJF4: =RawData!AJE3 -> 44698.254 | AJG4: =RawData!AJF3 -> 42487.047 | AJH4: =RawData!AJG3 -> 40385.23 | AJI4: =RawData!AJH3 -> 38387.383 | AJJ4: =RawData!AJI3 -> 36488.371 | AJK4: =RawData!AJJ3 -> 817082.56 | AJL4: =RawData!AJK3 -> 779710.81 | AJM4: =RawData!AJL3 -> 742793.63 | AJN4: =RawData!AJM3 -> 706308.81 | AJO4: =RawData!AJN3 -> 670235.06 | AJP4: =RawData!AJO3 -> 634552.44 | AJQ4: =RawData!AJP3 -> 599242.63 | AJR4: =RawData!AJQ3 -> 564287.94 | AJS4: =RawData!AJR3 -> 529671.94 | AJT4: =RawData!AJS3 -> 495379.34 | AJU4: =RawData!AJT3 -> 461395.59 | AJV4: =RawData!AJU3 -> 427707.06 | AJW4: =RawData!AJV3 -> 394301.44 | AJX4: =RawData!AJW3 -> 361166.41 | AJY4: =RawData!AJX3 -> 328291.16 | AJZ4: =RawData!AJY3 -> 295665 | AKA4: =RawData!AJZ3 -> 263278.41 | AKB4: =RawData!AKA3 -> 231122.23 | AKC4: =RawData!AKB3 -> 199187.64 | AKD4: =RawData!AKC3 -> 167467.05 | AKE4: =RawData!AKD3 -> 140869.53 | AKF4: =RawData!AKE3 -> 133900.75 | AKG4: =RawData!AKF3 -> 127276.73 | AKH4: =RawData!AKG3 -> 15373504 | AKI4: =RawData!AKH3 -> 14798190 | AKJ4: =RawData!AKI3 -> 14227661 | AKK4: =RawData!AKJ3 -> 13661703 | AKL4: =RawData!AKK3 -> 13100101 | AKM4: =RawData!AKL3 -> 12542665 | AKN4: =RawData!AKM3 -> 11989216 | AKO4: =RawData!AKN3 -> 11439588 | AKP4: =RawData!AKO3 -> 10893627 | AKQ4: =RawData!AKP3 -> 10351183 | AKR4: =RawData!AKQ3 -> 9812132 | AKS4: =RawData!AKR3 -> 9276346 | AKT4: =RawData!AKS3 -> 8743714 | AKU4: =RawData!AKT3 -> 8214126.5 | AKV4: =RawData!AKU3 -> 7687492.5 | AKW4: =RawData!AKV3 -> 7163715 | AKX4: =RawData!AKW3 -> 6642718.5 | AKY4: =RawData!AKX3 -> 6124426 | AKZ4: =RawData!AKY3 -> 5608762 | ALA4: =RawData!AKZ3 -> 5095669 | ALB4: =RawData!ALA3 -> 4585086 | ALC4: =RawData!ALB3 -> 4076958.3 | ALD4: =RawData!ALC3 -> 3571237.3 | ALE4: =RawData!ALD3 -> 708863 | ALF4: =RawData!ALE3 -> 678398.06 | ALG4: =RawData!ALF3 -> 648490.5 | ALH4: =RawData!ALG3 -> 619113.38 | ALI4: =RawData!ALH3 -> 590240.63 | ALJ4: =RawData!ALI3 -> 561848 | ALK4: =RawData!ALJ3 -> 533912.56 | ALL4: =RawData!ALK3 -> 506412.56 | ALM4: =RawData!ALL3 -> 479327.53 | ALN4: =RawData!ALM3 -> 452638.16 | ALO4: =RawData!ALN3 -> 426326.16 | ALP4: =RawData!ALO3 -> 400374.41 | ALQ4: =RawData!ALP3 -> 374766.69 | ALR4: =RawData!ALQ3 -> 349487.63 | ALS4: =RawData!ALR3 -> 324522.91 | ALT4: =RawData!ALS3 -> 299858.66 | ALU4: =RawData!ALT3 -> 275482.38 | ALV4: =RawData!ALU3 -> 251381.84 | ALW4: =RawData!ALV3 -> 227545.53 | ALX4: =RawData!ALW3 -> 203962.89 | ALY4: =RawData!ALX3 -> 180623.66 | ALZ4: =RawData!ALY3 -> 157518.31 | AMA4: =RawData!ALZ3 -> 135173.63 | AMB4: =RawData!AMA3 -> 532688.88 | AMC4: =RawData!AMB3 -> 516096.25 | AMD4: =RawData!AMC3 -> 499631.94 | AME4: =RawData!AMD3 -> 483290.56 | AMF4: =RawData!AME3 -> 467066.81 | AMG4: =RawData!AMF3 -> 450956.25 | AMH4: =RawData!AMG3 -> 434954.44 | AMI4: =RawData!AMH3 -> 419057.38 | AMJ4: =RawData!AMI3 -> 403261.44 | AMK4: =RawData!AMJ3 -> 387563.06 | AML4: =RawData!AMK3 -> 371959.22 | AMM4: =RawData!AML3 -> 356447 | AMN4: =RawData!AMM3 -> 341023.88 | AMO4: =RawData!AMN3 -> 325687.19 | AMP4: =RawData!AMO3 -> 310434.94 | AMQ4: =RawData!AMP3 -> 295264.94 | AMR4: =RawData!AMQ3 -> 280175.47 | AMS4: =RawData!AMR3 -> 265164.94 | AMT4: =RawData!AMS3 -> 250231.5 | AMU4: =RawData!AMT3 -> 235374.03 | AMV4: =RawData!AMU3 -> 220591.22 | AMW4: =RawData!AMV3 -> 205881.91 | AMX4: =RawData!AMW3 -> 191245.11 | AMY4: =RawData!AMX3 -> 2810597.3 | AMZ4: =RawData!AMY3 -> 2708005.3 | ANA4: =RawData!AMZ3 -> 2606656.3 | ANB4: =RawData!ANA3 -> 2506492.8 | ANC4: =RawData!ANB3 -> 2407458.5 | AND4: =RawData!ANC3 -> 2309503 | ANE4: =RawData!AND3 -> 2212577.5 | ANF4: =RawData!ANE3 -> 2116636.8 | ANG4: =RawData!ANF3 -> 2021639 | ANH4: =RawData!ANG3 -> 1927543.3 | ANI4: =RawData!ANH3 -> 1834313.3 | ANJ4: =RawData!ANI3 -> 1741913.5 | ANK4: =RawData!ANJ3 -> 1650312.1 | ANL4: =RawData!ANK3 -> 1559477.8 | ANM4: =RawData!ANL3 -> 1469382.6 | ANN4: =RawData!ANM3 -> 1379999 | ANO4: =RawData!ANN3 -> 1291303.5 | ANP4: =RawData!ANO3 -> 1203272 | ANQ4: =RawData!ANP3 -> 1115882 | ANR4: =RawData!ANQ3 -> 1029114.8 | ANS4: =RawData!ANR3 -> 942950.25 | ANT4: =RawData!ANS3 -> 857370.75 | ANU4: =RawData!ANT3 -> 772360.44 | ANV4: =RawData!ANU3 -> 2274244 | ANW4: =RawData!ANV3 -> 2173952.3 | ANX4: =RawData!ANW3 -> 2075086.6 | ANY4: =RawData!ANX3 -> 1977578.4 | ANZ4: =RawData!ANY3 -> 1881360 | AOA4: =RawData!ANZ3 -> 1786370.4 | AOB4: =RawData!AOA3 -> 1692550.6 | AOC4: =RawData!AOB3 -> 1599846.3 | AOD4: =RawData!AOC3 -> 1508205.3 | AOE4: =RawData!AOD3 -> 1417578.8 | AOF4: =RawData!AOE3 -> 1328429.3 | AOG4: =RawData!AOF3 -> 1244996.9 | AOH4: =RawData!AOG3 -> 1162579 | AOI4: =RawData!AOH3 -> 1081130.4 | AOJ4: =RawData!AOI3 -> 1000609.4 | AOK4: =RawData!AOJ3 -> 920975.94 | AOL4: =RawData!AOK3 -> 842193.38 | AOM4: =RawData!AOL3 -> 764226.19 | AON4: =RawData!AOM3 -> 687040.81 | AOO4: =RawData!AON3 -> 610606.75 | AOP4: =RawData!AOO3 -> 536815.5 | AOQ4: =RawData!AOP3 -> 468481.44 | AOR4: =RawData!AOQ3 -> 400812.97 | AOS4: =RawData!AOR3 -> 1692817 | AOT4: =RawData!AOS3 -> 1630562.9 | AOU4: =RawData!AOT3 -> 1569137.8 | AOV4: =RawData!AOU3 -> 1508503.5 | AOW4: =RawData!AOV3 -> 1448621.8 | AOX4: =RawData!AOW3 -> 1389458.9 | AOY4: =RawData!AOX3 -> 1330981.8 | AOZ4: =RawData!AOY3 -> 1273160.3 | APA4: =RawData!AOZ3 -> 1215965.1 | APB4: =RawData!APA3 -> 1159369.6 | APC4: =RawData!APB3 -> 1103348.4 | APD4: =RawData!APC3 -> 1047878 | APE4: =RawData!APD3 -> 992935.81 | APF4: =RawData!APE3 -> 938501.25 | APG4: =RawData!APF3 -> 884554.56 | APH4: =RawData!APG3 -> 831077.25 | API4: =RawData!APH3 -> 778052.75 | APJ4: =RawData!API3 -> 725464.69 | APK4: =RawData!APJ3 -> 673297.38 | APL4: =RawData!APK3 -> 621537.75 | APM4: =RawData!APL3 -> 570172.06 | APN4: =RawData!APM3 -> 519187.94 | APO4: =RawData!APN3 -> 468573.94 | APP4: =RawData!APO3 -> 1246865.5 | APQ4: =RawData!APP3 -> 1148054.4 | APR4: =RawData!APQ3 -> 1049957.3 | APS4: =RawData!APR3 -> 952534.88 | APT4: =RawData!APS3 -> 855749.31 | APU4: =RawData!APT3 -> 759565.81 | APV4: =RawData!APU3 -> 663951.44 | APW4: =RawData!APV3 -> 568876.38 | APX4: =RawData!APW3 -> 474311.78 | APY4: =RawData!APX3 -> 380231.63 | APZ4: =RawData!APY3 -> 286610.94 | AQA4: =RawData!APZ3 -> 264176.81 | AQB4: =RawData!AQA3 -> 251108.09 | AQC4: =RawData!AQB3 -> 238685.84 | AQD4: =RawData!AQC3 -> 226878.14 | AQE4: =RawData!AQD3 -> 215654.53 | AQF4: =RawData!AQE3 -> 204986.19 | AQG4: =RawData!AQF3 -> 194845.59 | AQH4: =RawData!AQG3 -> 185206.63 | AQI4: =RawData!AQH3 -> 176044.53 | AQJ4: =RawData!AQI3 -> 167335.67 | AQK4: =RawData!AQJ3 -> 159057.61 | AQL4: =RawData!AQK3 -> 151189.09 | AQM4: =RawData!AQL3 -> 333581.47 | AQN4: =RawData!AQM3 -> 320659.47 | AQO4: =RawData!AQN3 -> 307873 | AQP4: =RawData!AQO3 -> 295215.75 | AQQ4: =RawData!AQP3 -> 282681.63 | AQR4: =RawData!AQQ3 -> 270265 | AQS4: =RawData!AQR3 -> 257960.58 | AQT4: =RawData!AQS3 -> 245763.44 | AQU4: =RawData!AQT3 -> 233668.95 | AQV4: =RawData!AQU3 -> 221672.75 | AQW4: =RawData!AQV3 -> 209770.89 | AQX4: =RawData!AQW3 -> 197959.64 | AQY4: =RawData!AQX3 -> 186235.42 | AQZ4: =RawData!AQY3 -> 174594.98 | ARA4: =RawData!AQZ3 -> 163035.33 | ARB4: =RawData!ARA3 -> 151553.52 | ARC4: =RawData!ARB3 -> 140147.02 | ARD4: =RawData!ARC3 -> 128813.38 | ARE4: =RawData!ARD3 -> 117550.19 | ARF4: =RawData!ARE3 -> 106355.45 | ARG4: =RawData!ARF3 -> 95227.164 | ARH4: =RawData!ARG3 -> 84163.438 | ARI4: =RawData!ARH3 -> 73162.656
A5: 16 | B5: 0 | C5: =A5&"|"&B5 -> 16|0 | D5: =RawData!C4 -> 873823.31 | E5: =RawData!D4 -> 846980.5 | F5: =RawData!E4 -> 820248.44 | G5: =RawData!F4 -> 793621.25 | H5: =RawData!G4 -> 767093.13 | I5: =RawData!H4 -> 740659.38 | J5: =RawData!I4 -> 714315.63 | K5: =RawData!J4 -> 688058 | L5: =RawData!K4 -> 661883.13 | M5: =RawData!L4 -> 635787.81 | N5: =RawData!M4 -> 609769.5 | O5: =RawData!N4 -> 583826.13 | P5: =RawData!O4 -> 557955.5 | Q5: =RawData!P4 -> 532156 | R5: =RawData!Q4 -> 506426.53 | S5: =RawData!R4 -> 480765.84 | T5: =RawData!S4 -> 455173.16 | U5: =RawData!T4 -> 429648.06 | V5: =RawData!U4 -> 404189.75 | W5: =RawData!V4 -> 378798.5 | X5: =RawData!W4 -> 353473.94 | Y5: =RawData!X4 -> 328216.22 | Z5: =RawData!Y4 -> 303025.75 | AA5: =RawData!Z4 -> 836188.5 | AB5: =RawData!AA4 -> 813362.5 | AC5: =RawData!AB4 -> 790591.56 | AD5: =RawData!AC4 -> 767873.06 | AE5: =RawData!AD4 -> 745204.38 | AF5: =RawData!AE4 -> 722583.44 | AG5: =RawData!AF4 -> 700008.63 | AH5: =RawData!AG4 -> 677478.56 | AI5: =RawData!AH4 -> 654992.13 | AJ5: =RawData!AI4 -> 632548.5 | AK5: =RawData!AJ4 -> 610147.13 | AL5: =RawData!AK4 -> 587787.69 | AM5: =RawData!AL4 -> 565470.31 | AN5: =RawData!AM4 -> 543194.75 | AO5: =RawData!AN4 -> 520961.63 | AP5: =RawData!AO4 -> 498771.13 | AQ5: =RawData!AP4 -> 476623.97 | AR5: =RawData!AQ4 -> 454521.22 | AS5: =RawData!AR4 -> 432463 | AT5: =RawData!AS4 -> 410450.97 | AU5: =RawData!AT4 -> 388485.78 | AV5: =RawData!AU4 -> 366568.78 | AW5: =RawData!AV4 -> 344701.13 | AX5: =RawData!AW4 -> 747350 | AY5: =RawData!AX4 -> 721478.25 | AZ5: =RawData!AY4 -> 695718.69 | BA5: =RawData!AZ4 -> 670064.63 | BB5: =RawData!BA4 -> 644510.31 | BC5: =RawData!BB4 -> 619050.13 | BD5: =RawData!BC4 -> 593679.38 | BE5: =RawData!BD4 -> 568394 | BF5: =RawData!BE4 -> 543189.88 | BG5: =RawData!BF4 -> 518063.47 | BH5: =RawData!BG4 -> 493011.88 | BI5: =RawData!BH4 -> 468032.31 | BJ5: =RawData!BI4 -> 443122.63 | BK5: =RawData!BJ4 -> 418280.47 | BL5: =RawData!BK4 -> 393504.47 | BM5: =RawData!BL4 -> 368792.72 | BN5: =RawData!BM4 -> 344144.5 | BO5: =RawData!BN4 -> 319558.63 | BP5: =RawData!BO4 -> 295034.16 | BQ5: =RawData!BP4 -> 270570.91 | BR5: =RawData!BQ4 -> 246168.2 | BS5: =RawData!BR4 -> 221825.84 | BT5: =RawData!BS4 -> 197543.88 | BU5: =RawData!BT4 -> 3142245.8 | BV5: =RawData!BU4 -> 3019714.5 | BW5: =RawData!BV4 -> 2899353.3 | BX5: =RawData!BW4 -> 2781051 | BY5: =RawData!BX4 -> 2664703 | BZ5: =RawData!BY4 -> 2550210.8 | CA5: =RawData!BZ4 -> 2437482 | CB5: =RawData!CA4 -> 2326429.3 | CC5: =RawData!CB4 -> 2216970.5 | CD5: =RawData!CC4 -> 2109027.5 | CE5: =RawData!CD4 -> 2002528.5 | CF5: =RawData!CE4 -> 1897404.6 | CG5: =RawData!CF4 -> 1793591.5 | CH5: =RawData!CG4 -> 1691028.4 | CI5: =RawData!CH4 -> 1589658.9 | CJ5: =RawData!CI4 -> 1489429.1 | CK5: =RawData!CJ4 -> 1390289.3 | CL5: =RawData!CK4 -> 1292192 | CM5: =RawData!CL4 -> 1195092.5 | CN5: =RawData!CM4 -> 1098950.1 | CO5: =RawData!CN4 -> 1003725.4 | CP5: =RawData!CO4 -> 909381.63 | CQ5: =RawData!CP4 -> 815884.69 | CR5: =RawData!CQ4 -> 24787450 | CS5: =RawData!CR4 -> 23863428 | CT5: =RawData!CS4 -> 22952304 | CU5: =RawData!CT4 -> 22053414 | CV5: =RawData!CU4 -> 21166126 | CW5: =RawData!CV4 -> 20289860 | CX5: =RawData!CW4 -> 19424058 | CY5: =RawData!CX4 -> 18568216 | CZ5: =RawData!CY4 -> 17721840 | DA5: =RawData!CZ4 -> 16884480 | DB5: =RawData!DA4 -> 16055708 | DC5: =RawData!DB4 -> 15235130 | DD5: =RawData!DC4 -> 14422374 | DE5: =RawData!DD4 -> 13617090 | DF5: =RawData!DE4 -> 12818957 | DG5: =RawData!DF4 -> 12027663 | DH5: =RawData!DG4 -> 11242934 | DI5: =RawData!DH4 -> 10464501 | DJ5: =RawData!DI4 -> 9692111 | DK5: =RawData!DJ4 -> 8925543 | DL5: =RawData!DK4 -> 8164576 | DM5: =RawData!DL4 -> 7409011 | DN5: =RawData!DM4 -> 6658662.5 | DO5: =RawData!DN4 -> 1833208.8 | DP5: =RawData!DO4 -> 1783134.8 | DQ5: =RawData!DP4 -> 1733063 | DR5: =RawData!DQ4 -> 1682993.9 | DS5: =RawData!DR4 -> 1632927.1 | DT5: =RawData!DS4 -> 1582862.9 | DU5: =RawData!DT4 -> 1532802.6 | DV5: =RawData!DU4 -> 1482748.5 | DW5: =RawData!DV4 -> 1432701.9 | DX5: =RawData!DW4 -> 1382665.8 | DY5: =RawData!DX4 -> 1332642.5 | DZ5: =RawData!DY4 -> 1282636 | EA5: =RawData!DZ4 -> 1232649.5 | EB5: =RawData!EA4 -> 1182686.6 | EC5: =RawData!EB4 -> 1132751.9 | ED5: =RawData!EC4 -> 1082849 | EE5: =RawData!ED4 -> 1032983 | EF5: =RawData!EE4 -> 983158.44 | EG5: =RawData!EF4 -> 933379.25 | EH5: =RawData!EG4 -> 883651.38 | EI5: =RawData!EH4 -> 833979 | EJ5: =RawData!EI4 -> 784367.5 | EK5: =RawData!EJ4 -> 734821.81 | EL5: =RawData!EK4 -> 6095635 | EM5: =RawData!EL4 -> 5936767 | EN5: =RawData!EM4 -> 5779558 | EO5: =RawData!EN4 -> 5623929 | EP5: =RawData!EO4 -> 5469804 | EQ5: =RawData!EP4 -> 5317116.5 | ER5: =RawData!EQ4 -> 5165802 | ES5: =RawData!ER4 -> 5015801 | ET5: =RawData!ES4 -> 4867058 | EU5: =RawData!ET4 -> 4719523 | EV5: =RawData!EU4 -> 4573147 | EW5: =RawData!EV4 -> 4427890 | EX5: =RawData!EW4 -> 4283710 | EY5: =RawData!EX4 -> 4140569.5 | EZ5: =RawData!EY4 -> 3998435.3 | FA5: =RawData!EZ4 -> 3857275 | FB5: =RawData!FA4 -> 3717061.8 | FC5: =RawData!FB4 -> 3577769.5 | FD5: =RawData!FC4 -> 3439371 | FE5: =RawData!FD4 -> 3301847.5 | FF5: =RawData!FE4 -> 3165177.5 | FG5: =RawData!FF4 -> 3029343 | FH5: =RawData!FG4 -> 2894327 | FI5: =RawData!FH4 -> 884988.94 | FJ5: =RawData!FI4 -> 843113.38 | FK5: =RawData!FJ4 -> 801830.69 | FL5: =RawData!FK4 -> 761109.44 | FM5: =RawData!FL4 -> 720919.56 | FN5: =RawData!FM4 -> 681233.44 | FO5: =RawData!FN4 -> 642024.56 | FP5: =RawData!FO4 -> 603268.38 | FQ5: =RawData!FP4 -> 564941.69 | FR5: =RawData!FQ4 -> 527022.69 | FS5: =RawData!FR4 -> 489490.94 | FT5: =RawData!FS4 -> 452327.56 | FU5: =RawData!FT4 -> 415514.47 | FV5: =RawData!FU4 -> 379034.72 | FW5: =RawData!FV4 -> 342872.81 | FX5: =RawData!FW4 -> 307013.84 | FY5: =RawData!FX4 -> 271444.16 | FZ5: =RawData!FY4 -> 236150.98 | GA5: =RawData!FZ4 -> 201121.8 | GB5: =RawData!GA4 -> 166345.89 | GC5: =RawData!GB4 -> 145370.36 | GD5: =RawData!GC4 -> 137496.23 | GE5: =RawData!GD4 -> 130575.7 | GF5: =RawData!GE4 -> 2674115.8 | GG5: =RawData!GF4 -> 2562282 | GH5: =RawData!GG4 -> 2451030.3 | GI5: =RawData!GH4 -> 2340326.3 | GJ5: =RawData!GI4 -> 2230136.3 | GK5: =RawData!GJ4 -> 2120431.3 | GL5: =RawData!GK4 -> 2011183.6 | GM5: =RawData!GL4 -> 1902369.8 | GN5: =RawData!GM4 -> 1793965.6 | GO5: =RawData!GN4 -> 1685951.1 | GP5: =RawData!GO4 -> 1578307.8 | GQ5: =RawData!GP4 -> 1471018.8 | GR5: =RawData!GQ4 -> 1364069.3 | GS5: =RawData!GR4 -> 1257445.3 | GT5: =RawData!GS4 -> 1151134.8 | GU5: =RawData!GT4 -> 1045127 | GV5: =RawData!GU4 -> 939413.25 | GW5: =RawData!GV4 -> 833984.75 | GX5: =RawData!GW4 -> 728833.44 | GY5: =RawData!GX4 -> 623954.94 | GZ5: =RawData!GY4 -> 519343.03 | HA5: =RawData!GZ4 -> 414993.13 | HB5: =RawData!HA4 -> 310902.38 | HC5: =RawData!HB4 -> 2374155.8 | HD5: =RawData!HC4 -> 2283604.5 | HE5: =RawData!HD4 -> 2193701.5 | HF5: =RawData!HE4 -> 2104411 | HG5: =RawData!HF4 -> 2015698.4 | HH5: =RawData!HG4 -> 1927533.9 | HI5: =RawData!HH4 -> 1839888.5 | HJ5: =RawData!HI4 -> 1752736.1 | HK5: =RawData!HJ4 -> 1666052.9 | HL5: =RawData!HK4 -> 1579815.6 | HM5: =RawData!HL4 -> 1494004.4 | HN5: =RawData!HM4 -> 1408600.6 | HO5: =RawData!HN4 -> 1323587.1 | HP5: =RawData!HO4 -> 1238947.8 | HQ5: =RawData!HP4 -> 1154669.3 | HR5: =RawData!HQ4 -> 1070737.5 | HS5: =RawData!HR4 -> 987141.69 | HT5: =RawData!HS4 -> 903871.44 | HU5: =RawData!HT4 -> 820916.06 | HV5: =RawData!HU4 -> 738268.38 | HW5: =RawData!HV4 -> 655920.06 | HX5: =RawData!HW4 -> 573864.31 | HY5: =RawData!HX4 -> 492804.16 | HZ5: =RawData!HY4 -> 1788598.1 | IA5: =RawData!HZ4 -> 1732047.1 | IB5: =RawData!IA4 -> 1676225.4 | IC5: =RawData!IB4 -> 1621096.8 | ID5: =RawData!IC4 -> 1566626.4 | IE5: =RawData!ID4 -> 1512782.4 | IF5: =RawData!IE4 -> 1459534.5 | IG5: =RawData!IF4 -> 1406855 | IH5: =RawData!IG4 -> 1354717.3 | II5: =RawData!IH4 -> 1303096.6 | IJ5: =RawData!II4 -> 1251970 | IK5: =RawData!IJ4 -> 1201316.5 | IL5: =RawData!IK4 -> 1151116 | IM5: =RawData!IL4 -> 1101349.8 | IN5: =RawData!IM4 -> 1052000.6 | IO5: =RawData!IN4 -> 1003052.1 | IP5: =RawData!IO4 -> 954489.5 | IQ5: =RawData!IP4 -> 906299.19 | IR5: =RawData!IQ4 -> 858467.5 | IS5: =RawData!IR4 -> 810983 | IT5: =RawData!IS4 -> 763834.25 | IU5: =RawData!IT4 -> 717010.88 | IV5: =RawData!IU4 -> 670503.44 | IW5: =RawData!IV4 -> 388118.53 | IX5: =RawData!IW4 -> 368251.34 | IY5: =RawData!IX4 -> 348642.22 | IZ5: =RawData!IY4 -> 329277.09 | JA5: =RawData!IZ4 -> 310142.88 | JB5: =RawData!JA4 -> 291227.06 | JC5: =RawData!JB4 -> 272518.09 | JD5: =RawData!JC4 -> 254005.06 | JE5: =RawData!JD4 -> 235677.73 | JF5: =RawData!JE4 -> 217526.5 | JG5: =RawData!JF4 -> 199542.31 | JH5: =RawData!JG4 -> 181716.89 | JI5: =RawData!JH4 -> 164042.34 | JJ5: =RawData!JI4 -> 146511.16 | JK5: =RawData!JJ4 -> 129116.62 | JL5: =RawData!JK4 -> 111852.12 | JM5: =RawData!JL4 -> 94711.813 | JN5: =RawData!JM4 -> 77689.984 | JO5: =RawData!JN4 -> 60781.344 | JP5: =RawData!JO4 -> 44959.023 | JQ5: =RawData!JP4 -> 42734.914 | JR5: =RawData!JQ4 -> 40620.828 | JS5: =RawData!JR4 -> 38611.332 | JT5: =RawData!JS4 -> 21536634 | JU5: =RawData!JT4 -> 20970948 | JV5: =RawData!JU4 -> 20414860 | JW5: =RawData!JV4 -> 19867916 | JX5: =RawData!JW4 -> 19329674 | JY5: =RawData!JX4 -> 18799732 | JZ5: =RawData!JY4 -> 18277712 | KA5: =RawData!JZ4 -> 17763250 | KB5: =RawData!KA4 -> 17256012 | KC5: =RawData!KB4 -> 16755680 | KD5: =RawData!KC4 -> 16261958 | KE5: =RawData!KD4 -> 15774570 | KF5: =RawData!KE4 -> 15293255 | KG5: =RawData!KF4 -> 14817766 | KH5: =RawData!KG4 -> 14347881 | KI5: =RawData!KH4 -> 13883378 | KJ5: =RawData!KI4 -> 13424064 | KK5: =RawData!KJ4 -> 12969751 | KL5: =RawData!KK4 -> 12520254 | KM5: =RawData!KL4 -> 12075424 | KN5: =RawData!KM4 -> 11635095 | KO5: =RawData!KN4 -> 11199129 | KP5: =RawData!KO4 -> 10767391 | KQ5: =RawData!KP4 -> 2468112.5 | KR5: =RawData!KQ4 -> 2372453.5 | KS5: =RawData!KR4 -> 2279381 | KT5: =RawData!KS4 -> 2188767.5 | KU5: =RawData!KT4 -> 2100489.3 | KV5: =RawData!KU4 -> 2014431 | KW5: =RawData!KV4 -> 1930483.4 | KX5: =RawData!KW4 -> 1848543 | KY5: =RawData!KX4 -> 1768511.1 | KZ5: =RawData!KY4 -> 1690295.3 | LA5: =RawData!KZ4 -> 1613807.6 | LB5: =RawData!LA4 -> 1538965.3 | LC5: =RawData!LB4 -> 1465689.8 | LD5: =RawData!LC4 -> 1393906.6 | LE5: =RawData!LD4 -> 1323545.8 | LF5: =RawData!LE4 -> 1254540.5 | LG5: =RawData!LF4 -> 1186828.8 | LH5: =RawData!LG4 -> 1120350.8 | LI5: =RawData!LH4 -> 1055049.9 | LJ5: =RawData!LI4 -> 990874 | LK5: =RawData!LJ4 -> 927772.44 | LL5: =RawData!LK4 -> 866416.19 | LM5: =RawData!LL4 -> 806886 | LN5: =RawData!LM4 -> 3162775 | LO5: =RawData!LN4 -> 3032125.8 | LP5: =RawData!LO4 -> 2902931.5 | LQ5: =RawData!LP4 -> 2775115 | LR5: =RawData!LQ4 -> 2648603 | LS5: =RawData!LR4 -> 2523326.3 | LT5: =RawData!LS4 -> 2399221.8 | LU5: =RawData!LT4 -> 2276230.3 | LV5: =RawData!LU4 -> 2154295.3 | LW5: =RawData!LV4 -> 2033364.8 | LX5: =RawData!LW4 -> 1913389.9 | LY5: =RawData!LX4 -> 1794326.8 | LZ5: =RawData!LY4 -> 1676132 | MA5: =RawData!LZ4 -> 1558767 | MB5: =RawData!MA4 -> 1442195.6 | MC5: =RawData!MB4 -> 1326383.3 | MD5: =RawData!MC4 -> 1211299.1 | ME5: =RawData!MD4 -> 1096914.4 | MF5: =RawData!ME4 -> 983200.75 | MG5: =RawData!MF4 -> 870134.94 | MH5: =RawData!MG4 -> 757692.63 | MI5: =RawData!MH4 -> 645852.44 | MJ5: =RawData!MI4 -> 534595.44 | MK5: =RawData!MJ4 -> 1643580.6 | ML5: =RawData!MK4 -> 1579891.4 | MM5: =RawData!ML4 -> 1517570 | MN5: =RawData!MM4 -> 1456547.9 | MO5: =RawData!MN4 -> 1396759.3 | MP5: =RawData!MO4 -> 1338142.9 | MQ5: =RawData!MP4 -> 1280640.6 | MR5: =RawData!MQ4 -> 1224197.4 | MS5: =RawData!MR4 -> 1168761.5 | MT5: =RawData!MS4 -> 1114283.8 | MU5: =RawData!MT4 -> 1060718.5 | MV5: =RawData!MU4 -> 1008021.9 | MW5: =RawData!MV4 -> 956153.19 | MX5: =RawData!MW4 -> 905073.31 | MY5: =RawData!MX4 -> 854746 | MZ5: =RawData!MY4 -> 805136.56 | NA5: =RawData!MZ4 -> 756213 | NB5: =RawData!NA4 -> 707944.81 | NC5: =RawData!NB4 -> 660302.44 | ND5: =RawData!NC4 -> 613259.75 | NE5: =RawData!ND4 -> 566790.56 | NF5: =RawData!NE4 -> 520870.91 | NG5: =RawData!NF4 -> 475478.28 | NH5: =RawData!NG4 -> 4373775.5 | NI5: =RawData!NH4 -> 4254514.5 | NJ5: =RawData!NI4 -> 4137233.5 | NK5: =RawData!NJ4 -> 4021837.8 | NL5: =RawData!NK4 -> 3908236 | NM5: =RawData!NL4 -> 3796344.8 | NN5: =RawData!NM4 -> 3686084.3 | NO5: =RawData!NN4 -> 3577380.8 | NP5: =RawData!NO4 -> 3470163 | NQ5: =RawData!NP4 -> 3364366 | NR5: =RawData!NQ4 -> 3259927.5 | NS5: =RawData!NR4 -> 3156791 | NT5: =RawData!NS4 -> 3054901.8 | NU5: =RawData!NT4 -> 2954209 | NV5: =RawData!NU4 -> 2854665.8 | NW5: =RawData!NV4 -> 2756227 | NX5: =RawData!NW4 -> 2658851.5 | NY5: =RawData!NX4 -> 2562501.3 | NZ5: =RawData!NY4 -> 2467137.8 | OA5: =RawData!NZ4 -> 2372729.3 | OB5: =RawData!OA4 -> 2279242.8 | OC5: =RawData!OB4 -> 2186648.5 | OD5: =RawData!OC4 -> 2094919 | OE5: =RawData!OD4 -> 6118232.5 | OF5: =RawData!OE4 -> 5939205.5 | OG5: =RawData!OF4 -> 5761619.5 | OH5: =RawData!OG4 -> 5585403 | OI5: =RawData!OH4 -> 5410487.5 | OJ5: =RawData!OI4 -> 5236811.5 | OK5: =RawData!OJ4 -> 5064317.5 | OL5: =RawData!OK4 -> 4892954 | OM5: =RawData!OL4 -> 4722671 | ON5: =RawData!OM4 -> 4553424 | OO5: =RawData!ON4 -> 4385173 | OP5: =RawData!OO4 -> 4217880.5 | OQ5: =RawData!OP4 -> 4051512.3 | OR5: =RawData!OQ4 -> 3886036.3 | OS5: =RawData!OR4 -> 3721425.8 | OT5: =RawData!OS4 -> 3557653.8 | OU5: =RawData!OT4 -> 3394697.8 | OV5: =RawData!OU4 -> 3232538 | OW5: =RawData!OV4 -> 3071152 | OX5: =RawData!OW4 -> 2910527.5 | OY5: =RawData!OX4 -> 2750647 | OZ5: =RawData!OY4 -> 2591496.8 | PA5: =RawData!OZ4 -> 2433066.3 | PB5: =RawData!PA4 -> 920838.5 | PC5: =RawData!PB4 -> 883060.31 | PD5: =RawData!PC4 -> 845454 | PE5: =RawData!PD4 -> 808008.88 | PF5: =RawData!PE4 -> 770714.81 | PG5: =RawData!PF4 -> 733563.25 | PH5: =RawData!PG4 -> 696546.19 | PI5: =RawData!PH4 -> 659656.13 | PJ5: =RawData!PI4 -> 622886.5 | PK5: =RawData!PJ4 -> 586231.31 | PL5: =RawData!PK4 -> 549685.19 | PM5: =RawData!PL4 -> 513243.53 | PN5: =RawData!PM4 -> 476901.88 | PO5: =RawData!PN4 -> 440656.5 | PP5: =RawData!PO4 -> 404504.25 | PQ5: =RawData!PP4 -> 368441.94 | PR5: =RawData!PQ4 -> 332467.53 | PS5: =RawData!PR4 -> 296578.66 | PT5: =RawData!PS4 -> 260773.42 | PU5: =RawData!PT4 -> 225050.77 | PV5: =RawData!PU4 -> 189409.16 | PW5: =RawData!PV4 -> 153847.83 | PX5: =RawData!PW4 -> 118366.16 | PY5: =RawData!PX4 -> 7570797 | PZ5: =RawData!PY4 -> 7307411.5 | QA5: =RawData!PZ4 -> 7047751.5 | QB5: =RawData!QA4 -> 6791628.5 | QC5: =RawData!QB4 -> 6538861 | QD5: =RawData!QC4 -> 6289285 | QE5: =RawData!QD4 -> 6042741.5 | QF5: =RawData!QE4 -> 5799085.5 | QG5: =RawData!QF4 -> 5558177 | QH5: =RawData!QG4 -> 5319888.5 | QI5: =RawData!QH4 -> 5084097 | QJ5: =RawData!QI4 -> 4850691.5 | QK5: =RawData!QJ4 -> 4619565 | QL5: =RawData!QK4 -> 4390618.5 | QM5: =RawData!QL4 -> 4163759.8 | QN5: =RawData!QM4 -> 3938901.8 | QO5: =RawData!QN4 -> 3715964.5 | QP5: =RawData!QO4 -> 3494873 | QQ5: =RawData!QP4 -> 3275554.5 | QR5: =RawData!QQ4 -> 3057947 | QS5: =RawData!QR4 -> 2841986.8 | QT5: =RawData!QS4 -> 2627617.3 | QU5: =RawData!QT4 -> 2414786.8 | QV5: =RawData!QU4 -> 9722906 | QW5: =RawData!QV4 -> 9443374 | QX5: =RawData!QW4 -> 9165350 | QY5: =RawData!QX4 -> 8888764 | QZ5: =RawData!QY4 -> 8613540 | RA5: =RawData!QZ4 -> 8339614 | RB5: =RawData!RA4 -> 8066930.5 | RC5: =RawData!RB4 -> 7795437.5 | RD5: =RawData!RC4 -> 7525087.5 | RE5: =RawData!RD4 -> 7255836.5 | RF5: =RawData!RE4 -> 6987648 | RG5: =RawData!RF4 -> 6720490.5 | RH5: =RawData!RG4 -> 6454333.5 | RI5: =RawData!RH4 -> 6189149.5 | RJ5: =RawData!RI4 -> 5924920 | RK5: =RawData!RJ4 -> 5661622 | RL5: =RawData!RK4 -> 5399242.5 | RM5: =RawData!RL4 -> 5137767.5 | RN5: =RawData!RM4 -> 4877183 | RO5: =RawData!RN4 -> 4617485 | RP5: =RawData!RO4 -> 4358663 | RQ5: =RawData!RP4 -> 4100712.5 | RR5: =RawData!RQ4 -> 3843633 | RS5: =RawData!RR4 -> 1781306.5 | RT5: =RawData!RS4 -> 1731859 | RU5: =RawData!RT4 -> 1682475.3 | RV5: =RawData!RU4 -> 1633152.8 | RW5: =RawData!RV4 -> 1583887.1 | RX5: =RawData!RW4 -> 1534676.6 | RY5: =RawData!RX4 -> 1485520 | RZ5: =RawData!RY4 -> 1436416.5 | SA5: =RawData!RZ4 -> 1387365.5 | SB5: =RawData!SA4 -> 1338366.8 | SC5: =RawData!SB4 -> 1289421.4 | SD5: =RawData!SC4 -> 1240530.5 | SE5: =RawData!SD4 -> 1191695.3 | SF5: =RawData!SE4 -> 1142917.9 | SG5: =RawData!SF4 -> 1094200.3 | SH5: =RawData!SG4 -> 1045544.6 | SI5: =RawData!SH4 -> 996954.06 | SJ5: =RawData!SI4 -> 948431.69 | SK5: =RawData!SJ4 -> 899979.69 | SL5: =RawData!SK4 -> 851602.56 | SM5: =RawData!SL4 -> 803302.88 | SN5: =RawData!SM4 -> 755084.5 | SO5: =RawData!SN4 -> 706951.13 | SP5: =RawData!SO4 -> 1590237.9 | SQ5: =RawData!SP4 -> 1535102.8 | SR5: =RawData!SQ4 -> 1480171.3 | SS5: =RawData!SR4 -> 1425431.6 | ST5: =RawData!SS4 -> 1370872.5 | SU5: =RawData!ST4 -> 1316484 | SV5: =RawData!SU4 -> 1262257.5 | SW5: =RawData!SV4 -> 1208185.1 | SX5: =RawData!SW4 -> 1154260 | SY5: =RawData!SX4 -> 1100475.8 | SZ5: =RawData!SY4 -> 1046827.2 | TA5: =RawData!SZ4 -> 993309.88 | TB5: =RawData!TA4 -> 939919.81 | TC5: =RawData!TB4 -> 886653.56 | TD5: =RawData!TC4 -> 833508.75 | TE5: =RawData!TD4 -> 780483 | TF5: =RawData!TE4 -> 727574.88 | TG5: =RawData!TF4 -> 674783.19 | TH5: =RawData!TG4 -> 622106.63 | TI5: =RawData!TH4 -> 569545.56 | TJ5: =RawData!TI4 -> 517099.47 | TK5: =RawData!TJ4 -> 464768.53 | TL5: =RawData!TK4 -> 412553.56 | TM5: =RawData!TL4 -> 3805755.8 | TN5: =RawData!TM4 -> 3700749.3 | TO5: =RawData!TN4 -> 3595911.5 | TP5: =RawData!TO4 -> 3491234 | TQ5: =RawData!TP4 -> 3386708 | TR5: =RawData!TQ4 -> 3282327.5 | TS5: =RawData!TR4 -> 3178089.3 | TT5: =RawData!TS4 -> 3073989.8 | TU5: =RawData!TT4 -> 2970026.8 | TV5: =RawData!TU4 -> 2866198.8 | TW5: =RawData!TV4 -> 2762507 | TX5: =RawData!TW4 -> 2658953 | TY5: =RawData!TX4 -> 2555538.5 | TZ5: =RawData!TY4 -> 2452265.8 | UA5: =RawData!TZ4 -> 2349140 | UB5: =RawData!UA4 -> 2246163.8 | UC5: =RawData!UB4 -> 2143343.5 | UD5: =RawData!UC4 -> 2040684.5 | UE5: =RawData!UD4 -> 1938190.5 | UF5: =RawData!UE4 -> 1835871.1 | UG5: =RawData!UF4 -> 1733730.6 | UH5: =RawData!UG4 -> 1631776.8 | UI5: =RawData!UH4 -> 1530016.8 | UJ5: =RawData!UI4 -> 1807181.3 | UK5: =RawData!UJ4 -> 1744778.3 | UL5: =RawData!UK4 -> 1683287.1 | UM5: =RawData!UL4 -> 1622661.4 | UN5: =RawData!UM4 -> 1562857.5 | UO5: =RawData!UN4 -> 1503834.5 | UP5: =RawData!UO4 -> 1445554.3 | UQ5: =RawData!UP4 -> 1387981.1 | UR5: =RawData!UQ4 -> 1331080.9 | US5: =RawData!UR4 -> 1274822.1 | UT5: =RawData!US4 -> 1219175.3 | UU5: =RawData!UT4 -> 1164112.5 | UV5: =RawData!UU4 -> 1109607.9 | UW5: =RawData!UV4 -> 1055637 | UX5: =RawData!UW4 -> 1002177.4 | UY5: =RawData!UX4 -> 949207.63 | UZ5: =RawData!UY4 -> 896707.75 | VA5: =RawData!UZ4 -> 844659.75 | VB5: =RawData!VA4 -> 793045.44 | VC5: =RawData!VB4 -> 741849.5 | VD5: =RawData!VC4 -> 691056.25 | VE5: =RawData!VD4 -> 640651.81 | VF5: =RawData!VE4 -> 590623.19 | VG5: =RawData!VF4 -> 591099.44 | VH5: =RawData!VG4 -> 571360.44 | VI5: =RawData!VH4 -> 551767.56 | VJ5: =RawData!VI4 -> 532313.13 | VK5: =RawData!VJ4 -> 512989.81 | VL5: =RawData!VK4 -> 493791.03 | VM5: =RawData!VL4 -> 474710.66 | VN5: =RawData!VM4 -> 455743.16 | VO5: =RawData!VN4 -> 436883.25 | VP5: =RawData!VO4 -> 418126.16 | VQ5: =RawData!VP4 -> 399467.56 | VR5: =RawData!VQ4 -> 380903.47 | VS5: =RawData!VR4 -> 362430.34 | VT5: =RawData!VS4 -> 344044.63 | VU5: =RawData!VT4 -> 325743.56 | VV5: =RawData!VU4 -> 307524.19 | VW5: =RawData!VV4 -> 289384.22 | VX5: =RawData!VW4 -> 271321.53 | VY5: =RawData!VX4 -> 253333.8 | VZ5: =RawData!VY4 -> 235419.55 | WA5: =RawData!VZ4 -> 217577.05 | WB5: =RawData!WA4 -> 199804.94 | WC5: =RawData!WB4 -> 182101.95 | WD5: =RawData!WC4 -> 181372.61 | WE5: =RawData!WD4 -> 174616.88 | WF5: =RawData!WE4 -> 167891.64 | WG5: =RawData!WF4 -> 161195.16 | WH5: =RawData!WG4 -> 154525.66 | WI5: =RawData!WH4 -> 147881.7 | WJ5: =RawData!WI4 -> 141261.91 | WK5: =RawData!WJ4 -> 134665.08 | WL5: =RawData!WK4 -> 128090.06 | WM5: =RawData!WL4 -> 121535.84 | WN5: =RawData!WM4 -> 115001.52 | WO5: =RawData!WN4 -> 108486.36 | WP5: =RawData!WO4 -> 101989.66 | WQ5: =RawData!WP4 -> 95510.766 | WR5: =RawData!WQ4 -> 89049.164 | WS5: =RawData!WR4 -> 82604.391 | WT5: =RawData!WS4 -> 76176.063 | WU5: =RawData!WT4 -> 69763.891 | WV5: =RawData!WU4 -> 63367.531 | WW5: =RawData!WV4 -> 56986.848 | WX5: =RawData!WW4 -> 50621.625 | WY5: =RawData!WX4 -> 44271.758 | WZ5: =RawData!WY4 -> 37937.188 | XA5: =RawData!WZ4 -> 673557.81 | XB5: =RawData!XA4 -> 647642.5 | XC5: =RawData!XB4 -> 622273.31 | XD5: =RawData!XC4 -> 597423 | XE5: =RawData!XD4 -> 573065.38 | XF5: =RawData!XE4 -> 549175.69 | XG5: =RawData!XF4 -> 525730.88 | XH5: =RawData!XG4 -> 502709.09 | XI5: =RawData!XH4 -> 480089.53 | XJ5: =RawData!XI4 -> 457852.69 | XK5: =RawData!XJ4 -> 435980.22 | XL5: =RawData!XK4 -> 414454.78 | XM5: =RawData!XL4 -> 393260.09 | XN5: =RawData!XM4 -> 372380.59 | XO5: =RawData!XN4 -> 351801.91 | XP5: =RawData!XO4 -> 331510.13 | XQ5: =RawData!XP4 -> 311492.53 | XR5: =RawData!XQ4 -> 291736.97 | XS5: =RawData!XR4 -> 272231.81 | XT5: =RawData!XS4 -> 252966.45 | XU5: =RawData!XT4 -> 233930.69 | XV5: =RawData!XU4 -> 215114.84 | XW5: =RawData!XV4 -> 196510.06 | XX5: =RawData!XW4 -> 267677.09 | XY5: =RawData!XX4 -> 259703.7 | XZ5: =RawData!XY4 -> 251791.47 | YA5: =RawData!XZ4 -> 243937.45 | YB5: =RawData!YA4 -> 236138.66 | YC5: =RawData!YB4 -> 228392.41 | YD5: =RawData!YC4 -> 220696.34 | YE5: =RawData!YD4 -> 213048.17 | YF5: =RawData!YE4 -> 205445.88 | YG5: =RawData!YF4 -> 197887.45 | YH5: =RawData!YG4 -> 190371.25 | YI5: =RawData!YH4 -> 182895.69 | YJ5: =RawData!YI4 -> 175459.3 | YK5: =RawData!YJ4 -> 168060.77 | YL5: =RawData!YK4 -> 160698.91 | YM5: =RawData!YL4 -> 153372.64 | YN5: =RawData!YM4 -> 146081.03 | YO5: =RawData!YN4 -> 138823.19 | YP5: =RawData!YO4 -> 131598.27 | YQ5: =RawData!YP4 -> 124405.7 | YR5: =RawData!YQ4 -> 117244.79 | YS5: =RawData!YR4 -> 110114.98 | YT5: =RawData!YS4 -> 103015.84 | YU5: =RawData!YT4 -> 15617743 | YV5: =RawData!YU4 -> 15133403 | YW5: =RawData!YV4 -> 14660267 | YX5: =RawData!YW4 -> 14197787 | YY5: =RawData!YX4 -> 13745438 | YZ5: =RawData!YY4 -> 13302736 | ZA5: =RawData!YZ4 -> 12869217 | ZB5: =RawData!ZA4 -> 12444443 | ZC5: =RawData!ZB4 -> 12028003 | ZD5: =RawData!ZC4 -> 11619504 | ZE5: =RawData!ZD4 -> 11218582 | ZF5: =RawData!ZE4 -> 10824889 | ZG5: =RawData!ZF4 -> 10438099 | ZH5: =RawData!ZG4 -> 10057902 | ZI5: =RawData!ZH4 -> 9684014 | ZJ5: =RawData!ZI4 -> 9316161 | ZK5: =RawData!ZJ4 -> 8954079 | ZL5: =RawData!ZK4 -> 8597526 | ZM5: =RawData!ZL4 -> 8246264.5 | ZN5: =RawData!ZM4 -> 7900086 | ZO5: =RawData!ZN4 -> 7558781.5 | ZP5: =RawData!ZO4 -> 7222161.5 | ZQ5: =RawData!ZP4 -> 6890041.5 | ZR5: =RawData!ZQ4 -> 1581900.8 | ZS5: =RawData!ZR4 -> 1529272.9 | ZT5: =RawData!ZS4 -> 1476881.9 | ZU5: =RawData!ZT4 -> 1424714.8 | ZV5: =RawData!ZU4 -> 1372759 | ZW5: =RawData!ZV4 -> 1321003.5 | ZX5: =RawData!ZW4 -> 1269438.8 | ZY5: =RawData!ZX4 -> 1218055.6 | ZZ5: =RawData!ZY4 -> 1166846.1 | AAA5: =RawData!ZZ4 -> 1115803 | AAB5: =RawData!AAA4 -> 1064920 | AAC5: =RawData!AAB4 -> 1014191.8 | AAD5: =RawData!AAC4 -> 963613.38 | AAE5: =RawData!AAD4 -> 913180.38 | AAF5: =RawData!AAE4 -> 862889.5 | AAG5: =RawData!AAF4 -> 812737.38 | AAH5: =RawData!AAG4 -> 762721.88 | AAI5: =RawData!AAH4 -> 712840.94 | AAJ5: =RawData!AAI4 -> 663092.5 | AAK5: =RawData!AAJ4 -> 613475.94 | AAL5: =RawData!AAK4 -> 563990.06 | AAM5: =RawData!AAL4 -> 514634.34 | AAN5: =RawData!AAM4 -> 465408.75 | AAO5: =RawData!AAN4 -> 11139368 | AAP5: =RawData!AAO4 -> 10614839 | AAQ5: =RawData!AAP4 -> 10099384 | AAR5: =RawData!AAQ4 -> 9592532 | AAS5: =RawData!AAR4 -> 9093834 | AAT5: =RawData!AAS4 -> 8602868 | AAU5: =RawData!AAT4 -> 8119238 | AAV5: =RawData!AAU4 -> 7642567.5 | AAW5: =RawData!AAV4 -> 7172504.5 | AAX5: =RawData!AAW4 -> 6708717.5 | AAY5: =RawData!AAX4 -> 6250891.5 | AAZ5: =RawData!AAY4 -> 5798735.5 | ABA5: =RawData!AAZ4 -> 5351972.5 | ABB5: =RawData!ABA4 -> 4910341 | ABC5: =RawData!ABB4 -> 4473596.5 | ABD5: =RawData!ABC4 -> 4041508.8 | ABE5: =RawData!ABD4 -> 3613863 | ABF5: =RawData!ABE4 -> 3190456.8 | ABG5: =RawData!ABF4 -> 2771095.5 | ABH5: =RawData!ABG4 -> 2355604.8 | ABI5: =RawData!ABH4 -> 1943814.6 | ABJ5: =RawData!ABI4 -> 1536082 | ABK5: =RawData!ABJ4 -> 1132822.3 | ABL5: =RawData!ABK4 -> 2596416.5 | ABM5: =RawData!ABL4 -> 2466783.8 | ABN5: =RawData!ABM4 -> 2338424.8 | ABO5: =RawData!ABN4 -> 2211269.3 | ABP5: =RawData!ABO4 -> 2085248.8 | ABQ5: =RawData!ABP4 -> 1960301.5 | ABR5: =RawData!ABQ4 -> 1836368.8 | ABS5: =RawData!ABR4 -> 1713395.4 | ABT5: =RawData!ABS4 -> 1591331.3 | ABU5: =RawData!ABT4 -> 1470128.5 | ABV5: =RawData!ABU4 -> 1349742.5 | ABW5: =RawData!ABV4 -> 1230132.9 | ABX5: =RawData!ABW4 -> 1111261.1 | ABY5: =RawData!ABX4 -> 993091.5 | ABZ5: =RawData!ABY4 -> 875591.31 | ACA5: =RawData!ABZ4 -> 758730.06 | ACB5: =RawData!ACA4 -> 642479.81 | ACC5: =RawData!ACB4 -> 526814.19 | ACD5: =RawData!ACC4 -> 411708.63 | ACE5: =RawData!ACD4 -> 306416.78 | ACF5: =RawData!ACE4 -> 289947.78 | ACG5: =RawData!ACF4 -> 274212.03 | ACH5: =RawData!ACG4 -> 259940.56 | ACI5: =RawData!ACH4 -> 208178.02 | ACJ5: =RawData!ACI4 -> 200929.14 | ACK5: =RawData!ACJ4 -> 193830.67 | ACL5: =RawData!ACK4 -> 186875.13 | ACM5: =RawData!ACL4 -> 180055.38 | ACN5: =RawData!ACM4 -> 173364.73 | ACO5: =RawData!ACN4 -> 166796.92 | ACP5: =RawData!ACO4 -> 160345.98 | ACQ5: =RawData!ACP4 -> 154006.28 | ACR5: =RawData!ACQ4 -> 147772.52 | ACS5: =RawData!ACR4 -> 141639.67 | ACT5: =RawData!ACS4 -> 135603.11 | ACU5: =RawData!ACT4 -> 129658.38 | ACV5: =RawData!ACU4 -> 123801.26 | ACW5: =RawData!ACV4 -> 118027.88 | ACX5: =RawData!ACW4 -> 112334.47 | ACY5: =RawData!ACX4 -> 106717.59 | ACZ5: =RawData!ACY4 -> 101173.95 | ADA5: =RawData!ACZ4 -> 95700.422 | ADB5: =RawData!ADA4 -> 90294.156 | ADC5: =RawData!ADB4 -> 84952.352 | ADD5: =RawData!ADC4 -> 79672.461 | ADE5: =RawData!ADD4 -> 74452.055 | ADF5: =RawData!ADE4 -> 1788749 | ADG5: =RawData!ADF4 -> 1723528 | ADH5: =RawData!ADG4 -> 1658604.4 | ADI5: =RawData!ADH4 -> 1593961 | ADJ5: =RawData!ADI4 -> 1529581.4 | ADK5: =RawData!ADJ4 -> 1465451.6 | ADL5: =RawData!ADK4 -> 1401558 | ADM5: =RawData!ADL4 -> 1337889.1 | ADN5: =RawData!ADM4 -> 1274434.1 | ADO5: =RawData!ADN4 -> 1211183 | ADP5: =RawData!ADO4 -> 1148127.5 | ADQ5: =RawData!ADP4 -> 1085260.1 | ADR5: =RawData!ADQ4 -> 1022574.1 | ADS5: =RawData!ADR4 -> 960063.19 | ADT5: =RawData!ADS4 -> 897722.81 | ADU5: =RawData!ADT4 -> 835548.06 | ADV5: =RawData!ADU4 -> 773535.75 | ADW5: =RawData!ADV4 -> 711682.56 | ADX5: =RawData!ADW4 -> 649985.63 | ADY5: =RawData!ADX4 -> 588443.69 | ADZ5: =RawData!ADY4 -> 527054.44 | AEA5: =RawData!ADZ4 -> 465817.03 | AEB5: =RawData!AEA4 -> 404730.78 | AEC5: =RawData!AEB4 -> 1494354.3 | AED5: =RawData!AEC4 -> 1429538 | AEE5: =RawData!AED4 -> 1365892.9 | AEF5: =RawData!AEE4 -> 1303359 | AEG5: =RawData!AEF4 -> 1241878.8 | AEH5: =RawData!AEG4 -> 1181398.5 | AEI5: =RawData!AEH4 -> 1121867.5 | AEJ5: =RawData!AEI4 -> 1063238.1 | AEK5: =RawData!AEJ4 -> 1005465.1 | AEL5: =RawData!AEK4 -> 948506.19 | AEM5: =RawData!AEL4 -> 892321.25 | AEN5: =RawData!AEM4 -> 836873 | AEO5: =RawData!AEN4 -> 782125.94 | AEP5: =RawData!AEO4 -> 728046.75 | AEQ5: =RawData!AEP4 -> 674604.19 | AER5: =RawData!AEQ4 -> 621768.63 | AES5: =RawData!AER4 -> 569512.69 | AET5: =RawData!AES4 -> 517844.59 | AEU5: =RawData!AET4 -> 468913.47 | AEV5: =RawData!AEU4 -> 420514.88 | AEW5: =RawData!AEV4 -> 372625.69 | AEX5: =RawData!AEW4 -> 325223.97 | AEY5: =RawData!AEX4 -> 278289.66 | AEZ5: =RawData!AEY4 -> 1559936 | AFA5: =RawData!AEZ4 -> 1483637.9 | AFB5: =RawData!AFA4 -> 1408062.5 | AFC5: =RawData!AFB4 -> 1333170.1 | AFD5: =RawData!AFC4 -> 1258921.6 | AFE5: =RawData!AFD4 -> 1185281.9 | AFF5: =RawData!AFE4 -> 1112217.5 | AFG5: =RawData!AFF4 -> 1039697.9 | AFH5: =RawData!AFG4 -> 967693.81 | AFI5: =RawData!AFH4 -> 896178.69 | AFJ5: =RawData!AFI4 -> 825127.25 | AFK5: =RawData!AFJ4 -> 754516.63 | AFL5: =RawData!AFK4 -> 684325.44 | AFM5: =RawData!AFL4 -> 614533.06 | AFN5: =RawData!AFM4 -> 545121.69 | AFO5: =RawData!AFN4 -> 476073.53 | AFP5: =RawData!AFO4 -> 407373.41 | AFQ5: =RawData!AFP4 -> 339006.53 | AFR5: =RawData!AFQ4 -> 270959 | AFS5: =RawData!AFR4 -> 203219 | AFT5: =RawData!AFS4 -> 151260.38 | AFU5: =RawData!AFT4 -> 143777.56 | AFV5: =RawData!AFU4 -> 136664.94 | AFW5: =RawData!AFV4 -> 7926419.5 | AFX5: =RawData!AFW4 -> 7679416.5 | AFY5: =RawData!AFX4 -> 7434852 | AFZ5: =RawData!AFY4 -> 7192603.5 | AGA5: =RawData!AFZ4 -> 6952553 | AGB5: =RawData!AGA4 -> 6714595 | AGC5: =RawData!AGB4 -> 6478628 | AGD5: =RawData!AGC4 -> 6244562 | AGE5: =RawData!AGD4 -> 6012309 | AGF5: =RawData!AGE4 -> 5781789 | AGG5: =RawData!AGF4 -> 5552929 | AGH5: =RawData!AGG4 -> 5325660.5 | AGI5: =RawData!AGH4 -> 5099921 | AGJ5: =RawData!AGI4 -> 4875651 | AGK5: =RawData!AGJ4 -> 4652798 | AGL5: =RawData!AGK4 -> 4431312 | AGM5: =RawData!AGL4 -> 4211147.5 | AGN5: =RawData!AGM4 -> 3992264 | AGO5: =RawData!AGN4 -> 3774621 | AGP5: =RawData!AGO4 -> 3558186.8 | AGQ5: =RawData!AGP4 -> 3342926.5 | AGR5: =RawData!AGQ4 -> 3128812 | AGS5: =RawData!AGR4 -> 2915817 | AGT5: =RawData!AGS4 -> 670862.25 | AGU5: =RawData!AGT4 -> 651271.69 | AGV5: =RawData!AGU4 -> 631828.5 | AGW5: =RawData!AGV4 -> 612525.38 | AGX5: =RawData!AGW4 -> 593355.25 | AGY5: =RawData!AGX4 -> 574311.81 | AGZ5: =RawData!AGY4 -> 555389.31 | AHA5: =RawData!AGZ4 -> 536582.44 | AHB5: =RawData!AHA4 -> 517886.25 | AHC5: =RawData!AHB4 -> 499296.09 | AHD5: =RawData!AHC4 -> 480808.06 | AHE5: =RawData!AHD4 -> 462418.34 | AHF5: =RawData!AHE4 -> 444123.53 | AHG5: =RawData!AHF4 -> 425920.5 | AHH5: =RawData!AHG4 -> 407806.56 | AHI5: =RawData!AHH4 -> 389779.06 | AHJ5: =RawData!AHI4 -> 371835.78 | AHK5: =RawData!AHJ4 -> 353974.91 | AHL5: =RawData!AHK4 -> 336194.22 | AHM5: =RawData!AHL4 -> 318492.53 | AHN5: =RawData!AHM4 -> 301092.91 | AHO5: =RawData!AHN4 -> 283879.97 | AHP5: =RawData!AHO4 -> 266743.06 | AHQ5: =RawData!AHP4 -> 2329319 | AHR5: =RawData!AHQ4 -> 2259168.5 | AHS5: =RawData!AHR4 -> 2189177 | AHT5: =RawData!AHS4 -> 2119336 | AHU5: =RawData!AHT4 -> 2049636.5 | AHV5: =RawData!AHU4 -> 1980071.8 | AHW5: =RawData!AHV4 -> 1910636.5 | AHX5: =RawData!AHW4 -> 1841325.4 | AHY5: =RawData!AHX4 -> 1772134.9 | AHZ5: =RawData!AHY4 -> 1703061.5 | AIA5: =RawData!AHZ4 -> 1634103.6 | AIB5: =RawData!AIA4 -> 1565259.5 | AIC5: =RawData!AIB4 -> 1496528.6 | AID5: =RawData!AIC4 -> 1427910.6 | AIE5: =RawData!AID4 -> 1359406.1 | AIF5: =RawData!AIE4 -> 1291015.9 | AIG5: =RawData!AIF4 -> 1222741.4 | AIH5: =RawData!AIG4 -> 1154584.8 | AII5: =RawData!AIH4 -> 1086547.8 | AIJ5: =RawData!AII4 -> 1018633.6 | AIK5: =RawData!AIJ4 -> 950844.44 | AIL5: =RawData!AIK4 -> 883184 | AIM5: =RawData!AIL4 -> 815655.56 | AIN5: =RawData!AIM4 -> 251211.64 | AIO5: =RawData!AIN4 -> 237887.31 | AIP5: =RawData!AIO4 -> 224773.39 | AIQ5: =RawData!AIP4 -> 211858.66 | AIR5: =RawData!AIQ4 -> 199132.47 | AIS5: =RawData!AIR4 -> 186584.88 | AIT5: =RawData!AIS4 -> 174206.53 | AIU5: =RawData!AIT4 -> 161988.56 | AIV5: =RawData!AIU4 -> 149922.64 | AIW5: =RawData!AIV4 -> 138000.97 | AIX5: =RawData!AIW4 -> 126216.15 | AIY5: =RawData!AIX4 -> 114561.35 | AIZ5: =RawData!AIY4 -> 103030.03 | AJA5: =RawData!AIZ4 -> 91616.055 | AJB5: =RawData!AJA4 -> 80313.75 | AJC5: =RawData!AJB4 -> 69117.688 | AJD5: =RawData!AJC4 -> 58022.871 | AJE5: =RawData!AJD4 -> 47024.547 | AJF5: =RawData!AJE4 -> 44698.254 | AJG5: =RawData!AJF4 -> 42487.047 | AJH5: =RawData!AJG4 -> 40385.23 | AJI5: =RawData!AJH4 -> 38387.383 | AJJ5: =RawData!AJI4 -> 36488.371 | AJK5: =RawData!AJJ4 -> 788473.31 | AJL5: =RawData!AJK4 -> 752900.69 | AJM5: =RawData!AJL4 -> 717731.38 | AJN5: =RawData!AJM4 -> 682943.81 | AJO5: =RawData!AJN4 -> 648517.19 | AJP5: =RawData!AJO4 -> 614432.31 | AJQ5: =RawData!AJP4 -> 580671.38 | AJR5: =RawData!AJQ4 -> 547217.44 | AJS5: =RawData!AJR4 -> 514054.69 | AJT5: =RawData!AJS4 -> 481168.59 | AJU5: =RawData!AJT4 -> 448545.22 | AJV5: =RawData!AJU4 -> 416171.84 | AJW5: =RawData!AJV4 -> 384036.78 | AJX5: =RawData!AJW4 -> 352128.5 | AJY5: =RawData!AJX4 -> 320437.03 | AJZ5: =RawData!AJY4 -> 288952.44 | AKA5: =RawData!AJZ4 -> 257666.03 | AKB5: =RawData!AKA4 -> 226569.44 | AKC5: =RawData!AKB4 -> 195654.66 | AKD5: =RawData!AKC4 -> 164914.95 | AKE5: =RawData!AKD4 -> 140869.53 | AKF5: =RawData!AKE4 -> 133900.75 | AKG5: =RawData!AKF4 -> 127276.73 | AKH5: =RawData!AKG4 -> 14751177 | AKI5: =RawData!AKH4 -> 14209214 | AKJ5: =RawData!AKI4 -> 13671116 | AKK5: =RawData!AKJ4 -> 13136673 | AKL5: =RawData!AKK4 -> 12605684 | AKM5: =RawData!AKL4 -> 12077968 | AKN5: =RawData!AKM4 -> 11553358 | AKO5: =RawData!AKN4 -> 11031700 | AKP5: =RawData!AKO4 -> 10512851 | AKQ5: =RawData!AKP4 -> 9996678 | AKR5: =RawData!AKQ4 -> 9483064 | AKS5: =RawData!AKR4 -> 8971897 | AKT5: =RawData!AKS4 -> 8463081 | AKU5: =RawData!AKT4 -> 7956517 | AKV5: =RawData!AKU4 -> 7452130.5 | AKW5: =RawData!AKV4 -> 6949838.5 | AKX5: =RawData!AKW4 -> 6449579 | AKY5: =RawData!AKX4 -> 5951290.5 | AKZ5: =RawData!AKY4 -> 5454911 | ALA5: =RawData!AKZ4 -> 4960399 | ALB5: =RawData!ALA4 -> 4467707.5 | ALC5: =RawData!ALB4 -> 3976797 | ALD5: =RawData!ALC4 -> 3487634.3 | ALE5: =RawData!ALD4 -> 686792.5 | ALF5: =RawData!ALE4 -> 657606 | ALG5: =RawData!ALF4 -> 628941 | ALH5: =RawData!ALG4 -> 600770.94 | ALI5: =RawData!ALH4 -> 573070.13 | ALJ5: =RawData!ALI4 -> 545814.81 | ALK5: =RawData!ALJ4 -> 518982.34 | ALL5: =RawData!ALK4 -> 492551.66 | ALM5: =RawData!ALL4 -> 466502.59 | ALN5: =RawData!ALM4 -> 440816.34 | ALO5: =RawData!ALN4 -> 415475.22 | ALP5: =RawData!ALO4 -> 390462.53 | ALQ5: =RawData!ALP4 -> 365762.63 | ALR5: =RawData!ALQ4 -> 341360.63 | ALS5: =RawData!ALR4 -> 317242.81 | ALT5: =RawData!ALS4 -> 293395.91 | ALU5: =RawData!ALT4 -> 269807.88 | ALV5: =RawData!ALU4 -> 246467.13 | ALW5: =RawData!ALV4 -> 223362.67 | ALX5: =RawData!ALW4 -> 200484.59 | ALY5: =RawData!ALX4 -> 177823.13 | ALZ5: =RawData!ALY4 -> 155369.39 | AMA5: =RawData!ALZ4 -> 133627.89 | AMB5: =RawData!AMA4 -> 510041.63 | AMC5: =RawData!AMB4 -> 494515.81 | AMD5: =RawData!AMC4 -> 479089.63 | AME5: =RawData!AMD4 -> 463757.84 | AMF5: =RawData!AME4 -> 448515.69 | AMG5: =RawData!AMF4 -> 433358.75 | AMH5: =RawData!AMG4 -> 418283.16 | AMI5: =RawData!AMH4 -> 403285.28 | AMJ5: =RawData!AMI4 -> 388361.75 | AMK5: =RawData!AMJ4 -> 373509.5 | AML5: =RawData!AMK4 -> 358725.81 | AMM5: =RawData!AML4 -> 344008.31 | AMN5: =RawData!AMM4 -> 329354.69 | AMO5: =RawData!AMN4 -> 314762.88 | AMP5: =RawData!AMO4 -> 300231.31 | AMQ5: =RawData!AMP4 -> 285758.19 | AMR5: =RawData!AMQ4 -> 271342.25 | AMS5: =RawData!AMR4 -> 256982.31 | AMT5: =RawData!AMS4 -> 242677.02 | AMU5: =RawData!AMT4 -> 228425.8 | AMV5: =RawData!AMU4 -> 214227.64 | AMW5: =RawData!AMV4 -> 200081.92 | AMX5: =RawData!AMW4 -> 185988.09 | AMY5: =RawData!AMX4 -> 2703243.5 | AMZ5: =RawData!AMY4 -> 2606185.8 | ANA5: =RawData!AMZ4 -> 2510219.5 | ANB5: =RawData!ANA4 -> 2415288 | ANC5: =RawData!ANB4 -> 2321337 | AND5: =RawData!ANC4 -> 2228317.8 | ANE5: =RawData!AND4 -> 2136183.5 | ANF5: =RawData!ANE4 -> 2044891.1 | ANG5: =RawData!ANF4 -> 1954400.3 | ANH5: =RawData!ANG4 -> 1864672.5 | ANI5: =RawData!ANH4 -> 1775673.3 | ANJ5: =RawData!ANI4 -> 1687369.5 | ANK5: =RawData!ANJ4 -> 1599731.6 | ANL5: =RawData!ANK4 -> 1512730.6 | ANM5: =RawData!ANL4 -> 1426340.8 | ANN5: =RawData!ANM4 -> 1340537 | ANO5: =RawData!ANN4 -> 1255297.8 | ANP5: =RawData!ANO4 -> 1170601.8 | ANQ5: =RawData!ANP4 -> 1086428.8 | ANR5: =RawData!ANQ4 -> 1002762.6 | ANS5: =RawData!ANR4 -> 919585.44 | ANT5: =RawData!ANS4 -> 836882.13 | ANU5: =RawData!ANT4 -> 754639.31 | ANV5: =RawData!ANU4 -> 2197116 | ANW5: =RawData!ANV4 -> 2101480 | ANX5: =RawData!ANW4 -> 2007138.8 | ANY5: =RawData!ANX4 -> 1914024.4 | ANZ5: =RawData!ANY4 -> 1822071.5 | AOA5: =RawData!ANZ4 -> 1731219.9 | AOB5: =RawData!AOA4 -> 1641412.9 | AOC5: =RawData!AOB4 -> 1552597.3 | AOD5: =RawData!AOC4 -> 1464723 | AOE5: =RawData!AOD4 -> 1377742.9 | AOF5: =RawData!AOE4 -> 1293847.1 | AOG5: =RawData!AOF4 -> 1213495.9 | AOH5: =RawData!AOG4 -> 1134056.1 | AOI5: =RawData!AOH4 -> 1055484.6 | AOJ5: =RawData!AOI4 -> 977741.63 | AOK5: =RawData!AOJ4 -> 900788.5 | AOL5: =RawData!AOK4 -> 824590.69 | AOM5: =RawData!AOL4 -> 749114.44 | AON5: =RawData!AOM4 -> 674328.06 | AOO5: =RawData!AON4 -> 600203.19 | AOP5: =RawData!AOO4 -> 528446.38 | AOQ5: =RawData!AOP4 -> 462041.28 | AOR5: =RawData!AOQ4 -> 396225.97 | AOS5: =RawData!AOR4 -> 1629683.5 | AOT5: =RawData!AOS4 -> 1570681.5 | AOU5: =RawData!AOT4 -> 1512419.5 | AOV5: =RawData!AOU4 -> 1454859.5 | AOW5: =RawData!AOV4 -> 1397965 | AOX5: =RawData!AOW4 -> 1341702.6 | AOY5: =RawData!AOX4 -> 1286040.8 | AOZ5: =RawData!AOY4 -> 1230950.6 | APA5: =RawData!AOZ4 -> 1176403.9 | APB5: =RawData!APA4 -> 1122375 | APC5: =RawData!APB4 -> 1068840 | APD5: =RawData!APC4 -> 1015776.6 | APE5: =RawData!APD4 -> 963163.69 | APF5: =RawData!APE4 -> 910981.75 | APG5: =RawData!APF4 -> 859212.5 | APH5: =RawData!APG4 -> 807838.75 | API5: =RawData!APH4 -> 756845.38 | APJ5: =RawData!API4 -> 706217.44 | APK5: =RawData!APJ4 -> 655940.75 | APL5: =RawData!APK4 -> 606003.5 | APM5: =RawData!APL4 -> 556393.38 | APN5: =RawData!APM4 -> 507099.56 | APO5: =RawData!APN4 -> 458112.06 | APP5: =RawData!APO4 -> 1208545.3 | APQ5: =RawData!APP4 -> 1114148.5 | APR5: =RawData!APQ4 -> 1020331.3 | APS5: =RawData!APR4 -> 927055.5 | APT5: =RawData!APS4 -> 834285.19 | APU5: =RawData!APT4 -> 741987 | APV5: =RawData!APU4 -> 650129.88 | APW5: =RawData!APV4 -> 558685.5 | APX5: =RawData!APW4 -> 467627.09 | APY5: =RawData!APX4 -> 376930.34 | APZ5: =RawData!APY4 -> 286572.38 | AQA5: =RawData!APZ4 -> 264176.81 | AQB5: =RawData!AQA4 -> 251108.09 | AQC5: =RawData!AQB4 -> 238685.84 | AQD5: =RawData!AQC4 -> 226878.14 | AQE5: =RawData!AQD4 -> 215654.53 | AQF5: =RawData!AQE4 -> 204986.19 | AQG5: =RawData!AQF4 -> 194845.59 | AQH5: =RawData!AQG4 -> 185206.63 | AQI5: =RawData!AQH4 -> 176044.53 | AQJ5: =RawData!AQI4 -> 167335.67 | AQK5: =RawData!AQJ4 -> 159057.61 | AQL5: =RawData!AQK4 -> 151189.09 | AQM5: =RawData!AQL4 -> 320709.63 | AQN5: =RawData!AQM4 -> 308489.66 | AQO5: =RawData!AQN4 -> 296385.75 | AQP5: =RawData!AQO4 -> 284391.75 | AQQ5: =RawData!AQP4 -> 272501.75 | AQR5: =RawData!AQQ4 -> 260710.44 | AQS5: =RawData!AQR4 -> 249012.73 | AQT5: =RawData!AQS4 -> 237403.98 | AQU5: =RawData!AQT4 -> 225879.77 | AQV5: =RawData!AQU4 -> 214436.05 | AQW5: =RawData!AQV4 -> 203069.06 | AQX5: =RawData!AQW4 -> 191775.44 | AQY5: =RawData!AQX4 -> 180551.84 | AQZ5: =RawData!AQY4 -> 169395.34 | ARA5: =RawData!AQZ4 -> 158303.23 | ARB5: =RawData!ARA4 -> 147272.86 | ARC5: =RawData!ARB4 -> 136302.02 | ARD5: =RawData!ARC4 -> 125388.52 | ARE5: =RawData!ARD4 -> 114530.33 | ARF5: =RawData!ARE4 -> 103725.72 | ARG5: =RawData!ARF4 -> 92973 | ARH5: =RawData!ARG4 -> 82270.617 | ARI5: =RawData!ARH4 -> 71617.258
A6: 17 | B6: 0 | C6: 17|0 | D6: =RawData!C5 -> 838731.63 | E6: =RawData!D5 -> 813586.56 | F6: =RawData!E5 -> 788506.19 | G6: =RawData!F5 -> 763485.25 | H6: =RawData!G5 -> 738518 | I6: =RawData!H5 -> 713600.63 | J6: =RawData!I5 -> 688728.94 | K6: =RawData!J5 -> 663899.69 | L6: =RawData!K5 -> 639110 | M6: =RawData!L5 -> 614357.31 | N6: =RawData!M5 -> 589639.56 | O6: =RawData!N5 -> 564955.31 | P6: =RawData!O5 -> 540303.13 | Q6: =RawData!P5 -> 515682.06 | R6: =RawData!Q5 -> 491091.5 | S6: =RawData!R5 -> 466530.97 | T6: =RawData!S5 -> 442000.47 | U6: =RawData!T5 -> 417500.22 | V6: =RawData!U5 -> 393030.19 | W6: =RawData!V5 -> 368591.34 | X6: =RawData!W5 -> 344184 | Y6: =RawData!X5 -> 319809.31 | Z6: =RawData!Y5 -> 295468.09 | AA6: =RawData!Z5 -> 801391.69 | AB6: =RawData!AA5 -> 780146.06 | AC6: =RawData!AB5 -> 758913.25 | AD6: =RawData!AC5 -> 737691.31 | AE6: =RawData!AD5 -> 716477.63 | AF6: =RawData!AE5 -> 695270.81 | AG6: =RawData!AF5 -> 674069.63 | AH6: =RawData!AG5 -> 652873.06 | AI6: =RawData!AH5 -> 631680.63 | AJ6: =RawData!AI5 -> 610491.94 | AK6: =RawData!AJ5 -> 589306.94 | AL6: =RawData!AK5 -> 568126.06 | AM6: =RawData!AL5 -> 546949.69 | AN6: =RawData!AM5 -> 525778.5 | AO6: =RawData!AN5 -> 504613.53 | AP6: =RawData!AO5 -> 483455.63 | AQ6: =RawData!AP5 -> 462306.25 | AR6: =RawData!AQ5 -> 441167 | AS6: =RawData!AR5 -> 420038.69 | AT6: =RawData!AS5 -> 398923.63 | AU6: =RawData!AT5 -> 377823.22 | AV6: =RawData!AU5 -> 356739.44 | AW6: =RawData!AV5 -> 335674.13 | AX6: =RawData!AW5 -> 718019.38 | AY6: =RawData!AX5 -> 693683.5 | AZ6: =RawData!AY5 -> 669417.25 | BA6: =RawData!AZ5 -> 645214.69 | BB6: =RawData!BA5 -> 621070.06 | BC6: =RawData!BB5 -> 596978.56 | BD6: =RawData!BC5 -> 572935.75 | BE6: =RawData!BD5 -> 548937.88 | BF6: =RawData!BE5 -> 524981.69 | BG6: =RawData!BF5 -> 501063.88 | BH6: =RawData!BG5 -> 477182.25 | BI6: =RawData!BH5 -> 453334.63 | BJ6: =RawData!BI5 -> 429519.25 | BK6: =RawData!BJ5 -> 405734.63 | BL6: =RawData!BK5 -> 381979.78 | BM6: =RawData!BL5 -> 358253.66 | BN6: =RawData!BM5 -> 334556.06 | BO6: =RawData!BN5 -> 310886.5 | BP6: =RawData!BO5 -> 287244.72 | BQ6: =RawData!BP5 -> 263631.13 | BR6: =RawData!BQ5 -> 240045.89 | BS6: =RawData!BR5 -> 216489.41 | BT6: =RawData!BS5 -> 192962.42 | BU6: =RawData!BT5 -> 3048326 | BV6: =RawData!BU5 -> 2930830.8 | BW6: =RawData!BV5 -> 2815365.8 | BX6: =RawData!BW5 -> 2701821.5 | BY6: =RawData!BX5 -> 2590093.8 | BZ6: =RawData!BY5 -> 2480086.8 | CA6: =RawData!BZ5 -> 2371708.8 | CB6: =RawData!CA5 -> 2264873.8 | CC6: =RawData!CB5 -> 2159501.8 | CD6: =RawData!CC5 -> 2055516.9 | CE6: =RawData!CD5 -> 1952848.1 | CF6: =RawData!CE5 -> 1851428.9 | CG6: =RawData!CF5 -> 1751197 | CH6: =RawData!CG5 -> 1652093.6 | CI6: =RawData!CH5 -> 1554064.4 | CJ6: =RawData!CI5 -> 1457057.3 | CK6: =RawData!CJ5 -> 1361025 | CL6: =RawData!CK5 -> 1265922.4 | CM6: =RawData!CL5 -> 1171706.5 | CN6: =RawData!CM5 -> 1078339.3 | CO6: =RawData!CN5 -> 985783.44 | CP6: =RawData!CO5 -> 894004.56 | CQ6: =RawData!CP5 -> 802970.81 | CR6: =RawData!CQ5 -> 23972378 | CS6: =RawData!CR5 -> 23091316 | CT6: =RawData!CS5 -> 22221962 | CU6: =RawData!CT5 -> 21363668 | CV6: =RawData!CU5 -> 20515810 | CW6: =RawData!CV5 -> 19677818 | CX6: =RawData!CW5 -> 18849156 | CY6: =RawData!CX5 -> 18029316 | CZ6: =RawData!CY5 -> 17217836 | DA6: =RawData!CZ5 -> 16414270 | DB6: =RawData!DA5 -> 15618210 | DC6: =RawData!DB5 -> 14829276 | DD6: =RawData!DC5 -> 14047116 | DE6: =RawData!DD5 -> 13271392 | DF6: =RawData!DE5 -> 12501805 | DG6: =RawData!DF5 -> 11738058 | DH6: =RawData!DG5 -> 10979897 | DI6: =RawData!DH5 -> 10227070 | DJ6: =RawData!DI5 -> 9479346 | DK6: =RawData!DJ5 -> 8736519 | DL6: =RawData!DK5 -> 7998390 | DM6: =RawData!DL5 -> 7264779 | DN6: =RawData!DM5 -> 6535519 | DO6: =RawData!DN5 -> 1755013.9 | DP6: =RawData!DO5 -> 1708538.1 | DQ6: =RawData!DP5 -> 1661968.9 | DR6: =RawData!DQ5 -> 1615306.6 | DS6: =RawData!DR5 -> 1568552 | DT6: =RawData!DS5 -> 1521706.6 | DU6: =RawData!DT5 -> 1474772.5 | DV6: =RawData!DU5 -> 1427752.8 | DW6: =RawData!DV5 -> 1380650.6 | DX6: =RawData!DW5 -> 1333469.1 | DY6: =RawData!DX5 -> 1286213 | DZ6: =RawData!DY5 -> 1238886.8 | EA6: =RawData!DZ5 -> 1191495.1 | EB6: =RawData!EA5 -> 1144043.4 | EC6: =RawData!EB5 -> 1096536.9 | ED6: =RawData!EC5 -> 1048981.3 | EE6: =RawData!ED5 -> 1001382.8 | EF6: =RawData!EE5 -> 953747.56 | EG6: =RawData!EF5 -> 906080.81 | EH6: =RawData!EG5 -> 858390.31 | EI6: =RawData!EH5 -> 810681.75 | EJ6: =RawData!EI5 -> 762962 | EK6: =RawData!EJ5 -> 715237.56 | EL6: =RawData!EK5 -> 5861288 | EM6: =RawData!EL5 -> 5712262 | EN6: =RawData!EM5 -> 5564637 | EO6: =RawData!EN5 -> 5418339 | EP6: =RawData!EO5 -> 5273292.5 | EQ6: =RawData!EP5 -> 5129433 | ER6: =RawData!EQ5 -> 4986700 | ES6: =RawData!ER5 -> 4845036 | ET6: =RawData!ES5 -> 4704389.5 | EU6: =RawData!ET5 -> 4564712 | EV6: =RawData!EU5 -> 4425960 | EW6: =RawData!EV5 -> 4288093 | EX6: =RawData!EW5 -> 4151077 | EY6: =RawData!EX5 -> 4014875.5 | EZ6: =RawData!EY5 -> 3879459 | FA6: =RawData!EZ5 -> 3744800 | FB6: =RawData!FA5 -> 3610875.5 | FC6: =RawData!FB5 -> 3477662 | FD6: =RawData!FC5 -> 3345137 | FE6: =RawData!FD5 -> 3213286.5 | FF6: =RawData!FE5 -> 3082091.5 | FG6: =RawData!FF5 -> 2951540 | FH6: =RawData!FG5 -> 2821617.5 | FI6: =RawData!FH5 -> 859257.31 | FJ6: =RawData!FI5 -> 819081.44 | FK6: =RawData!FJ5 -> 779449.44 | FL6: =RawData!FK5 -> 740330.25 | FM6: =RawData!FL5 -> 701694.31 | FN6: =RawData!FM5 -> 663514.38 | FO6: =RawData!FN5 -> 625764.63 | FP6: =RawData!FO5 -> 588421 | FQ6: =RawData!FP5 -> 551460.94 | FR6: =RawData!FQ5 -> 514863.28 | FS6: =RawData!FR5 -> 478608.16 | FT6: =RawData!FS5 -> 442677.47 | FU6: =RawData!FT5 -> 407053.72 | FV6: =RawData!FU5 -> 371720.75 | FW6: =RawData!FV5 -> 336663.81 | FX6: =RawData!FW5 -> 301868.72 | FY6: =RawData!FX5 -> 267322.66 | FZ6: =RawData!FY5 -> 233013.55 | GA6: =RawData!FZ5 -> 198929.69 | GB6: =RawData!GA5 -> 165061.19 | GC6: =RawData!GB5 -> 144581.22 | GD6: =RawData!GC5 -> 136782.75 | GE6: =RawData!GD5 -> 129866.8 | GF6: =RawData!GE5 -> 2574756.5 | GG6: =RawData!GF5 -> 2468896.8 | GH6: =RawData!GG5 -> 2363449.3 | GI6: =RawData!GH5 -> 2258381.5 | GJ6: =RawData!GI5 -> 2153661.3 | GK6: =RawData!GJ5 -> 2049261.6 | GL6: =RawData!GK5 -> 1945156.4 | GM6: =RawData!GL5 -> 1841323.5 | GN6: =RawData!GM5 -> 1737741.9 | GO6: =RawData!GN5 -> 1634392.9 | GP6: =RawData!GO5 -> 1531260.6 | GQ6: =RawData!GP5 -> 1428330.6 | GR6: =RawData!GQ5 -> 1325590.3 | GS6: =RawData!GR5 -> 1223028.1 | GT6: =RawData!GS5 -> 1120634.6 | GU6: =RawData!GT5 -> 1018402.1 | GV6: =RawData!GU5 -> 916323.5 | GW6: =RawData!GV5 -> 814393.56 | GX6: =RawData!GW5 -> 712606.56 | GY6: =RawData!GX5 -> 610961 | GZ6: =RawData!GY5 -> 509453.41 | HA6: =RawData!GZ5 -> 408082.13 | HB6: =RawData!HA5 -> 306846.94 | HC6: =RawData!HB5 -> 2286861.8 | HD6: =RawData!HC5 -> 2201157.8 | HE6: =RawData!HD5 -> 2115966 | HF6: =RawData!HE5 -> 2031252.6 | HG6: =RawData!HF5 -> 1946984.4 | HH6: =RawData!HG5 -> 1863132.5 | HI6: =RawData!HH5 -> 1779669.9 | HJ6: =RawData!HI5 -> 1696571.3 | HK6: =RawData!HJ5 -> 1613814.8 | HL6: =RawData!HK5 -> 1531379.1 | HM6: =RawData!HL5 -> 1449246.1 | HN6: =RawData!HM5 -> 1367398.9 | HO6: =RawData!HN5 -> 1285821.9 | HP6: =RawData!HO5 -> 1204501.8 | HQ6: =RawData!HP5 -> 1123426.1 | HR6: =RawData!HQ5 -> 1042583.8 | HS6: =RawData!HR5 -> 961965.88 | HT6: =RawData!HS5 -> 881563.88 | HU6: =RawData!HT5 -> 801369.5 | HV6: =RawData!HU5 -> 721377.56 | HW6: =RawData!HV5 -> 641582.13 | HX6: =RawData!HW5 -> 561978.5 | HY6: =RawData!HX5 -> 483243.19 | HZ6: =RawData!HY5 -> 1725133.6 | IA6: =RawData!HZ5 -> 1671549.6 | IB6: =RawData!IA5 -> 1618615.4 | IC6: =RawData!IB5 -> 1566295.3 | ID6: =RawData!IC5 -> 1514555 | IE6: =RawData!ID5 -> 1463363.6 | IF6: =RawData!IE5 -> 1412691.8 | IG6: =RawData!IF5 -> 1362512.3 | IH6: =RawData!IG5 -> 1312800 | II6: =RawData!IH5 -> 1263530.9 | IJ6: =RawData!II5 -> 1214683 | IK6: =RawData!IJ5 -> 1166236.6 | IL6: =RawData!IK5 -> 1118172.4 | IM6: =RawData!IL5 -> 1070473 | IN6: =RawData!IM5 -> 1023122.3 | IO6: =RawData!IN5 -> 976104.94 | IP6: =RawData!IO5 -> 929407.88 | IQ6: =RawData!IP5 -> 883018.19 | IR6: =RawData!IQ5 -> 836923.56 | IS6: =RawData!IR5 -> 791114 | IT6: =RawData!IS5 -> 745579.31 | IU6: =RawData!IT5 -> 700310.44 | IV6: =RawData!IU5 -> 655299 | IW6: =RawData!IV5 -> 377008.88 | IX6: =RawData!IW5 -> 357942.56 | IY6: =RawData!IX5 -> 339110.84 | IZ6: =RawData!IY5 -> 320499.94 | JA6: =RawData!IZ5 -> 302096.91 | JB6: =RawData!JA5 -> 283889.5 | JC6: =RawData!JB5 -> 265866.44 | JD6: =RawData!JC5 -> 248017.09 | JE6: =RawData!JD5 -> 230331.5 | JF6: =RawData!JE5 -> 212800.36 | JG6: =RawData!JF5 -> 195414.94 | JH6: =RawData!JG5 -> 178167.31 | JI6: =RawData!JH5 -> 161049.84 | JJ6: =RawData!JI5 -> 144055.45 | JK6: =RawData!JJ5 -> 127177.74 | JL6: =RawData!JK5 -> 110410.47 | JM6: =RawData!JL5 -> 93748.148 | JN6: =RawData!JM5 -> 77185.453 | JO6: =RawData!JN5 -> 60717.477 | JP6: =RawData!JO5 -> 44959.023 | JQ6: =RawData!JP5 -> 42734.914 | JR6: =RawData!JQ5 -> 40620.828 | JS6: =RawData!JR5 -> 38611.332 | JT6: =RawData!JS5 -> 20769808 | JU6: =RawData!JT5 -> 20234844 | JV6: =RawData!JU5 -> 19708692 | JW6: =RawData!JV5 -> 19190902 | JX6: =RawData!JW5 -> 18681036 | JY6: =RawData!JX5 -> 18178704 | JZ6: =RawData!JY5 -> 17683528 | KA6: =RawData!JZ5 -> 17195162 | KB6: =RawData!KA5 -> 16713277 | KC6: =RawData!KB5 -> 16237560 | KD6: =RawData!KC5 -> 15767734 | KE6: =RawData!KD5 -> 15303526 | KF6: =RawData!KE5 -> 14844690 | KG6: =RawData!KF5 -> 14390989 | KH6: =RawData!KG5 -> 13942210 | KI6: =RawData!KH5 -> 13498145 | KJ6: =RawData!KI5 -> 13058612 | KK6: =RawData!KJ5 -> 12623435 | KL6: =RawData!KK5 -> 12192442 | KM6: =RawData!KL5 -> 11765493 | KN6: =RawData!KM5 -> 11342439 | KO6: =RawData!KN5 -> 10923153 | KP6: =RawData!KO5 -> 10507513 | KQ6: =RawData!KP5 -> 2408560.3 | KR6: =RawData!KQ5 -> 2315843.8 | KS6: =RawData!KR5 -> 2225634.3 | KT6: =RawData!KS5 -> 2137803.5 | KU6: =RawData!KT5 -> 2052229.9 | KV6: =RawData!KU5 -> 1968798.4 | KW6: =RawData!KV5 -> 1887400.3 | KX6: =RawData!KW5 -> 1807933.3 | KY6: =RawData!KX5 -> 1730299.8 | KZ6: =RawData!KY5 -> 1654407.9 | LA6: =RawData!KZ5 -> 1580171 | LB6: =RawData!LA5 -> 1507507.5 | LC6: =RawData!LB5 -> 1436339.9 | LD6: =RawData!LC5 -> 1366594.8 | LE6: =RawData!LD5 -> 1298203.1 | LF6: =RawData!LE5 -> 1231100 | LG6: =RawData!LF5 -> 1165223.8 | LH6: =RawData!LG5 -> 1100516.5 | LI6: =RawData!LH5 -> 1036922.6 | LJ6: =RawData!LI5 -> 974391.25 | LK6: =RawData!LJ5 -> 912873.19 | LL6: =RawData!LK5 -> 853018.38 | LM6: =RawData!LL5 -> 794909.56 | LN6: =RawData!LM5 -> 3057452.5 | LO6: =RawData!LN5 -> 2932949.8 | LP6: =RawData!LO5 -> 2809728.8 | LQ6: =RawData!LP5 -> 2687714 | LR6: =RawData!LQ5 -> 2566832.5 | LS6: =RawData!LR5 -> 2447018.5 | LT6: =RawData!LS5 -> 2328209.5 | LU6: =RawData!LT5 -> 2210348.8 | LV6: =RawData!LU5 -> 2093382.1 | LW6: =RawData!LV5 -> 1977259.6 | LX6: =RawData!LW5 -> 1861934.9 | LY6: =RawData!LX5 -> 1747365.8 | LZ6: =RawData!LY5 -> 1633512 | MA6: =RawData!LZ5 -> 1520337.4 | MB6: =RawData!MA5 -> 1407807.9 | MC6: =RawData!MB5 -> 1295891.8 | MD6: =RawData!MC5 -> 1184561.3 | ME6: =RawData!MD5 -> 1073789.9 | MF6: =RawData!ME5 -> 963552.31 | MG6: =RawData!MF5 -> 853827.94 | MH6: =RawData!MG5 -> 744595.69 | MI6: =RawData!MH5 -> 635836.56 | MJ6: =RawData!MI5 -> 527534.81 | MK6: =RawData!MJ5 -> 1598174.9 | ML6: =RawData!MK5 -> 1536843.5 | MM6: =RawData!ML5 -> 1476815.1 | MN6: =RawData!MM5 -> 1418021.8 | MO6: =RawData!MN5 -> 1360397.9 | MP6: =RawData!MO5 -> 1303883.3 | MQ6: =RawData!MP5 -> 1248420.3 | MR6: =RawData!MQ5 -> 1193954.5 | MS6: =RawData!MR5 -> 1140435.4 | MT6: =RawData!MS5 -> 1087814.4 | MU6: =RawData!MT5 -> 1036046.2 | MV6: =RawData!MU5 -> 985088.5 | MW6: =RawData!MV5 -> 934901.25 | MX6: =RawData!MW5 -> 885446.19 | MY6: =RawData!MX5 -> 836688.25 | MZ6: =RawData!MY5 -> 788593.5 | NA6: =RawData!MZ5 -> 741131.13 | NB6: =RawData!NA5 -> 694271.38 | NC6: =RawData!NB5 -> 647985.88 | ND6: =RawData!NC5 -> 602249.56 | NE6: =RawData!ND5 -> 557037.31 | NF6: =RawData!NE5 -> 512326.25 | NG6: =RawData!NF5 -> 468094.84 | NH6: =RawData!NG5 -> 4219146.5 | NI6: =RawData!NH5 -> 4106245.8 | NJ6: =RawData!NI5 -> 3995160 | NK6: =RawData!NJ5 -> 3885796.8 | NL6: =RawData!NK5 -> 3778065.3 | NM6: =RawData!NL5 -> 3671884 | NN6: =RawData!NM5 -> 3567174.5 | NO6: =RawData!NN5 -> 3463864.8 | NP6: =RawData!NO5 -> 3361886.5 | NQ6: =RawData!NP5 -> 3261175.3 | NR6: =RawData!NQ5 -> 3161672 | NS6: =RawData!NR5 -> 3063322 | NT6: =RawData!NS5 -> 2966072.8 | NU6: =RawData!NT5 -> 2869875.8 | NV6: =RawData!NU5 -> 2774686 | NW6: =RawData!NV5 -> 2680461.5 | NX6: =RawData!NW5 -> 2587163.8 | NY6: =RawData!NX5 -> 2494756.5 | NZ6: =RawData!NY5 -> 2403204 | OA6: =RawData!NZ5 -> 2312477 | OB6: =RawData!OA5 -> 2222545.5 | OC6: =RawData!OB5 -> 2133382.3 | OD6: =RawData!OC5 -> 2044962.4 | OE6: =RawData!OD5 -> 5882086 | OF6: =RawData!OE5 -> 5713881.5 | OG6: =RawData!OF5 -> 5546828.5 | OH6: =RawData!OG5 -> 5380860.5 | OI6: =RawData!OH5 -> 5215907.5 | OJ6: =RawData!OI5 -> 5051914 | OK6: =RawData!OJ5 -> 4888823.5 | OL6: =RawData!OK5 -> 4726588 | OM6: =RawData!OL5 -> 4565162.5 | ON6: =RawData!OM5 -> 4404504.5 | OO6: =RawData!ON5 -> 4244578.5 | OP6: =RawData!OO5 -> 4085350.3 | OQ6: =RawData!OP5 -> 3926789.8 | OR6: =RawData!OQ5 -> 3768869.5 | OS6: =RawData!OR5 -> 3611565.8 | OT6: =RawData!OS5 -> 3454857.5 | OU6: =RawData!OT5 -> 3298725.5 | OV6: =RawData!OU5 -> 3143154.3 | OW6: =RawData!OV5 -> 2988126.8 | OX6: =RawData!OW5 -> 2833634.8 | OY6: =RawData!OX5 -> 2679665.5 | OZ6: =RawData!OY5 -> 2526210 | PA6: =RawData!OZ5 -> 2373262.3 | PB6: =RawData!PA5 -> 886056.25 | PC6: =RawData!PB5 -> 850341.69 | PD6: =RawData!PC5 -> 814740.56 | PE6: =RawData!PD5 -> 779242.69 | PF6: =RawData!PE5 -> 743838.56 | PG6: =RawData!PF5 -> 708520.13 | PH6: =RawData!PG5 -> 673280.06 | PI6: =RawData!PH5 -> 638111.44 | PJ6: =RawData!PI5 -> 603008.63 | PK6: =RawData!PJ5 -> 567966.19 | PL6: =RawData!PK5 -> 532979.63 | PM6: =RawData!PL5 -> 498045.06 | PN6: =RawData!PM5 -> 463158.84 | PO6: =RawData!PN5 -> 428318.22 | PP6: =RawData!PO5 -> 393520.75 | PQ6: =RawData!PP5 -> 358764.25 | PR6: =RawData!PQ5 -> 324047.53 | PS6: =RawData!PR5 -> 289369.19 | PT6: =RawData!PS5 -> 254728.33 | PU6: =RawData!PT5 -> 220124.66 | PV6: =RawData!PU5 -> 185557.73 | PW6: =RawData!PV5 -> 151027.75 | PX6: =RawData!PW5 -> 116535.04 | PY6: =RawData!PX5 -> 7315800.5 | PZ6: =RawData!PY5 -> 7065108.5 | QA6: =RawData!PZ5 -> 6817795 | QB6: =RawData!QA5 -> 6573676 | QC6: =RawData!QB5 -> 6332573 | QD6: =RawData!QC5 -> 6094324.5 | QE6: =RawData!QD5 -> 5858775 | QF6: =RawData!QE5 -> 5625784 | QG6: =RawData!QF5 -> 5395216.5 | QH6: =RawData!QG5 -> 5166947.5 | QI6: =RawData!QH5 -> 4940860.5 | QJ6: =RawData!QI5 -> 4716847 | QK6: =RawData!QJ5 -> 4494806.5 | QL6: =RawData!QK5 -> 4274644 | QM6: =RawData!QL5 -> 4056273 | QN6: =RawData!QM5 -> 3839611 | QO6: =RawData!QN5 -> 3624583.8 | QP6: =RawData!QO5 -> 3411122 | QQ6: =RawData!QP5 -> 3199157.8 | QR6: =RawData!QQ5 -> 2988634.3 | QS6: =RawData!QR5 -> 2779494.8 | QT6: =RawData!QS5 -> 2571687.8 | QU6: =RawData!QT5 -> 2365166.5 | QV6: =RawData!QU5 -> 9334325 | QW6: =RawData!QV5 -> 9072692 | QX6: =RawData!QW5 -> 8812089 | QY6: =RawData!QX5 -> 8552448 | QZ6: =RawData!QY5 -> 8293698 | RA6: =RawData!QZ5 -> 8035783 | RB6: =RawData!RA5 -> 7778647 | RC6: =RawData!RB5 -> 7522247 | RD6: =RawData!RC5 -> 7266542 | RE6: =RawData!RD5 -> 7011490.5 | RF6: =RawData!RE5 -> 6757064 | RG6: =RawData!RF5 -> 6503237 | RH6: =RawData!RG5 -> 6249986 | RI6: =RawData!RH5 -> 5997291 | RJ6: =RawData!RI5 -> 5745138 | RK6: =RawData!RJ5 -> 5493514 | RL6: =RawData!RK5 -> 5242411.5 | RM6: =RawData!RL5 -> 4991824.5 | RN6: =RawData!RM5 -> 4741746.5 | RO6: =RawData!RN5 -> 4492180.5 | RP6: =RawData!RO5 -> 4243124 | RQ6: =RawData!RP5 -> 3994581.5 | RR6: =RawData!RQ5 -> 3746559 | RS6: =RawData!RR5 -> 1706426.1 | RT6: =RawData!RS5 -> 1660434.5 | RU6: =RawData!RT5 -> 1614414.1 | RV6: =RawData!RU5 -> 1568363.3 | RW6: =RawData!RV5 -> 1522278.4 | RX6: =RawData!RW5 -> 1476158.8 | RY6: =RawData!RX5 -> 1430004 | RZ6: =RawData!RY5 -> 1383814.1 | SA6: =RawData!RZ5 -> 1337590.3 | SB6: =RawData!SA5 -> 1291332.8 | SC6: =RawData!SB5 -> 1245044 | SD6: =RawData!SC5 -> 1198726.5 | SE6: =RawData!SD5 -> 1152382.8 | SF6: =RawData!SE5 -> 1106016 | SG6: =RawData!SF5 -> 1059629.5 | SH6: =RawData!SG5 -> 1013227.1 | SI6: =RawData!SH5 -> 966813.38 | SJ6: =RawData!SI5 -> 920392.56 | SK6: =RawData!SJ5 -> 873968.38 | SL6: =RawData!SK5 -> 827546.75 | SM6: =RawData!SL5 -> 781131.88 | SN6: =RawData!SM5 -> 734729.06 | SO6: =RawData!SN5 -> 688343.5 | SP6: =RawData!SO5 -> 1527278.1 | SQ6: =RawData!SP5 -> 1475452.9 | SR6: =RawData!SQ5 -> 1423739.8 | SS6: =RawData!SR5 -> 1372128 | ST6: =RawData!SS5 -> 1320606.9 | SU6: =RawData!ST5 -> 1269167.6 | SV6: =RawData!SU5 -> 1217802.4 | SW6: =RawData!SV5 -> 1166504.5 | SX6: =RawData!SW5 -> 1115268.1 | SY6: =RawData!SX5 -> 1064087.9 | SZ6: =RawData!SY5 -> 1012960.1 | TA6: =RawData!SZ5 -> 961881.44 | TB6: =RawData!TA5 -> 910849.06 | TC6: =RawData!TB5 -> 859861 | TD6: =RawData!TC5 -> 808916.06 | TE6: =RawData!TD5 -> 758013.31 | TF6: =RawData!TE5 -> 707152.88 | TG6: =RawData!TF5 -> 656334.81 | TH6: =RawData!TG5 -> 605559.31 | TI6: =RawData!TH5 -> 554828.25 | TJ6: =RawData!TI5 -> 504142.5 | TK6: =RawData!TJ5 -> 453503.94 | TL6: =RawData!TK5 -> 402914.69 | TM6: =RawData!TL5 -> 3646206.8 | TN6: =RawData!TM5 -> 3548525 | TO6: =RawData!TN5 -> 3450815.5 | TP6: =RawData!TO5 -> 3353073 | TQ6: =RawData!TP5 -> 3255289.5 | TR6: =RawData!TQ5 -> 3157461.3 | TS6: =RawData!TR5 -> 3059586.5 | TT6: =RawData!TS5 -> 2961664.5 | TU6: =RawData!TT5 -> 2863695.5 | TV6: =RawData!TU5 -> 2765679.5 | TW6: =RawData!TV5 -> 2667621.3 | TX6: =RawData!TW5 -> 2569523.8 | TY6: =RawData!TX5 -> 2471392.3 | TZ6: =RawData!TY5 -> 2373232.3 | UA6: =RawData!TZ5 -> 2275050.5 | UB6: =RawData!UA5 -> 2176853.5 | UC6: =RawData!UB5 -> 2078650.5 | UD6: =RawData!UC5 -> 1980449.4 | UE6: =RawData!UD5 -> 1882257.4 | UF6: =RawData!UE5 -> 1784086.8 | UG6: =RawData!UF5 -> 1685945.6 | UH6: =RawData!UG5 -> 1587844.3 | UI6: =RawData!UH5 -> 1489793.5 | UJ6: =RawData!UI5 -> 1746610.6 | UK6: =RawData!UJ5 -> 1687195.8 | UL6: =RawData!UK5 -> 1628611.5 | UM6: =RawData!UL5 -> 1570812 | UN6: =RawData!UM5 -> 1513754.5 | UO6: =RawData!UN5 -> 1457399 | UP6: =RawData!UO5 -> 1401707.8 | UQ6: =RawData!UP5 -> 1346646.4 | UR6: =RawData!UQ5 -> 1292181.6 | US6: =RawData!UR5 -> 1238283.1 | UT6: =RawData!US5 -> 1184922.1 | UU6: =RawData!UT5 -> 1132072 | UV6: =RawData!UU5 -> 1079708.1 | UW6: =RawData!UV5 -> 1027807 | UX6: =RawData!UW5 -> 976347.56 | UY6: =RawData!UX5 -> 925309.31 | UZ6: =RawData!UY5 -> 874674 | VA6: =RawData!UZ5 -> 824424.5 | VB6: =RawData!VA5 -> 774544.06 | VC6: =RawData!VB5 -> 725018.5 | VD6: =RawData!VC5 -> 675833.63 | VE6: =RawData!VD5 -> 626977.06 | VF6: =RawData!VE5 -> 578436.63 | VG6: =RawData!VF5 -> 568732.56 | VH6: =RawData!VG5 -> 550118 | VI6: =RawData!VH5 -> 531618.75 | VJ6: =RawData!VI5 -> 513227.66 | VK6: =RawData!VJ5 -> 494937.38 | VL6: =RawData!VK5 -> 476741.78 | VM6: =RawData!VL5 -> 458635.03 | VN6: =RawData!VM5 -> 440611.88 | VO6: =RawData!VN5 -> 422667.56 | VP6: =RawData!VO5 -> 404797.56 | VQ6: =RawData!VP5 -> 386998 | VR6: =RawData!VQ5 -> 369265.28 | VS6: =RawData!VR5 -> 351596.31 | VT6: =RawData!VS5 -> 333987.97 | VU6: =RawData!VT5 -> 316437.97 | VV6: =RawData!VU5 -> 298943.78 | VW6: =RawData!VV5 -> 281503.59 | VX6: =RawData!VW5 -> 264115.78 | VY6: =RawData!VX5 -> 246778.47 | VZ6: =RawData!VY5 -> 229490.73 | WA6: =RawData!VZ5 -> 212251.3 | WB6: =RawData!WA5 -> 195059.31 | WC6: =RawData!WB5 -> 177914.02 | WD6: =RawData!WC5 -> 174373.95 | WE6: =RawData!WD5 -> 168004.11 | WF6: =RawData!WE5 -> 161653.98 | WG6: =RawData!WF5 -> 155321.95 | WH6: =RawData!WG5 -> 149006.33 | WI6: =RawData!WH5 -> 142705.81 | WJ6: =RawData!WI5 -> 136419.06 | WK6: =RawData!WJ5 -> 130145.07 | WL6: =RawData!WK5 -> 123882.8 | WM6: =RawData!WL5 -> 117631.35 | WN6: =RawData!WM5 -> 111389.99 | WO6: =RawData!WN5 -> 105158.13 | WP6: =RawData!WO5 -> 98935.195 | WQ6: =RawData!WP5 -> 92720.703 | WR6: =RawData!WQ5 -> 86514.313 | WS6: =RawData!WR5 -> 80315.695 | WT6: =RawData!WS5 -> 74124.648 | WU6: =RawData!WT5 -> 67941.047 | WV6: =RawData!WU5 -> 61764.723 | WW6: =RawData!WV5 -> 55595.715 | WX6: =RawData!WW5 -> 49433.984 | WY6: =RawData!WX5 -> 43279.605 | WZ6: =RawData!WY5 -> 37132.688 | XA6: =RawData!WZ5 -> 654692.06 | XB6: =RawData!XA5 -> 629752.63 | XC6: =RawData!XB5 -> 605332.44 | XD6: =RawData!XC5 -> 581404.63 | XE6: =RawData!XD5 -> 557942.94 | XF6: =RawData!XE5 -> 534923.19 | XG6: =RawData!XF5 -> 512322.5 | XH6: =RawData!XG5 -> 490119.31 | XI6: =RawData!XH5 -> 468293.13 | XJ6: =RawData!XI5 -> 446824.88 | XK6: =RawData!XJ5 -> 425696.41 | XL6: =RawData!XK5 -> 404890.91 | XM6: =RawData!XL5 -> 384392.34 | XN6: =RawData!XM5 -> 364185.56 | XO6: =RawData!XN5 -> 344256.59 | XP6: =RawData!XO5 -> 324592 | XQ6: =RawData!XP5 -> 305179.47 | XR6: =RawData!XQ5 -> 286007.16 | XS6: =RawData!XR5 -> 267063.91 | XT6: =RawData!XS5 -> 248339.61 | XU6: =RawData!XT5 -> 229824.42 | XV6: =RawData!XU5 -> 211509.16 | XW6: =RawData!XV5 -> 193385.38 | XX6: =RawData!XW5 -> 257335.47 | XY6: =RawData!XX5 -> 249842.61 | XZ6: =RawData!XY5 -> 242398.05 | YA6: =RawData!XZ5 -> 234998.92 | YB6: =RawData!YA5 -> 227642.34 | YC6: =RawData!YB5 -> 220325.81 | YD6: =RawData!YC5 -> 213047.05 | YE6: =RawData!YD5 -> 205803.92 | YF6: =RawData!YE5 -> 198594.59 | YG6: =RawData!YF5 -> 191417.19 | YH6: =RawData!YG5 -> 184270.2 | YI6: =RawData!YH5 -> 177152.28 | YJ6: =RawData!YI5 -> 170062.09 | YK6: =RawData!YJ5 -> 162998.52 | YL6: =RawData!YK5 -> 155960.58 | YM6: =RawData!YL5 -> 148947.34 | YN6: =RawData!YM5 -> 141958.11 | YO6: =RawData!YN5 -> 134992.19 | YP6: =RawData!YO5 -> 128048.91 | YQ6: =RawData!YP5 -> 121127.92 | YR6: =RawData!YQ5 -> 114228.74 | YS6: =RawData!YR5 -> 107351.02 | YT6: =RawData!YS5 -> 100494.53 | YU6: =RawData!YT5 -> 15140562 | YV6: =RawData!YU5 -> 14676363 | YW6: =RawData!YV5 -> 14222841 | YX6: =RawData!YW5 -> 13779455 | YY6: =RawData!YX5 -> 13345684 | YZ6: =RawData!YY5 -> 12921048 | ZA6: =RawData!YZ5 -> 12505087 | ZB6: =RawData!ZA5 -> 12097371 | ZC6: =RawData!ZB5 -> 11697495 | ZD6: =RawData!ZC5 -> 11305072 | ZE6: =RawData!ZD5 -> 10919743 | ZF6: =RawData!ZE5 -> 10541170 | ZG6: =RawData!ZF5 -> 10169034 | ZH6: =RawData!ZG5 -> 9803030 | ZI6: =RawData!ZH5 -> 9442878 | ZJ6: =RawData!ZI5 -> 9088320 | ZK6: =RawData!ZJ5 -> 8739098 | ZL6: =RawData!ZK5 -> 8394974 | ZM6: =RawData!ZL5 -> 8055722 | ZN6: =RawData!ZM5 -> 7721140 | ZO6: =RawData!ZN5 -> 7391030 | ZP6: =RawData!ZO5 -> 7065208 | ZQ6: =RawData!ZP5 -> 6743499 | ZR6: =RawData!ZQ5 -> 1519520.6 | ZS6: =RawData!ZR5 -> 1470068.1 | ZT6: =RawData!ZS5 -> 1420765.3 | ZU6: =RawData!ZT5 -> 1371600.3 | ZV6: =RawData!ZU5 -> 1322561 | ZW6: =RawData!ZV5 -> 1273637.5 | ZX6: =RawData!ZW5 -> 1224820.9 | ZY6: =RawData!ZX5 -> 1176103.3 | ZZ6: =RawData!ZY5 -> 1127477.5 | AAA6: =RawData!ZZ5 -> 1078937.5 | AAB6: =RawData!AAA5 -> 1030478.1 | AAC6: =RawData!AAB5 -> 982095.44 | AAD6: =RawData!AAC5 -> 933785.38 | AAE6: =RawData!AAD5 -> 885544.88 | AAF6: =RawData!AAE5 -> 837372 | AAG6: =RawData!AAF5 -> 789264.5 | AAH6: =RawData!AAG5 -> 741221.88 | AAI6: =RawData!AAH5 -> 693243.19 | AAJ6: =RawData!AAI5 -> 645327.75 | AAK6: =RawData!AAJ5 -> 597476.63 | AAL6: =RawData!AAK5 -> 549689.75 | AAM6: =RawData!AAL5 -> 501968.13 | AAN6: =RawData!AAM5 -> 454313.09 | AAO6: =RawData!AAN5 -> 10841259 | AAP6: =RawData!AAO5 -> 10336221 | AAQ6: =RawData!AAP5 -> 9839696 | AAR6: =RawData!AAQ5 -> 9351218 | AAS6: =RawData!AAR5 -> 8870340 | AAT6: =RawData!AAS5 -> 8396651 | AAU6: =RawData!AAT5 -> 7929757 | AAV6: =RawData!AAU5 -> 7469289.5 | AAW6: =RawData!AAV5 -> 7014905.5 | AAX6: =RawData!AAW5 -> 6566277.5 | AAY6: =RawData!AAX5 -> 6123098 | AAZ6: =RawData!AAY5 -> 5685086.5 | ABA6: =RawData!AAZ5 -> 5251971.5 | ABB6: =RawData!ABA5 -> 4823501.5 | ABC6: =RawData!ABB5 -> 4399439.5 | ABD6: =RawData!ABC5 -> 3979563.3 | ABE6: =RawData!ABD5 -> 3563668 | ABF6: =RawData!ABE5 -> 3151560.3 | ABG6: =RawData!ABF5 -> 2743053.3 | ABH6: =RawData!ABG5 -> 2337983 | ABI6: =RawData!ABH5 -> 1936187.9 | ABJ6: =RawData!ABI5 -> 1538012.8 | ABK6: =RawData!ABJ5 -> 1143847.1 | ABL6: =RawData!ABK5 -> 2514326 | ABM6: =RawData!ABL5 -> 2390442.8 | ABN6: =RawData!ABM5 -> 2267665.8 | ABO6: =RawData!ABN5 -> 2145926 | ABP6: =RawData!ABO5 -> 2025157 | ABQ6: =RawData!ABP5 -> 1905298.5 | ABR6: =RawData!ABQ5 -> 1786293.5 | ABS6: =RawData!ABR5 -> 1668089 | ABT6: =RawData!ABS5 -> 1550637 | ABU6: =RawData!ABT5 -> 1433891.6 | ABV6: =RawData!ABU5 -> 1317810.3 | ABW6: =RawData!ABV5 -> 1202355.5 | ABX6: =RawData!ABW5 -> 1087490.6 | ABY6: =RawData!ABX5 -> 973183 | ABZ6: =RawData!ABY5 -> 859401.88 | ACA6: =RawData!ABZ5 -> 746119.44 | ACB6: =RawData!ACA5 -> 633310.56 | ACC6: =RawData!ACB5 -> 520951.53 | ACD6: =RawData!ACC5 -> 409020.38 | ACE6: =RawData!ACD5 -> 306257 | ACF6: =RawData!ACE5 -> 289838.13 | ACG6: =RawData!ACF5 -> 274150.47 | ACH6: =RawData!ACG5 -> 259896.47 | ACI6: =RawData!ACH5 -> 201944.05 | ACJ6: =RawData!ACI5 -> 194990.5 | ACK6: =RawData!ACJ5 -> 188179.44 | ACL6: =RawData!ACK5 -> 181503.41 | ACM6: =RawData!ACL5 -> 174955.34 | ACN6: =RawData!ACM5 -> 168528.67 | ACO6: =RawData!ACN5 -> 162217.14 | ACP6: =RawData!ACO5 -> 156014.91 | ACQ6: =RawData!ACP5 -> 149916.48 | ACR6: =RawData!ACQ5 -> 143916.58 | ACS6: =RawData!ACR5 -> 138010.36 | ACT6: =RawData!ACS5 -> 132193.25 | ACU6: =RawData!ACT5 -> 126460.91 | ACV6: =RawData!ACU5 -> 120809.23 | ACW6: =RawData!ACV5 -> 115234.47 | ACX6: =RawData!ACW5 -> 109732.97 | ACY6: =RawData!ACX5 -> 104301.43 | ACZ6: =RawData!ACY5 -> 98936.672 | ADA6: =RawData!ACZ5 -> 93635.672 | ADB6: =RawData!ADA5 -> 88395.719 | ADC6: =RawData!ADB5 -> 83214.148 | ADD6: =RawData!ADC5 -> 78088.555 | ADE6: =RawData!ADD5 -> 73016.609 | ADF6: =RawData!ADE5 -> 1719478.3 | ADG6: =RawData!ADF5 -> 1658016.9 | ADH6: =RawData!ADG5 -> 1596748.1 | ADI6: =RawData!ADH5 -> 1535656.6 | ADJ6: =RawData!ADI5 -> 1474725.8 | ADK6: =RawData!ADJ5 -> 1413943.1 | ADL6: =RawData!ADK5 -> 1353296.4 | ADM6: =RawData!ADL5 -> 1292774.9 | ADN6: =RawData!ADM5 -> 1232369.3 | ADO6: =RawData!ADN5 -> 1172070.6 | ADP6: =RawData!ADO5 -> 1111872.5 | ADQ6: =RawData!ADP5 -> 1051768.4 | ADR6: =RawData!ADQ5 -> 991753.25 | ADS6: =RawData!ADR5 -> 931822.25 | ADT6: =RawData!ADS5 -> 871972.38 | ADU6: =RawData!ADT5 -> 812200.25 | ADV6: =RawData!ADU5 -> 752504.31 | ADW6: =RawData!ADV5 -> 692883 | ADX6: =RawData!ADW5 -> 633335 | ADY6: =RawData!ADX5 -> 573860.69 | ADZ6: =RawData!ADY5 -> 514459.56 | AEA6: =RawData!ADZ5 -> 455132.59 | AEB6: =RawData!AEA5 -> 395880.66 | AEC6: =RawData!AEB5 -> 1452849.6 | AED6: =RawData!AEC5 -> 1390503.4 | AEE6: =RawData!AED5 -> 1329258.4 | AEF6: =RawData!AEE5 -> 1269055.3 | AEG6: =RawData!AEF5 -> 1209837.1 | AEH6: =RawData!AEG5 -> 1151550.9 | AEI6: =RawData!AEH5 -> 1094146.6 | AEJ6: =RawData!AEI5 -> 1037577.7 | AEK6: =RawData!AEJ5 -> 981799.44 | AEL6: =RawData!AEK5 -> 926770.56 | AEM6: =RawData!AEL5 -> 872452.06 | AEN6: =RawData!AEM5 -> 818807.31 | AEO6: =RawData!AEN5 -> 765802 | AEP6: =RawData!AEO5 -> 713403.75 | AEQ6: =RawData!AEP5 -> 661582.25 | AER6: =RawData!AEQ5 -> 610309.25 | AES6: =RawData!AER5 -> 559558.19 | AET6: =RawData!AES5 -> 509577.84 | AEU6: =RawData!AET5 -> 461953.28 | AEV6: =RawData!AEU5 -> 414810.53 | AEW6: =RawData!AEV5 -> 368127.47 | AEX6: =RawData!AEW5 -> 321883.31 | AEY6: =RawData!AEX5 -> 276059.06 | AEZ6: =RawData!AEY5 -> 1509709.3 | AFA6: =RawData!AEZ5 -> 1436856.9 | AFB6: =RawData!AFA5 -> 1364627.3 | AFC6: =RawData!AFB5 -> 1292981.5 | AFD6: =RawData!AFC5 -> 1221881.4 | AFE6: =RawData!AFD5 -> 1151292.8 | AFF6: =RawData!AFE5 -> 1081183.5 | AFG6: =RawData!AFF5 -> 1011523.8 | AFH6: =RawData!AFG5 -> 942286.25 | AFI6: =RawData!AFH5 -> 873445.06 | AFJ6: =RawData!AFI5 -> 804976.38 | AFK6: =RawData!AFJ5 -> 736859 | AFL6: =RawData!AFK5 -> 669072.69 | AFM6: =RawData!AFL5 -> 601598.44 | AFN6: =RawData!AFM5 -> 534419.81 | AFO6: =RawData!AFN5 -> 467520.78 | AFP6: =RawData!AFO5 -> 400887.5 | AFQ6: =RawData!AFP5 -> 334507 | AFR6: =RawData!AFQ5 -> 268366.81 | AFS6: =RawData!AFR5 -> 202456.86 | AFT6: =RawData!AFS5 -> 151260.38 | AFU6: =RawData!AFT5 -> 143777.56 | AFV6: =RawData!AFU5 -> 136664.94 | AFW6: =RawData!AFV5 -> 7631810 | AFX6: =RawData!AFW5 -> 7398720.5 | AFY6: =RawData!AFX5 -> 7167695 | AFZ6: =RawData!AFY5 -> 6938613.5 | AGA6: =RawData!AFZ5 -> 6711363 | AGB6: =RawData!AGA5 -> 6485840 | AGC6: =RawData!AGB5 -> 6261948 | AGD6: =RawData!AGC5 -> 6039600 | AGE6: =RawData!AGD5 -> 5818714 | AGF6: =RawData!AGE5 -> 5599214 | AGG6: =RawData!AGF5 -> 5381031 | AGH6: =RawData!AGG5 -> 5164103 | AGI6: =RawData!AGH5 -> 4948372 | AGJ6: =RawData!AGI5 -> 4733783.5 | AGK6: =RawData!AGJ5 -> 4520290.5 | AGL6: =RawData!AGK5 -> 4307848.5 | AGM6: =RawData!AGL5 -> 4096419 | AGN6: =RawData!AGM5 -> 3885966 | AGO6: =RawData!AGN5 -> 3676454.5 | AGP6: =RawData!AGO5 -> 3467859.8 | AGQ6: =RawData!AGP5 -> 3260152.5 | AGR6: =RawData!AGQ5 -> 3053311.5 | AGS6: =RawData!AGR5 -> 2847315.5 | AGT6: =RawData!AGS5 -> 644791 | AGU6: =RawData!AGT5 -> 626397.75 | AGV6: =RawData!AGU5 -> 608119.81 | AGW6: =RawData!AGV5 -> 589950.31 | AGX6: =RawData!AGW5 -> 571882.25 | AGY6: =RawData!AGX5 -> 553909.81 | AGZ6: =RawData!AGY5 -> 536027.56 | AHA6: =RawData!AGZ5 -> 518230.41 | AHB6: =RawData!AHA5 -> 500513.97 | AHC6: =RawData!AHB5 -> 482873.81 | AHD6: =RawData!AHC5 -> 465306.53 | AHE6: =RawData!AHD5 -> 447808.78 | AHF6: =RawData!AHE5 -> 430377.53 | AHG6: =RawData!AHF5 -> 413010.13 | AHH6: =RawData!AHG5 -> 395704.31 | AHI6: =RawData!AHH5 -> 378458 | AHJ6: =RawData!AHI5 -> 361269.44 | AHK6: =RawData!AHJ5 -> 344137.19 | AHL6: =RawData!AHK5 -> 327059.66 | AHM6: =RawData!AHL5 -> 310036.09 | AHN6: =RawData!AHM5 -> 293285.47 | AHO6: =RawData!AHN5 -> 276692.53 | AHP6: =RawData!AHO5 -> 260152.61 | AHQ6: =RawData!AHP5 -> 2233382.3 | AHR6: =RawData!AHQ5 -> 2167860.5 | AHS6: =RawData!AHR5 -> 2102372.5 | AHT6: =RawData!AHS5 -> 2036910.5 | AHU6: =RawData!AHT5 -> 1971466.9 | AHV6: =RawData!AHU5 -> 1906036.5 | AHW6: =RawData!AHV5 -> 1840615 | AHX6: =RawData!AHW5 -> 1775198.4 | AHY6: =RawData!AHX5 -> 1709785.1 | AHZ6: =RawData!AHY5 -> 1644372.5 | AIA6: =RawData!AHZ5 -> 1578961.3 | AIB6: =RawData!AIA5 -> 1513550.9 | AIC6: =RawData!AIB5 -> 1448142.8 | AID6: =RawData!AIC5 -> 1382738.1 | AIE6: =RawData!AID5 -> 1317339.6 | AIF6: =RawData!AIE5 -> 1251950 | AIG6: =RawData!AIF5 -> 1186572.4 | AIH6: =RawData!AIG5 -> 1121211.1 | AII6: =RawData!AIH5 -> 1055869.5 | AIJ6: =RawData!AII5 -> 990553.25 | AIK6: =RawData!AIJ5 -> 925266.31 | AIL6: =RawData!AIK5 -> 860014.5 | AIM6: =RawData!AIL5 -> 794803 | AIN6: =RawData!AIM5 -> 244787.16 | AIO6: =RawData!AIN5 -> 231948.95 | AIP6: =RawData!AIO5 -> 219306.81 | AIQ6: =RawData!AIP5 -> 206849.69 | AIR6: =RawData!AIQ5 -> 194567.02 | AIS6: =RawData!AIR5 -> 182449.03 | AIT6: =RawData!AIS5 -> 170486.53 | AIU6: =RawData!AIT5 -> 158670.81 | AIV6: =RawData!AIU5 -> 146993.75 | AIW6: =RawData!AIV5 -> 135447.69 | AIX6: =RawData!AIW5 -> 124025.45 | AIY6: =RawData!AIX5 -> 112720.41 | AIZ6: =RawData!AIY5 -> 101526.21 | AJA6: =RawData!AIZ5 -> 90436.953 | AJB6: =RawData!AJA5 -> 79447.156 | AJC6: =RawData!AJB5 -> 68551.633 | AJD6: =RawData!AJC5 -> 57745.605 | AJE6: =RawData!AJD5 -> 47024.547 | AJF6: =RawData!AJE5 -> 44698.254 | AJG6: =RawData!AJF5 -> 42487.047 | AJH6: =RawData!AJG5 -> 40385.23 | AJI6: =RawData!AJH5 -> 38387.383 | AJJ6: =RawData!AJI5 -> 36488.371 | AJK6: =RawData!AJJ5 -> 763288.38 | AJL6: =RawData!AJK5 -> 729308.88 | AJM6: =RawData!AJL5 -> 695686.94 | AJN6: =RawData!AJM5 -> 662401.63 | AJO6: =RawData!AJN5 -> 629432.31 | AJP6: =RawData!AJO5 -> 596760.5 | AJQ6: =RawData!AJP5 -> 564368.75 | AJR6: =RawData!AJQ5 -> 532240.63 | AJS6: =RawData!AJR5 -> 500361.13 | AJT6: =RawData!AJS5 -> 468715.91 | AJU6: =RawData!AJT5 -> 437291.97 | AJV6: =RawData!AJU5 -> 406077.09 | AJW6: =RawData!AJV5 -> 375060.16 | AJX6: =RawData!AJW5 -> 344230.47 | AJY6: =RawData!AJX5 -> 313578.63 | AJZ6: =RawData!AJY5 -> 283095.44 | AKA6: =RawData!AJZ5 -> 252772.89 | AKB6: =RawData!AKA5 -> 222603.34 | AKC6: =RawData!AKB5 -> 192579.58 | AKD6: =RawData!AKC5 -> 162695.55 | AKE6: =RawData!AKD5 -> 140869.53 | AKF6: =RawData!AKE5 -> 133900.75 | AKG6: =RawData!AKF5 -> 127276.73 | AKH6: =RawData!AKG5 -> 14203339 | AKI6: =RawData!AKH5 -> 13690940 | AKJ6: =RawData!AKI5 -> 13181585 | AKK6: =RawData!AKJ5 -> 12675073 | AKL6: =RawData!AKK5 -> 12171206 | AKM6: =RawData!AKL5 -> 11669817 | AKN6: =RawData!AKM5 -> 11170742 | AKO6: =RawData!AKN5 -> 10673841 | AKP6: =RawData!AKO5 -> 10178978 | AKQ6: =RawData!AKP5 -> 9686030 | AKR6: =RawData!AKQ5 -> 9194893 | AKS6: =RawData!AKR5 -> 8705467 | AKT6: =RawData!AKS5 -> 8217662 | AKU6: =RawData!AKT5 -> 7731397.5 | AKV6: =RawData!AKU5 -> 7246607 | AKW6: =RawData!AKV5 -> 6763220.5 | AKX6: =RawData!AKW5 -> 6281190.5 | AKY6: =RawData!AKX5 -> 5800466 | AKZ6: =RawData!AKY5 -> 5320999.5 | ALA6: =RawData!AKZ5 -> 4842762.5 | ALB6: =RawData!ALA5 -> 4365721.5 | ALC6: =RawData!ALB5 -> 3889850.3 | ALD6: =RawData!ALC5 -> 3415128.8 | ALE6: =RawData!ALD5 -> 667363.75 | ALF6: =RawData!ALE5 -> 639309.88 | ALG6: =RawData!ALF5 -> 611745.63 | ALH6: =RawData!ALG5 -> 584644.5 | ALI6: =RawData!ALH5 -> 557981.38 | ALJ6: =RawData!ALI5 -> 531732.63 | ALK6: =RawData!ALJ5 -> 505876.03 | ALL6: =RawData!ALK5 -> 480390.78 | ALM6: =RawData!ALL5 -> 455257.34 | ALN6: =RawData!ALM5 -> 430457.13 | ALO6: =RawData!ALN5 -> 405972.88 | ALP6: =RawData!ALO5 -> 381788.41 | ALQ6: =RawData!ALP5 -> 357888.47 | ALR6: =RawData!ALQ5 -> 334258.66 | ALS6: =RawData!ALR5 -> 310885.69 | ALT6: =RawData!ALS5 -> 287756.84 | ALU6: =RawData!ALT5 -> 264860.59 | ALV6: =RawData!ALU5 -> 242185.77 | ALW6: =RawData!ALV5 -> 219721.94 | ALX6: =RawData!ALW5 -> 197459.7 | ALY6: =RawData!ALX5 -> 175389.83 | ALZ6: =RawData!ALY5 -> 153503.97 | AMA6: =RawData!ALZ5 -> 132287.34 | AMB6: =RawData!AMA5 -> 490105.06 | AMC6: =RawData!AMB5 -> 475525.94 | AMD6: =RawData!AMC5 -> 461020.81 | AME6: =RawData!AMD5 -> 446584.97 | AMF6: =RawData!AME5 -> 432213.56 | AMG6: =RawData!AMF5 -> 417902.63 | AMH6: =RawData!AMG5 -> 403648.44 | AMI6: =RawData!AMH5 -> 389447.69 | AMJ6: =RawData!AMI5 -> 375297.34 | AMK6: =RawData!AMJ5 -> 361194.63 | AML6: =RawData!AMK5 -> 347137.13 | AMM6: =RawData!AML5 -> 333122.81 | AMN6: =RawData!AMM5 -> 319149.84 | AMO6: =RawData!AMN5 -> 305216.44 | AMP6: =RawData!AMO5 -> 291321.31 | AMQ6: =RawData!AMP5 -> 277463.13 | AMR6: =RawData!AMQ5 -> 263641 | AMS6: =RawData!AMR5 -> 249854.19 | AMT6: =RawData!AMS5 -> 236101.69 | AMU6: =RawData!AMT5 -> 222383.31 | AMV6: =RawData!AMU5 -> 208698.55 | AMW6: =RawData!AMV5 -> 195047.13 | AMX6: =RawData!AMW5 -> 181428.91 | AMY6: =RawData!AMX5 -> 2608739 | AMZ6: =RawData!AMY5 -> 2516588.8 | ANA6: =RawData!AMZ5 -> 2425394.8 | ANB6: =RawData!ANA5 -> 2335102 | ANC6: =RawData!ANB5 -> 2245656.5 | AND6: =RawData!ANC5 -> 2157011.8 | ANE6: =RawData!AND5 -> 2069121.8 | ANF6: =RawData!ANE5 -> 1981945.4 | ANG6: =RawData!ANF5 -> 1895443.4 | ANH6: =RawData!ANG5 -> 1809579.6 | ANI6: =RawData!ANH5 -> 1724321.3 | ANJ6: =RawData!ANI5 -> 1639636.9 | ANK6: =RawData!ANJ5 -> 1555498.6 | ANL6: =RawData!ANK5 -> 1471879.3 | ANM6: =RawData!ANL5 -> 1388755.8 | ANN6: =RawData!ANM5 -> 1306104.4 | ANO6: =RawData!ANN5 -> 1223906.1 | ANP6: =RawData!ANO5 -> 1142141.5 | ANQ6: =RawData!ANP5 -> 1060792.8 | ANR6: =RawData!ANQ5 -> 979845.56 | ANS6: =RawData!ANR5 -> 899284.5 | ANT6: =RawData!ANS5 -> 819096.63 | ANU6: =RawData!ANT5 -> 739270.69 | ANV6: =RawData!ANU5 -> 2129219.8 | ANW6: =RawData!ANV5 -> 2037707.6 | ANX6: =RawData!ANW5 -> 1947372.6 | ANY6: =RawData!ANX5 -> 1858148.8 | ANZ6: =RawData!ANY5 -> 1769970.9 | AOA6: =RawData!ANZ5 -> 1682780.5 | AOB6: =RawData!AOA5 -> 1596522 | AOC6: =RawData!AOB5 -> 1511143.6 | AOD6: =RawData!AOC5 -> 1426596.6 | AOE6: =RawData!AOD5 -> 1342835.4 | AOF6: =RawData!AOE5 -> 1263562.9 | AOG6: =RawData!AOF5 -> 1185928.5 | AOH6: =RawData!AOG5 -> 1109112.6 | AOI6: =RawData!AOH5 -> 1033073.5 | AOJ6: =RawData!AOI5 -> 957772.88 | AOK6: =RawData!AOJ5 -> 883174 | AOL6: =RawData!AOK5 -> 809243.69 | AOM6: =RawData!AOL5 -> 735950.13 | AON6: =RawData!AOM5 -> 663263 | AOO6: =RawData!AON5 -> 591155.81 | AOP6: =RawData!AOO5 -> 521174.75 | AOQ6: =RawData!AOP5 -> 456450.75 | AOR6: =RawData!AOQ5 -> 392247.88 | AOS6: =RawData!AOR5 -> 1574106.8 | AOT6: =RawData!AOS5 -> 1517988.5 | AOU6: =RawData!AOT5 -> 1462530.8 | AOV6: =RawData!AOU5 -> 1407696.4 | AOW6: =RawData!AOV5 -> 1353449.5 | AOX6: =RawData!AOW5 -> 1299757.6 | AOY6: =RawData!AOX5 -> 1246589.8 | AOZ6: =RawData!AOY5 -> 1193918.3 | APA6: =RawData!AOZ5 -> 1141715.8 | APB6: =RawData!APA5 -> 1089957.5 | APC6: =RawData!APB5 -> 1038620.8 | APD6: =RawData!APC5 -> 987684.13 | APE6: =RawData!APD5 -> 937127.63 | APF6: =RawData!APE5 -> 886932.94 | APG6: =RawData!APF5 -> 837083.13 | APH6: =RawData!APG5 -> 787562 | API6: =RawData!APH5 -> 738355.75 | APJ6: =RawData!API5 -> 689450.63 | APK6: =RawData!APJ5 -> 640833.63 | APL6: =RawData!APK5 -> 592494.25 | APM6: =RawData!APL5 -> 544421.56 | APN6: =RawData!APM5 -> 496606.03 | APO6: =RawData!APN5 -> 449038.94 | APP6: =RawData!APO5 -> 1174811.8 | APQ6: =RawData!APP5 -> 1084312.8 | APR6: =RawData!APQ5 -> 994272.63 | APS6: =RawData!APR5 -> 904654.38 | APT6: =RawData!APS5 -> 815423.38 | APU6: =RawData!APT5 -> 726547.31 | APV6: =RawData!APU5 -> 637996.69 | APW6: =RawData!APV5 -> 549744.56 | APX6: =RawData!APW5 -> 461765.78 | APY6: =RawData!APX5 -> 374037.5 | APZ6: =RawData!APY5 -> 286538.63 | AQA6: =RawData!APZ5 -> 264176.81 | AQB6: =RawData!AQA5 -> 251108.09 | AQC6: =RawData!AQB5 -> 238685.84 | AQD6: =RawData!AQC5 -> 226878.14 | AQE6: =RawData!AQD5 -> 215654.53 | AQF6: =RawData!AQE5 -> 204986.19 | AQG6: =RawData!AQF5 -> 194845.59 | AQH6: =RawData!AQG5 -> 185206.63 | AQI6: =RawData!AQH5 -> 176044.53 | AQJ6: =RawData!AQI5 -> 167335.67 | AQK6: =RawData!AQJ5 -> 159057.61 | AQL6: =RawData!AQK5 -> 151189.09 | AQM6: =RawData!AQL5 -> 309378.5 | AQN6: =RawData!AQM5 -> 297780.75 | AQO6: =RawData!AQN5 -> 286281.72 | AQP6: =RawData!AQO5 -> 274875.38 | AQQ6: =RawData!AQP5 -> 263556.03 | AQR6: =RawData!AQQ5 -> 252318.53 | AQS6: =RawData!AQR5 -> 241157.97 | AQT6: =RawData!AQS5 -> 230069.84 | AQU6: =RawData!AQT5 -> 219050.02 | AQV6: =RawData!AQU5 -> 208094.63 | AQW6: =RawData!AQV5 -> 197200.17 | AQX6: =RawData!AQW5 -> 186363.48 | AQY6: =RawData!AQX5 -> 175581.48 | AQZ6: =RawData!AQY5 -> 164851.5 | ARA6: =RawData!AQZ5 -> 154171.06 | ARB6: =RawData!ARA5 -> 143537.78 | ARC6: =RawData!ARB5 -> 132949.73 | ARD6: =RawData!ARC5 -> 122405.02 | ARE6: =RawData!ARD5 -> 111901.86 | ARF6: =RawData!ARE5 -> 101438.8 | ARG6: =RawData!ARF5 -> 91014.445 | ARH6: =RawData!ARG5 -> 80627.523 | ARI6: =RawData!ARH5 -> 70277
A7: 18 | B7: 0 | C7: 18|0 | D7: =RawData!C6 -> 807615.69 | E7: =RawData!D6 -> 783988.44 | F7: =RawData!E6 -> 760384.75 | G7: =RawData!F6 -> 736799.63 | H7: =RawData!G6 -> 713227.69 | I7: =RawData!H6 -> 689665.25 | J7: =RawData!I6 -> 666108.56 | K7: =RawData!J6 -> 642554.94 | L7: =RawData!K6 -> 619001.75 | M7: =RawData!L6 -> 595447 | N7: =RawData!M6 -> 571889.06 | O7: =RawData!N6 -> 548327 | P7: =RawData!O6 -> 524760 | Q7: =RawData!P6 -> 501187.59 | R7: =RawData!Q6 -> 477609.81 | S7: =RawData!R6 -> 454026.78 | T7: =RawData!S6 -> 430439.13 | U7: =RawData!T6 -> 406847.59 | V7: =RawData!U6 -> 383252.97 | W7: =RawData!V6 -> 359656.69 | X7: =RawData!W6 -> 336060.03 | Y7: =RawData!X6 -> 312464.53 | Z7: =RawData!Y6 -> 288871.88 | AA7: =RawData!Z6 -> 770537.38 | AB7: =RawData!AA6 -> 750705.31 | AC7: =RawData!AB6 -> 730848.56 | AD7: =RawData!AC6 -> 710965.19 | AE7: =RawData!AD6 -> 691053 | AF7: =RawData!AE6 -> 671110.94 | AG7: =RawData!AF6 -> 651137.88 | AH7: =RawData!AG6 -> 631133.25 | AI7: =RawData!AH6 -> 611097.06 | AJ7: =RawData!AI6 -> 591029.19 | AK7: =RawData!AJ6 -> 570930.19 | AL7: =RawData!AK6 -> 550800.81 | AM7: =RawData!AL6 -> 530642 | AN7: =RawData!AM6 -> 510454.97 | AO7: =RawData!AN6 -> 490241.25 | AP7: =RawData!AO6 -> 470002.19 | AQ7: =RawData!AP6 -> 449739.88 | AR7: =RawData!AQ6 -> 429456.41 | AS7: =RawData!AR6 -> 409153.38 | AT7: =RawData!AS6 -> 388833.47 | AU7: =RawData!AT6 -> 368498.81 | AV7: =RawData!AU6 -> 348151.97 | AW7: =RawData!AV6 -> 327795.41 | AX7: =RawData!AW6 -> 692011.94 | AY7: =RawData!AX6 -> 669048.19 | AZ7: =RawData!AY6 -> 646116.06 | BA7: =RawData!AZ6 -> 623209.94 | BB7: =RawData!BA6 -> 600324.31 | BC7: =RawData!BB6 -> 577454.69 | BD7: =RawData!BC6 -> 554596.88 | BE7: =RawData!BD6 -> 531747.75 | BF7: =RawData!BE6 -> 508904.19 | BG7: =RawData!BF6 -> 486063.44 | BH7: =RawData!BG6 -> 463223.78 | BI7: =RawData!BH6 -> 440383.5 | BJ7: =RawData!BI6 -> 417541.31 | BK7: =RawData!BJ6 -> 394696.28 | BL7: =RawData!BK6 -> 371848.03 | BM7: =RawData!BL6 -> 348995.94 | BN7: =RawData!BM6 -> 326140.53 | BO7: =RawData!BN6 -> 303281.78 | BP7: =RawData!BO6 -> 280420.13 | BQ7: =RawData!BP6 -> 257556.59 | BR7: =RawData!BQ6 -> 234691.94 | BS7: =RawData!BR6 -> 211827.2 | BT7: =RawData!BS6 -> 188963.77 | BU7: =RawData!BT6 -> 2965047.3 | BV7: =RawData!BU6 -> 2852050.3 | BW7: =RawData!BV6 -> 2740958.5 | BX7: =RawData!BW6 -> 2631663 | BY7: =RawData!BX6 -> 2524061 | BZ7: =RawData!BY6 -> 2418056.8 | CA7: =RawData!BZ6 -> 2313560.5 | CB7: =RawData!CA6 -> 2210487.3 | CC7: =RawData!CB6 -> 2108758.3 | CD7: =RawData!CC6 -> 2008298.8 | CE7: =RawData!CD6 -> 1909040 | CF7: =RawData!CE6 -> 1810916.5 | CG7: =RawData!CF6 -> 1713868.1 | CH7: =RawData!CG6 -> 1617837.1 | CI7: =RawData!CH6 -> 1522771.5 | CJ7: =RawData!CI6 -> 1428621.1 | CK7: =RawData!CJ6 -> 1335340.4 | CL7: =RawData!CK6 -> 1242886 | CM7: =RawData!CL6 -> 1151217.4 | CN7: =RawData!CM6 -> 1060298.1 | CO7: =RawData!CN6 -> 970093.31 | CP7: =RawData!CO6 -> 880570.38 | CQ7: =RawData!CP6 -> 791699.81 | CR7: =RawData!CQ6 -> 23249652 | CS7: =RawData!CR6 -> 22406970 | CT7: =RawData!CS6 -> 21574930 | CU7: =RawData!CT6 -> 20752896 | CV7: =RawData!CU6 -> 19940248 | CW7: =RawData!CV6 -> 19136424 | CX7: =RawData!CW6 -> 18340898 | CY7: =RawData!CX6 -> 17553180 | CZ7: =RawData!CY6 -> 16772808 | DA7: =RawData!CZ6 -> 15999356 | DB7: =RawData!DA6 -> 15232426 | DC7: =RawData!DB6 -> 14471652 | DD7: =RawData!DC6 -> 13716694 | DE7: =RawData!DD6 -> 12967234 | DF7: =RawData!DE6 -> 12222982 | DG7: =RawData!DF6 -> 11483663 | DH7: =RawData!DG6 -> 10749034 | DI7: =RawData!DH6 -> 10018864 | DJ7: =RawData!DI6 -> 9292935 | DK7: =RawData!DJ6 -> 8571062 | DL7: =RawData!DK6 -> 7853061 | DM7: =RawData!DL6 -> 7138770 | DN7: =RawData!DM6 -> 6428041 | DO7: =RawData!DN6 -> 1685678.4 | DP7: =RawData!DO6 -> 1642421.3 | DQ7: =RawData!DP6 -> 1598984.3 | DR7: =RawData!DQ6 -> 1555369.1 | DS7: =RawData!DR6 -> 1511576.8 | DT7: =RawData!DS6 -> 1467609.4 | DU7: =RawData!DT6 -> 1423469.8 | DV7: =RawData!DU6 -> 1379162.1 | DW7: =RawData!DV6 -> 1334690 | DX7: =RawData!DW6 -> 1290058.1 | DY7: =RawData!DX6 -> 1245271.6 | DZ7: =RawData!DY6 -> 1200336.5 | EA7: =RawData!DZ6 -> 1155258.4 | EB7: =RawData!EA6 -> 1110043.4 | EC7: =RawData!EB6 -> 1064699 | ED7: =RawData!EC6 -> 1019231.1 | EE7: =RawData!ED6 -> 973648 | EF7: =RawData!EE6 -> 927956.56 | EG7: =RawData!EF6 -> 882163.94 | EH7: =RawData!EG6 -> 836278.75 | EI7: =RawData!EH6 -> 790308.38 | EJ7: =RawData!EI6 -> 744261 | EK7: =RawData!EJ6 -> 698144.56 | EL7: =RawData!EK6 -> 5653493 | EM7: =RawData!EL6 -> 5513276 | EN7: =RawData!EM6 -> 5374232 | EO7: =RawData!EN6 -> 5236288 | EP7: =RawData!EO6 -> 5099369 | EQ7: =RawData!EP6 -> 4963413.5 | ER7: =RawData!EQ6 -> 4828362 | ES7: =RawData!ER6 -> 4694159 | ET7: =RawData!ES6 -> 4560756 | EU7: =RawData!ET6 -> 4428107 | EV7: =RawData!EU6 -> 4296170 | EW7: =RawData!EV6 -> 4164909.5 | EX7: =RawData!EW6 -> 4034291.5 | EY7: =RawData!EX6 -> 3904284.5 | EZ7: =RawData!EY6 -> 3774862.5 | FA7: =RawData!EZ6 -> 3646000.3 | FB7: =RawData!FA6 -> 3517677.5 | FC7: =RawData!FB6 -> 3389875.8 | FD7: =RawData!FC6 -> 3262576 | FE7: =RawData!FD6 -> 3135766 | FF7: =RawData!FE6 -> 3009433.3 | FG7: =RawData!FF6 -> 2883567 | FH7: =RawData!FG6 -> 2758157.5 | FI7: =RawData!FH6 -> 836441 | FJ7: =RawData!FI6 -> 797781.25 | FK7: =RawData!FJ6 -> 759621.25 | FL7: =RawData!FK6 -> 721930.19 | FM7: =RawData!FL6 -> 684679 | FN7: =RawData!FM6 -> 647840.63 | FO7: =RawData!FN6 -> 611389.81 | FP7: =RawData!FO6 -> 575302.81 | FQ7: =RawData!FP6 -> 539557.69 | FR7: =RawData!FQ6 -> 504133.78 | FS7: =RawData!FR6 -> 469011.78 | FT7: =RawData!FS6 -> 434174.06 | FU7: =RawData!FT6 -> 399603.88 | FV7: =RawData!FU6 -> 365285.66 | FW7: =RawData!FV6 -> 331205.25 | FX7: =RawData!FW6 -> 297349.19 | FY7: =RawData!FX6 -> 263705.31 | FZ7: =RawData!FY6 -> 230262.27 | GA7: =RawData!FZ6 -> 197009.14 | GB7: =RawData!GA6 -> 163936.66 | GC7: =RawData!GB6 -> 143891.11 | GD7: =RawData!GC6 -> 136159.41 | GE7: =RawData!GD6 -> 129248.07 | GF7: =RawData!GE6 -> 2486654.3 | GG7: =RawData!GF6 -> 2386126.5 | GH7: =RawData!GG6 -> 2285858.8 | GI7: =RawData!GH6 -> 2185819.3 | GJ7: =RawData!GI6 -> 2085977.3 | GK7: =RawData!GJ6 -> 1986307 | GL7: =RawData!GK6 -> 1886783.6 | GM7: =RawData!GL6 -> 1787387 | GN7: =RawData!GM6 -> 1688097.4 | GO7: =RawData!GN6 -> 1588897.9 | GP7: =RawData!GO6 -> 1489774.8 | GQ7: =RawData!GP6 -> 1390715.3 | GR7: =RawData!GQ6 -> 1291709 | GS7: =RawData!GR6 -> 1192746.5 | GT7: =RawData!GS6 -> 1093820.9 | GU7: =RawData!GT6 -> 994926.19 | GV7: =RawData!GU6 -> 896058.19 | GW7: =RawData!GV6 -> 797213.63 | GX7: =RawData!GW6 -> 698389.69 | GY7: =RawData!GX6 -> 599587.06 | GZ7: =RawData!GY6 -> 500804.97 | HA7: =RawData!GZ6 -> 402044.28 | HB7: =RawData!HA6 -> 303307.44 | HC7: =RawData!HB6 -> 2209458.3 | HD7: =RawData!HC6 -> 2128082.5 | HE7: =RawData!HD6 -> 2047097.6 | HF7: =RawData!HE6 -> 1966470.8 | HG7: =RawData!HF6 -> 1886169 | HH7: =RawData!HG6 -> 1806164.9 | HI7: =RawData!HH6 -> 1726432.3 | HJ7: =RawData!HI6 -> 1646947.5 | HK7: =RawData!HJ6 -> 1567689.5 | HL7: =RawData!HK6 -> 1488638.8 | HM7: =RawData!HL6 -> 1409778.4 | HN7: =RawData!HM6 -> 1331093.1 | HO7: =RawData!HN6 -> 1252569.3 | HP7: =RawData!HO6 -> 1174194.6 | HQ7: =RawData!HP6 -> 1095959 | HR7: =RawData!HQ6 -> 1017853.2 | HS7: =RawData!HR6 -> 939869.56 | HT7: =RawData!HS6 -> 862002.06 | HU7: =RawData!HT6 -> 784244.19 | HV7: =RawData!HU6 -> 706592.69 | HW7: =RawData!HV6 -> 629043.63 | HX7: =RawData!HW6 -> 551594.44 | HY7: =RawData!HX6 -> 474898.44 | HZ7: =RawData!HY6 -> 1668859.8 | IA7: =RawData!HZ6 -> 1617929 | IB7: =RawData!IA6 -> 1567576.9 | IC7: =RawData!IB6 -> 1517768.1 | ID7: =RawData!IC6 -> 1468469 | IE7: =RawData!ID6 -> 1419649 | IF7: =RawData!IE6 -> 1371279.5 | IG7: =RawData!IF6 -> 1323334 | IH7: =RawData!IG6 -> 1275787.9 | II7: =RawData!IH6 -> 1228618.1 | IJ7: =RawData!II6 -> 1181803.6 | IK7: =RawData!IJ6 -> 1135325.3 | IL7: =RawData!IK6 -> 1089165.1 | IM7: =RawData!IL6 -> 1043306.3 | IN7: =RawData!IM6 -> 997734.19 | IO7: =RawData!IN6 -> 952434.25 | IP7: =RawData!IO6 -> 907394.19 | IQ7: =RawData!IP6 -> 862602.63 | IR7: =RawData!IQ6 -> 818048.31 | IS7: =RawData!IR6 -> 773722.25 | IT7: =RawData!IS6 -> 729615.38 | IU7: =RawData!IT6 -> 685719.94 | IV7: =RawData!IU6 -> 642028.75 | IW7: =RawData!IV6 -> 367157.94 | IX7: =RawData!IW6 -> 348805.59 | IY7: =RawData!IX6 -> 330666.69 | IZ7: =RawData!IY6 -> 312727.72 | JA7: =RawData!IZ6 -> 294975.78 | JB7: =RawData!JA6 -> 277398.91 | JC7: =RawData!JB6 -> 259985.94 | JD7: =RawData!JC6 -> 242726.52 | JE7: =RawData!JD6 -> 225610.88 | JF7: =RawData!JE6 -> 208630 | JG7: =RawData!JF6 -> 191775.45 | JH7: =RawData!JG6 -> 175039.5 | JI7: =RawData!JH6 -> 158414.92 | JJ7: =RawData!JI6 -> 141894.83 | JK7: =RawData!JJ6 -> 125473.19 | JL7: =RawData!JK6 -> 109144.09 | JM7: =RawData!JL6 -> 92902.359 | JN7: =RawData!JM6 -> 76743.023 | JO7: =RawData!JN6 -> 60661.516 | JP7: =RawData!JO6 -> 44959.023 | JQ7: =RawData!JP6 -> 42734.914 | JR7: =RawData!JQ6 -> 40620.828 | JS7: =RawData!JR6 -> 38611.332 | JT7: =RawData!JS6 -> 20089860 | JU7: =RawData!JT6 -> 19582418 | JV7: =RawData!JU6 -> 19083078 | JW7: =RawData!JV6 -> 18591404 | JX7: =RawData!JW6 -> 18106958 | JY7: =RawData!JX6 -> 17629358 | JZ7: =RawData!JY6 -> 17158230 | KA7: =RawData!JZ6 -> 16693236 | KB7: =RawData!KA6 -> 16234050 | KC7: =RawData!KB6 -> 15780372 | KD7: =RawData!KC6 -> 15331929 | KE7: =RawData!KD6 -> 14888458 | KF7: =RawData!KE6 -> 14449722 | KG7: =RawData!KF6 -> 14015494 | KH7: =RawData!KG6 -> 13585568 | KI7: =RawData!KH6 -> 13159749 | KJ7: =RawData!KI6 -> 12737862 | KK7: =RawData!KJ6 -> 12319744 | KL7: =RawData!KK6 -> 11905235 | KM7: =RawData!KL6 -> 11494202 | KN7: =RawData!KM6 -> 11086512 | KO7: =RawData!KN6 -> 10682046 | KP7: =RawData!KO6 -> 10280693 | KQ7: =RawData!KP6 -> 2355755 | KR7: =RawData!KQ6 -> 2265669 | KS7: =RawData!KR6 -> 2178018 | KT7: =RawData!KS6 -> 2092674.9 | KU7: =RawData!KT6 -> 2009517.9 | KV7: =RawData!KU6 -> 1928433 | KW7: =RawData!KV6 -> 1849312 | KX7: =RawData!KW6 -> 1772053 | KY7: =RawData!KX6 -> 1696559.6 | KZ7: =RawData!KY6 -> 1622740.8 | LA7: =RawData!KZ6 -> 1550510.6 | LB7: =RawData!LA6 -> 1479788 | LC7: =RawData!LB6 -> 1410496.9 | LD7: =RawData!LC6 -> 1342564.6 | LE7: =RawData!LD6 -> 1275923.5 | LF7: =RawData!LE6 -> 1210509.1 | LG7: =RawData!LF6 -> 1146261.5 | LH7: =RawData!LG6 -> 1083123.4 | LI7: =RawData!LH6 -> 1021040.8 | LJ7: =RawData!LI6 -> 959963.44 | LK7: =RawData!LJ6 -> 899843.81 | LL7: =RawData!LK6 -> 841313.19 | LM7: =RawData!LL6 -> 784456.69 | LN7: =RawData!LM6 -> 2964063 | LO7: =RawData!LN6 -> 2845047.5 | LP7: =RawData!LO6 -> 2727158 | LQ7: =RawData!LP6 -> 2610319.5 | LR7: =RawData!LQ6 -> 2494461.5 | LS7: =RawData!LR6 -> 2379518.3 | LT7: =RawData!LS6 -> 2265429.8 | LU7: =RawData!LT6 -> 2152140.8 | LV7: =RawData!LU6 -> 2039597.4 | LW7: =RawData!LV6 -> 1927752.8 | LX7: =RawData!LW6 -> 1816562.1 | LY7: =RawData!LX6 -> 1705985.6 | LZ7: =RawData!LY6 -> 1595984.6 | MA7: =RawData!LZ6 -> 1486525.3 | MB7: =RawData!MA6 -> 1377576 | MC7: =RawData!MB6 -> 1269107.4 | MD7: =RawData!MC6 -> 1161094 | ME7: =RawData!MD6 -> 1053511.6 | MF7: =RawData!ME6 -> 946337.88 | MG7: =RawData!MF6 -> 839554.31 | MH7: =RawData!MG6 -> 733142.5 | MI7: =RawData!MH6 -> 627086.31 | MJ7: =RawData!MI6 -> 521372.41 | MK7: =RawData!MJ6 -> 1557913.6 | ML7: =RawData!MK6 -> 1498689 | MM7: =RawData!ML6 -> 1440709.1 | MN7: =RawData!MM6 -> 1383906.5 | MO7: =RawData!MN6 -> 1328216.3 | MP7: =RawData!MO6 -> 1273578.3 | MQ7: =RawData!MP6 -> 1219935.1 | MR7: =RawData!MQ6 -> 1167234 | MS7: =RawData!MR6 -> 1115423.9 | MT7: =RawData!MS6 -> 1064457.5 | MU7: =RawData!MT6 -> 1014290.3 | MV7: =RawData!MU6 -> 964880.44 | MW7: =RawData!MV6 -> 916188.63 | MX7: =RawData!MW6 -> 868177.63 | MY7: =RawData!MX6 -> 820812.88 | MZ7: =RawData!MY6 -> 774061.75 | NA7: =RawData!MZ6 -> 727893.88 | NB7: =RawData!NA6 -> 682280.81 | NC7: =RawData!NB6 -> 637195.06 | ND7: =RawData!NC6 -> 592612.13 | NE7: =RawData!ND6 -> 548508.19 | NF7: =RawData!NE6 -> 504861.19 | NG7: =RawData!NF6 -> 461650.63 | NH7: =RawData!NG6 -> 4082036.8 | NI7: =RawData!NH6 -> 3974830.5 | NJ7: =RawData!NI6 -> 3869292.8 | NK7: =RawData!NJ6 -> 3765331.5 | NL7: =RawData!NK6 -> 3662857.3 | NM7: =RawData!NL6 -> 3561789 | NN7: =RawData!NM6 -> 3462050 | NO7: =RawData!NN6 -> 3363569.3 | NP7: =RawData!NO6 -> 3266280.3 | NQ7: =RawData!NP6 -> 3170119.8 | NR7: =RawData!NQ6 -> 3075030.8 | NS7: =RawData!NR6 -> 2980960.5 | NT7: =RawData!NS6 -> 2887857.5 | NU7: =RawData!NT6 -> 2795675.8 | NV7: =RawData!NU6 -> 2704372.8 | NW7: =RawData!NV6 -> 2613908 | NX7: =RawData!NW6 -> 2524244.8 | NY7: =RawData!NX6 -> 2435349.8 | NZ7: =RawData!NY6 -> 2347189.5 | OA7: =RawData!NZ6 -> 2259736.8 | OB7: =RawData!OA6 -> 2172963.8 | OC7: =RawData!OB6 -> 2086846 | OD7: =RawData!OC6 -> 2001360.5 | OE7: =RawData!OD6 -> 5672694 | OF7: =RawData!OE6 -> 5514170.5 | OG7: =RawData!OF6 -> 5356540 | OH7: =RawData!OG6 -> 5199736.5 | OI7: =RawData!OH6 -> 5043694.5 | OJ7: =RawData!OI6 -> 4888358 | OK7: =RawData!OJ6 -> 4733674.5 | OL7: =RawData!OK6 -> 4579598.5 | OM7: =RawData!OL6 -> 4426085.5 | ON7: =RawData!OM6 -> 4273098 | OO7: =RawData!ON6 -> 4120602.8 | OP7: =RawData!OO6 -> 3968569 | OQ7: =RawData!OP6 -> 3816969.8 | OR7: =RawData!OQ6 -> 3665781 | OS7: =RawData!OR6 -> 3514983.5 | OT7: =RawData!OS6 -> 3364558.8 | OU7: =RawData!OT6 -> 3214492.3 | OV7: =RawData!OU6 -> 3064772.5 | OW7: =RawData!OV6 -> 2915386.3 | OX7: =RawData!OW6 -> 2766328.5 | OY7: =RawData!OX6 -> 2617592.3 | OZ7: =RawData!OY6 -> 2469172 | PA7: =RawData!OZ6 -> 2321066 | PB7: =RawData!PA6 -> 855214.81 | PC7: =RawData!PB6 -> 821342.25 | PD7: =RawData!PC6 -> 787530.5 | PE7: =RawData!PD6 -> 753770.06 | PF7: =RawData!PE6 -> 720051.63 | PG7: =RawData!PF6 -> 686367.63 | PH7: =RawData!PG6 -> 652711.13 | PI7: =RawData!PH6 -> 619076 | PJ7: =RawData!PI6 -> 585456.88 | PK7: =RawData!PJ6 -> 551849.06 | PL7: =RawData!PK6 -> 518248.75 | PM7: =RawData!PL6 -> 484652.69 | PN7: =RawData!PM6 -> 451057.94 | PO7: =RawData!PN6 -> 417462.47 | PP7: =RawData!PO6 -> 383864.69 | PQ7: =RawData!PP6 -> 350263.16 | PR7: =RawData!PQ6 -> 316657.5 | PS7: =RawData!PR6 -> 283047.09 | PT7: =RawData!PS6 -> 249432 | PU7: =RawData!PT6 -> 215812.7 | PV7: =RawData!PU6 -> 182189.69 | PW7: =RawData!PV6 -> 148563.98 | PX7: =RawData!PW6 -> 114936.84 | PY7: =RawData!PX6 -> 7089695 | PZ7: =RawData!PY6 -> 6850348 | QA7: =RawData!PZ6 -> 6614069.5 | QB7: =RawData!QA6 -> 6380678.5 | QC7: =RawData!QB6 -> 6149997 | QD7: =RawData!QC6 -> 5921866.5 | QE7: =RawData!QD6 -> 5696136 | QF7: =RawData!QE6 -> 5472666 | QG7: =RawData!QF6 -> 5251325.5 | QH7: =RawData!QG6 -> 5031993 | QI7: =RawData!QH6 -> 4814555 | QJ7: =RawData!QI6 -> 4598908 | QK7: =RawData!QJ6 -> 4384955 | QL7: =RawData!QK6 -> 4172605 | QM7: =RawData!QL6 -> 3961777 | QN7: =RawData!QM6 -> 3752392.5 | QO7: =RawData!QN6 -> 3544381.3 | QP7: =RawData!QO6 -> 3337679.5 | QQ7: =RawData!QP6 -> 3132224.3 | QR7: =RawData!QQ6 -> 2927963.8 | QS7: =RawData!QR6 -> 2724845.8 | QT7: =RawData!QS6 -> 2522824.5 | QU7: =RawData!QT6 -> 2321858 | QV7: =RawData!QU6 -> 8989770 | QW7: =RawData!QV6 -> 8744145 | QX7: =RawData!QW6 -> 8499123 | QY7: =RawData!QX6 -> 8254638 | QZ7: =RawData!QY6 -> 8010622 | RA7: =RawData!QZ6 -> 7767021.5 | RB7: =RawData!RA6 -> 7523786 | RC7: =RawData!RB6 -> 7280874.5 | RD7: =RawData!RC6 -> 7038250 | RE7: =RawData!RD6 -> 6795878.5 | RF7: =RawData!RE6 -> 6553736 | RG7: =RawData!RF6 -> 6311800.5 | RH7: =RawData!RG6 -> 6070055 | RI7: =RawData!RH6 -> 5828486 | RJ7: =RawData!RI6 -> 5587084.5 | RK7: =RawData!RJ6 -> 5345844.5 | RL7: =RawData!RK6 -> 5104764 | RM7: =RawData!RL6 -> 4863845 | RN7: =RawData!RM6 -> 4623086 | RO7: =RawData!RN6 -> 4382498 | RP7: =RawData!RO6 -> 4142086.3 | RQ7: =RawData!RP6 -> 3901860.3 | RR7: =RawData!RQ6 -> 3661833.5 | RS7: =RawData!RR6 -> 1640029.8 | RT7: =RawData!RS6 -> 1597129 | RU7: =RawData!RT6 -> 1554116.9 | RV7: =RawData!RU6 -> 1510991.8 | RW7: =RawData!RV6 -> 1467751.5 | RX7: =RawData!RW6 -> 1424395.3 | RY7: =RawData!RX6 -> 1380924 | RZ7: =RawData!RY6 -> 1337338.1 | SA7: =RawData!RZ6 -> 1293639.5 | SB7: =RawData!SA6 -> 1249829.9 | SC7: =RawData!SB6 -> 1205912.3 | SD7: =RawData!SC6 -> 1161890.3 | SE7: =RawData!SD6 -> 1117767.5 | SF7: =RawData!SE6 -> 1073548.1 | SG7: =RawData!SF6 -> 1029237 | SH7: =RawData!SG6 -> 984838.94 | SI7: =RawData!SH6 -> 940359.5 | SJ7: =RawData!SI6 -> 895804.56 | SK7: =RawData!SJ6 -> 851179.06 | SL7: =RawData!SK6 -> 806490.06 | SM7: =RawData!SL6 -> 761743.31 | SN7: =RawData!SM6 -> 716945.5 | SO7: =RawData!SN6 -> 672102.94 | SP7: =RawData!SO6 -> 1471451.8 | SQ7: =RawData!SP6 -> 1422583.4 | SR7: =RawData!SQ6 -> 1373745.4 | SS7: =RawData!SR6 -> 1324927.3 | ST7: =RawData!SS6 -> 1276119.1 | SU7: =RawData!ST6 -> 1227312.6 | SV7: =RawData!SU6 -> 1178501 | SW7: =RawData!SV6 -> 1129678.1 | SX7: =RawData!SW6 -> 1080839 | SY7: =RawData!SX6 -> 1031979.3 | SZ7: =RawData!SY6 -> 983096.44 | TA7: =RawData!SZ6 -> 934187.75 | TB7: =RawData!TA6 -> 885251.81 | TC7: =RawData!TB6 -> 836287.81 | TD7: =RawData!TC6 -> 787295.63 | TE7: =RawData!TD6 -> 738275.56 | TF7: =RawData!TE6 -> 689228.94 | TG7: =RawData!TF6 -> 640157.13 | TH7: =RawData!TG6 -> 591061.75 | TI7: =RawData!TH6 -> 541945.81 | TJ7: =RawData!TI6 -> 492811.72 | TK7: =RawData!TJ6 -> 443662.56 | TL7: =RawData!TK6 -> 394501.94 | TM7: =RawData!TL6 -> 3504734.5 | TN7: =RawData!TM6 -> 3413603.8 | TO7: =RawData!TN6 -> 3322271 | TP7: =RawData!TO6 -> 3230731 | TQ7: =RawData!TP6 -> 3138977.3 | TR7: =RawData!TQ6 -> 3047007.8 | TS7: =RawData!TR6 -> 2954822.3 | TT7: =RawData!TS6 -> 2862421.3 | TU7: =RawData!TT6 -> 2769806.8 | TV7: =RawData!TU6 -> 2676981.3 | TW7: =RawData!TV6 -> 2583950.8 | TX7: =RawData!TW6 -> 2490721.5 | TY7: =RawData!TX6 -> 2397300.5 | TZ7: =RawData!TY6 -> 2303695.3 | UA7: =RawData!TZ6 -> 2209915.5 | UB7: =RawData!UA6 -> 2115970.3 | UC7: =RawData!UB6 -> 2021870.6 | UD7: =RawData!UC6 -> 1927628.1 | UE7: =RawData!UD6 -> 1833252.6 | UF7: =RawData!UE6 -> 1738758.6 | UG7: =RawData!UF6 -> 1644157.6 | UH7: =RawData!UG6 -> 1549462.5 | UI7: =RawData!UH6 -> 1454687 | UJ7: =RawData!UI6 -> 1692902.5 | UK7: =RawData!UJ6 -> 1636158.6 | UL7: =RawData!UK6 -> 1580172.6 | UM7: =RawData!UL6 -> 1524899.3 | UN7: =RawData!UM6 -> 1470295.8 | UO7: =RawData!UN6 -> 1416323.1 | UP7: =RawData!UO6 -> 1362944.4 | UQ7: =RawData!UP6 -> 1310125.6 | UR7: =RawData!UQ6 -> 1257834.5 | US7: =RawData!UR6 -> 1206040.9 | UT7: =RawData!US6 -> 1154717.6 | UU7: =RawData!UT6 -> 1103838.9 | UV7: =RawData!UU6 -> 1053381 | UW7: =RawData!UV6 -> 1003321.1 | UX7: =RawData!UW6 -> 953639.56 | UY7: =RawData!UX6 -> 904316.63 | UZ7: =RawData!UY6 -> 855335.5 | VA7: =RawData!UZ6 -> 806679.88 | VB7: =RawData!VA6 -> 758334.38 | VC7: =RawData!VB6 -> 710285.94 | VD7: =RawData!VC6 -> 662521.56 | VE7: =RawData!VD6 -> 615029.88 | VF7: =RawData!VE6 -> 567800.25 | VG7: =RawData!VF6 -> 548899.81 | VH7: =RawData!VG6 -> 531290.19 | VI7: =RawData!VH6 -> 513768.44 | VJ7: =RawData!VI6 -> 496327.38 | VK7: =RawData!VJ6 -> 478960 | VL7: =RawData!VK6 -> 461660.47 | VM7: =RawData!VL6 -> 444423.06 | VN7: =RawData!VM6 -> 427242.91 | VO7: =RawData!VN6 -> 410115.38 | VP7: =RawData!VO6 -> 393036.38 | VQ7: =RawData!VP6 -> 376002.38 | VR7: =RawData!VQ6 -> 359010.09 | VS7: =RawData!VR6 -> 342056.78 | VT7: =RawData!VS6 -> 325139.72 | VU7: =RawData!VT6 -> 308257 | VV7: =RawData!VU6 -> 291406.56 | VW7: =RawData!VV6 -> 274586.94 | VX7: =RawData!VW6 -> 257796.92 | VY7: =RawData!VX6 -> 241035.17 | VZ7: =RawData!VY6 -> 224301.08 | WA7: =RawData!VZ6 -> 207593.94 | WB7: =RawData!WA6 -> 190913.28 | WC7: =RawData!WB6 -> 174258.84 | WD7: =RawData!WC6 -> 168168.27 | WE7: =RawData!WD6 -> 162143.05 | WF7: =RawData!WE6 -> 156127.88 | WG7: =RawData!WF6 -> 150121.22 | WH7: =RawData!WG6 -> 144121.44 | WI7: =RawData!WH6 -> 138127.33 | WJ7: =RawData!WI6 -> 132137.66 | WK7: =RawData!WJ6 -> 126151.48 | WL7: =RawData!WK6 -> 120167.85 | WM7: =RawData!WL6 -> 114186.02 | WN7: =RawData!WM6 -> 108205.38 | WO7: =RawData!WN6 -> 102225.41 | WP7: =RawData!WO6 -> 96245.703 | WQ7: =RawData!WP6 -> 90265.898 | WR7: =RawData!WQ6 -> 84285.805 | WS7: =RawData!WR6 -> 78305.25 | WT7: =RawData!WS6 -> 72324.156 | WU7: =RawData!WT6 -> 66342.563 | WV7: =RawData!WU6 -> 60360.457 | WW7: =RawData!WV6 -> 54378.023 | WX7: =RawData!WW6 -> 48395.398 | WY7: =RawData!WX6 -> 42412.809 | WZ7: =RawData!WY6 -> 36430.531 | XA7: =RawData!WZ6 -> 637963.75 | XB7: =RawData!XA6 -> 613896.25 | XC7: =RawData!XB6 -> 590324.06 | XD7: =RawData!XC6 -> 567220.19 | XE7: =RawData!XD6 -> 544558.75 | XF7: =RawData!XE6 -> 522315.81 | XG7: =RawData!XF6 -> 500468.56 | XH7: =RawData!XG6 -> 478995.72 | XI7: =RawData!XH6 -> 457877.13 | XJ7: =RawData!XI6 -> 437093.88 | XK7: =RawData!XJ6 -> 416628.22 | XL7: =RawData!XK6 -> 396463.5 | XM7: =RawData!XL6 -> 376584.13 | XN7: =RawData!XM6 -> 356975.25 | XO7: =RawData!XN6 -> 337623.28 | XP7: =RawData!XO6 -> 318515.03 | XQ7: =RawData!XP6 -> 299638.63 | XR7: =RawData!XQ6 -> 280982.56 | XS7: =RawData!XR6 -> 262536.19 | XT7: =RawData!XS6 -> 244289.61 | XU7: =RawData!XT6 -> 226233.5 | XV7: =RawData!XU6 -> 208359.03 | XW7: =RawData!XV6 -> 190658.16 | XX7: =RawData!XW6 -> 248165.55 | XY7: =RawData!XX6 -> 241102.44 | XZ7: =RawData!XY6 -> 234076.11 | YA7: =RawData!XZ6 -> 227083.81 | YB7: =RawData!YA6 -> 220122.67 | YC7: =RawData!YB6 -> 213190.31 | YD7: =RawData!YC6 -> 206284.55 | YE7: =RawData!YD6 -> 199403.38 | YF7: =RawData!YE6 -> 192545.02 | YG7: =RawData!YF6 -> 185707.8 | YH7: =RawData!YG6 -> 178890.34 | YI7: =RawData!YH6 -> 172091.38 | YJ7: =RawData!YI6 -> 165309.77 | YK7: =RawData!YJ6 -> 158544.55 | YL7: =RawData!YK6 -> 151794.91 | YM7: =RawData!YL6 -> 145060.06 | YN7: =RawData!YM6 -> 138339.52 | YO7: =RawData!YN6 -> 131632.72 | YP7: =RawData!YO6 -> 124939.22 | YQ7: =RawData!YP6 -> 118258.8 | YR7: =RawData!YQ6 -> 111591.2 | YS7: =RawData!YR6 -> 104936.27 | YT7: =RawData!YS6 -> 98293.953 | YU7: =RawData!YT6 -> 14717444 | YV7: =RawData!YU6 -> 14271275 | YW7: =RawData!YV6 -> 13835313 | YX7: =RawData!YW6 -> 13409021 | YY7: =RawData!YX6 -> 12991882 | YZ7: =RawData!YY6 -> 12583416 | ZA7: =RawData!YZ6 -> 12183171 | ZB7: =RawData!ZA6 -> 11790721 | ZC7: =RawData!ZB6 -> 11405662 | ZD7: =RawData!ZC6 -> 11027616 | ZE7: =RawData!ZD6 -> 10656229 | ZF7: =RawData!ZE6 -> 10291168 | ZG7: =RawData!ZF6 -> 9932118 | ZH7: =RawData!ZG6 -> 9578782 | ZI7: =RawData!ZH6 -> 9230887 | ZJ7: =RawData!ZI6 -> 8888180 | ZK7: =RawData!ZJ6 -> 8550412 | ZL7: =RawData!ZK6 -> 8217352.5 | ZM7: =RawData!ZL6 -> 7888782 | ZN7: =RawData!ZM6 -> 7564505 | ZO7: =RawData!ZN6 -> 7244331.5 | ZP7: =RawData!ZO6 -> 6928085.5 | ZQ7: =RawData!ZP6 -> 6615598.5 | ZR7: =RawData!ZQ6 -> 1464208.3 | ZS7: =RawData!ZR6 -> 1417593.3 | ZT7: =RawData!ZS6 -> 1371050.1 | ZU7: =RawData!ZT6 -> 1324567.3 | ZV7: =RawData!ZU6 -> 1278133.3 | ZW7: =RawData!ZV6 -> 1231738.8 | ZX7: =RawData!ZW6 -> 1185375.6 | ZY7: =RawData!ZX6 -> 1139036.6 | ZZ7: =RawData!ZY6 -> 1092715.8 | AAA7: =RawData!ZZ6 -> 1046407.3 | AAB7: =RawData!AAA6 -> 1000107.6 | AAC7: =RawData!AAB6 -> 953813.13 | AAD7: =RawData!AAC6 -> 907521.25 | AAE7: =RawData!AAD6 -> 861230 | AAF7: =RawData!AAE6 -> 814938.38 | AAG7: =RawData!AAF6 -> 768645.44 | AAH7: =RawData!AAG6 -> 722351.63 | AAI7: =RawData!AAH6 -> 676057.5 | AAJ7: =RawData!AAI6 -> 629763.69 | AAK7: =RawData!AAJ6 -> 583472 | AAL7: =RawData!AAK6 -> 537184.13 | AAM7: =RawData!AAL6 -> 490902.19 | AAN7: =RawData!AAM6 -> 444628.88 | AAO7: =RawData!AAN6 -> 10576926 | AAP7: =RawData!AAO6 -> 10089273 | AAQ7: =RawData!AAP6 -> 9609629 | AAR7: =RawData!AAQ6 -> 9137531 | AAS7: =RawData!AAR6 -> 8672537 | AAT7: =RawData!AAS6 -> 8214235.5 | AAU7: =RawData!AAT6 -> 7762242 | AAV7: =RawData!AAU6 -> 7316192.5 | AAW7: =RawData!AAV6 -> 6875747.5 | AAX7: =RawData!AAW6 -> 6440586.5 | AAY7: =RawData!AAX6 -> 6010410.5 | AAZ7: =RawData!AAY6 -> 5584942.5 | ABA7: =RawData!AAZ6 -> 5163920 | ABB7: =RawData!ABA6 -> 4747097 | ABC7: =RawData!ABB6 -> 4334244.5 | ABD7: =RawData!ABC6 -> 3925149.3 | ABE7: =RawData!ABD6 -> 3519613.8 | ABF7: =RawData!ABE6 -> 3117451.3 | ABG7: =RawData!ABF6 -> 2718484.8 | ABH7: =RawData!ABG6 -> 2322558 | ABI7: =RawData!ABH6 -> 1929518.3 | ABJ7: =RawData!ABI6 -> 1539699.4 | ABK7: =RawData!ABJ6 -> 1153500.6 | ABL7: =RawData!ABK6 -> 2441536.5 | ABM7: =RawData!ABL6 -> 2322779.5 | ABN7: =RawData!ABM6 -> 2204978.3 | ABO7: =RawData!ABN6 -> 2088064.4 | ABP7: =RawData!ABO6 -> 1971972.9 | ABQ7: =RawData!ABP6 -> 1856644.3 | ABR7: =RawData!ABQ6 -> 1742023.5 | ABS7: =RawData!ABR6 -> 1628059.3 | ABT7: =RawData!ABS6 -> 1514704.8 | ABU7: =RawData!ABT6 -> 1401916.1 | ABV7: =RawData!ABU6 -> 1289652.9 | ABW7: =RawData!ABV6 -> 1177879.1 | ABX7: =RawData!ABW6 -> 1066560.6 | ABY7: =RawData!ABX6 -> 955666.69 | ABZ7: =RawData!ABY6 -> 845169.06 | ACA7: =RawData!ABZ6 -> 735042.06 | ACB7: =RawData!ACA6 -> 625262.94 | ACC7: =RawData!ACB6 -> 515810.47 | ACD7: =RawData!ACC6 -> 406665.19 | ACE7: =RawData!ACD6 -> 306117.13 | ACF7: =RawData!ACE6 -> 289742.25 | ACG7: =RawData!ACF6 -> 274096.69 | ACH7: =RawData!ACG6 -> 259857.98 | ACI7: =RawData!ACH6 -> 196416.36 | ACJ7: =RawData!ACI6 -> 189726.94 | ACK7: =RawData!ACJ6 -> 183172.83 | ACL7: =RawData!ACK6 -> 176746.72 | ACM7: =RawData!ACL6 -> 170441.53 | ACN7: =RawData!ACM6 -> 164250.78 | ACO7: =RawData!ACN6 -> 158168.3 | ACP7: =RawData!ACO6 -> 152188.27 | ACQ7: =RawData!ACP6 -> 146305.27 | ACR7: =RawData!ACQ6 -> 140514.11 | ACS7: =RawData!ACR6 -> 134810.06 | ACT7: =RawData!ACS6 -> 129188.59 | ACU7: =RawData!ACT6 -> 123645.48 | ACV7: =RawData!ACU6 -> 118176.73 | ACW7: =RawData!ACV6 -> 112778.68 | ACX7: =RawData!ACW6 -> 107447.78 | ACY7: =RawData!ACX6 -> 102180.81 | ACZ7: =RawData!ACY6 -> 96974.758 | ADA7: =RawData!ACZ6 -> 91826.68 | ADB7: =RawData!ADA6 -> 86733.961 | ADC7: =RawData!ADB6 -> 81694.109 | ADD7: =RawData!ADC6 -> 76704.781 | ADE7: =RawData!ADD6 -> 71763.781 | ADF7: =RawData!ADE6 -> 1658055.9 | ADG7: =RawData!ADF6 -> 1599952.4 | ADH7: =RawData!ADG6 -> 1541948 | ADI7: =RawData!ADH6 -> 1484027.6 | ADJ7: =RawData!ADI6 -> 1426175.6 | ADK7: =RawData!ADJ6 -> 1368380.3 | ADL7: =RawData!ADK6 -> 1310629.6 | ADM7: =RawData!ADL6 -> 1252914.6 | ADN7: =RawData!ADM6 -> 1195226.6 | ADO7: =RawData!ADN6 -> 1137557.9 | ADP7: =RawData!ADO6 -> 1079903 | ADQ7: =RawData!ADP6 -> 1022256.6 | ADR7: =RawData!ADQ6 -> 964615 | ADS7: =RawData!ADR6 -> 906974.69 | ADT7: =RawData!ADS6 -> 849334 | ADU7: =RawData!ADT6 -> 791691 | ADV7: =RawData!ADU6 -> 734045.5 | ADW7: =RawData!ADV6 -> 676397.31 | ADX7: =RawData!ADW6 -> 618746.81 | ADY7: =RawData!ADX6 -> 561095.81 | ADZ7: =RawData!ADY6 -> 503445.44 | AEA7: =RawData!ADZ6 -> 445798.09 | AEB7: =RawData!AEA6 -> 388156.31 | AEC7: =RawData!AEB6 -> 1416047.6 | AED7: =RawData!AEC6 -> 1355906 | AEE7: =RawData!AED6 -> 1296802.9 | AEF7: =RawData!AEE6 -> 1238679.3 | AEG7: =RawData!AEF6 -> 1181478.5 | AEH7: =RawData!AEG6 -> 1125148.5 | AEI7: =RawData!AEH6 -> 1069639.5 | AEJ7: =RawData!AEI6 -> 1014905.7 | AEK7: =RawData!AEJ6 -> 960903.13 | AEL7: =RawData!AEK6 -> 907591.13 | AEM7: =RawData!AEL6 -> 854931.5 | AEN7: =RawData!AEM6 -> 802888.44 | AEO7: =RawData!AEN6 -> 751428.5 | AEP7: =RawData!AEO6 -> 700520.25 | AEQ7: =RawData!AEP6 -> 650134.19 | AER7: =RawData!AEQ6 -> 600243.06 | AES7: =RawData!AER6 -> 550821.38 | AET7: =RawData!AES6 -> 502328.66 | AEU7: =RawData!AET6 -> 455855.25 | AEV7: =RawData!AEU6 -> 409817.34 | AEW7: =RawData!AEV6 -> 364193.78 | AEX7: =RawData!AEW6 -> 318964.75 | AEY7: =RawData!AEX6 -> 274112.25 | AEZ7: =RawData!AEY6 -> 1465173.1 | AFA7: =RawData!AEZ6 -> 1395393.5 | AFB7: =RawData!AFA6 -> 1326146.9 | AFC7: =RawData!AFB6 -> 1257394.3 | AFD7: =RawData!AFC6 -> 1189098.8 | AFE7: =RawData!AFD6 -> 1121226.9 | AFF7: =RawData!AFE6 -> 1053747.3 | AFG7: =RawData!AFF6 -> 986631.06 | AFH7: =RawData!AFG6 -> 919851.75 | AFI7: =RawData!AFH6 -> 853384.75 | AFJ7: =RawData!AFI6 -> 787207.56 | AFK7: =RawData!AFJ6 -> 721299.56 | AFL7: =RawData!AFK6 -> 655642.44 | AFM7: =RawData!AFL6 -> 590218 | AFN7: =RawData!AFM6 -> 525011.38 | AFO7: =RawData!AFN6 -> 460007.84 | AFP7: =RawData!AFO6 -> 395195 | AFQ7: =RawData!AFP6 -> 330561.28 | AFR7: =RawData!AFQ6 -> 266095.72 | AFS7: =RawData!AFR6 -> 201789.75 | AFT7: =RawData!AFS6 -> 151260.38 | AFU7: =RawData!AFT6 -> 143777.56 | AFV7: =RawData!AFU6 -> 136664.94 | AFW7: =RawData!AFV6 -> 7370579 | AFX7: =RawData!AFW6 -> 7149931 | AFY7: =RawData!AFX6 -> 6931011.5 | AFZ7: =RawData!AFY6 -> 6713704 | AGA7: =RawData!AFZ6 -> 6497896.5 | AGB7: =RawData!AGA6 -> 6283489 | AGC7: =RawData!AGB6 -> 6070388 | AGD7: =RawData!AGC6 -> 5858509 | AGE7: =RawData!AGD6 -> 5647774 | AGF7: =RawData!AGE6 -> 5438109 | AGG7: =RawData!AGF6 -> 5229452.5 | AGH7: =RawData!AGG6 -> 5021744 | AGI7: =RawData!AGH6 -> 4814930.5 | AGJ7: =RawData!AGI6 -> 4608962 | AGK7: =RawData!AGJ6 -> 4403797 | AGL7: =RawData!AGK6 -> 4199396 | AGM7: =RawData!AGL6 -> 3995723.5 | AGN7: =RawData!AGM6 -> 3792751 | AGO7: =RawData!AGN6 -> 3590448 | AGP7: =RawData!AGO6 -> 3388794.3 | AGQ7: =RawData!AGP6 -> 3187767 | AGR7: =RawData!AGQ6 -> 2987350 | AGS7: =RawData!AGR6 -> 2787527.5 | AGT7: =RawData!AGS6 -> 621673.63 | AGU7: =RawData!AGT6 -> 604351.25 | AGV7: =RawData!AGU6 -> 587115.63 | AGW7: =RawData!AGV6 -> 569959.88 | AGX7: =RawData!AGW6 -> 552877.5 | AGY7: =RawData!AGX6 -> 535862.75 | AGZ7: =RawData!AGY6 -> 518910.34 | AHA7: =RawData!AGZ6 -> 502015.69 | AHB7: =RawData!AHA6 -> 485174.47 | AHC7: =RawData!AHB6 -> 468382.69 | AHD7: =RawData!AHC6 -> 451637.38 | AHE7: =RawData!AHD6 -> 434935.31 | AHF7: =RawData!AHE6 -> 418273.94 | AHG7: =RawData!AHF6 -> 401651.06 | AHH7: =RawData!AHG6 -> 385064.75 | AHI7: =RawData!AHH6 -> 368513.34 | AHJ7: =RawData!AHI6 -> 351995.53 | AHK7: =RawData!AHJ6 -> 335510.34 | AHL7: =RawData!AHK6 -> 319056.56 | AHM7: =RawData!AHL6 -> 302633.97 | AHN7: =RawData!AHM6 -> 286457.88 | AHO7: =RawData!AHN6 -> 270413.22 | AHP7: =RawData!AHO6 -> 254400.52 | AHQ7: =RawData!AHP6 -> 2148315.3 | AHR7: =RawData!AHQ6 -> 2086931.6 | AHS7: =RawData!AHR6 -> 2025469.4 | AHT7: =RawData!AHS6 -> 1963922.4 | AHU7: =RawData!AHT6 -> 1902282.8 | AHV7: =RawData!AHU6 -> 1840547 | AHW7: =RawData!AHV6 -> 1778711.3 | AHX7: =RawData!AHW6 -> 1716773 | AHY7: =RawData!AHX6 -> 1654731.3 | AHZ7: =RawData!AHY6 -> 1592585.4 | AIA7: =RawData!AHZ6 -> 1530336.9 | AIB7: =RawData!AIA6 -> 1467986.9 | AIC7: =RawData!AIB6 -> 1405538.3 | AID7: =RawData!AIC6 -> 1342993.6 | AIE7: =RawData!AID6 -> 1280357.4 | AIF7: =RawData!AIE6 -> 1217633.6 | AIG7: =RawData!AIF6 -> 1154827.6 | AIH7: =RawData!AIG6 -> 1091945.3 | AII7: =RawData!AIH6 -> 1028991.5 | AIJ7: =RawData!AII6 -> 965973.88 | AIK7: =RawData!AIJ6 -> 902898.31 | AIL7: =RawData!AIK6 -> 839772.31 | AIM7: =RawData!AIL6 -> 776603.06 | AIN7: =RawData!AIM6 -> 239090.56 | AIO7: =RawData!AIN6 -> 226685.63 | AIP7: =RawData!AIO6 -> 214463.81 | AIQ7: =RawData!AIP6 -> 202414.22 | AIR7: =RawData!AIQ6 -> 190526.34 | AIS7: =RawData!AIR6 -> 178790.56 | AIT7: =RawData!AIS6 -> 167197.78 | AIU7: =RawData!AIT6 -> 155739.47 | AIV7: =RawData!AIU6 -> 144407.58 | AIW7: =RawData!AIV6 -> 133194.66 | AIX7: =RawData!AIW6 -> 122093.71 | AIY7: =RawData!AIX6 -> 111098.23 | AIZ7: =RawData!AIY6 -> 100202.08 | AJA7: =RawData!AIZ6 -> 89399.531 | AJB7: =RawData!AJA6 -> 78685.305 | AJC7: =RawData!AJB6 -> 68054.406 | AJD7: =RawData!AJC6 -> 57502.254 | AJE7: =RawData!AJD6 -> 47024.547 | AJF7: =RawData!AJE6 -> 44698.254 | AJG7: =RawData!AJF6 -> 42487.047 | AJH7: =RawData!AJG6 -> 40385.23 | AJI7: =RawData!AJH6 -> 38387.383 | AJJ7: =RawData!AJI6 -> 36488.371 | AJK7: =RawData!AJJ6 -> 740957.06 | AJL7: =RawData!AJK6 -> 708398.75 | AJM7: =RawData!AJL6 -> 676157.13 | AJN7: =RawData!AJM6 -> 644211.44 | AJO7: =RawData!AJN6 -> 612541.25 | AJP7: =RawData!AJO6 -> 581128.5 | AJQ7: =RawData!AJP6 -> 549956.13 | AJR7: =RawData!AJQ6 -> 519008.16 | AJS7: =RawData!AJR6 -> 488269.91 | AJT7: =RawData!AJS6 -> 457727.69 | AJU7: =RawData!AJT6 -> 427368.94 | AJV7: =RawData!AJU6 -> 397181.91 | AJW7: =RawData!AJV6 -> 367156.13 | AJX7: =RawData!AJW6 -> 337281.47 | AJY7: =RawData!AJX6 -> 307549.13 | AJZ7: =RawData!AJY6 -> 277950.5 | AKA7: =RawData!AJZ6 -> 248478.27 | AKB7: =RawData!AKA6 -> 219125.44 | AKC7: =RawData!AKB6 -> 189885.42 | AKD7: =RawData!AKC6 -> 160752.86 | AKE7: =RawData!AKD6 -> 140869.53 | AKF7: =RawData!AKE6 -> 133900.75 | AKG7: =RawData!AKF6 -> 127276.73 | AKH7: =RawData!AKG6 -> 13717570 | AKI7: =RawData!AKH6 -> 13231579 | AKJ7: =RawData!AKI6 -> 12747895 | AKK7: =RawData!AKJ6 -> 12266324 | AKL7: =RawData!AKK6 -> 11786671 | AKM7: =RawData!AKL6 -> 11308776 | AKN7: =RawData!AKM6 -> 10832485 | AKO7: =RawData!AKN6 -> 10357659 | AKP7: =RawData!AKO6 -> 9884174 | AKQ7: =RawData!AKP6 -> 9411914 | AKR7: =RawData!AKQ6 -> 8940786 | AKS7: =RawData!AKR6 -> 8470696 | AKT7: =RawData!AKS6 -> 8001569 | AKU7: =RawData!AKT6 -> 7533329 | AKV7: =RawData!AKU6 -> 7065922 | AKW7: =RawData!AKV6 -> 6599292.5 | AKX7: =RawData!AKW6 -> 6133399.5 | AKY7: =RawData!AKX6 -> 5668206 | AKZ7: =RawData!AKY6 -> 5203676 | ALA7: =RawData!AKZ6 -> 4739792.5 | ALB7: =RawData!ALA6 -> 4276535.5 | ALC7: =RawData!ALB6 -> 3813889 | ALD7: =RawData!ALC6 -> 3351846.8 | ALE7: =RawData!ALD6 -> 650136.19 | ALF7: =RawData!ALE6 -> 623093.5 | ALG7: =RawData!ALF6 -> 596511.63 | ALH7: =RawData!ALG6 -> 570364.5 | ALI7: =RawData!ALH6 -> 544627 | ALJ7: =RawData!ALI6 -> 519275.84 | ALK7: =RawData!ALJ6 -> 494289.13 | ALL7: =RawData!ALK6 -> 469646.28 | ALM7: =RawData!ALL6 -> 445327.97 | ALN7: =RawData!ALM6 -> 421316.09 | ALO7: =RawData!ALN6 -> 397593.75 | ALP7: =RawData!ALO6 -> 374145 | ALQ7: =RawData!ALP6 -> 350955.09 | ALR7: =RawData!ALQ6 -> 328010 | ALS7: =RawData!ALR6 -> 305296.88 | ALT7: =RawData!ALS6 -> 282803.41 | ALU7: =RawData!ALT6 -> 260518.44 | ALV7: =RawData!ALU6 -> 238431.34 | ALW7: =RawData!ALV6 -> 216532.19 | ALX7: =RawData!ALW6 -> 194811.94 | ALY7: =RawData!ALX6 -> 173261.95 | ALZ7: =RawData!ALY6 -> 151874.25 | AMA7: =RawData!ALZ6 -> 131117.31 | AMB7: =RawData!AMA6 -> 472427.31 | AMC7: =RawData!AMB6 -> 458694.63 | AMD7: =RawData!AMC6 -> 445013.19 | AME7: =RawData!AMD6 -> 431378.31 | AMF7: =RawData!AME6 -> 417785.31 | AMG7: =RawData!AMF6 -> 404230.5 | AMH7: =RawData!AMG6 -> 390710.31 | AMI7: =RawData!AMH6 -> 377221.66 | AMJ7: =RawData!AMI6 -> 363761.69 | AMK7: =RawData!AMJ6 -> 350327.94 | AML7: =RawData!AMK6 -> 336918.31 | AMM7: =RawData!AML6 -> 323530.94 | AMN7: =RawData!AMM6 -> 310164.34 | AMO7: =RawData!AMN6 -> 296817.03 | AMP7: =RawData!AMO6 -> 283488.13 | AMQ7: =RawData!AMP6 -> 270176.56 | AMR7: =RawData!AMQ6 -> 256881.78 | AMS7: =RawData!AMR6 -> 243603.41 | AMT7: =RawData!AMS6 -> 230340.84 | AMU7: =RawData!AMT6 -> 217094.19 | AMV7: =RawData!AMU6 -> 203863.36 | AMW7: =RawData!AMV6 -> 190648.45 | AMX7: =RawData!AMW6 -> 177449.69 | AMY7: =RawData!AMX6 -> 2524942 | AMZ7: =RawData!AMY6 -> 2437176.5 | ANA7: =RawData!AMZ6 -> 2350246.3 | ANB7: =RawData!ANA6 -> 2264096.8 | ANC7: =RawData!ANB6 -> 2178675.5 | AND7: =RawData!ANC6 -> 2093936.1 | ANE7: =RawData!AND6 -> 2009834.8 | ANF7: =RawData!ANE6 -> 1926330.4 | ANG7: =RawData!ANF6 -> 1843385.9 | ANH7: =RawData!ANG6 -> 1760965.9 | ANI7: =RawData!ANH6 -> 1679039.3 | ANJ7: =RawData!ANI6 -> 1597576.4 | ANK7: =RawData!ANJ6 -> 1516550.5 | ANL7: =RawData!ANK6 -> 1435936.9 | ANM7: =RawData!ANL6 -> 1355713 | ANN7: =RawData!ANM6 -> 1275858 | ANO7: =RawData!ANN6 -> 1196354.4 | ANP7: =RawData!ANO6 -> 1117184.4 | ANQ7: =RawData!ANP6 -> 1038332.4 | ANR7: =RawData!ANQ6 -> 959785.75 | ANS7: =RawData!ANR6 -> 881531.38 | ANT7: =RawData!ANS6 -> 803558.19 | ANU7: =RawData!ANT6 -> 725857.06 | ANV7: =RawData!ANU6 -> 2069016.1 | ANW7: =RawData!ANV6 -> 1981184.1 | ANX7: =RawData!ANW6 -> 1894424.3 | ANY7: =RawData!ANX6 -> 1808670.4 | ANZ7: =RawData!ANY6 -> 1723859.1 | AOA7: =RawData!ANZ6 -> 1639932.4 | AOB7: =RawData!AOA6 -> 1556835.4 | AOC7: =RawData!AOB6 -> 1474517.8 | AOD7: =RawData!AOC6 -> 1392931.8 | AOE7: =RawData!AOD6 -> 1312856.6 | AOF7: =RawData!AOE6 -> 1236858.5 | AOG7: =RawData!AOF6 -> 1161637 | AOH7: =RawData!AOG6 -> 1087149.4 | AOI7: =RawData!AOH6 -> 1013355.3 | AOJ7: =RawData!AOI6 -> 940217.56 | AOK7: =RawData!AOJ6 -> 867701.06 | AOL7: =RawData!AOK6 -> 795774.06 | AOM7: =RawData!AOL6 -> 724406.06 | AON7: =RawData!AOM6 -> 653568.56 | AOO7: =RawData!AON6 -> 583236.44 | AOP7: =RawData!AOO6 -> 514815.72 | AOQ7: =RawData!AOP6 -> 451566.56 | AOR7: =RawData!AOQ6 -> 388775.84 | AOS7: =RawData!AOR6 -> 1524826.8 | AOT7: =RawData!AOS6 -> 1471285.1 | AOU7: =RawData!AOT6 -> 1418332.9 | AOV7: =RawData!AOU6 -> 1365933.3 | AOW7: =RawData!AOV6 -> 1314050.9 | AOX7: =RawData!AOW6 -> 1262654 | AOY7: =RawData!AOX6 -> 1211712.5 | AOZ7: =RawData!AOY6 -> 1161198.8 | APA7: =RawData!AOZ6 -> 1111086.6 | APB7: =RawData!APA6 -> 1061352.3 | APC7: =RawData!APB6 -> 1011973.3 | APD7: =RawData!APC6 -> 962929.75 | APE7: =RawData!APD6 -> 914202.5 | APF7: =RawData!APE6 -> 865773.88 | APG7: =RawData!APF6 -> 817628.25 | APH7: =RawData!APG6 -> 769750.5 | API7: =RawData!APH6 -> 722127.81 | APJ7: =RawData!API6 -> 674747.38 | APK7: =RawData!APJ6 -> 627597.75 | APL7: =RawData!APK6 -> 580669.25 | APM7: =RawData!APL6 -> 533952.25 | APN7: =RawData!APM6 -> 487438.38 | APO7: =RawData!APN6 -> 441120 | APP7: =RawData!APO6 -> 1144900.3 | APQ7: =RawData!APP6 -> 1057868.4 | APR7: =RawData!APQ6 -> 971186.5 | APS7: =RawData!APR6 -> 884818.19 | APT7: =RawData!APS6 -> 798729.69 | APU7: =RawData!APT6 -> 712889.81 | APV7: =RawData!APU6 -> 627270.13 | APW7: =RawData!APV6 -> 541844.94 | APX7: =RawData!APW6 -> 456590.31 | APY7: =RawData!APX6 -> 371484.88 | APZ7: =RawData!APY6 -> 286508.81 | AQA7: =RawData!APZ6 -> 264176.81 | AQB7: =RawData!AQA6 -> 251108.09 | AQC7: =RawData!AQB6 -> 238685.84 | AQD7: =RawData!AQC6 -> 226878.14 | AQE7: =RawData!AQD6 -> 215654.53 | AQF7: =RawData!AQE6 -> 204986.19 | AQG7: =RawData!AQF6 -> 194845.59 | AQH7: =RawData!AQG6 -> 185206.63 | AQI7: =RawData!AQH6 -> 176044.53 | AQJ7: =RawData!AQI6 -> 167335.67 | AQK7: =RawData!AQJ6 -> 159057.61 | AQL7: =RawData!AQK6 -> 151189.09 | AQM7: =RawData!AQL6 -> 299331.16 | AQN7: =RawData!AQM6 -> 288289.06 | AQO7: =RawData!AQN6 -> 277330.22 | AQP7: =RawData!AQO6 -> 266448.59 | AQQ7: =RawData!AQP6 -> 255638.64 | AQR7: =RawData!AQQ6 -> 244895.28 | AQS7: =RawData!AQR6 -> 234213.8 | AQT7: =RawData!AQS6 -> 223589.86 | AQU7: =RawData!AQT6 -> 213019.47 | AQV7: =RawData!AQU6 -> 202498.95 | AQW7: =RawData!AQV6 -> 192025.02 | AQX7: =RawData!AQW6 -> 181594.64 | AQY7: =RawData!AQX6 -> 171205.02 | AQZ7: =RawData!AQY6 -> 160853.64 | ARA7: =RawData!AQZ6 -> 150538.28 | ARB7: =RawData!ARA6 -> 140256.83 | ARC7: =RawData!ARB6 -> 130007.53 | ARD7: =RawData!ARC6 -> 119788.77 | ARE7: =RawData!ARD6 -> 109598.98 | ARF7: =RawData!ARE6 -> 99437 | ARG7: =RawData!ARF6 -> 89301.688 | ARH7: =RawData!ARG6 -> 79192.023 | ARI7: =RawData!ARH6 -> 69107.234
